Workbook

Sheet AVISO LEGAL
J23: www.ree.es

Sheet Balance nacional mensual
A1: mensual
M4: Sistema eléctrico
M5: Horizonte temporal
M6: Periodo
C8: Ene. | D8: Feb. | E8: Mar. | F8: Abr. | G8: May. | H8: Jun. | I8: Jul. | J8: Ago. | K8: Sep. | L8: Oct. | M8: Nov. | N8: Dic. | O8: =OFFSET(Año!C19,($A$104-1),0) -> 2010
B10: Hidráulica | C10: =OFFSET(Balance!C85,0,($A$104-1)*12) -> 4414.276113 | D10: =OFFSET(Balance!D85,0,($A$104-1)*12) -> 3450.725562 | E10: =OFFSET(Balance!E85,0,($A$104-1)*12) -> 5031.778044 | F10: =OFFSET(Balance!F85,0,($A$104-1)*12) -> 4029.856131 | G10: =OFFSET(Balance!G85,0,($A$104-1)*12) -> 3174.539048 | H10: =OFFSET(Balance!H85,0,($A$104-1)*12) -> 2946.088153 | I10: =OFFSET(Balance!I85,0,($A$104-1)*12) -> 2437.169407 | J10: =OFFSET(Balance!J85,0,($A$104-1)*12) -> 1695.081813 | K10: =OFFSET(Balance!K85,0,($A$104-1)*12) -> 1249.407344 | L10: =OFFSET(Balance!L85,0,($A$104-1)*12) -> 1282.613029 | M10: =OFFSET(Balance!M85,0,($A$104-1)*12) -> 2043.858068 | N10: =OFFSET(Balance!N85,0,($A$104-1)*12) -> 3254.061477 | O10: =IF(SUM(C10:N10)=0,"-",SUM(C10:N10)) -> 35009.45419
B11: Turbinación bombeo | C11: =OFFSET(Balance!C86,0,($A$104-1)*12) -> 529.6098367 | D11: =OFFSET(Balance!D86,0,($A$104-1)*12) -> 388.3055554 | E11: =OFFSET(Balance!E86,0,($A$104-1)*12) -> 381.2650926 | F11: =OFFSET(Balance!F86,0,($A$104-1)*12) -> 212.2124193 | G11: =OFFSET(Balance!G86,0,($A$104-1)*12) -> 195.9644344 | H11: =OFFSET(Balance!H86,0,($A$104-1)*12) -> 161.1085868 | I11: =OFFSET(Balance!I86,0,($A$104-1)*12) -> 139.417691 | J11: =OFFSET(Balance!J86,0,($A$104-1)*12) -> 161.8007685 | K11: =OFFSET(Balance!K86,0,($A$104-1)*12) -> 163.5869683 | L11: =OFFSET(Balance!L86,0,($A$104-1)*12) -> 242.2811895 | M11: =OFFSET(Balance!M86,0,($A$104-1)*12) -> 225.5565683 | N11: =OFFSET(Balance!N86,0,($A$104-1)*12) -> 319.3386931 | O11: =IF(SUM(C11:N11)=0,"-",SUM(C11:N11)) -> 3120.447804
B12: Nuclear | C12: =OFFSET(Balance!C87,0,($A$104-1)*12) -> 4480.61 | D12: =OFFSET(Balance!D87,0,($A$104-1)*12) -> 4635.983 | E12: =OFFSET(Balance!E87,0,($A$104-1)*12) -> 4877.964647 | F12: =OFFSET(Balance!F87,0,($A$104-1)*12) -> 4894.268 | G12: =OFFSET(Balance!G87,0,($A$104-1)*12) -> 4417.869 | H12: =OFFSET(Balance!H87,0,($A$104-1)*12) -> 4693.97 | I12: =OFFSET(Balance!I87,0,($A$104-1)*12) -> 5399.984 | J12: =OFFSET(Balance!J87,0,($A$104-1)*12) -> 5421.255 | K12: =OFFSET(Balance!K87,0,($A$104-1)*12) -> 5066.819 | L12: =OFFSET(Balance!L87,0,($A$104-1)*12) -> 5429.769 | M12: =OFFSET(Balance!M87,0,($A$104-1)*12) -> 5094.619 | N12: =OFFSET(Balance!N87,0,($A$104-1)*12) -> 4829.211 | O12: 59242.32165
B13: Carbón | C13: =OFFSET(Balance!C88,0,($A$104-1)*12) -> 1984.722964 | D13: =OFFSET(Balance!D88,0,($A$104-1)*12) -> 1620.406437 | E13: =OFFSET(Balance!E88,0,($A$104-1)*12) -> 1128.340414 | F13: =OFFSET(Balance!F88,0,($A$104-1)*12) -> 904.48311 | G13: =OFFSET(Balance!G88,0,($A$104-1)*12) -> 1053.230108 | H13: =OFFSET(Balance!H88,0,($A$104-1)*12) -> 1601.609162 | I13: =OFFSET(Balance!I88,0,($A$104-1)*12) -> 2742.506 | J13: =OFFSET(Balance!J88,0,($A$104-1)*12) -> 3122.487928 | K13: =OFFSET(Balance!K88,0,($A$104-1)*12) -> 3256.419825 | L13: =OFFSET(Balance!L88,0,($A$104-1)*12) -> 2204.432101 | M13: =OFFSET(Balance!M88,0,($A$104-1)*12) -> 1819.434667 | N13: =OFFSET(Balance!N88,0,($A$104-1)*12) -> 2262.540684 | O13: 23700.6134
B14: Fuel + Gas | C14: =OFFSET(Balance!C89,0,($A$104-1)*12) -> 769.165922 | D14: =OFFSET(Balance!D89,0,($A$104-1)*12) -> 680.8875 | E14: =OFFSET(Balance!E89,0,($A$104-1)*12) -> 622.58835 | F14: =OFFSET(Balance!F89,0,($A$104-1)*12) -> 645.159553 | G14: =OFFSET(Balance!G89,0,($A$104-1)*12) -> 743.365113 | H14: =OFFSET(Balance!H89,0,($A$104-1)*12) -> 767.24709 | I14: =OFFSET(Balance!I89,0,($A$104-1)*12) -> 791.550728 | J14: =OFFSET(Balance!J89,0,($A$104-1)*12) -> 801.003163 | K14: =OFFSET(Balance!K89,0,($A$104-1)*12) -> 775.187208 | L14: =OFFSET(Balance!L89,0,($A$104-1)*12) -> 725.473731 | M14: =OFFSET(Balance!M89,0,($A$104-1)*12) -> 741.368957 | N14: =OFFSET(Balance!N89,0,($A$104-1)*12) -> 758.762501 | O14: 8821.759816
B15: Ciclo combinado (2) | C15: =OFFSET(Balance!C90,0,($A$104-1)*12) -> 5621.942065 | D15: =OFFSET(Balance!D90,0,($A$104-1)*12) -> 5052.503755 | E15: =OFFSET(Balance!E90,0,($A$104-1)*12) -> 4384.988592 | F15: =OFFSET(Balance!F90,0,($A$104-1)*12) -> 4612.741777 | G15: =OFFSET(Balance!G90,0,($A$104-1)*12) -> 4834.075072 | H15: =OFFSET(Balance!H90,0,($A$104-1)*12) -> 5727.722947 | I15: =OFFSET(Balance!I90,0,($A$104-1)*12) -> 7160.343212 | J15: =OFFSET(Balance!J90,0,($A$104-1)*12) -> 6106.948573 | K15: =OFFSET(Balance!K90,0,($A$104-1)*12) -> 6544.562699 | L15: =OFFSET(Balance!L90,0,($A$104-1)*12) -> 5651.863152 | M15: =OFFSET(Balance!M90,0,($A$104-1)*12) -> 5881.431113 | N15: =OFFSET(Balance!N90,0,($A$104-1)*12) -> 5219.861195 | O15: 66798.98415
B16: Régimen ordinario | C16: =OFFSET(Balance!C91,0,($A$104-1)*12) -> 17800.3269 | D16: =OFFSET(Balance!D91,0,($A$104-1)*12) -> 15828.81181 | E16: =OFFSET(Balance!E91,0,($A$104-1)*12) -> 16426.92514 | F16: =OFFSET(Balance!F91,0,($A$104-1)*12) -> 15298.72099 | G16: =OFFSET(Balance!G91,0,($A$104-1)*12) -> 14419.04277 | H16: =OFFSET(Balance!H91,0,($A$104-1)*12) -> 15897.74594 | I16: =OFFSET(Balance!I91,0,($A$104-1)*12) -> 18670.97104 | J16: =OFFSET(Balance!J91,0,($A$104-1)*12) -> 17308.57725 | K16: =OFFSET(Balance!K91,0,($A$104-1)*12) -> 17055.98304 | L16: =OFFSET(Balance!L91,0,($A$104-1)*12) -> 15536.4322 | M16: =OFFSET(Balance!M91,0,($A$104-1)*12) -> 15806.26837 | N16: =OFFSET(Balance!N91,0,($A$104-1)*12) -> 16643.77555 | O16: 196693.581
B18: Hidroeólica | C18: =OFFSET(Balance!C92,0,($A$104-1)*12) -> - | D18: =OFFSET(Balance!D92,0,($A$104-1)*12) -> - | E18: =OFFSET(Balance!E92,0,($A$104-1)*12) -> - | F18: =OFFSET(Balance!F92,0,($A$104-1)*12) -> - | G18: =OFFSET(Balance!G92,0,($A$104-1)*12) -> - | H18: =OFFSET(Balance!H92,0,($A$104-1)*12) -> - | I18: =OFFSET(Balance!I92,0,($A$104-1)*12) -> - | J18: =OFFSET(Balance!J92,0,($A$104-1)*12) -> - | K18: =OFFSET(Balance!K92,0,($A$104-1)*12) -> - | L18: =OFFSET(Balance!L92,0,($A$104-1)*12) -> - | M18: =OFFSET(Balance!M92,0,($A$104-1)*12) -> - | N18: =OFFSET(Balance!N92,0,($A$104-1)*12) -> - | O18: =IF(SUM(C18:N18)=0,"-",SUM(C18:N18)) -> -
B19: Hidráulica (3) | C19: =OFFSET(Balance!C93,0,($A$104-1)*12) -> 764.37 | D19: =OFFSET(Balance!D93,0,($A$104-1)*12) -> 616.578 | E19: =OFFSET(Balance!E93,0,($A$104-1)*12) -> 784.76 | F19: =OFFSET(Balance!F93,0,($A$104-1)*12) -> 690.196 | G19: =OFFSET(Balance!G93,0,($A$104-1)*12) -> 688.343 | H19: =OFFSET(Balance!H93,0,($A$104-1)*12) -> 608.948 | I19: =OFFSET(Balance!I93,0,($A$104-1)*12) -> 459.603 | J19: =OFFSET(Balance!J93,0,($A$104-1)*12) -> 341.748 | K19: =OFFSET(Balance!K93,0,($A$104-1)*12) -> 281.05 | L19: =OFFSET(Balance!L93,0,($A$104-1)*12) -> 318.889 | M19: =OFFSET(Balance!M93,0,($A$104-1)*12) -> 567.66 | N19: =OFFSET(Balance!N93,0,($A$104-1)*12) -> 702.175 | O19: 6824.32
B20: Eólica | C20: =OFFSET(Balance!C94,0,($A$104-1)*12) -> 4304.431 | D20: =OFFSET(Balance!D94,0,($A$104-1)*12) -> 4637.902 | E20: =OFFSET(Balance!E94,0,($A$104-1)*12) -> 4570.152 | F20: =OFFSET(Balance!F94,0,($A$104-1)*12) -> 2667.343 | G20: =OFFSET(Balance!G94,0,($A$104-1)*12) -> 3655.897 | H20: =OFFSET(Balance!H94,0,($A$104-1)*12) -> 2615.31 | I20: =OFFSET(Balance!I94,0,($A$104-1)*12) -> 2845.759 | J20: =OFFSET(Balance!J94,0,($A$104-1)*12) -> 2937.761 | K20: =OFFSET(Balance!K94,0,($A$104-1)*12) -> 2337.395 | L20: =OFFSET(Balance!L94,0,($A$104-1)*12) -> 3967.323 | M20: =OFFSET(Balance!M94,0,($A$104-1)*12) -> 4366.544 | N20: =OFFSET(Balance!N94,0,($A$104-1)*12) -> 4639.513 | O20: 43545.33
B21: Solar fotovoltaica | C21: =OFFSET(Balance!C95,0,($A$104-1)*12) -> 263.119 | D21: =OFFSET(Balance!D95,0,($A$104-1)*12) -> 305.071 | E21: =OFFSET(Balance!E95,0,($A$104-1)*12) -> 481.509 | F21: =OFFSET(Balance!F95,0,($A$104-1)*12) -> 590.407 | G21: =OFFSET(Balance!G95,0,($A$104-1)*12) -> 711.442 | H21: =OFFSET(Balance!H95,0,($A$104-1)*12) -> 685.331 | I21: =OFFSET(Balance!I95,0,($A$104-1)*12) -> 785.815 | J21: =OFFSET(Balance!J95,0,($A$104-1)*12) -> 723.07 | K21: =OFFSET(Balance!K95,0,($A$104-1)*12) -> 631.376 | L21: =OFFSET(Balance!L95,0,($A$104-1)*12) -> 548.484 | M21: =OFFSET(Balance!M95,0,($A$104-1)*12) -> 382.176 | N21: =OFFSET(Balance!N95,0,($A$104-1)*12) -> 314.972 | O21: 6422.772
B22: Solar térmica | C22: =OFFSET(Balance!C96,0,($A$104-1)*12) -> 13.152 | D22: =OFFSET(Balance!D96,0,($A$104-1)*12) -> 11.682 | E22: =OFFSET(Balance!E96,0,($A$104-1)*12) -> 23.732 | F22: =OFFSET(Balance!F96,0,($A$104-1)*12) -> 36.92 | G22: =OFFSET(Balance!G96,0,($A$104-1)*12) -> 69.084 | H22: =OFFSET(Balance!H96,0,($A$104-1)*12) -> 72.532 | I22: =OFFSET(Balance!I96,0,($A$104-1)*12) -> 104.59 | J22: =OFFSET(Balance!J96,0,($A$104-1)*12) -> 121.9 | K22: =OFFSET(Balance!K96,0,($A$104-1)*12) -> 100.917 | L22: =OFFSET(Balance!L96,0,($A$104-1)*12) -> 71.745 | M22: =OFFSET(Balance!M96,0,($A$104-1)*12) -> 31.619 | N22: =OFFSET(Balance!N96,0,($A$104-1)*12) -> 33.747 | O22: 691.62
B23: Térmica renovable (5) | C23: =OFFSET(Balance!C97,0,($A$104-1)*12) -> 274.842 | D23: =OFFSET(Balance!D97,0,($A$104-1)*12) -> 245.359 | E23: =OFFSET(Balance!E97,0,($A$104-1)*12) -> 262.311 | F23: =OFFSET(Balance!F97,0,($A$104-1)*12) -> 277.043 | G23: =OFFSET(Balance!G97,0,($A$104-1)*12) -> 300.037 | H23: =OFFSET(Balance!H97,0,($A$104-1)*12) -> 288.511 | I23: =OFFSET(Balance!I97,0,($A$104-1)*12) -> 278.102 | J23: =OFFSET(Balance!J97,0,($A$104-1)*12) -> 284.791 | K23: =OFFSET(Balance!K97,0,($A$104-1)*12) -> 267.962 | L23: =OFFSET(Balance!L97,0,($A$104-1)*12) -> 284.303 | M23: =OFFSET(Balance!M97,0,($A$104-1)*12) -> 273.1 | N23: =OFFSET(Balance!N97,0,($A$104-1)*12) -> 295.999 | O23: 3332.36
B24: Térmica no renovable (5) | C24: =OFFSET(Balance!C98,0,($A$104-1)*12) -> 2672.728 | D24: =OFFSET(Balance!D98,0,($A$104-1)*12) -> 2486.873 | E24: =OFFSET(Balance!E98,0,($A$104-1)*12) -> 2628.811 | F24: =OFFSET(Balance!F98,0,($A$104-1)*12) -> 2562.366 | G24: =OFFSET(Balance!G98,0,($A$104-1)*12) -> 2593.181 | H24: =OFFSET(Balance!H98,0,($A$104-1)*12) -> 2552.884 | I24: =OFFSET(Balance!I98,0,($A$104-1)*12) -> 2625.967 | J24: =OFFSET(Balance!J98,0,($A$104-1)*12) -> 2177.162 | K24: =OFFSET(Balance!K98,0,($A$104-1)*12) -> 2550.565 | L24: =OFFSET(Balance!L98,0,($A$104-1)*12) -> 2661.369 | M24: =OFFSET(Balance!M98,0,($A$104-1)*12) -> 2677.227 | N24: =OFFSET(Balance!N98,0,($A$104-1)*12) -> 2784.191 | O24: 30973.324
B25: Residuos no renovables | C25: =OFFSET(Balance!C99,0,($A$104-1)*12) -> - | D25: =OFFSET(Balance!D99,0,($A$104-1)*12) -> - | E25: =OFFSET(Balance!E99,0,($A$104-1)*12) -> - | F25: =OFFSET(Balance!F99,0,($A$104-1)*12) -> - | G25: =OFFSET(Balance!G99,0,($A$104-1)*12) -> - | H25: =OFFSET(Balance!H99,0,($A$104-1)*12) -> - | I25: =OFFSET(Balance!I99,0,($A$104-1)*12) -> - | J25: =OFFSET(Balance!J99,0,($A$104-1)*12) -> - | K25: =OFFSET(Balance!K99,0,($A$104-1)*12) -> - | L25: =OFFSET(Balance!L99,0,($A$104-1)*12) -> - | M25: =OFFSET(Balance!M99,0,($A$104-1)*12) -> - | N25: =OFFSET(Balance!N99,0,($A$104-1)*12) -> - | O25: -
B26: Residuos renovables | C26: =OFFSET(Balance!C100,0,($A$104-1)*12) -> - | D26: =OFFSET(Balance!D100,0,($A$104-1)*12) -> - | E26: =OFFSET(Balance!E100,0,($A$104-1)*12) -> - | F26: =OFFSET(Balance!F100,0,($A$104-1)*12) -> - | G26: =OFFSET(Balance!G100,0,($A$104-1)*12) -> - | H26: =OFFSET(Balance!H100,0,($A$104-1)*12) -> - | I26: =OFFSET(Balance!I100,0,($A$104-1)*12) -> - | J26: =OFFSET(Balance!J100,0,($A$104-1)*12) -> - | K26: =OFFSET(Balance!K100,0,($A$104-1)*12) -> - | L26: =OFFSET(Balance!L100,0,($A$104-1)*12) -> - | M26: =OFFSET(Balance!M100,0,($A$104-1)*12) -> - | N26: =OFFSET(Balance!N100,0,($A$104-1)*12) -> - | O26: =IF(SUM(C26:N26)=0,"-",SUM(C26:N26)) -> -
B27: Régimen especial | C27: =OFFSET(Balance!C101,0,($A$104-1)*12) -> 8292.642 | D27: =OFFSET(Balance!D101,0,($A$104-1)*12) -> 8303.465 | E27: =OFFSET(Balance!E101,0,($A$104-1)*12) -> 8751.275 | F27: =OFFSET(Balance!F101,0,($A$104-1)*12) -> 6824.275 | G27: =OFFSET(Balance!G101,0,($A$104-1)*12) -> 8017.984 | H27: =OFFSET(Balance!H101,0,($A$104-1)*12) -> 6823.516 | I27: =OFFSET(Balance!I101,0,($A$104-1)*12) -> 7099.836 | J27: =OFFSET(Balance!J101,0,($A$104-1)*12) -> 6586.432 | K27: =OFFSET(Balance!K101,0,($A$104-1)*12) -> 6169.265 | L27: =OFFSET(Balance!L101,0,($A$104-1)*12) -> 7852.113 | M27: =OFFSET(Balance!M101,0,($A$104-1)*12) -> 8298.326 | N27: =OFFSET(Balance!N101,0,($A$104-1)*12) -> 8770.597 | O27: 91789.726
B28: Generación | C28: =OFFSET(Balance!C102,0,($A$104-1)*12) -> 26092.9689 | D28: =OFFSET(Balance!D102,0,($A$104-1)*12) -> 24132.27681 | E28: =OFFSET(Balance!E102,0,($A$104-1)*12) -> 25178.20014 | F28: =OFFSET(Balance!F102,0,($A$104-1)*12) -> 22122.99599 | G28: =OFFSET(Balance!G102,0,($A$104-1)*12) -> 22437.02677 | H28: =OFFSET(Balance!H102,0,($A$104-1)*12) -> 22721.26194 | I28: =OFFSET(Balance!I102,0,($A$104-1)*12) -> 25770.80704 | J28: =OFFSET(Balance!J102,0,($A$104-1)*12) -> 23895.00925 | K28: =OFFSET(Balance!K102,0,($A$104-1)*12) -> 23225.24804 | L28: =OFFSET(Balance!L102,0,($A$104-1)*12) -> 23388.5452 | M28: =OFFSET(Balance!M102,0,($A$104-1)*12) -> 24104.59437 | N28: =OFFSET(Balance!N102,0,($A$104-1)*12) -> 25414.37255 | O28: =IF(SUM(C28:N28)=0,"-",SUM(C28:N28)) -> 288483.307
B29: Consumos en bombeo | C29: =OFFSET(Balance!C103,0,($A$104-1)*12) -> -756.585481 | D29: =OFFSET(Balance!D103,0,($A$104-1)*12) -> -554.722222 | E29: =OFFSET(Balance!E103,0,($A$104-1)*12) -> -544.664418 | F29: =OFFSET(Balance!F103,0,($A$104-1)*12) -> -303.160599 | G29: =OFFSET(Balance!G103,0,($A$104-1)*12) -> -279.949192 | H29: =OFFSET(Balance!H103,0,($A$104-1)*12) -> -230.155124 | I29: =OFFSET(Balance!I103,0,($A$104-1)*12) -> -199.16813 | J29: =OFFSET(Balance!J103,0,($A$104-1)*12) -> -231.143955 | K29: =OFFSET(Balance!K103,0,($A$104-1)*12) -> -233.695669 | L29: =OFFSET(Balance!L103,0,($A$104-1)*12) -> -346.115985 | M29: =OFFSET(Balance!M103,0,($A$104-1)*12) -> -322.223669 | N29: =OFFSET(Balance!N103,0,($A$104-1)*12) -> -456.198133 | O29: -4457.782577
B30: Saldo intercambios internacionales (4) | C30: =OFFSET(Balance!C104,0,($A$104-1)*12) -> -304.713446 | D30: =OFFSET(Balance!D104,0,($A$104-1)*12) -> -506.196753 | E30: =OFFSET(Balance!E104,0,($A$104-1)*12) -> -560.114046 | F30: =OFFSET(Balance!F104,0,($A$104-1)*12) -> -729.095102 | G30: =OFFSET(Balance!G104,0,($A$104-1)*12) -> -542.815029 | H30: =OFFSET(Balance!H104,0,($A$104-1)*12) -> -821.225751 | I30: =OFFSET(Balance!I104,0,($A$104-1)*12) -> -1000.653567 | J30: =OFFSET(Balance!J104,0,($A$104-1)*12) -> -758.601057 | K30: =OFFSET(Balance!K104,0,($A$104-1)*12) -> -964.255452 | L30: =OFFSET(Balance!L104,0,($A$104-1)*12) -> -1295.509887 | M30: =OFFSET(Balance!M104,0,($A$104-1)*12) -> -593.210574 | N30: =OFFSET(Balance!N104,0,($A$104-1)*12) -> -256.288394 | O30: -8332.679058
B31: Demanda transporte (b.c.) | C31: =OFFSET(Balance!C105,0,($A$104-1)*12) -> 25031.66997 | D31: =OFFSET(Balance!D105,0,($A$104-1)*12) -> 23071.35783 | E31: =OFFSET(Balance!E105,0,($A$104-1)*12) -> 24073.42168 | F31: =OFFSET(Balance!F105,0,($A$104-1)*12) -> 21090.74029 | G31: =OFFSET(Balance!G105,0,($A$104-1)*12) -> 21614.26255 | H31: =OFFSET(Balance!H105,0,($A$104-1)*12) -> 21669.88106 | I31: =OFFSET(Balance!I105,0,($A$104-1)*12) -> 24570.98534 | J31: =OFFSET(Balance!J105,0,($A$104-1)*12) -> 22905.26423 | K31: =OFFSET(Balance!K105,0,($A$104-1)*12) -> 22027.29692 | L31: =OFFSET(Balance!L105,0,($A$104-1)*12) -> 21746.91933 | M31: =OFFSET(Balance!M105,0,($A$104-1)*12) -> 23189.16013 | N31: =OFFSET(Balance!N105,0,($A$104-1)*12) -> 24701.88602 | O31: =IF(SUM(C31:N31)=0,"-",SUM(C31:N31)) -> 275692.8454
B32: (1) Asignación de unidades de producción según combustible principal.
B33: (2) Incluye funcionamiento en ciclo abierto.
B35: (3) Incluye todas aquellas unidades menores de 50 MW que no pertenecen a ninguna unidad de gestión hidráulica (UGH).
B36: (4) Valor positivo: saldo importador; valor negativo: saldo exportador.
B37: (5) Hasta 2010 incluye residuos.
A102: 2
A103: 11
A104: 4
A105: 11

Sheet Balance nacional anual
I1: 1
H4: Sistema eléctrico
H5: Horizonte temporal
H6: Periodo
C8: =OFFSET(Balance!C189,0,($I$1-1)*7) -> 2007 | D8: =OFFSET(Balance!D189,0,($I$1-1)*7) -> 2008 | E8: =OFFSET(Balance!E189,0,($I$1-1)*7) -> 2009 | F8: =OFFSET(Balance!F189,0,($I$1-1)*7) -> 2010 | G8: =OFFSET(Balance!G189,0,($I$1-1)*7) -> 2011 | H8: =OFFSET(Balance!H189,0,($I$1-1)*7) -> 2012 | I8: =OFFSET(Balance!I189,0,($I$1-1)*7) -> 2013
B10: Hidráulica | C10: =OFFSET(Balance!C190,0,($I$1-1)*7) -> 22978.9781 | D10: =OFFSET(Balance!D190,0,($I$1-1)*7) -> 18295.6386 | E10: =OFFSET(Balance!E190,0,($I$1-1)*7) -> 20732.3027 | F10: =OFFSET(Balance!F190,0,($I$1-1)*7) -> 35009.45419 | G10: =OFFSET(Balance!G190,0,($I$1-1)*7) -> - | H10: =OFFSET(Balance!H190,0,($I$1-1)*7) -> - | I10: =OFFSET(Balance!I190,0,($I$1-1)*7) -> -
B11: Turbinación bombeo | C11: =OFFSET(Balance!C191,0,($I$1-1)*7) -> 3102.6009 | D11: =OFFSET(Balance!D191,0,($I$1-1)*7) -> 2661.7514 | E11: =OFFSET(Balance!E191,0,($I$1-1)*7) -> 2655.9323 | F11: =OFFSET(Balance!F191,0,($I$1-1)*7) -> 3120.447804 | G11: =OFFSET(Balance!G191,0,($I$1-1)*7) -> - | H11: =OFFSET(Balance!H191,0,($I$1-1)*7) -> - | I11: =OFFSET(Balance!I191,0,($I$1-1)*7) -> -
B12: Nuclear | C12: =OFFSET(Balance!C192,0,($I$1-1)*7) -> 52638.927 | D12: =OFFSET(Balance!D192,0,($I$1-1)*7) -> 56460.291 | E12: =OFFSET(Balance!E192,0,($I$1-1)*7) -> 50549.445 | F12: =OFFSET(Balance!F192,0,($I$1-1)*7) -> 59242.32165 | G12: =OFFSET(Balance!G192,0,($I$1-1)*7) -> - | H12: =OFFSET(Balance!H192,0,($I$1-1)*7) -> - | I12: =OFFSET(Balance!I192,0,($I$1-1)*7) -> -
B13: Carbón | C13: =OFFSET(Balance!C193,0,($I$1-1)*7) -> 70630.103 | D13: =OFFSET(Balance!D193,0,($I$1-1)*7) -> 46508.363 | E13: =OFFSET(Balance!E193,0,($I$1-1)*7) -> 34793.025 | F13: =OFFSET(Balance!F193,0,($I$1-1)*7) -> 23700.6134 | G13: =OFFSET(Balance!G193,0,($I$1-1)*7) -> - | H13: =OFFSET(Balance!H193,0,($I$1-1)*7) -> - | I13: =OFFSET(Balance!I193,0,($I$1-1)*7) -> -
B14: Fuel + Gas | C14: =OFFSET(Balance!C194,0,($I$1-1)*7) -> 9988.465 | D14: =OFFSET(Balance!D194,0,($I$1-1)*7) -> 9887.566 | E14: =OFFSET(Balance!E194,0,($I$1-1)*7) -> 9276.304054 | F14: =OFFSET(Balance!F194,0,($I$1-1)*7) -> 8821.759816 | G14: =OFFSET(Balance!G194,0,($I$1-1)*7) -> - | H14: =OFFSET(Balance!H194,0,($I$1-1)*7) -> - | I14: =OFFSET(Balance!I194,0,($I$1-1)*7) -> -
B15: Ciclo combinado (2) | C15: =OFFSET(Balance!C195,0,($I$1-1)*7) -> 70600.138 | D15: =OFFSET(Balance!D195,0,($I$1-1)*7) -> 93197.539 | E15: =OFFSET(Balance!E195,0,($I$1-1)*7) -> 80223.795 | F15: =OFFSET(Balance!F195,0,($I$1-1)*7) -> 66798.98415 | G15: =OFFSET(Balance!G195,0,($I$1-1)*7) -> - | H15: =OFFSET(Balance!H195,0,($I$1-1)*7) -> - | I15: =OFFSET(Balance!I195,0,($I$1-1)*7) -> -
B16: Régimen ordinario | C16: =OFFSET(Balance!C196,0,($I$1-1)*7) -> 229939.212 | D16: =OFFSET(Balance!D196,0,($I$1-1)*7) -> 227011.149 | E16: =OFFSET(Balance!E196,0,($I$1-1)*7) -> 198230.8041 | F16: =OFFSET(Balance!F196,0,($I$1-1)*7) -> 196693.581 | G16: =OFFSET(Balance!G196,0,($I$1-1)*7) -> - | H16: =OFFSET(Balance!H196,0,($I$1-1)*7) -> - | I16: =OFFSET(Balance!I196,0,($I$1-1)*7) -> -
B18: Hidroeólica | C18: =OFFSET(Balance!C197,0,($I$1-1)*7) ->  | D18: =OFFSET(Balance!D197,0,($I$1-1)*7) ->  | E18: =OFFSET(Balance!E197,0,($I$1-1)*7) ->  | F18: =OFFSET(Balance!F197,0,($I$1-1)*7) ->  | G18: =OFFSET(Balance!G197,0,($I$1-1)*7) -> - | H18: =OFFSET(Balance!H197,0,($I$1-1)*7) -> - | I18: =OFFSET(Balance!I197,0,($I$1-1)*7) -> -
B19: Resto hidráulica (3) | C19: =OFFSET(Balance!C198,0,($I$1-1)*7) -> 4126.501 | D19: =OFFSET(Balance!D198,0,($I$1-1)*7) -> 4639.816 | E19: =OFFSET(Balance!E198,0,($I$1-1)*7) -> 5454.071 | F19: =OFFSET(Balance!F198,0,($I$1-1)*7) -> 6824.32 | G19: =OFFSET(Balance!G198,0,($I$1-1)*7) -> - | H19: =OFFSET(Balance!H198,0,($I$1-1)*7) -> - | I19: =OFFSET(Balance!I198,0,($I$1-1)*7) -> -
B20: Eólica | C20: =OFFSET(Balance!C199,0,($I$1-1)*7) -> 27611.651 | D20: =OFFSET(Balance!D199,0,($I$1-1)*7) -> 32159.822 | E20: =OFFSET(Balance!E199,0,($I$1-1)*7) -> 38252.827 | F20: =OFFSET(Balance!F199,0,($I$1-1)*7) -> 43545.33 | G20: =OFFSET(Balance!G199,0,($I$1-1)*7) -> - | H20: =OFFSET(Balance!H199,0,($I$1-1)*7) -> - | I20: =OFFSET(Balance!I199,0,($I$1-1)*7) -> -
B21: Solar fotovoltaica | C21: =OFFSET(Balance!C200,0,($I$1-1)*7) -> 483.902 | D21: =OFFSET(Balance!D200,0,($I$1-1)*7) -> 2497.956 | E21: =OFFSET(Balance!E200,0,($I$1-1)*7) -> 6072.39 | F21: =OFFSET(Balance!F200,0,($I$1-1)*7) -> 6422.772 | G21: =OFFSET(Balance!G200,0,($I$1-1)*7) -> - | H21: =OFFSET(Balance!H200,0,($I$1-1)*7) -> - | I21: =OFFSET(Balance!I200,0,($I$1-1)*7) -> -
B22: Solar térmica | C22: =OFFSET(Balance!C201,0,($I$1-1)*7) -> 7.627 | D22: =OFFSET(Balance!D201,0,($I$1-1)*7) -> 15.378 | E22: =OFFSET(Balance!E201,0,($I$1-1)*7) -> 129.823 | F22: =OFFSET(Balance!F201,0,($I$1-1)*7) -> 691.62 | G22: =OFFSET(Balance!G201,0,($I$1-1)*7) -> - | H22: =OFFSET(Balance!H201,0,($I$1-1)*7) -> - | I22: =OFFSET(Balance!I201,0,($I$1-1)*7) -> -
B23: Térmica renovable(5)/Otras renovables | C23: =OFFSET(Balance!C202,0,($I$1-1)*7) -> 2588.968 | D23: =OFFSET(Balance!D202,0,($I$1-1)*7) -> 2868.708 | E23: =OFFSET(Balance!E202,0,($I$1-1)*7) -> 3317.342 | F23: =OFFSET(Balance!F202,0,($I$1-1)*7) -> 3332.36 | G23: =OFFSET(Balance!G202,0,($I$1-1)*7) -> - | H23: =OFFSET(Balance!H202,0,($I$1-1)*7) -> - | I23: =OFFSET(Balance!I202,0,($I$1-1)*7) -> -
B24: Cogeneración y resto(5)/Cogeneración | C24: =OFFSET(Balance!C203,0,($I$1-1)*7) -> 23450.43 | D24: =OFFSET(Balance!D203,0,($I$1-1)*7) -> 26721.15 | E24: =OFFSET(Balance!E203,0,($I$1-1)*7) -> 28600.731 | F24: =OFFSET(Balance!F203,0,($I$1-1)*7) -> 30973.324 | G24: =OFFSET(Balance!G203,0,($I$1-1)*7) -> - | H24: =OFFSET(Balance!H203,0,($I$1-1)*7) -> - | I24: =OFFSET(Balance!I203,0,($I$1-1)*7) -> -
B25: Residuos no renovables | C25: =OFFSET(Balance!C204,0,($I$1-1)*7) ->  | D25: =OFFSET(Balance!D204,0,($I$1-1)*7) ->  | E25: =OFFSET(Balance!E204,0,($I$1-1)*7) ->  | F25: =OFFSET(Balance!F204,0,($I$1-1)*7) ->  | G25: =OFFSET(Balance!G204,0,($I$1-1)*7) -> - | H25: =OFFSET(Balance!H204,0,($I$1-1)*7) -> - | I25: =OFFSET(Balance!I204,0,($I$1-1)*7) -> -
B26: Residuos renovables | C26: =OFFSET(Balance!C205,0,($I$1-1)*7) ->  | D26: =OFFSET(Balance!D205,0,($I$1-1)*7) ->  | E26: =OFFSET(Balance!E205,0,($I$1-1)*7) ->  | F26: =OFFSET(Balance!F205,0,($I$1-1)*7) ->  | G26: =OFFSET(Balance!G205,0,($I$1-1)*7) -> - | H26: =OFFSET(Balance!H205,0,($I$1-1)*7) -> - | I26: =OFFSET(Balance!I205,0,($I$1-1)*7) -> -
B27: Régimen especial | C27: =OFFSET(Balance!C206,0,($I$1-1)*7) -> 58269.079 | D27: =OFFSET(Balance!D206,0,($I$1-1)*7) -> 68902.83 | E27: =OFFSET(Balance!E206,0,($I$1-1)*7) -> 81827.184 | F27: =OFFSET(Balance!F206,0,($I$1-1)*7) -> 91789.726 | G27: =OFFSET(Balance!G206,0,($I$1-1)*7) -> - | H27: =OFFSET(Balance!H206,0,($I$1-1)*7) -> - | I27: =OFFSET(Balance!I206,0,($I$1-1)*7) -> -
B28: Generación | C28: =OFFSET(Balance!C207,0,($I$1-1)*7) -> 288208.291 | D28: =OFFSET(Balance!D207,0,($I$1-1)*7) -> 295913.979 | E28: =OFFSET(Balance!E207,0,($I$1-1)*7) -> 280057.9881 | F28: =OFFSET(Balance!F207,0,($I$1-1)*7) -> 288483.307 | G28: =OFFSET(Balance!G207,0,($I$1-1)*7) -> - | H28: =OFFSET(Balance!H207,0,($I$1-1)*7) -> - | I28: =OFFSET(Balance!I207,0,($I$1-1)*7) -> -
B29: Consumos en bombeo | C29: =OFFSET(Balance!C208,0,($I$1-1)*7) -> -4432.287 | D29: =OFFSET(Balance!D208,0,($I$1-1)*7) -> -3802.502 | E29: =OFFSET(Balance!E208,0,($I$1-1)*7) -> -3794.189 | F29: =OFFSET(Balance!F208,0,($I$1-1)*7) -> -4457.782577 | G29: =OFFSET(Balance!G208,0,($I$1-1)*7) -> - | H29: =OFFSET(Balance!H208,0,($I$1-1)*7) -> - | I29: =OFFSET(Balance!I208,0,($I$1-1)*7) -> -
B30: Saldo intercambios internacionales (4) | C30: =OFFSET(Balance!C209,0,($I$1-1)*7) -> -5750.465 | D30: =OFFSET(Balance!D209,0,($I$1-1)*7) -> -11039.586 | E30: =OFFSET(Balance!E209,0,($I$1-1)*7) -> -8086.414 | F30: =OFFSET(Balance!F209,0,($I$1-1)*7) -> -8332.679058 | G30: =OFFSET(Balance!G209,0,($I$1-1)*7) -> - | H30: =OFFSET(Balance!H209,0,($I$1-1)*7) -> - | I30: =OFFSET(Balance!I209,0,($I$1-1)*7) -> -
B31: Demanda transporte (b.c.) | C31: =OFFSET(Balance!C210,0,($I$1-1)*7) -> 278025.539 | D31: =OFFSET(Balance!D210,0,($I$1-1)*7) -> 281071.891 | E31: =OFFSET(Balance!E210,0,($I$1-1)*7) -> 268177.3851 | F31: =OFFSET(Balance!F210,0,($I$1-1)*7) -> 275692.8454 | G31: =OFFSET(Balance!G210,0,($I$1-1)*7) -> - | H31: =OFFSET(Balance!H210,0,($I$1-1)*7) -> - | I31: =OFFSET(Balance!I210,0,($I$1-1)*7) -> -
B32: (1) Asignación de unidades de producción según combustible principal.
B33: (2) Incluye funcionamiento en ciclo abierto.
B35: (3) Incluye todas aquellas unidades menores de 50 MW que no pertenecen a ninguna unidad de gestión hidráulica (UGH) hasta 2010.
B36: (4) Valor positivo: saldo importador; valor negativo: saldo exportador.
B37: (5) Hasta 2010 e incluye residuos.

Sheet Balance Peninsular mensual
O1: 21
M4: Sistema eléctrico
M5: Horizonte temporal
M6: Periodo
C8: Ene. | D8: Feb. | E8: Mar. | F8: Abr. | G8: May. | H8: Jun. | I8: Jul. | J8: Ago. | K8: Sep. | L8: Oct. | M8: Nov. | N8: Dic. | O8: =OFFSET(Año!C2,($O$1-1),0) -> 2010
B10: Hidráulica | C10: =OFFSET(Balance!C3,0,($O$1-1)*12) -> 4414.276113 | D10: =OFFSET(Balance!D3,0,($O$1-1)*12) -> 3450.725562 | E10: =OFFSET(Balance!E3,0,($O$1-1)*12) -> 5031.778044 | F10: =OFFSET(Balance!F3,0,($O$1-1)*12) -> 4029.856131 | G10: =OFFSET(Balance!G3,0,($O$1-1)*12) -> 3174.539048 | H10: =OFFSET(Balance!H3,0,($O$1-1)*12) -> 2946.088153 | I10: =OFFSET(Balance!I3,0,($O$1-1)*12) -> 2437.169407 | J10: =OFFSET(Balance!J3,0,($O$1-1)*12) -> 1695.081813 | K10: =OFFSET(Balance!K3,0,($O$1-1)*12) -> 1249.407344 | L10: =OFFSET(Balance!L3,0,($O$1-1)*12) -> 1282.613029 | M10: =OFFSET(Balance!M3,0,($O$1-1)*12) -> 2043.858068 | N10: =OFFSET(Balance!N3,0,($O$1-1)*12) -> 3254.061477 | O10: =IF(SUM(C10:N10)=0,"-",SUM(C10:N10)) -> 35009.45419
B11: Turbinación bombeo | C11: =OFFSET(Balance!C4,0,($O$1-1)*12) -> 529.6098367 | D11: =OFFSET(Balance!D4,0,($O$1-1)*12) -> 388.3055554 | E11: =OFFSET(Balance!E4,0,($O$1-1)*12) -> 381.2650926 | F11: =OFFSET(Balance!F4,0,($O$1-1)*12) -> 212.2124193 | G11: =OFFSET(Balance!G4,0,($O$1-1)*12) -> 195.9644344 | H11: =OFFSET(Balance!H4,0,($O$1-1)*12) -> 161.1085868 | I11: =OFFSET(Balance!I4,0,($O$1-1)*12) -> 139.417691 | J11: =OFFSET(Balance!J4,0,($O$1-1)*12) -> 161.8007685 | K11: =OFFSET(Balance!K4,0,($O$1-1)*12) -> 163.5869683 | L11: =OFFSET(Balance!L4,0,($O$1-1)*12) -> 242.2811895 | M11: =OFFSET(Balance!M4,0,($O$1-1)*12) -> 225.5565683 | N11: =OFFSET(Balance!N4,0,($O$1-1)*12) -> 319.3386931 | O11: =IF(SUM(C11:N11)=0,"-",SUM(C11:N11)) -> 3120.447804
B12: Nuclear | C12: =OFFSET(Balance!C5,0,($O$1-1)*12) -> 4480.61 | D12: =OFFSET(Balance!D5,0,($O$1-1)*12) -> 4635.983 | E12: =OFFSET(Balance!E5,0,($O$1-1)*12) -> 4877.964647 | F12: =OFFSET(Balance!F5,0,($O$1-1)*12) -> 4894.268 | G12: =OFFSET(Balance!G5,0,($O$1-1)*12) -> 4417.869 | H12: =OFFSET(Balance!H5,0,($O$1-1)*12) -> 4693.97 | I12: =OFFSET(Balance!I5,0,($O$1-1)*12) -> 5399.984 | J12: =OFFSET(Balance!J5,0,($O$1-1)*12) -> 5421.255 | K12: =OFFSET(Balance!K5,0,($O$1-1)*12) -> 5066.819 | L12: =OFFSET(Balance!L5,0,($O$1-1)*12) -> 5429.769 | M12: =OFFSET(Balance!M5,0,($O$1-1)*12) -> 5094.619 | N12: =OFFSET(Balance!N5,0,($O$1-1)*12) -> 4829.211 | O12: =IF(SUM(C12:N12)=0,"-",SUM(C12:N12)) -> 59242.32165
B13: Carbón | C13: =OFFSET(Balance!C6,0,($O$1-1)*12) -> 1696.094 | D13: =OFFSET(Balance!D6,0,($O$1-1)*12) -> 1367.276 | E13: =OFFSET(Balance!E6,0,($O$1-1)*12) -> 844.196834 | F13: =OFFSET(Balance!F6,0,($O$1-1)*12) -> 633.698 | G13: =OFFSET(Balance!G6,0,($O$1-1)*12) -> 823.906 | H13: =OFFSET(Balance!H6,0,($O$1-1)*12) -> 1322.563 | I13: =OFFSET(Balance!I6,0,($O$1-1)*12) -> 2450.416 | J13: =OFFSET(Balance!J6,0,($O$1-1)*12) -> 2835.734 | K13: =OFFSET(Balance!K6,0,($O$1-1)*12) -> 2971.126 | L13: =OFFSET(Balance!L6,0,($O$1-1)*12) -> 1987.136 | M13: =OFFSET(Balance!M6,0,($O$1-1)*12) -> 1627.231 | N13: =OFFSET(Balance!N6,0,($O$1-1)*12) -> 2039.879 | O13: 20599.25583
B14: Fuel + Gas | C14: =OFFSET(Balance!C7,0,($O$1-1)*12) -> 153.209 | D14: =OFFSET(Balance!D7,0,($O$1-1)*12) -> 126.666 | E14: =OFFSET(Balance!E7,0,($O$1-1)*12) -> 22.518 | F14: =OFFSET(Balance!F7,0,($O$1-1)*12) -> 105.508 | G14: =OFFSET(Balance!G7,0,($O$1-1)*12) -> 163.869 | H14: =OFFSET(Balance!H7,0,($O$1-1)*12) -> 165.569 | I14: =OFFSET(Balance!I7,0,($O$1-1)*12) -> 138.492 | J14: =OFFSET(Balance!J7,0,($O$1-1)*12) -> 113.152 | K14: =OFFSET(Balance!K7,0,($O$1-1)*12) -> 138.319 | L14: =OFFSET(Balance!L7,0,($O$1-1)*12) -> 124.903 | M14: =OFFSET(Balance!M7,0,($O$1-1)*12) -> 166.811 | N14: =OFFSET(Balance!N7,0,($O$1-1)*12) -> 147.007 | O14: 1566.023
B15: Ciclo combinado (2) | C15: =OFFSET(Balance!C8,0,($O$1-1)*12) -> 5308.095 | D15: =OFFSET(Balance!D8,0,($O$1-1)*12) -> 4758.78 | E15: =OFFSET(Balance!E8,0,($O$1-1)*12) -> 4086.589928 | F15: =OFFSET(Balance!F8,0,($O$1-1)*12) -> 4360.6161 | G15: =OFFSET(Balance!G8,0,($O$1-1)*12) -> 4552.942 | H15: =OFFSET(Balance!H8,0,($O$1-1)*12) -> 5475.442 | I15: =OFFSET(Balance!I8,0,($O$1-1)*12) -> 6782.456 | J15: =OFFSET(Balance!J8,0,($O$1-1)*12) -> 5736.69 | K15: =OFFSET(Balance!K8,0,($O$1-1)*12) -> 6235.23 | L15: =OFFSET(Balance!L8,0,($O$1-1)*12) -> 5277.748 | M15: =OFFSET(Balance!M8,0,($O$1-1)*12) -> 5529.094 | N15: =OFFSET(Balance!N8,0,($O$1-1)*12) -> 4851.257217 | O15: 62954.94024
B16: Régimen ordinario | C16: =OFFSET(Balance!C9,0,($O$1-1)*12) -> 16581.89395 | D16: =OFFSET(Balance!D9,0,($O$1-1)*12) -> 14727.73612 | E16: =OFFSET(Balance!E9,0,($O$1-1)*12) -> 15244.31255 | F16: =OFFSET(Balance!F9,0,($O$1-1)*12) -> 14236.15865 | G16: =OFFSET(Balance!G9,0,($O$1-1)*12) -> 13329.08948 | H16: =OFFSET(Balance!H9,0,($O$1-1)*12) -> 14764.74074 | I16: =OFFSET(Balance!I9,0,($O$1-1)*12) -> 17347.9351 | J16: =OFFSET(Balance!J9,0,($O$1-1)*12) -> 15963.71358 | K16: =OFFSET(Balance!K9,0,($O$1-1)*12) -> 15824.48831 | L16: =OFFSET(Balance!L9,0,($O$1-1)*12) -> 14344.45022 | M16: =OFFSET(Balance!M9,0,($O$1-1)*12) -> 14687.16964 | N16: =OFFSET(Balance!N9,0,($O$1-1)*12) -> 15440.75439 | O16: =SUM(O10:O15) -> 182492.4427
B18: Hidráulica (3) | C18: =OFFSET(Balance!C10,0,($O$1-1)*12) -> 764.37 | D18: =OFFSET(Balance!D10,0,($O$1-1)*12) -> 616.578 | E18: =OFFSET(Balance!E10,0,($O$1-1)*12) -> 784.76 | F18: =OFFSET(Balance!F10,0,($O$1-1)*12) -> 690.196 | G18: =OFFSET(Balance!G10,0,($O$1-1)*12) -> 688.343 | H18: =OFFSET(Balance!H10,0,($O$1-1)*12) -> 608.948 | I18: =OFFSET(Balance!I10,0,($O$1-1)*12) -> 459.603 | J18: =OFFSET(Balance!J10,0,($O$1-1)*12) -> 341.748 | K18: =OFFSET(Balance!K10,0,($O$1-1)*12) -> 281.05 | L18: =OFFSET(Balance!L10,0,($O$1-1)*12) -> 318.889 | M18: =OFFSET(Balance!M10,0,($O$1-1)*12) -> 567.66 | N18: =OFFSET(Balance!N10,0,($O$1-1)*12) -> 702.175 | O18: 6824.32
B19: Eólica | C19: =OFFSET(Balance!C11,0,($O$1-1)*12) -> 4292.092 | D19: =OFFSET(Balance!D11,0,($O$1-1)*12) -> 4622.435 | E19: =OFFSET(Balance!E11,0,($O$1-1)*12) -> 4546.547 | F19: =OFFSET(Balance!F11,0,($O$1-1)*12) -> 2634.819 | G19: =OFFSET(Balance!G11,0,($O$1-1)*12) -> 3619.334 | H19: =OFFSET(Balance!H11,0,($O$1-1)*12) -> 2576.197 | I19: =OFFSET(Balance!I11,0,($O$1-1)*12) -> 2798.133 | J19: =OFFSET(Balance!J11,0,($O$1-1)*12) -> 2894.744 | K19: =OFFSET(Balance!K11,0,($O$1-1)*12) -> 2301.323 | L19: =OFFSET(Balance!L11,0,($O$1-1)*12) -> 3952.831 | M19: =OFFSET(Balance!M11,0,($O$1-1)*12) -> 4348.059 | N19: =OFFSET(Balance!N11,0,($O$1-1)*12) -> 4621.882 | O19: 43208.396
B20: Solar fotovoltaica | C20: =OFFSET(Balance!C12,0,($O$1-1)*12) -> 248.575 | D20: =OFFSET(Balance!D12,0,($O$1-1)*12) -> 289.95 | E20: =OFFSET(Balance!E12,0,($O$1-1)*12) -> 458.217 | F20: =OFFSET(Balance!F12,0,($O$1-1)*12) -> 565.84 | G20: =OFFSET(Balance!G12,0,($O$1-1)*12) -> 683.248 | H20: =OFFSET(Balance!H12,0,($O$1-1)*12) -> 656.766 | I20: =OFFSET(Balance!I12,0,($O$1-1)*12) -> 752.89 | J20: =OFFSET(Balance!J12,0,($O$1-1)*12) -> 691.532 | K20: =OFFSET(Balance!K12,0,($O$1-1)*12) -> 605.388 | L20: =OFFSET(Balance!L12,0,($O$1-1)*12) -> 525.855 | M20: =OFFSET(Balance!M12,0,($O$1-1)*12) -> 364.052 | N20: =OFFSET(Balance!N12,0,($O$1-1)*12) -> 297.469 | O20: 6139.782
B21: Solar térmica | C21: =OFFSET(Balance!C13,0,($O$1-1)*12) -> 13.152 | D21: =OFFSET(Balance!D13,0,($O$1-1)*12) -> 11.682 | E21: =OFFSET(Balance!E13,0,($O$1-1)*12) -> 23.732 | F21: =OFFSET(Balance!F13,0,($O$1-1)*12) -> 36.92 | G21: =OFFSET(Balance!G13,0,($O$1-1)*12) -> 69.084 | H21: =OFFSET(Balance!H13,0,($O$1-1)*12) -> 72.532 | I21: =OFFSET(Balance!I13,0,($O$1-1)*12) -> 104.59 | J21: =OFFSET(Balance!J13,0,($O$1-1)*12) -> 121.9 | K21: =OFFSET(Balance!K13,0,($O$1-1)*12) -> 100.917 | L21: =OFFSET(Balance!L13,0,($O$1-1)*12) -> 71.745 | M21: =OFFSET(Balance!M13,0,($O$1-1)*12) -> 31.619 | N21: =OFFSET(Balance!N13,0,($O$1-1)*12) -> 33.747 | O21: 691.62
B22: Térmica renovable (5) | C22: =OFFSET(Balance!C14,0,($O$1-1)*12) -> 250.94 | D22: =OFFSET(Balance!D14,0,($O$1-1)*12) -> 226.424 | E22: =OFFSET(Balance!E14,0,($O$1-1)*12) -> 245.998 | F22: =OFFSET(Balance!F14,0,($O$1-1)*12) -> 252.761 | G22: =OFFSET(Balance!G14,0,($O$1-1)*12) -> 274.925 | H22: =OFFSET(Balance!H14,0,($O$1-1)*12) -> 268.961 | I22: =OFFSET(Balance!I14,0,($O$1-1)*12) -> 268.03 | J22: =OFFSET(Balance!J14,0,($O$1-1)*12) -> 278.804 | K22: =OFFSET(Balance!K14,0,($O$1-1)*12) -> 262.937 | L22: =OFFSET(Balance!L14,0,($O$1-1)*12) -> 279.287 | M22: =OFFSET(Balance!M14,0,($O$1-1)*12) -> 269.121 | N22: =OFFSET(Balance!N14,0,($O$1-1)*12) -> 293.611 | O22: 3171.799
B23: Térmica no renovable (5) | C23: =OFFSET(Balance!C15,0,($O$1-1)*12) -> 2661.214 | D23: =OFFSET(Balance!D15,0,($O$1-1)*12) -> 2477.021 | E23: =OFFSET(Balance!E15,0,($O$1-1)*12) -> 2616.777 | F23: =OFFSET(Balance!F15,0,($O$1-1)*12) -> 2550.354 | G23: =OFFSET(Balance!G15,0,($O$1-1)*12) -> 2581.357 | H23: =OFFSET(Balance!H15,0,($O$1-1)*12) -> 2541.783 | I23: =OFFSET(Balance!I15,0,($O$1-1)*12) -> 2613.673 | J23: =OFFSET(Balance!J15,0,($O$1-1)*12) -> 2153.408 | K23: =OFFSET(Balance!K15,0,($O$1-1)*12) -> 2523.764 | L23: =OFFSET(Balance!L15,0,($O$1-1)*12) -> 2647.117 | M23: =OFFSET(Balance!M15,0,($O$1-1)*12) -> 2659.682 | N23: =OFFSET(Balance!N15,0,($O$1-1)*12) -> 2762.902 | O23: 30789.052
B24: Residuos no renovables | C24: =OFFSET(Balance!C16,0,($O$1-1)*12) -> - | D24: =OFFSET(Balance!D16,0,($O$1-1)*12) -> - | E24: =OFFSET(Balance!E16,0,($O$1-1)*12) -> - | F24: =OFFSET(Balance!F16,0,($O$1-1)*12) -> - | G24: =OFFSET(Balance!G16,0,($O$1-1)*12) -> - | H24: =OFFSET(Balance!H16,0,($O$1-1)*12) -> - | I24: =OFFSET(Balance!I16,0,($O$1-1)*12) -> - | J24: =OFFSET(Balance!J16,0,($O$1-1)*12) -> - | K24: =OFFSET(Balance!K16,0,($O$1-1)*12) -> - | L24: =OFFSET(Balance!L16,0,($O$1-1)*12) -> - | M24: =OFFSET(Balance!M16,0,($O$1-1)*12) -> - | N24: =OFFSET(Balance!N16,0,($O$1-1)*12) -> - | O24: -
B25: Residuos renovables | C25: =OFFSET(Balance!C17,0,($O$1-1)*12) -> - | D25: =OFFSET(Balance!D17,0,($O$1-1)*12) -> - | E25: =OFFSET(Balance!E17,0,($O$1-1)*12) -> - | F25: =OFFSET(Balance!F17,0,($O$1-1)*12) -> - | G25: =OFFSET(Balance!G17,0,($O$1-1)*12) -> - | H25: =OFFSET(Balance!H17,0,($O$1-1)*12) -> - | I25: =OFFSET(Balance!I17,0,($O$1-1)*12) -> - | J25: =OFFSET(Balance!J17,0,($O$1-1)*12) -> - | K25: =OFFSET(Balance!K17,0,($O$1-1)*12) -> - | L25: =OFFSET(Balance!L17,0,($O$1-1)*12) -> - | M25: =OFFSET(Balance!M17,0,($O$1-1)*12) -> - | N25: =OFFSET(Balance!N17,0,($O$1-1)*12) -> - | O25: =IF(SUM(C25:N25)=0,"-",SUM(C25:N25)) -> -
B26: Régimen especial | C26: =OFFSET(Balance!C18,0,($O$1-1)*12) -> 8230.343 | D26: =OFFSET(Balance!D18,0,($O$1-1)*12) -> 8244.09 | E26: =OFFSET(Balance!E18,0,($O$1-1)*12) -> 8676.031 | F26: =OFFSET(Balance!F18,0,($O$1-1)*12) -> 6730.89 | G26: =OFFSET(Balance!G18,0,($O$1-1)*12) -> 7916.291 | H26: =OFFSET(Balance!H18,0,($O$1-1)*12) -> 6725.187 | I26: =OFFSET(Balance!I18,0,($O$1-1)*12) -> 6996.919 | J26: =OFFSET(Balance!J18,0,($O$1-1)*12) -> 6482.136 | K26: =OFFSET(Balance!K18,0,($O$1-1)*12) -> 6075.379 | L26: =OFFSET(Balance!L18,0,($O$1-1)*12) -> 7795.724 | M26: =OFFSET(Balance!M18,0,($O$1-1)*12) -> 8240.193 | N26: =OFFSET(Balance!N18,0,($O$1-1)*12) -> 8711.786 | O26: =SUM(O18:O23) -> 90824.969
B27: Generación | C27: =OFFSET(Balance!C19,0,($O$1-1)*12) -> 24812.23695 | D27: =OFFSET(Balance!D19,0,($O$1-1)*12) -> 22971.82612 | E27: =OFFSET(Balance!E19,0,($O$1-1)*12) -> 23920.34355 | F27: =OFFSET(Balance!F19,0,($O$1-1)*12) -> 20967.04865 | G27: =OFFSET(Balance!G19,0,($O$1-1)*12) -> 21245.38048 | H27: =OFFSET(Balance!H19,0,($O$1-1)*12) -> 21489.92774 | I27: =OFFSET(Balance!I19,0,($O$1-1)*12) -> 24344.8541 | J27: =OFFSET(Balance!J19,0,($O$1-1)*12) -> 22445.84958 | K27: =OFFSET(Balance!K19,0,($O$1-1)*12) -> 21899.86731 | L27: =OFFSET(Balance!L19,0,($O$1-1)*12) -> 22140.17422 | M27: =OFFSET(Balance!M19,0,($O$1-1)*12) -> 22927.36264 | N27: =OFFSET(Balance!N19,0,($O$1-1)*12) -> 24152.54039 | O27: =IF(SUM(C27:N27)=0,"-",SUM(C27:N27)) -> 273317.4117
B28: Consumos en bombeo | C28: =OFFSET(Balance!C20,0,($O$1-1)*12) -> -756.585481 | D28: =OFFSET(Balance!D20,0,($O$1-1)*12) -> -554.722222 | E28: =OFFSET(Balance!E20,0,($O$1-1)*12) -> -544.664418 | F28: =OFFSET(Balance!F20,0,($O$1-1)*12) -> -303.160599 | G28: =OFFSET(Balance!G20,0,($O$1-1)*12) -> -279.949192 | H28: =OFFSET(Balance!H20,0,($O$1-1)*12) -> -230.155124 | I28: =OFFSET(Balance!I20,0,($O$1-1)*12) -> -199.16813 | J28: =OFFSET(Balance!J20,0,($O$1-1)*12) -> -231.143955 | K28: =OFFSET(Balance!K20,0,($O$1-1)*12) -> -233.695669 | L28: =OFFSET(Balance!L20,0,($O$1-1)*12) -> -346.115985 | M28: =OFFSET(Balance!M20,0,($O$1-1)*12) -> -322.223669 | N28: =OFFSET(Balance!N20,0,($O$1-1)*12) -> -456.198133 | O28: -4457.782577
B29: Enlace Península-Baleares (6) | C29: =OFFSET(Balance!C21,0,($O$1-1)*12) -> 0 | D29: =OFFSET(Balance!D21,0,($O$1-1)*12) -> 0 | E29: =OFFSET(Balance!E21,0,($O$1-1)*12) -> 0 | F29: =OFFSET(Balance!F21,0,($O$1-1)*12) -> 0 | G29: =OFFSET(Balance!G21,0,($O$1-1)*12) -> 0 | H29: =OFFSET(Balance!H21,0,($O$1-1)*12) -> 0 | I29: =OFFSET(Balance!I21,0,($O$1-1)*12) -> 0 | J29: =OFFSET(Balance!J21,0,($O$1-1)*12) -> 0 | K29: =OFFSET(Balance!K21,0,($O$1-1)*12) -> 0 | L29: =OFFSET(Balance!L21,0,($O$1-1)*12) -> 0 | M29: =OFFSET(Balance!M21,0,($O$1-1)*12) -> 0 | N29: =OFFSET(Balance!N21,0,($O$1-1)*12) -> 0 | O29: =IF(SUM(C29:N29)=0,"-",SUM(C29:N29)) -> -
B30: Saldo intercambios internacionales (7) | C30: =OFFSET(Balance!C22,0,($O$1-1)*12) -> -304.713446 | D30: =OFFSET(Balance!D22,0,($O$1-1)*12) -> -506.196753 | E30: =OFFSET(Balance!E22,0,($O$1-1)*12) -> -560.114046 | F30: =OFFSET(Balance!F22,0,($O$1-1)*12) -> -729.095102 | G30: =OFFSET(Balance!G22,0,($O$1-1)*12) -> -542.815029 | H30: =OFFSET(Balance!H22,0,($O$1-1)*12) -> -821.225751 | I30: =OFFSET(Balance!I22,0,($O$1-1)*12) -> -1000.653567 | J30: =OFFSET(Balance!J22,0,($O$1-1)*12) -> -758.601057 | K30: =OFFSET(Balance!K22,0,($O$1-1)*12) -> -964.255452 | L30: =OFFSET(Balance!L22,0,($O$1-1)*12) -> -1295.509887 | M30: =OFFSET(Balance!M22,0,($O$1-1)*12) -> -593.210574 | N30: =OFFSET(Balance!N22,0,($O$1-1)*12) -> -256.288394 | O30: -8332.679058
B31: Demanda transporte (b.c.) | C31: =OFFSET(Balance!C23,0,($O$1-1)*12) -> 23750.93802 | D31: =OFFSET(Balance!D23,0,($O$1-1)*12) -> 21910.90714 | E31: =OFFSET(Balance!E23,0,($O$1-1)*12) -> 22815.56508 | F31: =OFFSET(Balance!F23,0,($O$1-1)*12) -> 19934.79295 | G31: =OFFSET(Balance!G23,0,($O$1-1)*12) -> 20422.61626 | H31: =OFFSET(Balance!H23,0,($O$1-1)*12) -> 20438.54686 | I31: =OFFSET(Balance!I23,0,($O$1-1)*12) -> 23145.0324 | J31: =OFFSET(Balance!J23,0,($O$1-1)*12) -> 21456.10457 | K31: =OFFSET(Balance!K23,0,($O$1-1)*12) -> 20701.91619 | L31: =OFFSET(Balance!L23,0,($O$1-1)*12) -> 20498.54835 | M31: =OFFSET(Balance!M23,0,($O$1-1)*12) -> 22011.92839 | N31: =OFFSET(Balance!N23,0,($O$1-1)*12) -> 23440.05386 | O31: =IF(SUM(C31:N31)=0,"-",SUM(C31:N31)) -> 260526.9501
B32: (1) Asignación de unidades de producción según combustible principal.
B33: (2) Incluye funcionamiento en ciclo abierto.
B34: (3) Incluye todas aquellas unidades menores de 50 MW que no pertenecen a ninguna unidad de gestión hidráulica (UGH).
B35: (4) Otras renovables incluyen biogás, biomasa, hidráulica marina y geotérmica. Los valores incluyen residuos hasta el 31/12/2014.
B36: (5) Hasta 2010 incluye residuos.
B37: (6) Valor positivo: entrada de energía en el sistema; valor negativo: salida de energía del sistema. Enlace funcionando al mínimo técnico de seguridad hasta el 13/08/2012.
B38: (7) Valor positivo: saldo importador; valor negativo: saldo exportador.

Sheet Balance Peninsular anual
J1: 3 | L1: 1
H4: Sistema eléctrico
H5: Horizonte temporal
H6: Periodo
C8: =OFFSET(Balance!C107,0,($J$1-1)*8) -> 2006 | D8: =OFFSET(Balance!D107,0,($J$1-1)*8) -> 2007 | E8: =OFFSET(Balance!E107,0,($J$1-1)*8) -> 2008 | F8: =OFFSET(Balance!F107,0,($J$1-1)*8) -> 2009 | G8: =OFFSET(Balance!G107,0,($J$1-1)*8) -> 2010 | H8: =OFFSET(Balance!H107,0,($J$1-1)*8) -> 2011 | I8: =OFFSET(Balance!I107,0,($J$1-1)*8) -> 2012 | J8: =OFFSET(Balance!J107,0,($J$1-1)*8) -> 2013
B10: Hidráulica | C10: =OFFSET(Balance!C108,0,($J$1-1)*8) -> 21226.3849 | D10: =OFFSET(Balance!D108,0,($J$1-1)*8) -> 22978.9781 | E10: =OFFSET(Balance!E108,0,($J$1-1)*8) -> 18295.6386 | F10: =OFFSET(Balance!F108,0,($J$1-1)*8) -> 20732.3027 | G10: =OFFSET(Balance!G108,0,($J$1-1)*8) -> 35009.45419 | H10: =OFFSET(Balance!H108,0,($J$1-1)*8) -> - | I10: =OFFSET(Balance!I108,0,($J$1-1)*8) -> - | J10: =OFFSET(Balance!J108,0,($J$1-1)*8) -> -
B11: Turbinación bombeo | C11: =OFFSET(Balance!C109,0,($J$1-1)*8) -> 3743.8611 | D11: =OFFSET(Balance!D109,0,($J$1-1)*8) -> 3102.6009 | E11: =OFFSET(Balance!E109,0,($J$1-1)*8) -> 2661.7514 | F11: =OFFSET(Balance!F109,0,($J$1-1)*8) -> 2655.9323 | G11: =OFFSET(Balance!G109,0,($J$1-1)*8) -> 3120.447804 | H11: =OFFSET(Balance!H109,0,($J$1-1)*8) -> - | I11: =OFFSET(Balance!I109,0,($J$1-1)*8) -> - | J11: =OFFSET(Balance!J109,0,($J$1-1)*8) -> -
B12: Nuclear | C12: =OFFSET(Balance!C110,0,($J$1-1)*8) -> 57353.706 | D12: =OFFSET(Balance!D110,0,($J$1-1)*8) -> 52638.927 | E12: =OFFSET(Balance!E110,0,($J$1-1)*8) -> 56460.291 | F12: =OFFSET(Balance!F110,0,($J$1-1)*8) -> 50549.445 | G12: =OFFSET(Balance!G110,0,($J$1-1)*8) -> 59242.32165 | H12: =OFFSET(Balance!H110,0,($J$1-1)*8) -> - | I12: =OFFSET(Balance!I110,0,($J$1-1)*8) -> - | J12: =OFFSET(Balance!J110,0,($J$1-1)*8) -> -
B13: Carbón | C13: =OFFSET(Balance!C111,0,($J$1-1)*8) -> 62126.065 | D13: =OFFSET(Balance!D111,0,($J$1-1)*8) -> 67686.248 | E13: =OFFSET(Balance!E111,0,($J$1-1)*8) -> 43409.537 | F13: =OFFSET(Balance!F111,0,($J$1-1)*8) -> 31622.562 | G13: =OFFSET(Balance!G111,0,($J$1-1)*8) -> 20599.25583 | H13: =OFFSET(Balance!H111,0,($J$1-1)*8) -> - | I13: =OFFSET(Balance!I111,0,($J$1-1)*8) -> - | J13: =OFFSET(Balance!J111,0,($J$1-1)*8) -> -
B14: Fuel + Gas | C14: =OFFSET(Balance!C112,0,($J$1-1)*8) -> 5396.058 | D14: =OFFSET(Balance!D112,0,($J$1-1)*8) -> 2090.765 | E14: =OFFSET(Balance!E112,0,($J$1-1)*8) -> 2074.895 | F14: =OFFSET(Balance!F112,0,($J$1-1)*8) -> 1789.59 | G14: =OFFSET(Balance!G112,0,($J$1-1)*8) -> 1566.023 | H14: =OFFSET(Balance!H112,0,($J$1-1)*8) -> - | I14: =OFFSET(Balance!I112,0,($J$1-1)*8) -> - | J14: =OFFSET(Balance!J112,0,($J$1-1)*8) -> -
B15: Ciclo combinado (2) | C15: =OFFSET(Balance!C113,0,($J$1-1)*8) -> 62122.434 | D15: =OFFSET(Balance!D113,0,($J$1-1)*8) -> 66572.868 | E15: =OFFSET(Balance!E113,0,($J$1-1)*8) -> 89100.732 | F15: =OFFSET(Balance!F113,0,($J$1-1)*8) -> 76379.284 | G15: =OFFSET(Balance!G113,0,($J$1-1)*8) -> 62954.94024 | H15: =OFFSET(Balance!H113,0,($J$1-1)*8) -> - | I15: =OFFSET(Balance!I113,0,($J$1-1)*8) -> - | J15: =OFFSET(Balance!J113,0,($J$1-1)*8) -> -
B16: Régimen ordinario | C16: =OFFSET(Balance!C114,0,($J$1-1)*8) -> 211968.509 | D16: =OFFSET(Balance!D114,0,($J$1-1)*8) -> 215070.387 | E16: =OFFSET(Balance!E114,0,($J$1-1)*8) -> 212002.845 | F16: =OFFSET(Balance!F114,0,($J$1-1)*8) -> 183729.116 | G16: =OFFSET(Balance!G114,0,($J$1-1)*8) -> 182492.4427 | H16: =OFFSET(Balance!H114,0,($J$1-1)*8) -> - | I16: =OFFSET(Balance!I114,0,($J$1-1)*8) -> - | J16: =OFFSET(Balance!J114,0,($J$1-1)*8) -> -
B18: Resto hidráulica (3) | C18: =OFFSET(Balance!C115,0,($J$1-1)*8) -> 4148.563879 | D18: =OFFSET(Balance!D115,0,($J$1-1)*8) -> 4125.325 | E18: =OFFSET(Balance!E115,0,($J$1-1)*8) -> 4638.143 | F18: =OFFSET(Balance!F115,0,($J$1-1)*8) -> 5453.673 | G18: =OFFSET(Balance!G115,0,($J$1-1)*8) -> 6824.32 | H18: =OFFSET(Balance!H115,0,($J$1-1)*8) -> - | I18: =OFFSET(Balance!I115,0,($J$1-1)*8) -> - | J18: =OFFSET(Balance!J115,0,($J$1-1)*8) -> -
B19: Eólica | C19: =OFFSET(Balance!C116,0,($J$1-1)*8) -> 22880.85608 | D19: =OFFSET(Balance!D116,0,($J$1-1)*8) -> 27249.155 | E19: =OFFSET(Balance!E116,0,($J$1-1)*8) -> 31757.85 | F19: =OFFSET(Balance!F116,0,($J$1-1)*8) -> 37888.577 | G19: =OFFSET(Balance!G116,0,($J$1-1)*8) -> 43208.396 | H19: =OFFSET(Balance!H116,0,($J$1-1)*8) -> - | I19: =OFFSET(Balance!I116,0,($J$1-1)*8) -> - | J19: =OFFSET(Balance!J116,0,($J$1-1)*8) -> -
B20: Solar fotovoltaica | C20: =OFFSET(Balance!C117,0,($J$1-1)*8) -> 102.374999 | D20: =OFFSET(Balance!D117,0,($J$1-1)*8) -> 462.577 | E20: =OFFSET(Balance!E117,0,($J$1-1)*8) -> 2406.07 | F20: =OFFSET(Balance!F117,0,($J$1-1)*8) -> 5829.005 | G20: =OFFSET(Balance!G117,0,($J$1-1)*8) -> 6139.782 | H20: =OFFSET(Balance!H117,0,($J$1-1)*8) -> - | I20: =OFFSET(Balance!I117,0,($J$1-1)*8) -> - | J20: =OFFSET(Balance!J117,0,($J$1-1)*8) -> -
B21: Solar térmica | C21: =OFFSET(Balance!C118,0,($J$1-1)*8) -> 0 | D21: =OFFSET(Balance!D118,0,($J$1-1)*8) -> 7.627 | E21: =OFFSET(Balance!E118,0,($J$1-1)*8) -> 15.378 | F21: =OFFSET(Balance!F118,0,($J$1-1)*8) -> 129.823 | G21: =OFFSET(Balance!G118,0,($J$1-1)*8) -> 691.62 | H21: =OFFSET(Balance!H118,0,($J$1-1)*8) -> - | I21: =OFFSET(Balance!I118,0,($J$1-1)*8) -> - | J21: =OFFSET(Balance!J118,0,($J$1-1)*8) -> -
B22: Térmica renovable(4)/Otras renovables | C22: =OFFSET(Balance!C119,0,($J$1-1)*8) -> 2182.606682 | D22: =OFFSET(Balance!D119,0,($J$1-1)*8) -> 2375.685 | E22: =OFFSET(Balance!E119,0,($J$1-1)*8) -> 2651.489 | F22: =OFFSET(Balance!F119,0,($J$1-1)*8) -> 3044.287 | G22: =OFFSET(Balance!G119,0,($J$1-1)*8) -> 3171.799 | H22: =OFFSET(Balance!H119,0,($J$1-1)*8) -> - | I22: =OFFSET(Balance!I119,0,($J$1-1)*8) -> - | J22: =OFFSET(Balance!J119,0,($J$1-1)*8) -> -
B23: Cogeneración y resto(4)/Cogeneración | C23: =OFFSET(Balance!C120,0,($J$1-1)*8) -> 22318.93936 | D23: =OFFSET(Balance!D120,0,($J$1-1)*8) -> 23327.757 | E23: =OFFSET(Balance!E120,0,($J$1-1)*8) -> 26575.976 | F23: =OFFSET(Balance!F120,0,($J$1-1)*8) -> 28465.934 | G23: =OFFSET(Balance!G120,0,($J$1-1)*8) -> 30789.052 | H23: =OFFSET(Balance!H120,0,($J$1-1)*8) -> - | I23: =OFFSET(Balance!I120,0,($J$1-1)*8) -> - | J23: =OFFSET(Balance!J120,0,($J$1-1)*8) -> -
B24: Residuos no renovables | C24: =OFFSET(Balance!C121,0,($J$1-1)*8) ->  | D24: =OFFSET(Balance!D121,0,($J$1-1)*8) ->  | E24: =OFFSET(Balance!E121,0,($J$1-1)*8) ->  | F24: =OFFSET(Balance!F121,0,($J$1-1)*8) ->  | G24: =OFFSET(Balance!G121,0,($J$1-1)*8) ->  | H24: =OFFSET(Balance!H121,0,($J$1-1)*8) -> - | I24: =OFFSET(Balance!I121,0,($J$1-1)*8) -> - | J24: =OFFSET(Balance!J121,0,($J$1-1)*8) -> -
B25: Residuos renovables | C25: =OFFSET(Balance!C122,0,($J$1-1)*8) ->  | D25: =OFFSET(Balance!D122,0,($J$1-1)*8) ->  | E25: =OFFSET(Balance!E122,0,($J$1-1)*8) ->  | F25: =OFFSET(Balance!F122,0,($J$1-1)*8) ->  | G25: =OFFSET(Balance!G122,0,($J$1-1)*8) ->  | H25: =OFFSET(Balance!H122,0,($J$1-1)*8) -> - | I25: =OFFSET(Balance!I122,0,($J$1-1)*8) -> - | J25: =OFFSET(Balance!J122,0,($J$1-1)*8) -> -
B26: Régimen especial | C26: =OFFSET(Balance!C123,0,($J$1-1)*8) -> 51633.341 | D26: =OFFSET(Balance!D123,0,($J$1-1)*8) -> 57548.126 | E26: =OFFSET(Balance!E123,0,($J$1-1)*8) -> 68044.906 | F26: =OFFSET(Balance!F123,0,($J$1-1)*8) -> 80811.299 | G26: =OFFSET(Balance!G123,0,($J$1-1)*8) -> 90824.969 | H26: =OFFSET(Balance!H123,0,($J$1-1)*8) -> - | I26: =OFFSET(Balance!I123,0,($J$1-1)*8) -> - | J26: =OFFSET(Balance!J123,0,($J$1-1)*8) -> -
B27: Generación | C27: =OFFSET(Balance!C124,0,($J$1-1)*8) -> 263601.85 | D27: =OFFSET(Balance!D124,0,($J$1-1)*8) -> 272618.513 | E27: =OFFSET(Balance!E124,0,($J$1-1)*8) -> 280047.751 | F27: =OFFSET(Balance!F124,0,($J$1-1)*8) -> 264540.415 | G27: =OFFSET(Balance!G124,0,($J$1-1)*8) -> 273317.4117 | H27: =OFFSET(Balance!H124,0,($J$1-1)*8) -> - | I27: =OFFSET(Balance!I124,0,($J$1-1)*8) -> - | J27: =OFFSET(Balance!J124,0,($J$1-1)*8) -> -
B28: Consumos en bombeo | C28: =OFFSET(Balance!C125,0,($J$1-1)*8) -> -5348.373 | D28: =OFFSET(Balance!D125,0,($J$1-1)*8) -> -4432.287 | E28: =OFFSET(Balance!E125,0,($J$1-1)*8) -> -3802.502 | F28: =OFFSET(Balance!F125,0,($J$1-1)*8) -> -3794.189 | G28: =OFFSET(Balance!G125,0,($J$1-1)*8) -> -4457.782577 | H28: =OFFSET(Balance!H125,0,($J$1-1)*8) -> - | I28: =OFFSET(Balance!I125,0,($J$1-1)*8) -> - | J28: =OFFSET(Balance!J125,0,($J$1-1)*8) -> -
B29: Enlace Península-Baleares (6) | C29: =OFFSET(Balance!C126,0,($J$1-1)*8) -> - | D29: =OFFSET(Balance!D126,0,($J$1-1)*8) -> - | E29: =OFFSET(Balance!E126,0,($J$1-1)*8) -> - | F29: =OFFSET(Balance!F126,0,($J$1-1)*8) -> - | G29: =OFFSET(Balance!G126,0,($J$1-1)*8) -> - | H29: =OFFSET(Balance!H126,0,($J$1-1)*8) -> - | I29: =OFFSET(Balance!I126,0,($J$1-1)*8) -> - | J29: =OFFSET(Balance!J126,0,($J$1-1)*8) -> -
B30: Saldo intercambios internacionales (7) | C30: =OFFSET(Balance!C127,0,($J$1-1)*8) -> -3272.518 | D30: =OFFSET(Balance!D127,0,($J$1-1)*8) -> -5750.465 | E30: =OFFSET(Balance!E127,0,($J$1-1)*8) -> -11039.586 | F30: =OFFSET(Balance!F127,0,($J$1-1)*8) -> -8086.414 | G30: =OFFSET(Balance!G127,0,($J$1-1)*8) -> -8332.679058 | H30: =OFFSET(Balance!H127,0,($J$1-1)*8) -> - | I30: =OFFSET(Balance!I127,0,($J$1-1)*8) -> - | J30: =OFFSET(Balance!J127,0,($J$1-1)*8) -> -
B31: Demanda transporte (b.c.) | C31: =OFFSET(Balance!C128,0,($J$1-1)*8) -> 254980.959 | D31: =OFFSET(Balance!D128,0,($J$1-1)*8) -> 262435.761 | E31: =OFFSET(Balance!E128,0,($J$1-1)*8) -> 265205.663 | F31: =OFFSET(Balance!F128,0,($J$1-1)*8) -> 252659.812 | G31: =OFFSET(Balance!G128,0,($J$1-1)*8) -> 260526.9501 | H31: =OFFSET(Balance!H128,0,($J$1-1)*8) -> - | I31: =OFFSET(Balance!I128,0,($J$1-1)*8) -> - | J31: =OFFSET(Balance!J128,0,($J$1-1)*8) -> -
B32: (1) Asignación de unidades de producción según combustible principal.
B33: (2) Incluye funcionamiento en ciclo abierto.
B34: (3) Incluye todas aquellas unidades menores de 50 MW que no pertenecen a ninguna unidad de gestión hidráulica (UGH).
B35: (4) Incluye residuos hasta el 31/12/2010.
B36: (5) Incluye biogás, biomasa, hidráulica marina y geotérmica.
B37: (6) Valor positivo: entrada de energía en el sistema; valor negativo: salida de energía del sistema. Enlace funcionando al mínimo técnico de seguridad hasta el 13/08/2012.
B38: (7) Valor positivo: saldo importador; valor negativo: saldo exportador.

Sheet Balance Baleares mensual
O1: 5
M4: Sistema eléctrico
M5: Horizonte temporal
M6: Periodo
C8: Ene. | D8: Feb. | E8: Mar. | F8: Abr. | G8: May. | H8: Jun. | I8: Jul. | J8: Ago. | K8: Sep. | L8: Oct. | M8: Nov. | N8: Dic. | O8: =OFFSET(Año!C18,($O$1-1),0) -> 2010
B10: Carbón | C10: =OFFSET(Balance!C26,0,($O$1-1)*12) -> 288628.964 | D10: =OFFSET(Balance!D26,0,($O$1-1)*12) -> 253130.437 | E10: =OFFSET(Balance!E26,0,($O$1-1)*12) -> 284143.58 | F10: =OFFSET(Balance!F26,0,($O$1-1)*12) -> 270785.11 | G10: =OFFSET(Balance!G26,0,($O$1-1)*12) -> 229324.108 | H10: =OFFSET(Balance!H26,0,($O$1-1)*12) -> 279046.162 | I10: =OFFSET(Balance!I26,0,($O$1-1)*12) -> 292090 | J10: =OFFSET(Balance!J26,0,($O$1-1)*12) -> 286753.928 | K10: =OFFSET(Balance!K26,0,($O$1-1)*12) -> 285293.825 | L10: =OFFSET(Balance!L26,0,($O$1-1)*12) -> 217296.101 | M10: =OFFSET(Balance!M26,0,($O$1-1)*12) -> 192203.667 | N10: =OFFSET(Balance!N26,0,($O$1-1)*12) -> 222661.684 | O10: =IF(SUM(C10:N10)=0,"-",SUM(C10:N10)) -> 3101357.566
B11: Motores diesel | C11: =OFFSET(Balance!C27,0,($O$1-1)*12) -> 80487.338 | D11: =OFFSET(Balance!D27,0,($O$1-1)*12) -> 71127.049 | E11: =OFFSET(Balance!E27,0,($O$1-1)*12) -> 78081.049 | F11: =OFFSET(Balance!F27,0,($O$1-1)*12) -> 70171.272 | G11: =OFFSET(Balance!G27,0,($O$1-1)*12) -> 83167.909 | H11: =OFFSET(Balance!H27,0,($O$1-1)*12) -> 94393.464 | I11: =OFFSET(Balance!I27,0,($O$1-1)*12) -> 113035.62 | J11: =OFFSET(Balance!J27,0,($O$1-1)*12) -> 113945.387 | K11: =OFFSET(Balance!K27,0,($O$1-1)*12) -> 97806.403 | L11: =OFFSET(Balance!L27,0,($O$1-1)*12) -> 76729.221 | M11: =OFFSET(Balance!M27,0,($O$1-1)*12) -> 67045.222 | N11: =OFFSET(Balance!N27,0,($O$1-1)*12) -> 81630.112 | O11: 1027620.046
B12: Turbina de gas | C12: =OFFSET(Balance!C28,0,($O$1-1)*12) -> 23036.824 | D12: =OFFSET(Balance!D28,0,($O$1-1)*12) -> 25540.649 | E12: =OFFSET(Balance!E28,0,($O$1-1)*12) -> 22064.977 | F12: =OFFSET(Balance!F28,0,($O$1-1)*12) -> 16837.77 | G12: =OFFSET(Balance!G28,0,($O$1-1)*12) -> 15550.542 | H12: =OFFSET(Balance!H28,0,($O$1-1)*12) -> 20236.732 | I12: =OFFSET(Balance!I28,0,($O$1-1)*12) -> 41379.637 | J12: =OFFSET(Balance!J28,0,($O$1-1)*12) -> 42027.091 | K12: =OFFSET(Balance!K28,0,($O$1-1)*12) -> 26953.492 | L12: =OFFSET(Balance!L28,0,($O$1-1)*12) -> 22516.812 | M12: =OFFSET(Balance!M28,0,($O$1-1)*12) -> 21406.807 | N12: =OFFSET(Balance!N28,0,($O$1-1)*12) -> 21863.033 | O12: 299414.366
B13: Fuel + Gas | C13: =OFFSET(Balance!C29,0,($O$1-1)*12) -> 103524.162 | D13: =OFFSET(Balance!D29,0,($O$1-1)*12) -> 96667.698 | E13: =OFFSET(Balance!E29,0,($O$1-1)*12) -> 100146.026 | F13: =OFFSET(Balance!F29,0,($O$1-1)*12) -> 87009.042 | G13: =OFFSET(Balance!G29,0,($O$1-1)*12) -> 98718.451 | H13: =OFFSET(Balance!H29,0,($O$1-1)*12) -> 114630.196 | I13: =OFFSET(Balance!I29,0,($O$1-1)*12) -> 154415.257 | J13: =OFFSET(Balance!J29,0,($O$1-1)*12) -> 155972.478 | K13: =OFFSET(Balance!K29,0,($O$1-1)*12) -> 124759.895 | L13: =OFFSET(Balance!L29,0,($O$1-1)*12) -> 99246.033 | M13: =OFFSET(Balance!M29,0,($O$1-1)*12) -> 88452.029 | N13: =OFFSET(Balance!N29,0,($O$1-1)*12) -> 103493.145 | O13: =SUM(O11:O12) -> 1327034.412
B14: Ciclo combinado (2) | C14: =OFFSET(Balance!C30,0,($O$1-1)*12) -> 83745.201 | D14: =OFFSET(Balance!D30,0,($O$1-1)*12) -> 90692.047 | E14: =OFFSET(Balance!E30,0,($O$1-1)*12) -> 69947.986 | F14: =OFFSET(Balance!F30,0,($O$1-1)*12) -> 35630.943 | G14: =OFFSET(Balance!G30,0,($O$1-1)*12) -> 87840.324 | H14: =OFFSET(Balance!H30,0,($O$1-1)*12) -> 61960.638 | I14: =OFFSET(Balance!I30,0,($O$1-1)*12) -> 159205.11 | J14: =OFFSET(Balance!J30,0,($O$1-1)*12) -> 145959.232 | K14: =OFFSET(Balance!K30,0,($O$1-1)*12) -> 74275.329 | L14: =OFFSET(Balance!L30,0,($O$1-1)*12) -> 107178.246 | M14: =OFFSET(Balance!M30,0,($O$1-1)*12) -> 98555.294 | N14: =OFFSET(Balance!N30,0,($O$1-1)*12) -> 120643.372 | O14: =IF(SUM(C14:N14)=0,"-",SUM(C14:N14)) -> 1135633.722
B15: Generación auxiliar (3) | C15: =OFFSET(Balance!C31,0,($O$1-1)*12) -> 0 | D15: =OFFSET(Balance!D31,0,($O$1-1)*12) -> 0 | E15: =OFFSET(Balance!E31,0,($O$1-1)*12) -> 0 | F15: =OFFSET(Balance!F31,0,($O$1-1)*12) -> 0 | G15: =OFFSET(Balance!G31,0,($O$1-1)*12) -> 0 | H15: =OFFSET(Balance!H31,0,($O$1-1)*12) -> 45.686 | I15: =OFFSET(Balance!I31,0,($O$1-1)*12) -> 2619.537 | J15: =OFFSET(Balance!J31,0,($O$1-1)*12) -> 2927.97 | K15: =OFFSET(Balance!K31,0,($O$1-1)*12) -> 1100.336 | L15: =OFFSET(Balance!L31,0,($O$1-1)*12) -> 0.803 | M15: =OFFSET(Balance!M31,0,($O$1-1)*12) -> 0 | N15: =OFFSET(Balance!N31,0,($O$1-1)*12) -> 0 | O15: =IF(SUM(C15:N15)=0,"-",SUM(C15:N15)) -> 6694.332
B16: Régimen ordinario | C16: =OFFSET(Balance!C32,0,($O$1-1)*12) -> 475898.327 | D16: =OFFSET(Balance!D32,0,($O$1-1)*12) -> 440490.182 | E16: =OFFSET(Balance!E32,0,($O$1-1)*12) -> 454237.592 | F16: =OFFSET(Balance!F32,0,($O$1-1)*12) -> 393425.095 | G16: =OFFSET(Balance!G32,0,($O$1-1)*12) -> 415882.883 | H16: =OFFSET(Balance!H32,0,($O$1-1)*12) -> 455682.682 | I16: =OFFSET(Balance!I32,0,($O$1-1)*12) -> 608329.904 | J16: =OFFSET(Balance!J32,0,($O$1-1)*12) -> 591613.608 | K16: =OFFSET(Balance!K32,0,($O$1-1)*12) -> 485429.385 | L16: =OFFSET(Balance!L32,0,($O$1-1)*12) -> 423721.183 | M16: =OFFSET(Balance!M32,0,($O$1-1)*12) -> 379210.99 | N16: =OFFSET(Balance!N32,0,($O$1-1)*12) -> 446798.201 | O16: =SUM(O10,O13:O15) -> 5570720.032
B18: Eólica | C18: =OFFSET(Balance!C33,0,($O$1-1)*12) -> 599 | D18: =OFFSET(Balance!D33,0,($O$1-1)*12) -> 689 | E18: =OFFSET(Balance!E33,0,($O$1-1)*12) -> 590 | F18: =OFFSET(Balance!F33,0,($O$1-1)*12) -> 377 | G18: =OFFSET(Balance!G33,0,($O$1-1)*12) -> 312 | H18: =OFFSET(Balance!H33,0,($O$1-1)*12) -> 275 | I18: =OFFSET(Balance!I33,0,($O$1-1)*12) -> 322 | J18: =OFFSET(Balance!J33,0,($O$1-1)*12) -> 395 | K18: =OFFSET(Balance!K33,0,($O$1-1)*12) -> 303 | L18: =OFFSET(Balance!L33,0,($O$1-1)*12) -> 477 | M18: =OFFSET(Balance!M33,0,($O$1-1)*12) -> 529 | N18: =OFFSET(Balance!N33,0,($O$1-1)*12) -> 703 | O18: 5571
B19: Solar fotovoltaica | C19: =OFFSET(Balance!C34,0,($O$1-1)*12) -> 3845 | D19: =OFFSET(Balance!D34,0,($O$1-1)*12) -> 4810 | E19: =OFFSET(Balance!E34,0,($O$1-1)*12) -> 6958 | F19: =OFFSET(Balance!F34,0,($O$1-1)*12) -> 8061 | G19: =OFFSET(Balance!G34,0,($O$1-1)*12) -> 9047 | H19: =OFFSET(Balance!H34,0,($O$1-1)*12) -> 8957 | I19: =OFFSET(Balance!I34,0,($O$1-1)*12) -> 10437 | J19: =OFFSET(Balance!J34,0,($O$1-1)*12) -> 10003 | K19: =OFFSET(Balance!K34,0,($O$1-1)*12) -> 8360 | L19: =OFFSET(Balance!L34,0,($O$1-1)*12) -> 6793 | M19: =OFFSET(Balance!M34,0,($O$1-1)*12) -> 5600 | N19: =OFFSET(Balance!N34,0,($O$1-1)*12) -> 4886 | O19: 87757
B20: Otras renovables | C20: =OFFSET(Balance!C35,0,($O$1-1)*12) -> - | D20: =OFFSET(Balance!D35,0,($O$1-1)*12) -> - | E20: =OFFSET(Balance!E35,0,($O$1-1)*12) -> - | F20: =OFFSET(Balance!F35,0,($O$1-1)*12) -> - | G20: =OFFSET(Balance!G35,0,($O$1-1)*12) -> - | H20: =OFFSET(Balance!H35,0,($O$1-1)*12) -> - | I20: =OFFSET(Balance!I35,0,($O$1-1)*12) -> - | J20: =OFFSET(Balance!J35,0,($O$1-1)*12) -> - | K20: =OFFSET(Balance!K35,0,($O$1-1)*12) -> - | L20: =OFFSET(Balance!L35,0,($O$1-1)*12) -> - | M20: =OFFSET(Balance!M35,0,($O$1-1)*12) -> - | N20: =OFFSET(Balance!N35,0,($O$1-1)*12) -> - | O20: -
B21: Cogeneración | C21: =OFFSET(Balance!C36,0,($O$1-1)*12) -> 10815 | D21: =OFFSET(Balance!D36,0,($O$1-1)*12) -> 9246 | E21: =OFFSET(Balance!E36,0,($O$1-1)*12) -> 11253 | F21: =OFFSET(Balance!F36,0,($O$1-1)*12) -> 11204 | G21: =OFFSET(Balance!G36,0,($O$1-1)*12) -> 10903 | H21: =OFFSET(Balance!H36,0,($O$1-1)*12) -> 10391 | I21: =OFFSET(Balance!I36,0,($O$1-1)*12) -> 11522 | J21: =OFFSET(Balance!J36,0,($O$1-1)*12) -> 22957 | K21: =OFFSET(Balance!K36,0,($O$1-1)*12) -> 25904 | L21: =OFFSET(Balance!L36,0,($O$1-1)*12) -> 13766 | M21: =OFFSET(Balance!M36,0,($O$1-1)*12) -> 17545 | N21: =OFFSET(Balance!N36,0,($O$1-1)*12) -> 20738 | O21: 176244
B22: Residuos no renovables | C22: =OFFSET(Balance!C37,0,($O$1-1)*12) -> - | D22: =OFFSET(Balance!D37,0,($O$1-1)*12) -> - | E22: =OFFSET(Balance!E37,0,($O$1-1)*12) -> - | F22: =OFFSET(Balance!F37,0,($O$1-1)*12) -> - | G22: =OFFSET(Balance!G37,0,($O$1-1)*12) -> - | H22: =OFFSET(Balance!H37,0,($O$1-1)*12) -> - | I22: =OFFSET(Balance!I37,0,($O$1-1)*12) -> - | J22: =OFFSET(Balance!J37,0,($O$1-1)*12) -> - | K22: =OFFSET(Balance!K37,0,($O$1-1)*12) -> - | L22: =OFFSET(Balance!L37,0,($O$1-1)*12) -> - | M22: =OFFSET(Balance!M37,0,($O$1-1)*12) -> - | N22: =OFFSET(Balance!N37,0,($O$1-1)*12) -> - | O22: =IF(SUM(C22:N22)=0,"-",SUM(C22:N22)) -> -
B23: Residuos renovables | C23: =OFFSET(Balance!C38,0,($O$1-1)*12) -> - | D23: =OFFSET(Balance!D38,0,($O$1-1)*12) -> - | E23: =OFFSET(Balance!E38,0,($O$1-1)*12) -> - | F23: =OFFSET(Balance!F38,0,($O$1-1)*12) -> - | G23: =OFFSET(Balance!G38,0,($O$1-1)*12) -> - | H23: =OFFSET(Balance!H38,0,($O$1-1)*12) -> - | I23: =OFFSET(Balance!I38,0,($O$1-1)*12) -> - | J23: =OFFSET(Balance!J38,0,($O$1-1)*12) -> - | K23: =OFFSET(Balance!K38,0,($O$1-1)*12) -> - | L23: =OFFSET(Balance!L38,0,($O$1-1)*12) -> - | M23: =OFFSET(Balance!M38,0,($O$1-1)*12) -> - | N23: =OFFSET(Balance!N38,0,($O$1-1)*12) -> - | O23: =IF(SUM(C23:N23)=0,"-",SUM(C23:N23)) -> -
B24: Régimen especial | C24: =OFFSET(Balance!C39,0,($O$1-1)*12) -> 15259 | D24: =OFFSET(Balance!D39,0,($O$1-1)*12) -> 14745 | E24: =OFFSET(Balance!E39,0,($O$1-1)*12) -> 18801 | F24: =OFFSET(Balance!F39,0,($O$1-1)*12) -> 19642 | G24: =OFFSET(Balance!G39,0,($O$1-1)*12) -> 20262 | H24: =OFFSET(Balance!H39,0,($O$1-1)*12) -> 19623 | I24: =OFFSET(Balance!I39,0,($O$1-1)*12) -> 22281 | J24: =OFFSET(Balance!J39,0,($O$1-1)*12) -> 33355 | K24: =OFFSET(Balance!K39,0,($O$1-1)*12) -> 34567 | L24: =OFFSET(Balance!L39,0,($O$1-1)*12) -> 21036 | M24: =OFFSET(Balance!M39,0,($O$1-1)*12) -> 23674 | N24: =OFFSET(Balance!N39,0,($O$1-1)*12) -> 26327 | O24: =SUM(O18:O23) -> 269572
B25: Generación | C25: =OFFSET(Balance!C40,0,($O$1-1)*12) -> 491157.327 | D25: =OFFSET(Balance!D40,0,($O$1-1)*12) -> 455235.182 | E25: =OFFSET(Balance!E40,0,($O$1-1)*12) -> 473038.592 | F25: =OFFSET(Balance!F40,0,($O$1-1)*12) -> 413067.095 | G25: =OFFSET(Balance!G40,0,($O$1-1)*12) -> 436144.883 | H25: =OFFSET(Balance!H40,0,($O$1-1)*12) -> 475305.682 | I25: =OFFSET(Balance!I40,0,($O$1-1)*12) -> 630610.904 | J25: =OFFSET(Balance!J40,0,($O$1-1)*12) -> 624968.608 | K25: =OFFSET(Balance!K40,0,($O$1-1)*12) -> 519996.385 | L25: =OFFSET(Balance!L40,0,($O$1-1)*12) -> 444757.183 | M25: =OFFSET(Balance!M40,0,($O$1-1)*12) -> 402884.99 | N25: =OFFSET(Balance!N40,0,($O$1-1)*12) -> 473125.201 | O25: =SUM(O16:O17,O24) -> 5840292.032
B26: Enlace Península-Baleares (5) | C26: =OFFSET(Balance!C41,0,($O$1-1)*12) -> 0 | D26: =OFFSET(Balance!D41,0,($O$1-1)*12) -> 0 | E26: =OFFSET(Balance!E41,0,($O$1-1)*12) -> 0 | F26: =OFFSET(Balance!F41,0,($O$1-1)*12) -> 0 | G26: =OFFSET(Balance!G41,0,($O$1-1)*12) -> 0 | H26: =OFFSET(Balance!H41,0,($O$1-1)*12) -> 0 | I26: =OFFSET(Balance!I41,0,($O$1-1)*12) -> 0 | J26: =OFFSET(Balance!J41,0,($O$1-1)*12) -> 0 | K26: =OFFSET(Balance!K41,0,($O$1-1)*12) -> 0 | L26: =OFFSET(Balance!L41,0,($O$1-1)*12) -> 0 | M26: =OFFSET(Balance!M41,0,($O$1-1)*12) -> 0 | N26: =OFFSET(Balance!N41,0,($O$1-1)*12) -> 0 | O26: -
B27: Demanda transporte (b.c.) | C27: =OFFSET(Balance!C42,0,($O$1-1)*12) -> 491157.327 | D27: =OFFSET(Balance!D42,0,($O$1-1)*12) -> 455235.182 | E27: =OFFSET(Balance!E42,0,($O$1-1)*12) -> 473038.592 | F27: =OFFSET(Balance!F42,0,($O$1-1)*12) -> 413067.095 | G27: =OFFSET(Balance!G42,0,($O$1-1)*12) -> 436144.883 | H27: =OFFSET(Balance!H42,0,($O$1-1)*12) -> 475305.682 | I27: =OFFSET(Balance!I42,0,($O$1-1)*12) -> 630610.904 | J27: =OFFSET(Balance!J42,0,($O$1-1)*12) -> 624968.608 | K27: =OFFSET(Balance!K42,0,($O$1-1)*12) -> 519996.385 | L27: =OFFSET(Balance!L42,0,($O$1-1)*12) -> 444757.183 | M27: =OFFSET(Balance!M42,0,($O$1-1)*12) -> 402884.99 | N27: =OFFSET(Balance!N42,0,($O$1-1)*12) -> 473125.201 | O27: =SUM(O25:O26) -> 5840292.032
B28: (1) Asignación de unidades de producción según combustible principal.
B29: (2) Incluye funcionamiento en ciclo abierto.
B30: (3) Grupos de emergencia que se instalan de forma transitoria en determinadas zonas para cubrir un déficit de generación.
B31: (4) Hasta 2010 incluye residuos.
B32: (5) Valor positivo: entrada de energía en el sistema; valor negativo: salida de energía del sistema. Enlace funcionando al mínimo técnico de seguridad hasta el 13/08/2012.

Sheet Balance Baleares anual
J1: 1
I4: Sistema eléctrico
I5: Horizonte temporal
I6: Periodo
C8: =OFFSET(Balance!C130,0,($J$1-1)*8) -> 2006 | D8: =OFFSET(Balance!D130,0,($J$1-1)*8) -> 2007 | E8: =OFFSET(Balance!E130,0,($J$1-1)*8) -> 2008 | F8: =OFFSET(Balance!F130,0,($J$1-1)*8) -> 2009 | G8: =OFFSET(Balance!G130,0,($J$1-1)*8) -> 2010 | H8: =OFFSET(Balance!H130,0,($J$1-1)*8) -> 2011 | I8: =OFFSET(Balance!I130,0,($J$1-1)*8) -> 2012 | J8: =OFFSET(Balance!J130,0,($J$1-1)*8) -> 2013
B10: Carbón | C10: =OFFSET(Balance!C131,0,($J$1-1)*8) -> 3077310 | D10: =OFFSET(Balance!D131,0,($J$1-1)*8) -> 2943855 | E10: =OFFSET(Balance!E131,0,($J$1-1)*8) -> 3098826 | F10: =OFFSET(Balance!F131,0,($J$1-1)*8) -> 3170463 | G10: =OFFSET(Balance!G131,0,($J$1-1)*8) -> 3101357.566 | H10: =OFFSET(Balance!H131,0,($J$1-1)*8) -> - | I10: =OFFSET(Balance!I131,0,($J$1-1)*8) -> - | J10: =OFFSET(Balance!J131,0,($J$1-1)*8) -> -
B11: Motores diesel | C11: =OFFSET(Balance!C132,0,($J$1-1)*8) -> 964902 | D11: =OFFSET(Balance!D132,0,($J$1-1)*8) -> 1005606 | E11: =OFFSET(Balance!E132,0,($J$1-1)*8) -> 1047081 | F11: =OFFSET(Balance!F132,0,($J$1-1)*8) -> 971825 | G11: =OFFSET(Balance!G132,0,($J$1-1)*8) -> 1027620.046 | H11: =OFFSET(Balance!H132,0,($J$1-1)*8) -> - | I11: =OFFSET(Balance!I132,0,($J$1-1)*8) -> - | J11: =OFFSET(Balance!J132,0,($J$1-1)*8) -> -
B12: Turbina de gas | C12: =OFFSET(Balance!C133,0,($J$1-1)*8) -> 292054.952 | D12: =OFFSET(Balance!D133,0,($J$1-1)*8) -> 311441 | E12: =OFFSET(Balance!E133,0,($J$1-1)*8) -> 272502 | F12: =OFFSET(Balance!F133,0,($J$1-1)*8) -> 339369 | G12: =OFFSET(Balance!G133,0,($J$1-1)*8) -> 299414.366 | H12: =OFFSET(Balance!H133,0,($J$1-1)*8) -> - | I12: =OFFSET(Balance!I133,0,($J$1-1)*8) -> - | J12: =OFFSET(Balance!J133,0,($J$1-1)*8) -> -
B13: Fuel + Gas | C13: =OFFSET(Balance!C134,0,($J$1-1)*8) -> 1256956.952 | D13: =OFFSET(Balance!D134,0,($J$1-1)*8) -> 1317047 | E13: =OFFSET(Balance!E134,0,($J$1-1)*8) -> 1319583 | F13: =OFFSET(Balance!F134,0,($J$1-1)*8) -> 1311194 | G13: =OFFSET(Balance!G134,0,($J$1-1)*8) -> 1327034.412 | H13: =OFFSET(Balance!H134,0,($J$1-1)*8) -> - | I13: =OFFSET(Balance!I134,0,($J$1-1)*8) -> - | J13: =OFFSET(Balance!J134,0,($J$1-1)*8) -> -
B14: Ciclo combinado (2) | C14: =OFFSET(Balance!C135,0,($J$1-1)*8) -> 1341915 | D14: =OFFSET(Balance!D135,0,($J$1-1)*8) -> 1583995 | E14: =OFFSET(Balance!E135,0,($J$1-1)*8) -> 1523490 | F14: =OFFSET(Balance!F135,0,($J$1-1)*8) -> 1292183 | G14: =OFFSET(Balance!G135,0,($J$1-1)*8) -> 1135633.722 | H14: =OFFSET(Balance!H135,0,($J$1-1)*8) -> - | I14: =OFFSET(Balance!I135,0,($J$1-1)*8) -> - | J14: =OFFSET(Balance!J135,0,($J$1-1)*8) -> -
B15: Generación auxiliar (3) | C15: =OFFSET(Balance!C136,0,($J$1-1)*8) -> 6350.22 | D15: =OFFSET(Balance!D136,0,($J$1-1)*8) -> 12612 | E15: =OFFSET(Balance!E136,0,($J$1-1)*8) -> 5931 | F15: =OFFSET(Balance!F136,0,($J$1-1)*8) -> 5566 | G15: =OFFSET(Balance!G136,0,($J$1-1)*8) -> 6694.332 | H15: =OFFSET(Balance!H136,0,($J$1-1)*8) -> - | I15: =OFFSET(Balance!I136,0,($J$1-1)*8) -> - | J15: =OFFSET(Balance!J136,0,($J$1-1)*8) -> -
B16: Régimen ordinario | C16: =OFFSET(Balance!C137,0,($J$1-1)*8) -> 5682532.172 | D16: =OFFSET(Balance!D137,0,($J$1-1)*8) -> 5857509 | E16: =OFFSET(Balance!E137,0,($J$1-1)*8) -> 5947830 | F16: =OFFSET(Balance!F137,0,($J$1-1)*8) -> 5779406 | G16: =OFFSET(Balance!G137,0,($J$1-1)*8) -> 5570720.032 | H16: =OFFSET(Balance!H137,0,($J$1-1)*8) -> - | I16: =OFFSET(Balance!I137,0,($J$1-1)*8) -> - | J16: =OFFSET(Balance!J137,0,($J$1-1)*8) -> -
B18: Eólica | C18: =OFFSET(Balance!C138,0,($J$1-1)*8) -> 4877.356 | D18: =OFFSET(Balance!D138,0,($J$1-1)*8) -> 5656 | E18: =OFFSET(Balance!E138,0,($J$1-1)*8) -> 5497 | F18: =OFFSET(Balance!F138,0,($J$1-1)*8) -> 5543 | G18: =OFFSET(Balance!G138,0,($J$1-1)*8) -> 5571 | H18: =OFFSET(Balance!H138,0,($J$1-1)*8) -> - | I18: =OFFSET(Balance!I138,0,($J$1-1)*8) -> - | J18: =OFFSET(Balance!J138,0,($J$1-1)*8) -> -
B19: Solar fotovoltaica | C19: =OFFSET(Balance!C139,0,($J$1-1)*8) -> 1100.795 | D19: =OFFSET(Balance!D139,0,($J$1-1)*8) -> 1952 | E19: =OFFSET(Balance!E139,0,($J$1-1)*8) -> 28380 | F19: =OFFSET(Balance!F139,0,($J$1-1)*8) -> 80933 | G19: =OFFSET(Balance!G139,0,($J$1-1)*8) -> 87757 | H19: =OFFSET(Balance!H139,0,($J$1-1)*8) -> - | I19: =OFFSET(Balance!I139,0,($J$1-1)*8) -> - | J19: =OFFSET(Balance!J139,0,($J$1-1)*8) -> -
B20: Térmica renovable(4)/Otras renovables | C20: =OFFSET(Balance!C140,0,($J$1-1)*8) -> 0 | D20: =OFFSET(Balance!D140,0,($J$1-1)*8) -> 0 | E20: =OFFSET(Balance!E140,0,($J$1-1)*8) -> 0 | F20: =OFFSET(Balance!F140,0,($J$1-1)*8) -> 0 | G20: =OFFSET(Balance!G140,0,($J$1-1)*8) -> 0 | H20: =OFFSET(Balance!H140,0,($J$1-1)*8) -> - | I20: =OFFSET(Balance!I140,0,($J$1-1)*8) -> - | J20: =OFFSET(Balance!J140,0,($J$1-1)*8) -> -
B21: Cogeneración y resto(4)/Cogeneración | C21: =OFFSET(Balance!C141,0,($J$1-1)*8) -> 139112.849 | D21: =OFFSET(Balance!D141,0,($J$1-1)*8) -> 113933 | E21: =OFFSET(Balance!E141,0,($J$1-1)*8) -> 140332 | F21: =OFFSET(Balance!F141,0,($J$1-1)*8) -> 127042 | G21: =OFFSET(Balance!G141,0,($J$1-1)*8) -> 176244 | H21: =OFFSET(Balance!H141,0,($J$1-1)*8) -> - | I21: =OFFSET(Balance!I141,0,($J$1-1)*8) -> - | J21: =OFFSET(Balance!J141,0,($J$1-1)*8) -> -
B22: Residuos no renovables | C22: =OFFSET(Balance!C142,0,($J$1-1)*8) ->  | D22: =OFFSET(Balance!D142,0,($J$1-1)*8) ->  | E22: =OFFSET(Balance!E142,0,($J$1-1)*8) ->  | F22: =OFFSET(Balance!F142,0,($J$1-1)*8) ->  | G22: =OFFSET(Balance!G142,0,($J$1-1)*8) ->  | H22: =OFFSET(Balance!H142,0,($J$1-1)*8) -> - | I22: =OFFSET(Balance!I142,0,($J$1-1)*8) -> - | J22: =OFFSET(Balance!J142,0,($J$1-1)*8) -> -
B23: Residuos renovables | C23: =OFFSET(Balance!C143,0,($J$1-1)*8) ->  | D23: =OFFSET(Balance!D143,0,($J$1-1)*8) ->  | E23: =OFFSET(Balance!E143,0,($J$1-1)*8) ->  | F23: =OFFSET(Balance!F143,0,($J$1-1)*8) ->  | G23: =OFFSET(Balance!G143,0,($J$1-1)*8) ->  | H23: =OFFSET(Balance!H143,0,($J$1-1)*8) -> - | I23: =OFFSET(Balance!I143,0,($J$1-1)*8) -> - | J23: =OFFSET(Balance!J143,0,($J$1-1)*8) -> -
B24: Régimen especial | C24: =OFFSET(Balance!C144,0,($J$1-1)*8) -> 145091 | D24: =OFFSET(Balance!D144,0,($J$1-1)*8) -> 121541 | E24: =OFFSET(Balance!E144,0,($J$1-1)*8) -> 174209 | F24: =OFFSET(Balance!F144,0,($J$1-1)*8) -> 213518 | G24: =OFFSET(Balance!G144,0,($J$1-1)*8) -> 269572 | H24: =OFFSET(Balance!H144,0,($J$1-1)*8) -> - | I24: =OFFSET(Balance!I144,0,($J$1-1)*8) -> - | J24: =OFFSET(Balance!J144,0,($J$1-1)*8) -> -
B25: Generación | C25: =OFFSET(Balance!C145,0,($J$1-1)*8) -> 5827623.172 | D25: =OFFSET(Balance!D145,0,($J$1-1)*8) -> 5979050 | E25: =OFFSET(Balance!E145,0,($J$1-1)*8) -> 6122039 | F25: =OFFSET(Balance!F145,0,($J$1-1)*8) -> 5992924 | G25: =OFFSET(Balance!G145,0,($J$1-1)*8) -> 5840292.032 | H25: =OFFSET(Balance!H145,0,($J$1-1)*8) -> - | I25: =OFFSET(Balance!I145,0,($J$1-1)*8) -> - | J25: =OFFSET(Balance!J145,0,($J$1-1)*8) -> -
B26: Enlace Península-Baleares (5) | C26: =OFFSET(Balance!C146,0,($J$1-1)*8) -> - | D26: =OFFSET(Balance!D146,0,($J$1-1)*8) -> - | E26: =OFFSET(Balance!E146,0,($J$1-1)*8) -> - | F26: =OFFSET(Balance!F146,0,($J$1-1)*8) -> - | G26: =OFFSET(Balance!G146,0,($J$1-1)*8) -> - | H26: =OFFSET(Balance!H146,0,($J$1-1)*8) -> - | I26: =OFFSET(Balance!I146,0,($J$1-1)*8) -> - | J26: =OFFSET(Balance!J146,0,($J$1-1)*8) -> -
B27: Demanda transporte (b.c.) | C27: =OFFSET(Balance!C147,0,($J$1-1)*8) -> 5827623.172 | D27: =OFFSET(Balance!D147,0,($J$1-1)*8) -> 5979050 | E27: =OFFSET(Balance!E147,0,($J$1-1)*8) -> 6122039 | F27: =OFFSET(Balance!F147,0,($J$1-1)*8) -> 5992924 | G27: =OFFSET(Balance!G147,0,($J$1-1)*8) -> 5840292.032 | H27: =OFFSET(Balance!H147,0,($J$1-1)*8) -> - | I27: =OFFSET(Balance!I147,0,($J$1-1)*8) -> - | J27: =OFFSET(Balance!J147,0,($J$1-1)*8) -> -
B28: (1) Asignación de unidades de producción según combustible principal.
B29: (2) Incluye funcionamiento en ciclo abierto.
B30: (3) Grupos de emergencia que se instalan de forma transitoria en determinadas zonas para cubrir un déficit de generación.
B31: (4) Hasta 2014 e incluye residuos hasta 2010.
B32: (4) Incluye residuos hasta 2010.
B33: (5) Valor positivo: entrada de energía en el sistema; valor negativo: salida de energía del sistema. Enlace funcionando al mínimo técnico de seguridad hasta el 13/08/2012.

Sheet Balance Canarias mensual
O1: 5
M4: Sistema eléctrico
M5: Horizonte temporal
M6: Periodo
C8: Ene. | D8: Feb. | E8: Mar. | F8: Abr. | G8: May. | H8: Jun. | I8: Jul. | J8: Ago. | K8: Sep. | L8: Oct. | M8: Nov. | N8: Dic. | O8: =OFFSET(Año!C18,($O$1-1),0) -> 2010
B10: Hidráulica | C10: =OFFSET(Balance!C45,0,($O$1-1)*12) -> 0 | D10: =OFFSET(Balance!D45,0,($O$1-1)*12) -> 0 | E10: =OFFSET(Balance!E45,0,($O$1-1)*12) -> 0 | F10: =OFFSET(Balance!F45,0,($O$1-1)*12) -> 0 | G10: =OFFSET(Balance!G45,0,($O$1-1)*12) -> 0 | H10: =OFFSET(Balance!H45,0,($O$1-1)*12) -> 0 | I10: =OFFSET(Balance!I45,0,($O$1-1)*12) -> 0 | J10: =OFFSET(Balance!J45,0,($O$1-1)*12) -> 0 | K10: =OFFSET(Balance!K45,0,($O$1-1)*12) -> 0 | L10: =OFFSET(Balance!L45,0,($O$1-1)*12) -> 0 | M10: =OFFSET(Balance!M45,0,($O$1-1)*12) -> 0 | N10: =OFFSET(Balance!N45,0,($O$1-1)*12) -> 0 | O10: =IF(SUM(C10:N10)=0,"-",SUM(C10:N10)) -> -
B11: Motores diesel | C11: =OFFSET(Balance!C46,0,($O$1-1)*12) -> 187860.426 | D11: =OFFSET(Balance!D46,0,($O$1-1)*12) -> 166955.349 | E11: =OFFSET(Balance!E46,0,($O$1-1)*12) -> 187977.302 | F11: =OFFSET(Balance!F46,0,($O$1-1)*12) -> 173369.214 | G11: =OFFSET(Balance!G46,0,($O$1-1)*12) -> 162133.906 | H11: =OFFSET(Balance!H46,0,($O$1-1)*12) -> 164800.029 | I11: =OFFSET(Balance!I46,0,($O$1-1)*12) -> 181346.471 | J11: =OFFSET(Balance!J46,0,($O$1-1)*12) -> 198336.867 | K11: =OFFSET(Balance!K46,0,($O$1-1)*12) -> 189919.536 | L11: =OFFSET(Balance!L46,0,($O$1-1)*12) -> 200384.633 | M11: =OFFSET(Balance!M46,0,($O$1-1)*12) -> 184885.126 | N11: =OFFSET(Balance!N46,0,($O$1-1)*12) -> 185418.913 | O11: =IF(SUM(C11:N11)=0,"-",SUM(C11:N11)) -> 2183387.772
B12: Turbina de gas | C12: =OFFSET(Balance!C47,0,($O$1-1)*12) -> 13491.04 | D12: =OFFSET(Balance!D47,0,($O$1-1)*12) -> 18753.394 | E12: =OFFSET(Balance!E47,0,($O$1-1)*12) -> 20108.357 | F12: =OFFSET(Balance!F47,0,($O$1-1)*12) -> 13928.882 | G12: =OFFSET(Balance!G47,0,($O$1-1)*12) -> 30855.156 | H12: =OFFSET(Balance!H47,0,($O$1-1)*12) -> 31941.35 | I12: =OFFSET(Balance!I47,0,($O$1-1)*12) -> 29817.828 | J12: =OFFSET(Balance!J47,0,($O$1-1)*12) -> 24986.524 | K12: =OFFSET(Balance!K47,0,($O$1-1)*12) -> 28373.724 | L12: =OFFSET(Balance!L47,0,($O$1-1)*12) -> 46582.515 | M12: =OFFSET(Balance!M47,0,($O$1-1)*12) -> 44841.278 | N12: =OFFSET(Balance!N47,0,($O$1-1)*12) -> 39601.609 | O12: =IF(SUM(C12:N12)=0,"-",SUM(C12:N12)) -> 343281.657
B13: Turbina de vapor | C13: =OFFSET(Balance!C48,0,($O$1-1)*12) -> 275233.605 | D13: =OFFSET(Balance!D48,0,($O$1-1)*12) -> 239085.291 | E13: =OFFSET(Balance!E48,0,($O$1-1)*12) -> 258003.025 | F13: =OFFSET(Balance!F48,0,($O$1-1)*12) -> 233931.054 | G13: =OFFSET(Balance!G48,0,($O$1-1)*12) -> 254626.209 | H13: =OFFSET(Balance!H48,0,($O$1-1)*12) -> 255627.035 | I13: =OFFSET(Balance!I48,0,($O$1-1)*12) -> 246393.45 | J13: =OFFSET(Balance!J48,0,($O$1-1)*12) -> 264783.539 | K13: =OFFSET(Balance!K48,0,($O$1-1)*12) -> 255925.195 | L13: =OFFSET(Balance!L48,0,($O$1-1)*12) -> 219068.06 | M13: =OFFSET(Balance!M48,0,($O$1-1)*12) -> 221691.146 | N13: =OFFSET(Balance!N48,0,($O$1-1)*12) -> 248219.496 | O13: =IF(SUM(C13:N13)=0,"-",SUM(C13:N13)) -> 2972587.105
B14: Fuel + Gas | C14: =OFFSET(Balance!C49,0,($O$1-1)*12) -> 476585.071 | D14: =OFFSET(Balance!D49,0,($O$1-1)*12) -> 424794.034 | E14: =OFFSET(Balance!E49,0,($O$1-1)*12) -> 466088.684 | F14: =OFFSET(Balance!F49,0,($O$1-1)*12) -> 421229.15 | G14: =OFFSET(Balance!G49,0,($O$1-1)*12) -> 447615.271 | H14: =OFFSET(Balance!H49,0,($O$1-1)*12) -> 452368.414 | I14: =OFFSET(Balance!I49,0,($O$1-1)*12) -> 457557.749 | J14: =OFFSET(Balance!J49,0,($O$1-1)*12) -> 488106.93 | K14: =OFFSET(Balance!K49,0,($O$1-1)*12) -> 474218.455 | L14: =OFFSET(Balance!L49,0,($O$1-1)*12) -> 466035.208 | M14: =OFFSET(Balance!M49,0,($O$1-1)*12) -> 451417.55 | N14: =OFFSET(Balance!N49,0,($O$1-1)*12) -> 473240.018 | O14: =IF(SUM(C14:N14)=0,"-",SUM(C14:N14)) -> 5499256.534
B15: Ciclo combinado (2) | C15: =OFFSET(Balance!C50,0,($O$1-1)*12) -> 230101.864 | D15: =OFFSET(Balance!D50,0,($O$1-1)*12) -> 203031.708 | E15: =OFFSET(Balance!E50,0,($O$1-1)*12) -> 228450.678 | F15: =OFFSET(Balance!F50,0,($O$1-1)*12) -> 216494.734 | G15: =OFFSET(Balance!G50,0,($O$1-1)*12) -> 193292.748 | H15: =OFFSET(Balance!H50,0,($O$1-1)*12) -> 190320.309 | I15: =OFFSET(Balance!I50,0,($O$1-1)*12) -> 218682.102 | J15: =OFFSET(Balance!J50,0,($O$1-1)*12) -> 224299.341 | K15: =OFFSET(Balance!K50,0,($O$1-1)*12) -> 235057.37 | L15: =OFFSET(Balance!L50,0,($O$1-1)*12) -> 266936.906 | M15: =OFFSET(Balance!M50,0,($O$1-1)*12) -> 253781.819 | N15: =OFFSET(Balance!N50,0,($O$1-1)*12) -> 247960.606 | O15: 2708410.185
B16: Generación auxiliar (3) | C16: =OFFSET(Balance!C51,0,($O$1-1)*12) -> 0 | D16: =OFFSET(Balance!D51,0,($O$1-1)*12) -> 0 | E16: =OFFSET(Balance!E51,0,($O$1-1)*12) -> 0 | F16: =OFFSET(Balance!F51,0,($O$1-1)*12) -> 0 | G16: =OFFSET(Balance!G51,0,($O$1-1)*12) -> 0 | H16: =OFFSET(Balance!H51,0,($O$1-1)*12) -> 0 | I16: =OFFSET(Balance!I51,0,($O$1-1)*12) -> 0 | J16: =OFFSET(Balance!J51,0,($O$1-1)*12) -> 0 | K16: =OFFSET(Balance!K51,0,($O$1-1)*12) -> 0 | L16: =OFFSET(Balance!L51,0,($O$1-1)*12) -> 0 | M16: =OFFSET(Balance!M51,0,($O$1-1)*12) -> 0 | N16: =OFFSET(Balance!N51,0,($O$1-1)*12) -> 0 | O16: -
B17: Régimen ordinario | C17: =OFFSET(Balance!C52,0,($O$1-1)*12) -> 706686.935 | D17: =OFFSET(Balance!D52,0,($O$1-1)*12) -> 627825.742 | E17: =OFFSET(Balance!E52,0,($O$1-1)*12) -> 694539.362 | F17: =OFFSET(Balance!F52,0,($O$1-1)*12) -> 637723.884 | G17: =OFFSET(Balance!G52,0,($O$1-1)*12) -> 640908.019 | H17: =OFFSET(Balance!H52,0,($O$1-1)*12) -> 642688.723 | I17: =OFFSET(Balance!I52,0,($O$1-1)*12) -> 676239.851 | J17: =OFFSET(Balance!J52,0,($O$1-1)*12) -> 712406.271 | K17: =OFFSET(Balance!K52,0,($O$1-1)*12) -> 709275.825 | L17: =OFFSET(Balance!L52,0,($O$1-1)*12) -> 732972.114 | M17: =OFFSET(Balance!M52,0,($O$1-1)*12) -> 705199.369 | N17: =OFFSET(Balance!N52,0,($O$1-1)*12) -> 721200.624 | O17: =IF(SUM(C17:N17)=0,"-",SUM(C17:N17)) -> 8207666.719
B19: Hidroeólica | C19: =OFFSET(Balance!C53,0,($O$1-1)*12) -> - | D19: =OFFSET(Balance!D53,0,($O$1-1)*12) -> - | E19: =OFFSET(Balance!E53,0,($O$1-1)*12) -> - | F19: =OFFSET(Balance!F53,0,($O$1-1)*12) -> - | G19: =OFFSET(Balance!G53,0,($O$1-1)*12) -> - | H19: =OFFSET(Balance!H53,0,($O$1-1)*12) -> - | I19: =OFFSET(Balance!I53,0,($O$1-1)*12) -> - | J19: =OFFSET(Balance!J53,0,($O$1-1)*12) -> - | K19: =OFFSET(Balance!K53,0,($O$1-1)*12) -> - | L19: =OFFSET(Balance!L53,0,($O$1-1)*12) -> - | M19: =OFFSET(Balance!M53,0,($O$1-1)*12) -> - | N19: =OFFSET(Balance!N53,0,($O$1-1)*12) -> - | O19: =IF(SUM(C19:N19)=0,"-",SUM(C19:N19)) -> -
B20: Hidráulica | C20: =OFFSET(Balance!C54,0,($O$1-1)*12) -> 0 | D20: =OFFSET(Balance!D54,0,($O$1-1)*12) -> 0 | E20: =OFFSET(Balance!E54,0,($O$1-1)*12) -> 0 | F20: =OFFSET(Balance!F54,0,($O$1-1)*12) -> 0 | G20: =OFFSET(Balance!G54,0,($O$1-1)*12) -> 0 | H20: =OFFSET(Balance!H54,0,($O$1-1)*12) -> 0 | I20: =OFFSET(Balance!I54,0,($O$1-1)*12) -> 0 | J20: =OFFSET(Balance!J54,0,($O$1-1)*12) -> 0 | K20: =OFFSET(Balance!K54,0,($O$1-1)*12) -> 0 | L20: =OFFSET(Balance!L54,0,($O$1-1)*12) -> 0 | M20: =OFFSET(Balance!M54,0,($O$1-1)*12) -> 0 | N20: =OFFSET(Balance!N54,0,($O$1-1)*12) -> 0 | O20: =IF(SUM(C20:N20)=0,"-",SUM(C20:N20)) -> -
B21: Eólica | C21: =OFFSET(Balance!C55,0,($O$1-1)*12) -> 11740 | D21: =OFFSET(Balance!D55,0,($O$1-1)*12) -> 14778 | E21: =OFFSET(Balance!E55,0,($O$1-1)*12) -> 23015 | F21: =OFFSET(Balance!F55,0,($O$1-1)*12) -> 32147 | G21: =OFFSET(Balance!G55,0,($O$1-1)*12) -> 36251 | H21: =OFFSET(Balance!H55,0,($O$1-1)*12) -> 38838 | I21: =OFFSET(Balance!I55,0,($O$1-1)*12) -> 47304 | J21: =OFFSET(Balance!J55,0,($O$1-1)*12) -> 42622 | K21: =OFFSET(Balance!K55,0,($O$1-1)*12) -> 35769 | L21: =OFFSET(Balance!L55,0,($O$1-1)*12) -> 14015 | M21: =OFFSET(Balance!M55,0,($O$1-1)*12) -> 17956 | N21: =OFFSET(Balance!N55,0,($O$1-1)*12) -> 16928 | O21: 331363
B22: Solar fotovoltaica | C22: =OFFSET(Balance!C56,0,($O$1-1)*12) -> 10698 | D22: =OFFSET(Balance!D56,0,($O$1-1)*12) -> 10306 | E22: =OFFSET(Balance!E56,0,($O$1-1)*12) -> 16328 | F22: =OFFSET(Balance!F56,0,($O$1-1)*12) -> 16499 | G22: =OFFSET(Balance!G56,0,($O$1-1)*12) -> 19138 | H22: =OFFSET(Balance!H56,0,($O$1-1)*12) -> 19607 | I22: =OFFSET(Balance!I56,0,($O$1-1)*12) -> 22480 | J22: =OFFSET(Balance!J56,0,($O$1-1)*12) -> 21526 | K22: =OFFSET(Balance!K56,0,($O$1-1)*12) -> 17621 | L22: =OFFSET(Balance!L56,0,($O$1-1)*12) -> 15830 | M22: =OFFSET(Balance!M56,0,($O$1-1)*12) -> 12519 | N22: =OFFSET(Balance!N56,0,($O$1-1)*12) -> 12614 | O22: 195166
B23: Otras renovables | C23: =OFFSET(Balance!C57,0,($O$1-1)*12) -> 23902 | D23: =OFFSET(Balance!D57,0,($O$1-1)*12) -> 18935 | E23: =OFFSET(Balance!E57,0,($O$1-1)*12) -> 16313 | F23: =OFFSET(Balance!F57,0,($O$1-1)*12) -> 24282 | G23: =OFFSET(Balance!G57,0,($O$1-1)*12) -> 25112 | H23: =OFFSET(Balance!H57,0,($O$1-1)*12) -> 19550 | I23: =OFFSET(Balance!I57,0,($O$1-1)*12) -> 10072 | J23: =OFFSET(Balance!J57,0,($O$1-1)*12) -> 5987 | K23: =OFFSET(Balance!K57,0,($O$1-1)*12) -> 5025 | L23: =OFFSET(Balance!L57,0,($O$1-1)*12) -> 5016 | M23: =OFFSET(Balance!M57,0,($O$1-1)*12) -> 3979 | N23: =OFFSET(Balance!N57,0,($O$1-1)*12) -> 2388 | O23: 160561
B24: Cogeneración | C24: =OFFSET(Balance!C58,0,($O$1-1)*12) -> 0 | D24: =OFFSET(Balance!D58,0,($O$1-1)*12) -> 0 | E24: =OFFSET(Balance!E58,0,($O$1-1)*12) -> 0 | F24: =OFFSET(Balance!F58,0,($O$1-1)*12) -> 0 | G24: =OFFSET(Balance!G58,0,($O$1-1)*12) -> 0 | H24: =OFFSET(Balance!H58,0,($O$1-1)*12) -> 0 | I24: =OFFSET(Balance!I58,0,($O$1-1)*12) -> 0 | J24: =OFFSET(Balance!J58,0,($O$1-1)*12) -> 0 | K24: =OFFSET(Balance!K58,0,($O$1-1)*12) -> 0 | L24: =OFFSET(Balance!L58,0,($O$1-1)*12) -> 0 | M24: =OFFSET(Balance!M58,0,($O$1-1)*12) -> 0 | N24: =OFFSET(Balance!N58,0,($O$1-1)*12) -> 0 | O24: -
B25: Régimen especial | C25: =OFFSET(Balance!C59,0,($O$1-1)*12) -> 46340 | D25: =OFFSET(Balance!D59,0,($O$1-1)*12) -> 44019 | E25: =OFFSET(Balance!E59,0,($O$1-1)*12) -> 55656 | F25: =OFFSET(Balance!F59,0,($O$1-1)*12) -> 72928 | G25: =OFFSET(Balance!G59,0,($O$1-1)*12) -> 80501 | H25: =OFFSET(Balance!H59,0,($O$1-1)*12) -> 77995 | I25: =OFFSET(Balance!I59,0,($O$1-1)*12) -> 79856 | J25: =OFFSET(Balance!J59,0,($O$1-1)*12) -> 70135 | K25: =OFFSET(Balance!K59,0,($O$1-1)*12) -> 58415 | L25: =OFFSET(Balance!L59,0,($O$1-1)*12) -> 34861 | M25: =OFFSET(Balance!M59,0,($O$1-1)*12) -> 34454 | N25: =OFFSET(Balance!N59,0,($O$1-1)*12) -> 31930 | O25: =SUM(O20:O24) -> 687090
B26: Generación | C26: =OFFSET(Balance!C60,0,($O$1-1)*12) -> 753026.935 | D26: =OFFSET(Balance!D60,0,($O$1-1)*12) -> 671844.742 | E26: =OFFSET(Balance!E60,0,($O$1-1)*12) -> 750195.362 | F26: =OFFSET(Balance!F60,0,($O$1-1)*12) -> 710651.884 | G26: =OFFSET(Balance!G60,0,($O$1-1)*12) -> 721409.019 | H26: =OFFSET(Balance!H60,0,($O$1-1)*12) -> 720683.723 | I26: =OFFSET(Balance!I60,0,($O$1-1)*12) -> 756095.851 | J26: =OFFSET(Balance!J60,0,($O$1-1)*12) -> 782541.271 | K26: =OFFSET(Balance!K60,0,($O$1-1)*12) -> 767690.825 | L26: =OFFSET(Balance!L60,0,($O$1-1)*12) -> 767833.114 | M26: =OFFSET(Balance!M60,0,($O$1-1)*12) -> 739653.369 | N26: =OFFSET(Balance!N60,0,($O$1-1)*12) -> 753130.624 | O26: 8894756.719
B27: Demanda transporte (b.c.) | C27: =OFFSET(Balance!C61,0,($O$1-1)*12) -> 753026.935 | D27: =OFFSET(Balance!D61,0,($O$1-1)*12) -> 671844.742 | E27: =OFFSET(Balance!E61,0,($O$1-1)*12) -> 750195.362 | F27: =OFFSET(Balance!F61,0,($O$1-1)*12) -> 710651.884 | G27: =OFFSET(Balance!G61,0,($O$1-1)*12) -> 721409.019 | H27: =OFFSET(Balance!H61,0,($O$1-1)*12) -> 720683.723 | I27: =OFFSET(Balance!I61,0,($O$1-1)*12) -> 756095.851 | J27: =OFFSET(Balance!J61,0,($O$1-1)*12) -> 782541.271 | K27: =OFFSET(Balance!K61,0,($O$1-1)*12) -> 767690.825 | L27: =OFFSET(Balance!L61,0,($O$1-1)*12) -> 767833.114 | M27: =OFFSET(Balance!M61,0,($O$1-1)*12) -> 739653.369 | N27: =OFFSET(Balance!N61,0,($O$1-1)*12) -> 753130.624 | O27: 8894756.719
B28: (1) Asignación de unidades de producción según combustible principal.
B29: (2) Utiliza fue y gasoil como combustible principal. Incluye funcionamiento en ciclo abierto.
B30: (3) Grupos de emergencia que se instalan de forma transitoria en determinadas zonas para cubrir un déficit de generación.
B31: (4) Incluye todas aquellas unidades menores de 50 MW que no pertenecen a ninguna unidad de gestión hidráulica (UGH).

Sheet Balance Canarias anual
J1: 1
I4: Sistema eléctrico
I5: Horizonte temporal
I6: Periodo
C8: =OFFSET(Balance!C149,0,($J$1-1)*8) -> 2006 | D8: =OFFSET(Balance!D149,0,($J$1-1)*8) -> 2007 | E8: =OFFSET(Balance!E149,0,($J$1-1)*8) -> 2008 | F8: =OFFSET(Balance!F149,0,($J$1-1)*8) -> 2009 | G8: =OFFSET(Balance!G149,0,($J$1-1)*8) -> 2010 | H8: =OFFSET(Balance!H149,0,($J$1-1)*8) -> 2011 | I8: =OFFSET(Balance!I149,0,($J$1-1)*8) -> 2012 | J8: =OFFSET(Balance!J149,0,($J$1-1)*8) -> 2013
B10: Hidráulica | C10: =OFFSET(Balance!C150,0,($J$1-1)*8) -> 0 | D10: =OFFSET(Balance!D150,0,($J$1-1)*8) -> 0 | E10: =OFFSET(Balance!E150,0,($J$1-1)*8) -> 0 | F10: =OFFSET(Balance!F150,0,($J$1-1)*8) -> 0 | G10: =OFFSET(Balance!G150,0,($J$1-1)*8) -> 0 | H10: =OFFSET(Balance!H150,0,($J$1-1)*8) -> - | I10: =OFFSET(Balance!I150,0,($J$1-1)*8) -> - | J10: =OFFSET(Balance!J150,0,($J$1-1)*8) -> -
B11: Motores diesel | C11: =OFFSET(Balance!C151,0,($J$1-1)*8) -> 2007664 | D11: =OFFSET(Balance!D151,0,($J$1-1)*8) -> 2042002 | E11: =OFFSET(Balance!E151,0,($J$1-1)*8) -> 2103766 | F11: =OFFSET(Balance!F151,0,($J$1-1)*8) -> 2140699 | G11: =OFFSET(Balance!G151,0,($J$1-1)*8) -> 2183387.772 | H11: =OFFSET(Balance!H151,0,($J$1-1)*8) -> - | I11: =OFFSET(Balance!I151,0,($J$1-1)*8) -> - | J11: =OFFSET(Balance!J151,0,($J$1-1)*8) -> -
B12: Turbina de gas | C12: =OFFSET(Balance!C152,0,($J$1-1)*8) -> 824431.12 | D12: =OFFSET(Balance!D152,0,($J$1-1)*8) -> 699470 | E12: =OFFSET(Balance!E152,0,($J$1-1)*8) -> 473526 | F12: =OFFSET(Balance!F152,0,($J$1-1)*8) -> 342172.054 | G12: =OFFSET(Balance!G152,0,($J$1-1)*8) -> 343281.657 | H12: =OFFSET(Balance!H152,0,($J$1-1)*8) -> - | I12: =OFFSET(Balance!I152,0,($J$1-1)*8) -> - | J12: =OFFSET(Balance!J152,0,($J$1-1)*8) -> -
B13: Turbina de vapor | C13: =OFFSET(Balance!C153,0,($J$1-1)*8) -> 3429991 | D13: =OFFSET(Balance!D153,0,($J$1-1)*8) -> 3306805 | E13: =OFFSET(Balance!E153,0,($J$1-1)*8) -> 3414241 | F13: =OFFSET(Balance!F153,0,($J$1-1)*8) -> 3243628 | G13: =OFFSET(Balance!G153,0,($J$1-1)*8) -> 2972587.105 | H13: =OFFSET(Balance!H153,0,($J$1-1)*8) -> - | I13: =OFFSET(Balance!I153,0,($J$1-1)*8) -> - | J13: =OFFSET(Balance!J153,0,($J$1-1)*8) -> -
B14: Fuel + Gas | C14: =OFFSET(Balance!C154,0,($J$1-1)*8) -> 6262086.12 | D14: =OFFSET(Balance!D154,0,($J$1-1)*8) -> 6048277 | E14: =OFFSET(Balance!E154,0,($J$1-1)*8) -> 5991533 | F14: =OFFSET(Balance!F154,0,($J$1-1)*8) -> 5726499.054 | G14: =OFFSET(Balance!G154,0,($J$1-1)*8) -> 5499256.534 | H14: =OFFSET(Balance!H154,0,($J$1-1)*8) -> - | I14: =OFFSET(Balance!I154,0,($J$1-1)*8) -> - | J14: =OFFSET(Balance!J154,0,($J$1-1)*8) -> -
B15: Ciclo combinado (2) | C15: =OFFSET(Balance!C155,0,($J$1-1)*8) -> 2007397 | D15: =OFFSET(Balance!D155,0,($J$1-1)*8) -> 2443275 | E15: =OFFSET(Balance!E155,0,($J$1-1)*8) -> 2573317 | F15: =OFFSET(Balance!F155,0,($J$1-1)*8) -> 2552328 | G15: =OFFSET(Balance!G155,0,($J$1-1)*8) -> 2708410.185 | H15: =OFFSET(Balance!H155,0,($J$1-1)*8) -> - | I15: =OFFSET(Balance!I155,0,($J$1-1)*8) -> - | J15: =OFFSET(Balance!J155,0,($J$1-1)*8) -> -
B16: Generación auxiliar (3) | C16: =OFFSET(Balance!C156,0,($J$1-1)*8) -> 0 | D16: =OFFSET(Balance!D156,0,($J$1-1)*8) -> 132840 | E16: =OFFSET(Balance!E156,0,($J$1-1)*8) -> 89747 | F16: =OFFSET(Balance!F156,0,($J$1-1)*8) -> 33788 | G16: =OFFSET(Balance!G156,0,($J$1-1)*8) -> 0 | H16: =OFFSET(Balance!H156,0,($J$1-1)*8) -> - | I16: =OFFSET(Balance!I156,0,($J$1-1)*8) -> - | J16: =OFFSET(Balance!J156,0,($J$1-1)*8) -> -
B17: Régimen ordinario | C17: =OFFSET(Balance!C157,0,($J$1-1)*8) -> 8269483.12 | D17: =OFFSET(Balance!D157,0,($J$1-1)*8) -> 8624392 | E17: =OFFSET(Balance!E157,0,($J$1-1)*8) -> 8654597 | F17: =OFFSET(Balance!F157,0,($J$1-1)*8) -> 8312615.054 | G17: =OFFSET(Balance!G157,0,($J$1-1)*8) -> 8207666.719 | H17: =OFFSET(Balance!H157,0,($J$1-1)*8) -> - | I17: =OFFSET(Balance!I157,0,($J$1-1)*8) -> - | J17: =OFFSET(Balance!J157,0,($J$1-1)*8) -> -
B19: Hidroeólica | C19: =OFFSET(Balance!C158,0,($J$1-1)*8) -> - | D19: =OFFSET(Balance!D158,0,($J$1-1)*8) -> - | E19: =OFFSET(Balance!E158,0,($J$1-1)*8) -> - | F19: =OFFSET(Balance!F158,0,($J$1-1)*8) -> - | G19: =OFFSET(Balance!G158,0,($J$1-1)*8) -> - | H19: =OFFSET(Balance!H158,0,($J$1-1)*8) -> - | I19: =OFFSET(Balance!I158,0,($J$1-1)*8) -> - | J19: =OFFSET(Balance!J158,0,($J$1-1)*8) -> -
B20: Resto hidráulica (4) | C20: =OFFSET(Balance!C159,0,($J$1-1)*8) -> 0 | D20: =OFFSET(Balance!D159,0,($J$1-1)*8) -> 1176 | E20: =OFFSET(Balance!E159,0,($J$1-1)*8) -> 1673 | F20: =OFFSET(Balance!F159,0,($J$1-1)*8) -> 398 | G20: =OFFSET(Balance!G159,0,($J$1-1)*8) -> 0 | H20: =OFFSET(Balance!H159,0,($J$1-1)*8) -> - | I20: =OFFSET(Balance!I159,0,($J$1-1)*8) -> - | J20: =OFFSET(Balance!J159,0,($J$1-1)*8) -> -
B21: Eólica | C21: =OFFSET(Balance!C160,0,($J$1-1)*8) -> 326063.579 | D21: =OFFSET(Balance!D160,0,($J$1-1)*8) -> 356840 | E21: =OFFSET(Balance!E160,0,($J$1-1)*8) -> 396475 | F21: =OFFSET(Balance!F160,0,($J$1-1)*8) -> 358707 | G21: =OFFSET(Balance!G160,0,($J$1-1)*8) -> 331363 | H21: =OFFSET(Balance!H160,0,($J$1-1)*8) -> - | I21: =OFFSET(Balance!I160,0,($J$1-1)*8) -> - | J21: =OFFSET(Balance!J160,0,($J$1-1)*8) -> -
B22: Solar fotovoltaica | C22: =OFFSET(Balance!C161,0,($J$1-1)*8) -> 2915.55 | D22: =OFFSET(Balance!D161,0,($J$1-1)*8) -> 19373 | E22: =OFFSET(Balance!E161,0,($J$1-1)*8) -> 63500 | F22: =OFFSET(Balance!F161,0,($J$1-1)*8) -> 162330 | G22: =OFFSET(Balance!G161,0,($J$1-1)*8) -> 195166 | H22: =OFFSET(Balance!H161,0,($J$1-1)*8) -> - | I22: =OFFSET(Balance!I161,0,($J$1-1)*8) -> - | J22: =OFFSET(Balance!J161,0,($J$1-1)*8) -> -
B23: Térmica renovable/Otras renovables | C23: =OFFSET(Balance!C162,0,($J$1-1)*8) -> 218199.684 | D23: =OFFSET(Balance!D162,0,($J$1-1)*8) -> 213283 | E23: =OFFSET(Balance!E162,0,($J$1-1)*8) -> 217219 | F23: =OFFSET(Balance!F162,0,($J$1-1)*8) -> 273055 | G23: =OFFSET(Balance!G162,0,($J$1-1)*8) -> 160561 | H23: =OFFSET(Balance!H162,0,($J$1-1)*8) -> - | I23: =OFFSET(Balance!I162,0,($J$1-1)*8) -> - | J23: =OFFSET(Balance!J162,0,($J$1-1)*8) -> -
B24: Cogeneración | C24: =OFFSET(Balance!C163,0,($J$1-1)*8) -> 2832.187 | D24: =OFFSET(Balance!D163,0,($J$1-1)*8) -> 0 | E24: =OFFSET(Balance!E163,0,($J$1-1)*8) -> 0 | F24: =OFFSET(Balance!F163,0,($J$1-1)*8) -> 20 | G24: =OFFSET(Balance!G163,0,($J$1-1)*8) -> 0 | H24: =OFFSET(Balance!H163,0,($J$1-1)*8) -> - | I24: =OFFSET(Balance!I163,0,($J$1-1)*8) -> - | J24: =OFFSET(Balance!J163,0,($J$1-1)*8) -> -
B25: Régimen especial | C25: =OFFSET(Balance!C164,0,($J$1-1)*8) -> 550011 | D25: =OFFSET(Balance!D164,0,($J$1-1)*8) -> 590672 | E25: =OFFSET(Balance!E164,0,($J$1-1)*8) -> 678867 | F25: =OFFSET(Balance!F164,0,($J$1-1)*8) -> 794510 | G25: =OFFSET(Balance!G164,0,($J$1-1)*8) -> 687090 | H25: =OFFSET(Balance!H164,0,($J$1-1)*8) -> - | I25: =OFFSET(Balance!I164,0,($J$1-1)*8) -> - | J25: =OFFSET(Balance!J164,0,($J$1-1)*8) -> -
B26: Generación | C26: =OFFSET(Balance!C165,0,($J$1-1)*8) -> 8819494.12 | D26: =OFFSET(Balance!D165,0,($J$1-1)*8) -> 9215064 | E26: =OFFSET(Balance!E165,0,($J$1-1)*8) -> 9333464 | F26: =OFFSET(Balance!F165,0,($J$1-1)*8) -> 9107125.054 | G26: =OFFSET(Balance!G165,0,($J$1-1)*8) -> 8894756.719 | H26: =OFFSET(Balance!H165,0,($J$1-1)*8) -> - | I26: =OFFSET(Balance!I165,0,($J$1-1)*8) -> - | J26: =OFFSET(Balance!J165,0,($J$1-1)*8) -> -
B27: Demanda transporte (b.c.) | C27: =OFFSET(Balance!C166,0,($J$1-1)*8) -> 8819494.12 | D27: =OFFSET(Balance!D166,0,($J$1-1)*8) -> 9215064 | E27: =OFFSET(Balance!E166,0,($J$1-1)*8) -> 9333464 | F27: =OFFSET(Balance!F166,0,($J$1-1)*8) -> 9107125.054 | G27: =OFFSET(Balance!G166,0,($J$1-1)*8) -> 8894756.719 | H27: =OFFSET(Balance!H166,0,($J$1-1)*8) -> - | I27: =OFFSET(Balance!I166,0,($J$1-1)*8) -> - | J27: =OFFSET(Balance!J166,0,($J$1-1)*8) -> -
B28: (1) Asignación de unidades de producción según combustible principal.
B29: (2) Utiliza fue y gasoil como combustible principal. Incluye funcionamiento en ciclo abierto.
B30: (3) Grupos de emergencia que se instalan de forma transitoria en determinadas zonas para cubrir un déficit de generación.
B31: (4) Incluye todas aquellas unidades menores de 50 MW que no pertenecen a ninguna unidad de gestión hidráulica (UGH).

Sheet Balance Ceuta mensual
O1: 4
M4: Sistema eléctrico
M5: Horizonte temporal
M6: Periodo
C8: Ene. | D8: Feb. | E8: Mar. | F8: Abr. | G8: May. | H8: Jun. | I8: Jul. | J8: Ago. | K8: Sep. | L8: Oct. | M8: Nov. | N8: Dic. | O8: =OFFSET(Año!C19,($O$1-1),0) -> 2010
B10: Motores diesel | C10: =OFFSET(Balance!C64,0,($O$1-1)*12) -> 16835.431 | D10: =OFFSET(Balance!D64,0,($O$1-1)*12) -> 16928.369 | E10: =OFFSET(Balance!E64,0,($O$1-1)*12) -> 17444.607 | F10: =OFFSET(Balance!F64,0,($O$1-1)*12) -> 16234.077 | G10: =OFFSET(Balance!G64,0,($O$1-1)*12) -> 17320.935 | H10: =OFFSET(Balance!H64,0,($O$1-1)*12) -> 17763.089 | I10: =OFFSET(Balance!I64,0,($O$1-1)*12) -> 19394.423 | J10: =OFFSET(Balance!J64,0,($O$1-1)*12) -> 20221.285 | K10: =OFFSET(Balance!K64,0,($O$1-1)*12) -> 18911.029 | L10: =OFFSET(Balance!L64,0,($O$1-1)*12) -> 18433.375 | M10: =OFFSET(Balance!M64,0,($O$1-1)*12) -> 17839.231 | N10: =OFFSET(Balance!N64,0,($O$1-1)*12) -> 17340.393 | O10: =IF(SUM(C10:N10)=0,"-",SUM(C10:N10)) -> 214666.244
B11: Turbina de gas | C11: =OFFSET(Balance!C65,0,($O$1-1)*12) -> 2043.285 | D11: =OFFSET(Balance!D65,0,($O$1-1)*12) -> 554.101 | E11: =OFFSET(Balance!E65,0,($O$1-1)*12) -> 0 | F11: =OFFSET(Balance!F65,0,($O$1-1)*12) -> 147.305 | G11: =OFFSET(Balance!G65,0,($O$1-1)*12) -> 121.071 | H11: =OFFSET(Balance!H65,0,($O$1-1)*12) -> 0 | I11: =OFFSET(Balance!I65,0,($O$1-1)*12) -> 0 | J11: =OFFSET(Balance!J65,0,($O$1-1)*12) -> 0 | K11: =OFFSET(Balance!K65,0,($O$1-1)*12) -> 0 | L11: =OFFSET(Balance!L65,0,($O$1-1)*12) -> 0 | M11: =OFFSET(Balance!M65,0,($O$1-1)*12) -> 0 | N11: =OFFSET(Balance!N65,0,($O$1-1)*12) -> 3.105 | O11: 2868.867
B12: Fuel + Gas | C12: =OFFSET(Balance!C66,0,($O$1-1)*12) -> 18878.716 | D12: =OFFSET(Balance!D66,0,($O$1-1)*12) -> 17482.47 | E12: =OFFSET(Balance!E66,0,($O$1-1)*12) -> 17444.607 | F12: =OFFSET(Balance!F66,0,($O$1-1)*12) -> 16381.382 | G12: =OFFSET(Balance!G66,0,($O$1-1)*12) -> 17442.006 | H12: =OFFSET(Balance!H66,0,($O$1-1)*12) -> 17763.089 | I12: =OFFSET(Balance!I66,0,($O$1-1)*12) -> 19394.423 | J12: =OFFSET(Balance!J66,0,($O$1-1)*12) -> 20221.285 | K12: =OFFSET(Balance!K66,0,($O$1-1)*12) -> 18911.029 | L12: =OFFSET(Balance!L66,0,($O$1-1)*12) -> 18433.375 | M12: =OFFSET(Balance!M66,0,($O$1-1)*12) -> 17839.231 | N12: =OFFSET(Balance!N66,0,($O$1-1)*12) -> 17343.498 | O12: =SUM(O10:O11) -> 217535.111
B13: Régimen ordinario | C13: =OFFSET(Balance!C67,0,($O$1-1)*12) -> 18878.716 | D13: =OFFSET(Balance!D67,0,($O$1-1)*12) -> 17482.47 | E13: =OFFSET(Balance!E67,0,($O$1-1)*12) -> 17444.607 | F13: =OFFSET(Balance!F67,0,($O$1-1)*12) -> 16381.382 | G13: =OFFSET(Balance!G67,0,($O$1-1)*12) -> 17442.006 | H13: =OFFSET(Balance!H67,0,($O$1-1)*12) -> 17763.089 | I13: =OFFSET(Balance!I67,0,($O$1-1)*12) -> 19394.423 | J13: =OFFSET(Balance!J67,0,($O$1-1)*12) -> 20221.285 | K13: =OFFSET(Balance!K67,0,($O$1-1)*12) -> 18911.029 | L13: =OFFSET(Balance!L67,0,($O$1-1)*12) -> 18433.375 | M13: =OFFSET(Balance!M67,0,($O$1-1)*12) -> 17839.231 | N13: =OFFSET(Balance!N67,0,($O$1-1)*12) -> 17343.498 | O13: =SUM(O12) -> 217535.111
B15: Generación | C15: =OFFSET(Balance!C68,0,($O$1-1)*12) -> 18878.716 | D15: =OFFSET(Balance!D68,0,($O$1-1)*12) -> 17482.47 | E15: =OFFSET(Balance!E68,0,($O$1-1)*12) -> 17444.607 | F15: =OFFSET(Balance!F68,0,($O$1-1)*12) -> 16381.382 | G15: =OFFSET(Balance!G68,0,($O$1-1)*12) -> 17442.006 | H15: =OFFSET(Balance!H68,0,($O$1-1)*12) -> 17763.089 | I15: =OFFSET(Balance!I68,0,($O$1-1)*12) -> 19394.423 | J15: =OFFSET(Balance!J68,0,($O$1-1)*12) -> 20221.285 | K15: =OFFSET(Balance!K68,0,($O$1-1)*12) -> 18911.029 | L15: =OFFSET(Balance!L68,0,($O$1-1)*12) -> 18433.375 | M15: =OFFSET(Balance!M68,0,($O$1-1)*12) -> 17839.231 | N15: =OFFSET(Balance!N68,0,($O$1-1)*12) -> 17343.498 | O15: =SUM(O13:O14) -> 217535.111
B16: Demanda transporte (b.c.) | C16: =OFFSET(Balance!C69,0,($O$1-1)*12) -> 18878.716 | D16: =OFFSET(Balance!D69,0,($O$1-1)*12) -> 17482.47 | E16: =OFFSET(Balance!E69,0,($O$1-1)*12) -> 17444.607 | F16: =OFFSET(Balance!F69,0,($O$1-1)*12) -> 16381.382 | G16: =OFFSET(Balance!G69,0,($O$1-1)*12) -> 17442.006 | H16: =OFFSET(Balance!H69,0,($O$1-1)*12) -> 17763.089 | I16: =OFFSET(Balance!I69,0,($O$1-1)*12) -> 19394.423 | J16: =OFFSET(Balance!J69,0,($O$1-1)*12) -> 20221.285 | K16: =OFFSET(Balance!K69,0,($O$1-1)*12) -> 18911.029 | L16: =OFFSET(Balance!L69,0,($O$1-1)*12) -> 18433.375 | M16: =OFFSET(Balance!M69,0,($O$1-1)*12) -> 17839.231 | N16: =OFFSET(Balance!N69,0,($O$1-1)*12) -> 17343.498 | O16: =O15 -> 217535.111
B17: (1) Asignación de unidades de producción según combustible principal.

Sheet Balance Ceuta anual
I1: 1
H4: Sistema eléctrico
H5: Horizonte temporal
H6: Periodo
C8: =OFFSET(Balance!C168,0,($I$1-1)*7) -> 2007 | D8: =OFFSET(Balance!D168,0,($I$1-1)*7) -> 2008 | E8: =OFFSET(Balance!E168,0,($I$1-1)*7) -> 2009 | F8: =OFFSET(Balance!F168,0,($I$1-1)*7) -> 2010 | G8: =OFFSET(Balance!G168,0,($I$1-1)*7) -> 2011 | H8: =OFFSET(Balance!H168,0,($I$1-1)*7) -> 2012 | I8: =OFFSET(Balance!I168,0,($I$1-1)*7) -> 2013
B10: Motores diesel | C10: =OFFSET(Balance!C169,0,($I$1-1)*7) -> 202644 | D10: =OFFSET(Balance!D169,0,($I$1-1)*7) -> 209671 | E10: =OFFSET(Balance!E169,0,($I$1-1)*7) -> 208316 | F10: =OFFSET(Balance!F169,0,($I$1-1)*7) -> 214666.244 | G10: =OFFSET(Balance!G169,0,($I$1-1)*7) -> - | H10: =OFFSET(Balance!H169,0,($I$1-1)*7) -> - | I10: =OFFSET(Balance!I169,0,($I$1-1)*7) -> -
B11: Turbina de gas | C11: =OFFSET(Balance!C170,0,($I$1-1)*7) -> 0 | D11: =OFFSET(Balance!D170,0,($I$1-1)*7) -> 0 | E11: =OFFSET(Balance!E170,0,($I$1-1)*7) -> 3253 | F11: =OFFSET(Balance!F170,0,($I$1-1)*7) -> 2868.867 | G11: =OFFSET(Balance!G170,0,($I$1-1)*7) -> - | H11: =OFFSET(Balance!H170,0,($I$1-1)*7) -> - | I11: =OFFSET(Balance!I170,0,($I$1-1)*7) -> -
B12: Fuel + Gas | C12: =OFFSET(Balance!C171,0,($I$1-1)*7) -> 202644 | D12: =OFFSET(Balance!D171,0,($I$1-1)*7) -> 209671 | E12: =OFFSET(Balance!E171,0,($I$1-1)*7) -> 211569 | F12: =OFFSET(Balance!F171,0,($I$1-1)*7) -> 217535.111 | G12: =OFFSET(Balance!G171,0,($I$1-1)*7) -> - | H12: =OFFSET(Balance!H171,0,($I$1-1)*7) -> - | I12: =OFFSET(Balance!I171,0,($I$1-1)*7) -> -
B13: Régimen ordinario | C13: =OFFSET(Balance!C172,0,($I$1-1)*7) -> 202644 | D13: =OFFSET(Balance!D172,0,($I$1-1)*7) -> 209671 | E13: =OFFSET(Balance!E172,0,($I$1-1)*7) -> 211569 | F13: =OFFSET(Balance!F172,0,($I$1-1)*7) -> 217535.111 | G13: =OFFSET(Balance!G172,0,($I$1-1)*7) -> - | H13: =OFFSET(Balance!H172,0,($I$1-1)*7) -> - | I13: =OFFSET(Balance!I172,0,($I$1-1)*7) -> -
B15: Generación | C15: =OFFSET(Balance!C173,0,($I$1-1)*7) -> 202644 | D15: =OFFSET(Balance!D173,0,($I$1-1)*7) -> 209671 | E15: =OFFSET(Balance!E173,0,($I$1-1)*7) -> 211569 | F15: =OFFSET(Balance!F173,0,($I$1-1)*7) -> 217535.111 | G15: =OFFSET(Balance!G173,0,($I$1-1)*7) -> - | H15: =OFFSET(Balance!H173,0,($I$1-1)*7) -> - | I15: =OFFSET(Balance!I173,0,($I$1-1)*7) -> -
B16: Demanda transporte (b.c.) | C16: =OFFSET(Balance!C174,0,($I$1-1)*7) -> 202644 | D16: =OFFSET(Balance!D174,0,($I$1-1)*7) -> 209671 | E16: =OFFSET(Balance!E174,0,($I$1-1)*7) -> 211569 | F16: =OFFSET(Balance!F174,0,($I$1-1)*7) -> 217535.111 | G16: =OFFSET(Balance!G174,0,($I$1-1)*7) -> - | H16: =OFFSET(Balance!H174,0,($I$1-1)*7) -> - | I16: =OFFSET(Balance!I174,0,($I$1-1)*7) -> -
B17: (1) Asignación de unidades de producción según combustible principal.

Sheet Balance Melilla mensual
O1: 4
M4: Sistema eléctrico
M5: Horizonte temporal
M6: Periodo
C8: Ene. | D8: Feb. | E8: Mar. | F8: Abr. | G8: May. | H8: Jun. | I8: Jul. | J8: Ago. | K8: Sep. | L8: Oct. | M8: Nov. | N8: Dic. | O8: =OFFSET(Año!C19,($O$1-1),0) -> 2010
B10: Motores diesel | C10: =OFFSET(Balance!C72,0,($O$1-1)*12) -> 16952.252 | D10: =OFFSET(Balance!D72,0,($O$1-1)*12) -> 15255.491 | E10: =OFFSET(Balance!E72,0,($O$1-1)*12) -> 16387.782 | F10: =OFFSET(Balance!F72,0,($O$1-1)*12) -> 15007.841 | G10: =OFFSET(Balance!G72,0,($O$1-1)*12) -> 15685.419 | H10: =OFFSET(Balance!H72,0,($O$1-1)*12) -> 16778.192 | I10: =OFFSET(Balance!I72,0,($O$1-1)*12) -> 18965.345 | J10: =OFFSET(Balance!J72,0,($O$1-1)*12) -> 20588.25 | K10: =OFFSET(Balance!K72,0,($O$1-1)*12) -> 17840.764 | L10: =OFFSET(Balance!L72,0,($O$1-1)*12) -> 16821.623 | M10: =OFFSET(Balance!M72,0,($O$1-1)*12) -> 16795.424 | N10: =OFFSET(Balance!N72,0,($O$1-1)*12) -> 17639.588 | O10: =IF(SUM(C10:N10)=0,"-",SUM(C10:N10)) -> 204717.971
B11: Turbina de gas | C11: =OFFSET(Balance!C73,0,($O$1-1)*12) -> 16.721 | D11: =OFFSET(Balance!D73,0,($O$1-1)*12) -> 21.807 | E11: =OFFSET(Balance!E73,0,($O$1-1)*12) -> 3.251 | F11: =OFFSET(Balance!F73,0,($O$1-1)*12) -> 24.138 | G11: =OFFSET(Balance!G73,0,($O$1-1)*12) -> 34.966 | H11: =OFFSET(Balance!H73,0,($O$1-1)*12) -> 92.513 | I11: =OFFSET(Balance!I73,0,($O$1-1)*12) -> 106.417 | J11: =OFFSET(Balance!J73,0,($O$1-1)*12) -> 34.25 | K11: =OFFSET(Balance!K73,0,($O$1-1)*12) -> 37.729 | L11: =OFFSET(Balance!L73,0,($O$1-1)*12) -> 33.689 | M11: =OFFSET(Balance!M73,0,($O$1-1)*12) -> 53.723 | N11: =OFFSET(Balance!N73,0,($O$1-1)*12) -> 39.252 | O11: =IF(SUM(C11:N11)=0,"-",SUM(C11:N11)) -> 498.456
B12: Fuel + Gas | C12: =OFFSET(Balance!C74,0,($O$1-1)*12) -> 16968.973 | D12: =OFFSET(Balance!D74,0,($O$1-1)*12) -> 15277.298 | E12: =OFFSET(Balance!E74,0,($O$1-1)*12) -> 16391.033 | F12: =OFFSET(Balance!F74,0,($O$1-1)*12) -> 15031.979 | G12: =OFFSET(Balance!G74,0,($O$1-1)*12) -> 15720.385 | H12: =OFFSET(Balance!H74,0,($O$1-1)*12) -> 16870.705 | I12: =OFFSET(Balance!I74,0,($O$1-1)*12) -> 19071.762 | J12: =OFFSET(Balance!J74,0,($O$1-1)*12) -> 20622.5 | K12: =OFFSET(Balance!K74,0,($O$1-1)*12) -> 17878.493 | L12: =OFFSET(Balance!L74,0,($O$1-1)*12) -> 16855.312 | M12: =OFFSET(Balance!M74,0,($O$1-1)*12) -> 16849.147 | N12: =OFFSET(Balance!N74,0,($O$1-1)*12) -> 17678.84 | O12: =SUM(O10:O11) -> 205216.427
B13: Régimen ordinario | C13: =OFFSET(Balance!C75,0,($O$1-1)*12) -> 16968.973 | D13: =OFFSET(Balance!D75,0,($O$1-1)*12) -> 15277.298 | E13: =OFFSET(Balance!E75,0,($O$1-1)*12) -> 16391.033 | F13: =OFFSET(Balance!F75,0,($O$1-1)*12) -> 15031.979 | G13: =OFFSET(Balance!G75,0,($O$1-1)*12) -> 15720.385 | H13: =OFFSET(Balance!H75,0,($O$1-1)*12) -> 16870.705 | I13: =OFFSET(Balance!I75,0,($O$1-1)*12) -> 19071.762 | J13: =OFFSET(Balance!J75,0,($O$1-1)*12) -> 20622.5 | K13: =OFFSET(Balance!K75,0,($O$1-1)*12) -> 17878.493 | L13: =OFFSET(Balance!L75,0,($O$1-1)*12) -> 16855.312 | M13: =OFFSET(Balance!M75,0,($O$1-1)*12) -> 16849.147 | N13: =OFFSET(Balance!N75,0,($O$1-1)*12) -> 17678.84 | O13: =SUM(O12) -> 205216.427
B15: Solar fotovoltaica | C15: =OFFSET(Balance!C76,0,($O$1-1)*12) -> 1 | D15: =OFFSET(Balance!D76,0,($O$1-1)*12) -> 5 | E15: =OFFSET(Balance!E76,0,($O$1-1)*12) -> 6 | F15: =OFFSET(Balance!F76,0,($O$1-1)*12) -> 7 | G15: =OFFSET(Balance!G76,0,($O$1-1)*12) -> 9 | H15: =OFFSET(Balance!H76,0,($O$1-1)*12) -> 1 | I15: =OFFSET(Balance!I76,0,($O$1-1)*12) -> 8 | J15: =OFFSET(Balance!J76,0,($O$1-1)*12) -> 9 | K15: =OFFSET(Balance!K76,0,($O$1-1)*12) -> 7 | L15: =OFFSET(Balance!L76,0,($O$1-1)*12) -> 6 | M15: =OFFSET(Balance!M76,0,($O$1-1)*12) -> 5 | N15: =OFFSET(Balance!N76,0,($O$1-1)*12) -> 3 | O15: =IF(SUM(C15:N15)=0,"-",SUM(C15:N15)) -> 67
B16: Térmica no renovable | C16: =OFFSET(Balance!C77,0,($O$1-1)*12) -> 699 | D16: =OFFSET(Balance!D77,0,($O$1-1)*12) -> 606 | E16: =OFFSET(Balance!E77,0,($O$1-1)*12) -> 781 | F16: =OFFSET(Balance!F77,0,($O$1-1)*12) -> 808 | G16: =OFFSET(Balance!G77,0,($O$1-1)*12) -> 921 | H16: =OFFSET(Balance!H77,0,($O$1-1)*12) -> 710 | I16: =OFFSET(Balance!I77,0,($O$1-1)*12) -> 772 | J16: =OFFSET(Balance!J77,0,($O$1-1)*12) -> 797 | K16: =OFFSET(Balance!K77,0,($O$1-1)*12) -> 897 | L16: =OFFSET(Balance!L77,0,($O$1-1)*12) -> 486 | M16: =OFFSET(Balance!M77,0,($O$1-1)*12) -> 0 | N16: =OFFSET(Balance!N77,0,($O$1-1)*12) -> 551 | O16: =IF(SUM(C16:N16)=0,"-",SUM(C16:N16)) -> 8028
B17: Residuos no renovables | C17: =OFFSET(Balance!C78,0,($O$1-1)*12) -> - | D17: =OFFSET(Balance!D78,0,($O$1-1)*12) -> - | E17: =OFFSET(Balance!E78,0,($O$1-1)*12) -> - | F17: =OFFSET(Balance!F78,0,($O$1-1)*12) -> - | G17: =OFFSET(Balance!G78,0,($O$1-1)*12) -> - | H17: =OFFSET(Balance!H78,0,($O$1-1)*12) -> - | I17: =OFFSET(Balance!I78,0,($O$1-1)*12) -> - | J17: =OFFSET(Balance!J78,0,($O$1-1)*12) -> - | K17: =OFFSET(Balance!K78,0,($O$1-1)*12) -> - | L17: =OFFSET(Balance!L78,0,($O$1-1)*12) -> - | M17: =OFFSET(Balance!M78,0,($O$1-1)*12) -> - | N17: =OFFSET(Balance!N78,0,($O$1-1)*12) -> - | O17: =IF(SUM(C17:N17)=0,"-",SUM(C17:N17)) -> -
B18: Residuos renovables | C18: =OFFSET(Balance!C79,0,($O$1-1)*12) -> - | D18: =OFFSET(Balance!D79,0,($O$1-1)*12) -> - | E18: =OFFSET(Balance!E79,0,($O$1-1)*12) -> - | F18: =OFFSET(Balance!F79,0,($O$1-1)*12) -> - | G18: =OFFSET(Balance!G79,0,($O$1-1)*12) -> - | H18: =OFFSET(Balance!H79,0,($O$1-1)*12) -> - | I18: =OFFSET(Balance!I79,0,($O$1-1)*12) -> - | J18: =OFFSET(Balance!J79,0,($O$1-1)*12) -> - | K18: =OFFSET(Balance!K79,0,($O$1-1)*12) -> - | L18: =OFFSET(Balance!L79,0,($O$1-1)*12) -> - | M18: =OFFSET(Balance!M79,0,($O$1-1)*12) -> - | N18: =OFFSET(Balance!N79,0,($O$1-1)*12) -> - | O18: =IF(SUM(C18:N18)=0,"-",SUM(C18:N18)) -> -
B19: Régimen especial | C19: =OFFSET(Balance!C80,0,($O$1-1)*12) -> 700 | D19: =OFFSET(Balance!D80,0,($O$1-1)*12) -> 611 | E19: =OFFSET(Balance!E80,0,($O$1-1)*12) -> 787 | F19: =OFFSET(Balance!F80,0,($O$1-1)*12) -> 815 | G19: =OFFSET(Balance!G80,0,($O$1-1)*12) -> 930 | H19: =OFFSET(Balance!H80,0,($O$1-1)*12) -> 711 | I19: =OFFSET(Balance!I80,0,($O$1-1)*12) -> 780 | J19: =OFFSET(Balance!J80,0,($O$1-1)*12) -> 806 | K19: =OFFSET(Balance!K80,0,($O$1-1)*12) -> 904 | L19: =OFFSET(Balance!L80,0,($O$1-1)*12) -> 492 | M19: =OFFSET(Balance!M80,0,($O$1-1)*12) -> 5 | N19: =OFFSET(Balance!N80,0,($O$1-1)*12) -> 554 | O19: =SUM(O15:O18) -> 8095
B20: Generación | C20: =OFFSET(Balance!C81,0,($O$1-1)*12) -> 17668.973 | D20: =OFFSET(Balance!D81,0,($O$1-1)*12) -> 15888.298 | E20: =OFFSET(Balance!E81,0,($O$1-1)*12) -> 17178.033 | F20: =OFFSET(Balance!F81,0,($O$1-1)*12) -> 15846.979 | G20: =OFFSET(Balance!G81,0,($O$1-1)*12) -> 16650.385 | H20: =OFFSET(Balance!H81,0,($O$1-1)*12) -> 17581.705 | I20: =OFFSET(Balance!I81,0,($O$1-1)*12) -> 19851.762 | J20: =OFFSET(Balance!J81,0,($O$1-1)*12) -> 21428.5 | K20: =OFFSET(Balance!K81,0,($O$1-1)*12) -> 18782.493 | L20: =OFFSET(Balance!L81,0,($O$1-1)*12) -> 17347.312 | M20: =OFFSET(Balance!M81,0,($O$1-1)*12) -> 16854.147 | N20: =OFFSET(Balance!N81,0,($O$1-1)*12) -> 18232.84 | O20: =SUM(O13:O14,O19) -> 213311.427
B21: Demanda transporte (b.c.) | C21: =OFFSET(Balance!C82,0,($O$1-1)*12) -> 17668.973 | D21: =OFFSET(Balance!D82,0,($O$1-1)*12) -> 15888.298 | E21: =OFFSET(Balance!E82,0,($O$1-1)*12) -> 17178.033 | F21: =OFFSET(Balance!F82,0,($O$1-1)*12) -> 15846.979 | G21: =OFFSET(Balance!G82,0,($O$1-1)*12) -> 16650.385 | H21: =OFFSET(Balance!H82,0,($O$1-1)*12) -> 17581.705 | I21: =OFFSET(Balance!I82,0,($O$1-1)*12) -> 19851.762 | J21: =OFFSET(Balance!J82,0,($O$1-1)*12) -> 21428.5 | K21: =OFFSET(Balance!K82,0,($O$1-1)*12) -> 18782.493 | L21: =OFFSET(Balance!L82,0,($O$1-1)*12) -> 17347.312 | M21: =OFFSET(Balance!M82,0,($O$1-1)*12) -> 16854.147 | N21: =OFFSET(Balance!N82,0,($O$1-1)*12) -> 18232.84 | O21: =O20 -> 213311.427
B22: (1) Asignación de unidades de producción según combustible principal.

Sheet Balance Melilla anual
I1: 1
H4: Sistema eléctrico
H5: Horizonte temporal
H6: Periodo
C8: =OFFSET(Balance!C176,0,($I$1-1)*7) -> 2007 | D8: =OFFSET(Balance!D176,0,($I$1-1)*7) -> 2008 | E8: =OFFSET(Balance!E176,0,($I$1-1)*7) -> 2009 | F8: =OFFSET(Balance!F176,0,($I$1-1)*7) -> 2010 | G8: =OFFSET(Balance!G176,0,($I$1-1)*7) -> 2011 | H8: =OFFSET(Balance!H176,0,($I$1-1)*7) -> 2012 | I8: =OFFSET(Balance!I176,0,($I$1-1)*7) -> 2013
B10: Motores diesel | C10: =OFFSET(Balance!C177,0,($I$1-1)*7) -> 181867.74 | D10: =OFFSET(Balance!D177,0,($I$1-1)*7) -> 193125 | E10: =OFFSET(Balance!E177,0,($I$1-1)*7) -> 197553 | F10: =OFFSET(Balance!F177,0,($I$1-1)*7) -> 204717.971 | G10: =OFFSET(Balance!G177,0,($I$1-1)*7) -> - | H10: =OFFSET(Balance!H177,0,($I$1-1)*7) -> - | I10: =OFFSET(Balance!I177,0,($I$1-1)*7) -> -
B11: Turbina de gas | C11: =OFFSET(Balance!C178,0,($I$1-1)*7) -> 2412.26 | D11: =OFFSET(Balance!D178,0,($I$1-1)*7) -> 3081 | E11: =OFFSET(Balance!E178,0,($I$1-1)*7) -> 545 | F11: =OFFSET(Balance!F178,0,($I$1-1)*7) -> 498.456 | G11: =OFFSET(Balance!G178,0,($I$1-1)*7) -> - | H11: =OFFSET(Balance!H178,0,($I$1-1)*7) -> - | I11: =OFFSET(Balance!I178,0,($I$1-1)*7) -> -
B12: Fuel + Gas | C12: =OFFSET(Balance!C179,0,($I$1-1)*7) -> 184280 | D12: =OFFSET(Balance!D179,0,($I$1-1)*7) -> 196206 | E12: =OFFSET(Balance!E179,0,($I$1-1)*7) -> 198098 | F12: =OFFSET(Balance!F179,0,($I$1-1)*7) -> 205216.427 | G12: =OFFSET(Balance!G179,0,($I$1-1)*7) -> - | H12: =OFFSET(Balance!H179,0,($I$1-1)*7) -> - | I12: =OFFSET(Balance!I179,0,($I$1-1)*7) -> -
B13: Régimen ordinario | C13: =OFFSET(Balance!C180,0,($I$1-1)*7) -> 184280 | D13: =OFFSET(Balance!D180,0,($I$1-1)*7) -> 196206 | E13: =OFFSET(Balance!E180,0,($I$1-1)*7) -> 198098 | F13: =OFFSET(Balance!F180,0,($I$1-1)*7) -> 205216.427 | G13: =OFFSET(Balance!G180,0,($I$1-1)*7) -> - | H13: =OFFSET(Balance!H180,0,($I$1-1)*7) -> - | I13: =OFFSET(Balance!I180,0,($I$1-1)*7) -> -
B15: Solar fotovoltaica | C15: =OFFSET(Balance!C181,0,($I$1-1)*7) -> 0 | D15: =OFFSET(Balance!D181,0,($I$1-1)*7) -> 6 | E15: =OFFSET(Balance!E181,0,($I$1-1)*7) -> 122 | F15: =OFFSET(Balance!F181,0,($I$1-1)*7) -> 67 | G15: =OFFSET(Balance!G181,0,($I$1-1)*7) -> - | H15: =OFFSET(Balance!H181,0,($I$1-1)*7) -> - | I15: =OFFSET(Balance!I181,0,($I$1-1)*7) -> -
B16: Térmica no renovable (2) | C16: =OFFSET(Balance!C182,0,($I$1-1)*7) -> 8740 | D16: =OFFSET(Balance!D182,0,($I$1-1)*7) -> 4842 | E16: =OFFSET(Balance!E182,0,($I$1-1)*7) -> 7735 | F16: =OFFSET(Balance!F182,0,($I$1-1)*7) -> 8028 | G16: =OFFSET(Balance!G182,0,($I$1-1)*7) -> - | H16: =OFFSET(Balance!H182,0,($I$1-1)*7) -> - | I16: =OFFSET(Balance!I182,0,($I$1-1)*7) -> -
B17: Residuos no renovables | C17: =OFFSET(Balance!C183,0,($I$1-1)*7) -> - | D17: =OFFSET(Balance!D183,0,($I$1-1)*7) -> - | E17: =OFFSET(Balance!E183,0,($I$1-1)*7) -> - | F17: =OFFSET(Balance!F183,0,($I$1-1)*7) -> - | G17: =OFFSET(Balance!G183,0,($I$1-1)*7) -> - | H17: =OFFSET(Balance!H183,0,($I$1-1)*7) -> - | I17: =OFFSET(Balance!I183,0,($I$1-1)*7) -> -
B18: Residuos renovables | C18: =OFFSET(Balance!C184,0,($I$1-1)*7) -> - | D18: =OFFSET(Balance!D184,0,($I$1-1)*7) -> - | E18: =OFFSET(Balance!E184,0,($I$1-1)*7) -> - | F18: =OFFSET(Balance!F184,0,($I$1-1)*7) -> - | G18: =OFFSET(Balance!G184,0,($I$1-1)*7) -> - | H18: =OFFSET(Balance!H184,0,($I$1-1)*7) -> - | I18: =OFFSET(Balance!I184,0,($I$1-1)*7) -> -
B19: Régimen especial | C19: =OFFSET(Balance!C185,0,($I$1-1)*7) -> 8740 | D19: =OFFSET(Balance!D185,0,($I$1-1)*7) -> 4848 | E19: =OFFSET(Balance!E185,0,($I$1-1)*7) -> 7857 | F19: =OFFSET(Balance!F185,0,($I$1-1)*7) -> 8095 | G19: =OFFSET(Balance!G185,0,($I$1-1)*7) -> - | H19: =OFFSET(Balance!H185,0,($I$1-1)*7) -> - | I19: =OFFSET(Balance!I185,0,($I$1-1)*7) -> -
B20: Generación | C20: =OFFSET(Balance!C186,0,($I$1-1)*7) -> 193020 | D20: =OFFSET(Balance!D186,0,($I$1-1)*7) -> 201054 | E20: =OFFSET(Balance!E186,0,($I$1-1)*7) -> 205955 | F20: =OFFSET(Balance!F186,0,($I$1-1)*7) -> 213311.427 | G20: =OFFSET(Balance!G186,0,($I$1-1)*7) -> - | H20: =OFFSET(Balance!H186,0,($I$1-1)*7) -> - | I20: =OFFSET(Balance!I186,0,($I$1-1)*7) -> -
B21: Demanda transporte (b.c.) | C21: =OFFSET(Balance!C187,0,($I$1-1)*7) -> 193020 | D21: =OFFSET(Balance!D187,0,($I$1-1)*7) -> 201054 | E21: =OFFSET(Balance!E187,0,($I$1-1)*7) -> 205955 | F21: =OFFSET(Balance!F187,0,($I$1-1)*7) -> 213311.427 | G21: =OFFSET(Balance!G187,0,($I$1-1)*7) -> - | H21: =OFFSET(Balance!H187,0,($I$1-1)*7) -> - | I21: =OFFSET(Balance!I187,0,($I$1-1)*7) -> -
B22: (1) Asignación de unidades de producción según combustible principal.
B23: (2) Hasta 2010 incluye residuos.

Sheet Balance (hidden)
B2: Balance eléctrico mensual peninsular (GWh) | C2: 1990-01-01 | D2: 1990-02-01 | E2: 1990-03-01 | F2: 1990-04-01 | G2: 1990-05-01 | H2: 1990-06-01 | I2: 1990-07-01 | J2: 1990-08-01 | K2: 1990-09-01 | L2: 1990-10-01 | M2: 1990-11-01 | N2: 1990-12-01 | O2: 1991-01-01 | P2: 1991-02-01 | Q2: 1991-03-01 | R2: 1991-04-01 | S2: 1991-05-01 | T2: 1991-06-01 | U2: 1991-07-01 | V2: 1991-08-01 | W2: 1991-09-01 | X2: 1991-10-01 | Y2: 1991-11-01 | Z2: 1991-12-01 | AA2: 1992-01-01 | AB2: 1992-02-01 | AC2: 1992-03-01 | AD2: 1992-04-01 | AE2: 1992-05-01 | AF2: 1992-06-01 | AG2: 1992-07-01 | AH2: 1992-08-01 | AI2: 1992-09-01 | AJ2: 1992-10-01 | AK2: 1992-11-01 | AL2: 1992-12-01 | AM2: 1993-01-01 | AN2: 1993-02-01 | AO2: 1993-03-01 | AP2: 1993-04-01 | AQ2: 1993-05-01 | AR2: 1993-06-01 | AS2: 1993-07-01 | AT2: 1993-08-01 | AU2: 1993-09-01 | AV2: 1993-10-01 | AW2: 1993-11-01 | AX2: 1993-12-01 | AY2: 1994-01-01 | AZ2: 1994-02-01 | BA2: 1994-03-01 | BB2: 1994-04-01 | BC2: 1994-05-01 | BD2: 1994-06-01 | BE2: 1994-07-01 | BF2: 1994-08-01 | BG2: 1994-09-01 | BH2: 1994-10-01 | BI2: 1994-11-01 | BJ2: 1994-12-01 | BK2: 1995-01-01 | BL2: 1995-02-01 | BM2: 1995-03-01 | BN2: 1995-04-01 | BO2: 1995-05-01 | BP2: 1995-06-01 | BQ2: 1995-07-01 | BR2: 1995-08-01 | BS2: 1995-09-01 | BT2: 1995-10-01 | BU2: 1995-11-01 | BV2: 1995-12-01 | BW2: 1996-01-01 | BX2: 1996-02-01 | BY2: 1996-03-01 | BZ2: 1996-04-01 | CA2: 1996-05-01 | CB2: 1996-06-01 | CC2: 1996-07-01 | CD2: 1996-08-01 | CE2: 1996-09-01 | CF2: 1996-10-01 | CG2: 1996-11-01 | CH2: 1996-12-01 | CI2: 1997-01-01 | CJ2: 1997-02-01 | CK2: 1997-03-01 | CL2: 1997-04-01 | CM2: 1997-05-01 | CN2: 1997-06-01 | CO2: 1997-07-01 | CP2: 1997-08-01 | CQ2: 1997-09-01 | CR2: 1997-10-01 | CS2: 1997-11-01 | CT2: 1997-12-01 | CU2: 1998-01-01 | CV2: 1998-02-01 | CW2: 1998-03-01 | CX2: 1998-04-01 | CY2: 1998-05-01 | CZ2: 1998-06-01 | DA2: 1998-07-01 | DB2: 1998-08-01 | DC2: 1998-09-01 | DD2: 1998-10-01 | DE2: 1998-11-01 | DF2: 1998-12-01 | DG2: 1999-01-01 | DH2: 1999-02-01 | DI2: 1999-03-01 | DJ2: 1999-04-01 | DK2: 1999-05-01 | DL2: 1999-06-01 | DM2: 1999-07-01 | DN2: 1999-08-01 | DO2: 1999-09-01 | DP2: 1999-10-01 | DQ2: 1999-11-01 | DR2: 1999-12-01 | DS2: 2000-01-01 | DT2: 2000-02-01 | DU2: 2000-03-01 | DV2: 2000-04-01 | DW2: 2000-05-01 | DX2: 2000-06-01 | DY2: 2000-07-01 | DZ2: 2000-08-01 | EA2: 2000-09-01 | EB2: 2000-10-01 | EC2: 2000-11-01 | ED2: 2000-12-01 | EE2: 2001-01-01 | EF2: 2001-02-01 | EG2: 2001-03-01 | EH2: 2001-04-01 | EI2: 2001-05-01 | EJ2: 2001-06-01 | EK2: 2001-07-01 | EL2: 2001-08-01 | EM2: 2001-09-01 | EN2: 2001-10-01 | EO2: 2001-11-01 | EP2: 2001-12-01 | EQ2: 2002-01-01 | ER2: 2002-02-01 | ES2: 2002-03-01 | ET2: 2002-04-01 | EU2: 2002-05-01 | EV2: 2002-06-01 | EW2: 2002-07-01 | EX2: 2002-08-01 | EY2: 2002-09-01 | EZ2: 2002-10-01 | FA2: 2002-11-01 | FB2: 2002-12-01 | FC2: 2003-01-01 | FD2: 2003-02-01 | FE2: 2003-03-01 | FF2: 2003-04-01 | FG2: 2003-05-01 | FH2: 2003-06-01 | FI2: 2003-07-01 | FJ2: 2003-08-01 | FK2: 2003-09-01 | FL2: 2003-10-01 | FM2: 2003-11-01 | FN2: 2003-12-01 | FO2: 2004-01-01 | FP2: 2004-02-01 | FQ2: 2004-03-01 | FR2: 2004-04-01 | FS2: 2004-05-01 | FT2: 2004-06-01 | FU2: 2004-07-01 | FV2: 2004-08-01 | FW2: 2004-09-01 | FX2: 2004-10-01 | FY2: 2004-11-01 | FZ2: 2004-12-01 | GA2: 2005-01-01 | GB2: 2005-02-01 | GC2: 2005-03-01 | GD2: 2005-04-01 | GE2: 2005-05-01 | GF2: 2005-06-01 | GG2: 2005-07-01 | GH2: 2005-08-01 | GI2: 2005-09-01 | GJ2: 2005-10-01 | GK2: 2005-11-01 | GL2: 2005-12-01 | GM2: 2006-01-01 | GN2: 2006-02-01 | GO2: 2006-03-01 | GP2: 2006-04-01 | GQ2: 2006-05-01 | GR2: 2006-06-01 | GS2: 2006-07-01 | GT2: 2006-08-01 | GU2: 2006-09-01 | GV2: 2006-10-01 | GW2: 2006-11-01 | GX2: 2006-12-01 | GY2: 2007-01-01 | GZ2: 2007-02-01 | HA2: 2007-03-01 | HB2: 2007-04-01 | HC2: 2007-05-01 | HD2: 2007-06-01 | HE2: 2007-07-01 | HF2: 2007-08-01 | HG2: 2007-09-01 | HH2: 2007-10-01 | HI2: 2007-11-01 | HJ2: 2007-12-01 | HK2: 2008-01-01 | HL2: 2008-02-01 | HM2: 2008-03-01 | HN2: 2008-04-01 | HO2: 2008-05-01 | HP2: 2008-06-01 | HQ2: 2008-07-01 | HR2: 2008-08-01 | HS2: 2008-09-01 | HT2: 2008-10-01 | HU2: 2008-11-01 | HV2: 2008-12-01 | HW2: 2009-01-01 | HX2: 2009-02-01 | HY2: 2009-03-01 | HZ2: 2009-04-01 | IA2: 2009-05-01 | IB2: 2009-06-01 | IC2: 2009-07-01 | ID2: 2009-08-01 | IE2: 2009-09-01 | IF2: 2009-10-01 | IG2: 2009-11-01 | IH2: 2009-12-01 | II2: 2010-01-01 | IJ2: 2010-02-01 | IK2: 2010-03-01 | IL2: 2010-04-01 | IM2: 2010-05-01 | IN2: 2010-06-01 | IO2: 2010-07-01 | IP2: 2010-08-01 | IQ2: 2010-09-01 | IR2: 2010-10-01 | IS2: 2010-11-01 | IT2: 2010-12-01
B3: Hidráulica | C3: 3812.6837 | D3: 3241.3314 | E3: 2387.7997 | F3: 1664.4925 | G3: 1752.9018 | H3: 1739.8822 | I3: 1544.0682 | J3: 1169.8984 | K3: 1178.3229 | L3: 1337.0603 | M3: 1868.1971 | N3: 1844.1224 | O3: 2467.4704 | P3: 1919.5629 | Q3: 3614.2048 | R3: 3316.7103 | S3: 2694.8297 | T3: 1973.8522 | U3: 1620.9676 | V3: 1055.456 | W3: 1050.6569 | X3: 1456.6257 | Y3: 1844.0771 | Z3: 1713.5203 | AA3: 1250.8666 | AB3: 723.7795 | AC3: 698.13 | AD3: 1390.8229 | AE3: 1287.4845 | AF3: 1384.7242 | AG3: 1490.8639 | AH3: 1021.2474 | AI3: 1103.2182 | AJ3: 1653.1741 | AK3: 1965.1257 | AL3: 2587.4305 | AM3: 1964.7223 | AN3: 1382.2487 | AO3: 1283.8342 | AP3: 971.6232 | AQ3: 1629.2967 | AR3: 1998.1276 | AS3: 1732.0918 | AT3: 1141.0419 | AU3: 1098.4952 | AV3: 2604.2501 | AW3: 3227.9827 | AX3: 2480.7753 | AY3: 3506.1818 | AZ3: 2871.0269 | BA3: 2559.2107 | BB3: 2180.1567 | BC3: 2397.3125 | BD3: 2261.01 | BE3: 1724.8936 | BF3: 1239.8088 | BG3: 1153.1582 | BH3: 1376.5239 | BI3: 2086.2166 | BJ3: 1653.166 | BK3: 2531.9199 | BL3: 2392.7034 | BM3: 2922.0562 | BN3: 1736.6887 | BO3: 1575.2419 | BP3: 1613.2683 | BQ3: 1506.0025 | BR3: 986.9473 | BS3: 810.2377 | BT3: 876.0217 | BU3: 1104.649 | BV3: 2183.3512 | BW3: 5366.4255 | BX3: 5212.2742 | BY3: 3299.6811 | BZ3: 3427.3589 | CA3: 3565.8544 | CB3: 2717.4453 | CC3: 2133.1412 | CD3: 1426.6442 | CE3: 1653.9289 | CF3: 1642.9637 | CG3: 2028.1707 | CH3: 3850.8693 | CI3: 5243.6578 | CJ3: 3212.0474 | CK3: 2463.6686 | CL3: 2149.8221 | CM3: 2047.0708 | CN3: 2156.1441 | CO3: 1862.2452 | CP3: 1573.6127 | CQ3: 1466.7003 | CR3: 1361.9638 | CS3: 3192.0373 | CT3: 4952.2926 | CU3: 5470.6295 | CV3: 3738.6074 | CW3: 2434.1593 | CX3: 3142.3083 | CY3: 3702.8203 | CZ3: 3175.0884 | DA3: 2392.2329 | DB3: 1887.2715 | DC3: 1699.3458 | DD3: 1791.5409 | DE3: 1342.3168 | DF3: 1079.2141 | DG3: 1111.8596 | DH3: 1083.0403 | DI3: 1671.6503 | DJ3: 1854.1497 | DK3: 2506.3908 | DL3: 2240.7728 | DM3: 1763.4634 | DN3: 1280.9924 | DO3: 1341.8103 | DP3: 1474.7902 | DQ3: 2480.3628 | DR3: 2488.0994 | DS3: 2258.7286 | DT3: 1356.0572 | DU3: 1300.8536 | DV3: 1804.3186 | DW3: 2863.7578 | DX3: 2010.3655 | DY3: 1492.7416 | DZ3: 1557.3933 | EA3: 1681.1606 | EB3: 1511.4157 | EC3: 2137.1221 | ED3: 4083.9202 | EE3: 5842.8609 | EF3: 5371.9687 | EG3: 6098.7381 | EH3: 3956.8407 | EI3: 2967.3583 | EJ3: 2227.5889 | EK3: 1785.2493 | EL3: 1721.3026 | EM3: 1319.4317 | EN3: 1577.8277 | EO3: 1812.4448 | EP3: 1422.9655 | EQ3: 1092.5866 | ER3: 918.6936 | ES3: 1561.1817 | ET3: 1532.7879 | EU3: 1572.4141 | EV3: 1595.1734 | EW3: 1135.2789 | EX3: 844.2856 | EY3: 837.7712 | EZ3: 937.8151 | FA3: 1607.2706 | FB3: 3690.6139 | FC3: 5077.4655 | FD3: 3962.1759 | FE3: 4042.184 | FF3: 3389.938 | FG3: 3195.2093 | FH3: 2009.3285 | FI3: 1705.3562 | FJ3: 1257.8617 | FK3: 1451.1365 | FL3: 1701.9633 | FM3: 2809.7932 | FN3: 4405.9511 | FO3: 3194.3601 | FP3: 2970.821 | FQ3: 2675.6499 | FR3: 2489.1505 | FS3: 2791.3154 | FT3: 2347.6551 | FU3: 1776.8766 | FV3: 1499.0746 | FW3: 1336.6138 | FX3: 1499.4952 | FY3: 2039.2545 | FZ3: 1500.1924 | GA3: 1212.913 | GB3: 1247.2604 | GC3: 1424.3981 | GD3: 1633.995 | GE3: 1748.5584 | GF3: 1526.0681 | GG3: 1063.7019 | GH3: 938.55 | GI3: 667.8684 | GJ3: 638.9878 | GK3: 1022.1013 | GL3: 1306.2117 | GM3: 1233.9693 | GN3: 869.5377 | GO3: 2443.6333 | GP3: 2221.2243 | GQ3: 1775.2779 | GR3: 1255.5403 | GS3: 1280.5138 | GT3: 855.7432 | GU3: 952.0689 | GV3: 1324.1279 | GW3: 2588.5226 | GX3: 4426.2257 | GY3: 1920.0478 | GZ3: 2539.7347 | HA3: 3412.3604 | HB3: 2337.7021 | HC3: 2328.2846 | HD3: 1896.4942 | HE3: 2152.4523 | HF3: 1514.2806 | HG3: 1189.9215 | HH3: 1525.5493 | HI3: 1152.0925 | HJ3: 1010.0581 | HK3: 1052.9718 | HL3: 724.4335 | HM3: 774.5612 | HN3: 2158.8984 | HO3: 2756.8809 | HP3: 2593.9365 | HQ3: 1801.4576 | HR3: 1275.0206 | HS3: 1101.1438 | HT3: 904.6395 | HU3: 1192.6748 | HV3: 1959.02 | HW3: 1753.4291 | HX3: 2852.5815 | HY3: 2234.3776 | HZ3: 1704.1587 | IA3: 2008.6724 | IB3: 1659.6542 | IC3: 1393.0594 | ID3: 1167.1748 | IE3: 750.3409 | IF3: 1028.1299 | IG3: 1560.9613 | IH3: 2619.7629 | II3: 4414.276113 | IJ3: 3450.725562 | IK3: 5031.778044 | IL3: 4029.856131 | IM3: 3174.539048 | IN3: 2946.088153 | IO3: 2437.169407 | IP3: 1695.081813 | IQ3: 1249.407344 | IR3: 1282.613029 | IS3: 2043.858068 | IT3: 3254.061477
B4: Turbinación bombeo | C4: 161.4753 | D4: 85.6016 | E4: 10.0023 | F4: 19.7015 | G4: 30.4402 | H4: 9.1798 | I4: 15.4728 | J4: 34.9846 | K4: 112.4991 | L4: 108.8507 | M4: 31.1549 | N4: 108.1276 | O4: 188.2356 | P4: 152.8681 | Q4: 120.1802 | R4: 8.5407 | S4: 10.9403 | T4: 28.9688 | U4: 40.3984 | V4: 50.463 | W4: 78.9411 | X4: 56.6153 | Y4: 131.9689 | Z4: 134.7927 | AA4: 183.3944 | AB4: 101.0205 | AC4: 119.308 | AD4: 208.3151 | AE4: 139.0305 | AF4: 172.7978 | AG4: 194.1751 | AH4: 192.3446 | AI4: 192.0898 | AJ4: 204.5099 | AK4: 127.2243 | AL4: 119.2835 | AM4: 97.1187 | AN4: 78.8823 | AO4: 132.2958 | AP4: 141.7808 | AQ4: 158.9483 | AR4: 94.0954 | AS4: 97.8922 | AT4: 133.1981 | AU4: 141.6548 | AV4: 133.4529 | AW4: 59.5273 | AX4: 52.4447 | AY4: 212.8532 | AZ4: 87.9431 | BA4: 11.2063 | BB4: 24.2123 | BC4: 37.1035 | BD4: 28 | BE4: 78.9894 | BF4: 20.3042 | BG4: 118.0438 | BH4: 131.6301 | BI4: 78.8214 | BJ4: 112.665 | BK4: 160.9531 | BL4: 106.2796 | BM4: 104.9398 | BN4: 97.3693 | BO4: 88.7621 | BP4: 88.3757 | BQ4: 114.7615 | BR4: 110.0827 | BS4: 122.0093 | BT4: 124.7743 | BU4: 116.683 | BV4: 222.2178 | BW4: 532.9415 | BX4: 133.2898 | BY4: 21.0189 | BZ4: 23.6971 | CA4: 30.8196 | CB4: 51.0097 | CC4: 46.4478 | CD4: 8.4518 | CE4: 16.2421 | CF4: 27.4323 | CG4: 48.7753 | CH4: 125.7067 | CI4: 177.0552 | CJ4: 26.0946 | CK4: 8.5834 | CL4: 15.0479 | CM4: 57.3202 | CN4: 59.8199 | CO4: 82.7148 | CP4: 123.4373 | CQ4: 133.0357 | CR4: 101.2872 | CS4: 186.2427 | CT4: 261.9834 | CU4: 194.0085 | CV4: 94.3866 | CW4: 77.8477 | CX4: 150.4027 | CY4: 127.2327 | CZ4: 80.1906 | DA4: 142.3611 | DB4: 223.9475 | DC4: 135.3632 | DD4: 120.2061 | DE4: 149.6502 | DF4: 315.8309 | DG4: 328.1404 | DH4: 239.9327 | DI4: 164.0667 | DJ4: 151.0313 | DK4: 153.8782 | DL4: 124.3452 | DM4: 150.1626 | DN4: 182.5866 | DO4: 238.6517 | DP4: 342.8348 | DQ4: 221.2182 | DR4: 269.6176 | DS4: 258.0144 | DT4: 219.2778 | DU4: 241.9704 | DV4: 359.5004 | DW4: 432.5482 | DX4: 231.1505 | DY4: 226.4094 | DZ4: 172.4387 | EA4: 179.7824 | EB4: 253.7703 | EC4: 316.1739 | ED4: 543.7838 | EE4: 377.3511 | EF4: 215.1513 | EG4: 271.2479 | EH4: 140.6713 | EI4: 150.2347 | EJ4: 181.0641 | EK4: 212.1077 | EL4: 204.0724 | EM4: 258.1243 | EN4: 254.8693 | EO4: 235.3022 | EP4: 391.6885 | EQ4: 456.9964 | ER4: 354.3694 | ES4: 326.4023 | ET4: 310.3751 | EU4: 391.6199 | EV4: 439.9206 | EW4: 489.8691 | EX4: 400.5904 | EY4: 418.5818 | EZ4: 402.8969 | FA4: 399.2954 | FB4: 478.7601 | FC4: 411.1345 | FD4: 265.8131 | FE4: 258.055 | FF4: 153.09 | FG4: 186.1937 | FH4: 291.0005 | FI4: 293.8908 | FJ4: 330.6233 | FK4: 305.9175 | FL4: 273.2107 | FM4: 225.4868 | FN4: 280.2779 | FO4: 283.3719 | FP4: 193.284 | FQ4: 237.3021 | FR4: 230.2965 | FS4: 275.3646 | FT4: 297.9249 | FU4: 285.8184 | FV4: 270.5094 | FW4: 271.4502 | FX4: 288.0388 | FY4: 251.0025 | FZ4: 338.9316 | GA4: 387.163 | GB4: 303.0566 | GC4: 344.8109 | GD4: 315.434 | GE4: 450.1476 | GF4: 444.1689 | GG4: 485.3191 | GH4: 312.256 | GI4: 363.8026 | GJ4: 337.9432 | GK4: 318.2137 | GL4: 387.5473 | GM4: 410.5087 | GN4: 370.9433 | GO4: 262.4447 | GP4: 214.0607 | GQ4: 219.5921 | GR4: 259.0567 | GS4: 359.3492 | GT4: 280.2478 | GU4: 340.6011 | GV4: 379.0661 | GW4: 379.1004 | GX4: 268.8903 | GY4: 260.2432 | GZ4: 277.1153 | HA4: 268.9176 | HB4: 205.3779 | HC4: 278.3354 | HD4: 249.3778 | HE4: 233.4647 | HF4: 259.9674 | HG4: 242.1475 | HH4: 221.9007 | HI4: 268.9085 | HJ4: 336.8449 | HK4: 301.5852 | HL4: 293.5135 | HM4: 281.2558 | HN4: 153.3406 | HO4: 144.2511 | HP4: 199.6785 | HQ4: 177.6474 | HR4: 133.5614 | HS4: 158.5892 | HT4: 208.0015 | HU4: 287.8792 | HV4: 322.448 | HW4: 344.5589 | HX4: 274.4245 | HY4: 197.0304 | HZ4: 179.0313 | IA4: 173.2486 | IB4: 157.2158 | IC4: 168.7126 | ID4: 171.5042 | IE4: 178.1451 | IF4: 198.8861 | IG4: 278.2507 | IH4: 334.9241 | II4: 529.6098367 | IJ4: 388.3055554 | IK4: 381.2650926 | IL4: 212.2124193 | IM4: 195.9644344 | IN4: 161.1085868 | IO4: 139.417691 | IP4: 161.8007685 | IQ4: 163.5869683 | IR4: 242.2811895 | IS4: 225.5565683 | IT4: 319.3386931
B5: Nuclear | C5: 5193.267 | D5: 4339.07 | E5: 4257.043 | F5: 4556.652 | G5: 3888.478 | H5: 3340.776 | I5: 4237.203 | J5: 4785.957 | K5: 3922.86 | L5: 3724.698 | M5: 4508.012 | N5: 5151.652 | O5: 5104.171 | P5: 4384.294 | Q5: 4067.27 | R5: 3992.02 | S5: 4552.189 | T5: 4225.19 | U5: 4437.653 | V5: 4942.09 | W5: 4277.073 | X5: 4464.017 | Y5: 4223.282 | Z5: 4493.151 | AA5: 5192.877 | AB5: 4385.729 | AC5: 4026.587 | AD5: 3462.453 | AE5: 4064.541 | AF5: 4293.199 | AG5: 4749.755 | AH5: 4946.147 | AI5: 4034.17 | AJ5: 4813.036 | AK5: 4192.345 | AL5: 5199.221 | AM5: 5201.174 | AN5: 4155.793 | AO5: 4669.188 | AP5: 4062.371 | AQ5: 3893.606 | AR5: 4183.93 | AS5: 4729.246 | AT5: 4829.798 | AU5: 4382.91 | AV5: 4501.306 | AW5: 4049.26 | AX5: 5006.708 | AY5: 4888.214 | AZ5: 3958.138 | BA5: 3900.121 | BB5: 4180.04 | BC5: 4543.501 | BD5: 3955.25 | BE5: 4579.176 | BF5: 5011.767 | BG5: 4867.835 | BH5: 4055.733 | BI5: 3978.734 | BJ5: 5077.294 | BK5: 5146.429 | BL5: 4395.348 | BM5: 4446.422 | BN5: 4134.199 | BO5: 4752.051 | BP5: 4513.055 | BQ5: 4113.75 | BR5: 4140.442 | BS5: 3814.664 | BT5: 4207.821 | BU5: 4297.065 | BV5: 5176.852 | BW5: 5195.754 | BX5: 4737.443 | BY5: 4830.922 | BZ5: 4445.974 | CA5: 5116.925 | CB5: 3774.429 | CC5: 3664.36 | CD5: 3673.057 | CE5: 3886.011 | CF5: 4866.237 | CG5: 4595.546 | CH5: 5326.088 | CI5: 5031.441 | CJ5: 4410.622 | CK5: 3691.562 | CL5: 4062.065 | CM5: 4998.131 | CN5: 4588.075 | CO5: 4734.536 | CP5: 4656.466 | CQ5: 4176.013 | CR5: 4076.844 | CS5: 4225.661 | CT5: 4396.926 | CU5: 4850.357 | CV5: 4864.741 | CW5: 4461.119 | CX5: 4236.956 | CY5: 4651.556 | CZ5: 4934.211 | DA5: 5286.895 | DB5: 5284.746 | DC5: 4524.404 | DD5: 4228.455 | DE5: 4439.546 | DF5: 4809.061 | DG5: 5175.085 | DH5: 3934.949 | DI5: 4011.019 | DJ5: 3517.41 | DK5: 4880.704 | DL5: 4516.897 | DM5: 4677.932 | DN5: 5216.167 | DO5: 4711.526 | DP5: 5076.299 | DQ5: 5278.687 | DR5: 5381.522 | DS5: 5459.17 | DT5: 5121.331 | DU5: 4958.84 | DV5: 4468.136 | DW5: 4874.432 | DX5: 5231.805 | DY5: 5359.431 | DZ5: 5001.26 | EA5: 4030.767 | EB5: 4407.563 | EC5: 5064.955 | ED5: 5552.63 | EE5: 5502.377 | EF5: 4781.093 | EG5: 4681.95 | EH5: 4579.076 | EI5: 5513.328 | EJ5: 5103.848 | EK5: 5432.708 | EL5: 5308.987 | EM5: 4701.936 | EN5: 4737.749 | EO5: 5173.696 | EP5: 5468.465 | EQ5: 5520.427 | ER5: 4774.628 | ES5: 4206.713 | ET5: 4213.842 | EU5: 4779.207 | EV5: 5056.317 | EW5: 5461.048 | EX5: 5342.009 | EY5: 4584.918 | EZ5: 5397.964 | FA5: 5372.254 | FB5: 5579.12 | FC5: 5509.204 | FD5: 4935.939 | FE5: 4672.105 | FF5: 4666.587 | FG5: 4788.816 | FH5: 4456.119 | FI5: 5407.931 | FJ5: 5310.365 | FK5: 4125.64 | FL5: 4543.852 | FM5: 5301.45 | FN5: 5501.582 | FO5: 5460.718 | FP5: 5125.564 | FQ5: 4948.627 | FR5: 5126.832 | FS5: 4825.293 | FT5: 5119.868 | FU5: 5506.266 | FV5: 5391.197 | FW5: 4699.066 | FX5: 4456.99 | FY5: 5064.813 | FZ5: 5150.508 | GA5: 5568.309 | GB5: 4881.149 | GC5: 4397.378 | GD5: 3772.495 | GE5: 3619.368 | GF5: 3778.693 | GG5: 3888.026 | GH5: 4532.116 | GI5: 5109.769 | GJ5: 4710.487 | GK5: 5173.164 | GL5: 5470.879 | GM5: 5421.283 | GN5: 4884.597 | GO5: 5073.241 | GP5: 3528.834 | GQ5: 4300.088 | GR5: 4842.653 | GS5: 4775.66 | GT5: 5164.555 | GU5: 4298.756 | GV5: 4620.297 | GW5: 5068.626 | GX5: 5375.116 | GY5: 5319.158 | GZ5: 4778.305 | HA5: 4947.463 | HB5: 4342.93 | HC5: 3485.058 | HD5: 3161.45 | HE5: 3855.746 | HF5: 3976.62 | HG5: 4877.284 | HH5: 4891.066 | HI5: 3934.346 | HJ5: 5069.501 | HK5: 5322.941 | HL5: 5119.932 | HM5: 5354.706 | HN5: 4039.755 | HO5: 4689.704 | HP5: 4579.733 | HQ5: 4541.035 | HR5: 5013.949 | HS5: 4482.389 | HT5: 4314.462 | HU5: 4045.827 | HV5: 4955.858 | HW5: 5438.39 | HX5: 4335.14 | HY5: 3949.223 | HZ5: 4063.489 | IA5: 3687.607 | IB5: 3530.33 | IC5: 3998.25 | ID5: 5278.162 | IE5: 4387.847 | IF5: 3957.824 | IG5: 3973.495 | IH5: 3949.688 | II5: 4480.61 | IJ5: 4635.983 | IK5: 4877.964647 | IL5: 4894.268 | IM5: 4417.869 | IN5: 4693.97 | IO5: 5399.984 | IP5: 5421.255 | IQ5: 5066.819 | IR5: 5429.769 | IS5: 5094.619 | IT5: 4829.211
B6: Carbón | C6: 3554.713 | D6: 2808.93 | E6: 4652.699 | F6: 4136.543 | G6: 4587.111 | H6: 5321.432 | I6: 5250.706 | J6: 3947.904 | K6: 5387.902 | L6: 5510.969 | M6: 4915.063 | N6: 5264.836 | O6: 5224.28 | P6: 5296.625 | Q6: 3495.028 | R6: 3481.849 | S6: 3671.818 | T6: 4256.693 | U6: 4980.173 | V6: 4086.721 | W6: 5208.071 | X6: 5263.247 | Y6: 5335.63 | Z6: 5504.172 | AA6: 5944.99 | AB6: 5738.336 | AC6: 6103.602 | AD6: 5201.309 | AE6: 4697.456 | AF6: 4286.62 | AG6: 5015.971 | AH6: 4074.345 | AI6: 5319.274 | AJ6: 4625.697 | AK6: 4904.899 | AL6: 3913.396 | AM6: 5346.884 | AN6: 5513.03 | AO6: 5612.2 | AP6: 5170.295 | AQ6: 4777.482 | AR6: 4212.786 | AS6: 4707.795 | AT6: 4404.015 | AU6: 5167.946 | AV6: 4033.755 | AW6: 4331.081 | AX6: 4573.829 | AY6: 3978.51 | AZ6: 4574.626 | BA6: 4772.031 | BB6: 4414.084 | BC6: 3947.582 | BD6: 4969.916 | BE6: 5461.822 | BF6: 4646.473 | BG6: 4986.63 | BH6: 5297.803 | BI6: 4989.803 | BJ6: 5135.429 | BK6: 4961.543 | BL6: 4086.702 | BM6: 4543.376 | BN6: 4764.923 | BO6: 4849.966 | BP6: 4988.427 | BQ6: 5813.121 | BR6: 5715.288 | BS6: 5955.434 | BT6: 5452.807 | BU6: 5627.412 | BV6: 4475.713 | BW6: 2360.506 | BX6: 2530.396 | BY6: 3906.415 | BZ6: 2566.183 | CA6: 2468.016 | CB6: 4802.957 | CC6: 6075.884 | CD6: 5718.72 | CE6: 5483.271 | CF6: 5300.673 | CG6: 5235.796 | CH6: 3019.852 | CI6: 3369.965 | CJ6: 3440.405 | CK6: 5261.442 | CL6: 5405.207 | CM6: 4764.108 | CN6: 4851.495 | CO6: 5510.269 | CP6: 5458.799 | CQ6: 6182.282 | CR6: 6159.891 | CS6: 4489.942 | CT6: 3626.001 | CU6: 2784.997 | CV6: 3170.357 | CW6: 5292.931 | CX6: 4252.312 | CY6: 3309.682 | CZ6: 4052.584 | DA6: 5346.399 | DB6: 4423.574 | DC6: 5801.128 | DD6: 6013.634 | DE6: 6005.669 | DF6: 6472.708 | DG6: 6340.864 | DH6: 5930.681 | DI6: 6145.65 | DJ6: 5483.532 | DK6: 4405.944 | DL6: 5287.699 | DM6: 6323.383 | DN6: 5275.55 | DO6: 6366.487 | DP6: 5855.647 | DQ6: 5280.283 | DR6: 5709.913 | DS6: 6646.727 | DT6: 6309.58 | DU6: 6444.9 | DV6: 5440.619 | DW6: 4905.92 | DX6: 5885.038 | DY6: 6534.355 | DZ6: 6262.804 | EA6: 6674.877 | EB6: 6592.702 | EC6: 6222.237 | ED6: 4308.412 | EE6: 3864.127 | EF6: 3418.344 | EG6: 3396.487 | EH6: 3806.208 | EI6: 4867.444 | EJ6: 5835.146 | EK6: 6385.937 | EL6: 6261.54 | EM6: 6593.664 | EN6: 6585.913 | EO6: 6448.018 | EP6: 6986.076 | EQ6: 6959.422 | ER6: 6404.216 | ES6: 6858.526 | ET6: 6465.355 | EU6: 6436.551 | EV6: 6061.064 | EW6: 6297.098 | EX6: 6142.676 | EY6: 6405.984 | EZ6: 5954.988 | FA6: 6040.416 | FB6: 4529.395 | FC6: 4692.41 | FD6: 5217.618 | FE6: 5238.538 | FF6: 4917.42 | FG6: 5208.806 | FH6: 6150.093 | FI6: 6649.875 | FJ6: 6645.774 | FK6: 6560.467 | FL6: 6463.724 | FM6: 5574.144 | FN6: 4974.297 | FO6: 5656.455 | FP6: 5871.244 | FQ6: 6356.156 | FR6: 5163.093 | FS6: 5313.855 | FT6: 5886.91 | FU6: 6545.987 | FV6: 6332.239 | FW6: 6239.248 | FX6: 6190.806 | FY6: 5967.052 | FZ6: 6597.061 | GA6: 6811.043 | GB6: 6089.217 | GC6: 6168.657 | GD6: 5506.63 | GE6: 5676.776 | GF6: 5758.908 | GG6: 6257.933 | GH6: 5758.177 | GI6: 5916.067 | GJ6: 6141.552 | GK6: 6328.211 | GL6: 6580.918 | GM6: 6886.589 | GN6: 5775.369 | GO6: 4765.658 | GP6: 3496.492 | GQ6: 5080.473 | GR6: 5562.59 | GS6: 6510.018 | GT6: 5286.591 | GU6: 5409.01 | GV6: 4807.43 | GW6: 4258.214 | GX6: 4287.631 | GY6: 6102.67 | GZ6: 4895.344 | HA6: 4863.635 | HB6: 5834.914 | HC6: 5991.804 | HD6: 5773.713 | HE6: 5941.476 | HF6: 5886.238 | HG6: 5490.184 | HH6: 5348.828 | HI6: 5486.22 | HJ6: 6071.222 | HK6: 4980.962 | HL6: 4597.712 | HM6: 3661.907 | HN6: 3107.048 | HO6: 2174.694 | HP6: 2041.751 | HQ6: 3682.365 | HR6: 3065.986 | HS6: 3445.736 | HT6: 4099.561 | HU6: 4098.351 | HV6: 4453.464 | HW6: 4585.163 | HX6: 3015.414 | HY6: 2964.835 | HZ6: 1785.362 | IA6: 2230.875 | IB6: 2454.086 | IC6: 3212.927 | ID6: 1795.094 | IE6: 2689.472 | IF6: 3054.298 | IG6: 1997.712 | IH6: 1837.324 | II6: 1696.094 | IJ6: 1367.276 | IK6: 844.196834 | IL6: 633.698 | IM6: 823.906 | IN6: 1322.563 | IO6: 2450.416 | IP6: 2835.734 | IQ6: 2971.126 | IR6: 1987.136 | IS6: 1627.231 | IT6: 2039.879
B7: Fuel + Gas | C7: 204.218 | D7: 106.632 | E7: 108.531 | F7: 79.792 | G7: 202.105 | H7: 384.878 | I7: 413.754 | J7: 154.664 | K7: 238.912 | L7: 286.886 | M7: 267.439 | N7: 418.135 | O7: 255.223 | P7: 330.269 | Q7: 128.713 | R7: 181.603 | S7: 200.854 | T7: 278.568 | U7: 687.282 | V7: 178.961 | W7: 651.77 | X7: 308.139 | Y7: 371.593 | Z7: 468.71 | AA7: 1299.375 | AB7: 1787.73 | AC7: 1434.253 | AD7: 698.915 | AE7: 614.411 | AF7: 147.673 | AG7: 415.723 | AH7: 221.515 | AI7: 529.484 | AJ7: 185.837 | AK7: 87.533 | AL7: 41.134 | AM7: 95.265 | AN7: 339.473 | AO7: 343.836 | AP7: 259.45 | AQ7: 99.405 | AR7: 120.458 | AS7: 38.927 | AT7: 88.599 | AU7: 185.272 | AV7: 52.688 | AW7: 79.194 | AX7: 74.58 | AY7: 99.884 | AZ7: 90.411 | BA7: 115.894 | BB7: 122.311 | BC7: 19.071 | BD7: 97.452 | BE7: 377.674 | BF7: 54.8 | BG7: 84.704 | BH7: 118.869 | BI7: 64.49 | BJ7: 166.625 | BK7: 152.781 | BL7: 37.526 | BM7: 143.05 | BN7: 120.69 | BO7: 108.382 | BP7: 288.232 | BQ7: 593.743 | BR7: 231.724 | BS7: 578.349 | BT7: 658.579 | BU7: 432.286 | BV7: 315.821 | BW7: 15.11 | BX7: 185.81 | BY7: 257.11 | BZ7: 138.064 | CA7: 30.668 | CB7: 162.97 | CC7: 265.834 | CD7: 140.586 | CE7: 231.84 | CF7: 97.463 | CG7: 243.305 | CH7: 274.57 | CI7: 261.459 | CJ7: 382.801 | CK7: 453.163 | CL7: 496.788 | CM7: 437.559 | CN7: 493.385 | CO7: 819.472 | CP7: 582.312 | CQ7: 735.84 | CR7: 822.644 | CS7: 542.729 | CT7: 524.389 | CU7: 69.924 | CV7: 100.933 | CW7: 152.994 | CX7: 52.482 | CY7: 36.298 | CZ7: 200.457 | DA7: 473.969 | DB7: 507.113 | DC7: 713.855 | DD7: 389.214 | DE7: 997.22 | DF7: 1644.422 | DG7: 1502.458 | DH7: 1861.304 | DI7: 1086.079 | DJ7: 532.757 | DK7: 168.644 | DL7: 532.41 | DM7: 1127.99 | DN7: 686.731 | DO7: 596.713 | DP7: 154.831 | DQ7: 413.447 | DR7: 687.299 | DS7: 1113.669 | DT7: 491.264 | DU7: 1132.887 | DV7: 724.643 | DW7: 174.013 | DX7: 674.131 | DY7: 890.41 | DZ7: 736.769 | EA7: 1450.383 | EB7: 931.175 | EC7: 755.077 | ED7: 490.878 | EE7: 502.29 | EF7: 406.874 | EG7: 415.246 | EH7: 162.849 | EI7: 332.142 | EJ7: 1148.567 | EK7: 1351.695 | EL7: 1201.89 | EM7: 1299.134 | EN7: 1281.455 | EO7: 1320.459 | EP7: 2157.018 | EQ7: 2663.572 | ER7: 1619.697 | ES7: 1419.443 | ET7: 1389.165 | EU7: 1086.731 | EV7: 1639.803 | EW7: 1896.914 | EX7: 889.726 | EY7: 1207.86 | EZ7: 878.513 | FA7: 477.951 | FB7: 376.307 | FC7: 581.383 | FD7: 499.107 | FE7: 206.448 | FF7: 78.708 | FG7: 237.103 | FH7: 1224.425 | FI7: 1186.803 | FJ7: 1068.492 | FK7: 943.468 | FL7: 648.372 | FM7: 347.553 | FN7: 409.78 | FO7: 431.414 | FP7: 344.906 | FQ7: 608.288 | FR7: 174.5 | FS7: 312.653 | FT7: 737.545 | FU7: 1090.75 | FV7: 714.632 | FW7: 946.658 | FX7: 578.892 | FY7: 466.279 | FZ7: 682.951 | GA7: 916.314 | GB7: 1095.09 | GC7: 1363.62 | GD7: 371.743 | GE7: 521.771 | GF7: 1160.585 | GG7: 1354.295 | GH7: 407.675 | GI7: 515.482 | GJ7: 357.865 | GK7: 420.929 | GL7: 808.949 | GM7: 760.536 | GN7: 627.523 | GO7: 291.553 | GP7: 282.347 | GQ7: 230.671 | GR7: 521.586 | GS7: 1004.05 | GT7: 339.096 | GU7: 760.597 | GV7: 340.628 | GW7: 131.166 | GX7: 106.305 | GY7: 102.61 | GZ7: 220.437 | HA7: 191.126 | HB7: 113.172 | HC7: 166.474 | HD7: 83.596 | HE7: 272.951 | HF7: 212.661 | HG7: 233.035 | HH7: 127.132 | HI7: 199.016 | HJ7: 168.555 | HK7: 142.142 | HL7: 124.255 | HM7: 70.555 | HN7: 137.2 | HO7: 147.767 | HP7: 248.855 | HQ7: 154.963 | HR7: 242.519 | HS7: 189.069 | HT7: 200.066 | HU7: 227.266 | HV7: 190.238 | HW7: 128.807 | HX7: 119.209 | HY7: 191.562 | HZ7: 137.769 | IA7: 91.484 | IB7: 147.091 | IC7: 212.322 | ID7: 171.65 | IE7: 154.518 | IF7: 104.516 | IG7: 165.878 | IH7: 164.784 | II7: 153.209 | IJ7: 126.666 | IK7: 22.518 | IL7: 105.508 | IM7: 163.869 | IN7: 165.569 | IO7: 138.492 | IP7: 113.152 | IQ7: 138.319 | IR7: 124.903 | IS7: 166.811 | IT7: 147.007
B8: Ciclo combinado | C8: - | D8: - | E8: - | F8: - | G8: - | H8: - | I8: - | J8: - | K8: - | L8: - | M8: - | N8: - | O8: - | P8: - | Q8: - | R8: - | S8: - | T8: - | U8: - | V8: - | W8: - | X8: - | Y8: - | Z8: - | AA8: - | AB8: - | AC8: - | AD8: - | AE8: - | AF8: - | AG8: - | AH8: - | AI8: - | AJ8: - | AK8: - | AL8: - | AM8: 0.213 | AN8: - | AO8: - | AP8: - | AQ8: - | AR8: - | AS8: - | AT8: - | AU8: - | AV8: - | AW8: - | AX8: - | AY8: - | AZ8: - | BA8: - | BB8: - | BC8: - | BD8: - | BE8: - | BF8: - | BG8: - | BH8: - | BI8: - | BJ8: - | BK8: - | BL8: - | BM8: - | BN8: - | BO8: - | BP8: - | BQ8: - | BR8: - | BS8: - | BT8: - | BU8: - | BV8: - | BW8: - | BX8: - | BY8: - | BZ8: - | CA8: - | CB8: - | CC8: - | CD8: - | CE8: - | CF8: - | CG8: - | CH8: - | CI8: - | CJ8: - | CK8: - | CL8: - | CM8: - | CN8: - | CO8: - | CP8: - | CQ8: - | CR8: - | CS8: - | CT8: - | CU8: - | CV8: - | CW8: - | CX8: - | CY8: - | CZ8: - | DA8: - | DB8: - | DC8: - | DD8: - | DE8: - | DF8: - | DG8: - | DH8: - | DI8: - | DJ8: - | DK8: - | DL8: - | DM8: - | DN8: - | DO8: - | DP8: - | DQ8: - | DR8: - | DS8: - | DT8: - | DU8: - | DV8: - | DW8: - | DX8: - | DY8: - | DZ8: - | EA8: - | EB8: - | EC8: - | ED8: - | EE8: - | EF8: - | EG8: - | EH8: - | EI8: - | EJ8: - | EK8: - | EL8: - | EM8: - | EN8: - | EO8: - | EP8: - | EQ8: - | ER8: - | ES8: - | ET8: - | EU8: 121.518 | EV8: 305.007 | EW8: 520.594 | EX8: 763.192 | EY8: 1165.914 | EZ8: 1151.137 | FA8: 610.332 | FB8: 517.979 | FC8: 436.832 | FD8: 845.815 | FE8: 761.981 | FF8: 386.589 | FG8: 799.416 | FH8: 1781.138 | FI8: 1927.342 | FJ8: 1793.886 | FK8: 2025.468 | FL8: 1795.77 | FM8: 1208.196 | FN8: 863.653 | FO8: 1541.807 | FP8: 1943.228 | FQ8: 2272.911 | FR8: 1822.15 | FS8: 2011.424 | FT8: 2317.648 | FU8: 2722.288 | FV8: 2333.433 | FW8: 2921.537 | FX8: 2845.403 | FY8: 2763.156 | FZ8: 2817.86 | GA8: 3347.629 | GB8: 3357.813 | GC8: 3345.948 | GD8: 3237.21 | GE8: 3507.254 | GF8: 4645.311 | GG8: 5188.211 | GH8: 4424.916 | GI8: 4433.434 | GJ8: 4074.636 | GK8: 4170.737 | GL8: 4113.69 | GM8: 5549.648 | GN8: 5482.822 | GO8: 4705.139 | GP8: 4650.806 | GQ8: 4929.557 | GR8: 5469.55 | GS8: 6664.457 | GT8: 4828.182 | GU8: 6324.433 | GV8: 5050.22 | GW8: 4256.457 | GX8: 4211.163 | GY8: 6046.649 | GZ8: 3813.023 | HA8: 3823.553 | HB8: 4054.708 | HC8: 4329.247 | HD8: 6168.922 | HE8: 6583.839 | HF8: 5145.517 | HG8: 5637.609 | HH8: 6092.117 | HI8: 7608.162 | HJ8: 7269.522 | HK8: 7999.771 | HL8: 7995.581 | HM8: 6774.804 | HN8: 6899.11 | HO8: 7196.281 | HP8: 7596.274 | HQ8: 8863.531 | HR8: 8223.301 | HS8: 7817.517 | HT8: 7214.455 | HU8: 6826.167 | HV8: 5693.94 | HW8: 5970.275 | HX8: 4444.191 | HY8: 5032.65 | HZ8: 5434.445 | IA8: 5603.483 | IB8: 7620.646 | IC8: 8497.575 | ID8: 8177.814 | IE8: 7385.088 | IF8: 6555.009 | IG8: 5522.15 | IH8: 6135.958 | II8: 5308.095 | IJ8: 4758.78 | IK8: 4086.589928 | IL8: 4360.6161 | IM8: 4552.942 | IN8: 5475.442 | IO8: 6782.456 | IP8: 5736.69 | IQ8: 6235.23 | IR8: 5277.748 | IS8: 5529.094 | IT8: 4851.257217
B9: Régimen ordinario | C9: 12926.357 | D9: 10581.565 | E9: 11416.075 | F9: 10457.181 | G9: 10461.036 | H9: 10796.148 | I9: 11461.204 | J9: 10093.408 | K9: 10840.496 | L9: 10968.464 | M9: 11589.866 | N9: 12786.873 | O9: 13239.38 | P9: 12083.619 | Q9: 11425.396 | R9: 10980.723 | S9: 11130.631 | T9: 10763.272 | U9: 11766.474 | V9: 10313.691 | W9: 11266.512 | X9: 11548.644 | Y9: 11906.551 | Z9: 12314.346 | AA9: 13871.503 | AB9: 12736.595 | AC9: 12381.88 | AD9: 10961.815 | AE9: 10802.923 | AF9: 10285.014 | AG9: 11866.488 | AH9: 10455.599 | AI9: 11178.236 | AJ9: 11482.254 | AK9: 11277.127 | AL9: 11860.465 | AM9: 12705.377 | AN9: 11469.427 | AO9: 12041.354 | AP9: 10605.52 | AQ9: 10558.738 | AR9: 10609.397 | AS9: 11305.952 | AT9: 10596.652 | AU9: 10976.278 | AV9: 11325.452 | AW9: 11747.045 | AX9: 12188.337 | AY9: 12685.643 | AZ9: 11582.145 | BA9: 11358.463 | BB9: 10920.804 | BC9: 10944.57 | BD9: 11311.628 | BE9: 12222.555 | BF9: 10973.153 | BG9: 11210.371 | BH9: 10980.559 | BI9: 11198.065 | BJ9: 12145.179 | BK9: 12953.626 | BL9: 11018.559 | BM9: 12159.844 | BN9: 10853.87 | BO9: 11374.403 | BP9: 11491.358 | BQ9: 12141.378 | BR9: 11184.484 | BS9: 11280.694 | BT9: 11320.003 | BU9: 11578.095 | BV9: 12373.955 | BW9: 13470.737 | BX9: 12799.213 | BY9: 12315.147 | BZ9: 10601.277 | CA9: 11212.283 | CB9: 11508.811 | CC9: 12185.667 | CD9: 10967.459 | CE9: 11271.293 | CF9: 11934.769 | CG9: 12151.593 | CH9: 12597.086 | CI9: 14083.578 | CJ9: 11471.97 | CK9: 11878.419 | CL9: 12128.93 | CM9: 12304.189 | CN9: 12148.919 | CO9: 13009.237 | CP9: 12394.627 | CQ9: 12693.871 | CR9: 12522.63 | CS9: 12636.612 | CT9: 13761.592 | CU9: 13369.916 | CV9: 11969.025 | CW9: 12419.051 | CX9: 11834.461 | CY9: 11827.589 | CZ9: 12442.531 | DA9: 13641.857 | DB9: 12326.652 | DC9: 12874.096 | DD9: 12543.05 | DE9: 12934.402 | DF9: 14321.236 | DG9: 14458.407 | DH9: 13049.907 | DI9: 13078.465 | DJ9: 11538.88 | DK9: 12115.561 | DL9: 12702.124 | DM9: 14042.931 | DN9: 12642.027 | DO9: 13255.188 | DP9: 12904.402 | DQ9: 13673.998 | DR9: 14536.451 | DS9: 15736.309 | DT9: 13497.51 | DU9: 14079.451 | DV9: 12797.217 | DW9: 13250.671 | DX9: 14032.49 | DY9: 14503.347 | DZ9: 13730.665 | EA9: 14016.97 | EB9: 13696.626 | EC9: 14495.565 | ED9: 14979.624 | EE9: 16089.006 | EF9: 14193.431 | EG9: 14863.669 | EH9: 12645.645 | EI9: 13830.507 | EJ9: 14496.214 | EK9: 15167.697 | EL9: 14697.792 | EM9: 14172.29 | EN9: 14437.814 | EO9: 14989.92 | EP9: 16426.213 | EQ9: 16693.004 | ER9: 14071.604 | ES9: 14372.266 | ET9: 13911.525 | EU9: 14388.041 | EV9: 15097.285 | EW9: 15800.802 | EX9: 14382.479 | EY9: 14621.029 | EZ9: 14723.314 | FA9: 14507.519 | FB9: 15172.175 | FC9: 16708.429 | FD9: 15726.468 | FE9: 15179.311 | FF9: 13592.332 | FG9: 14415.544 | FH9: 15912.104 | FI9: 17171.198 | FJ9: 16407.002 | FK9: 15412.097 | FL9: 15426.892 | FM9: 15466.623 | FN9: 16435.541 | FO9: 16568.126 | FP9: 16449.047 | FQ9: 17098.934 | FR9: 15006.022 | FS9: 15529.905 | FT9: 16707.551 | FU9: 17927.986 | FV9: 16541.085 | FW9: 16414.573 | FX9: 15859.625 | FY9: 16551.557 | FZ9: 17087.504 | GA9: 18243.371 | GB9: 16973.586 | GC9: 17044.812 | GD9: 14837.507 | GE9: 15523.875 | GF9: 17313.734 | GG9: 18237.486 | GH9: 16373.69 | GI9: 17006.423 | GJ9: 16261.471 | GK9: 17433.356 | GL9: 18668.195 | GM9: 20262.534 | GN9: 18010.792 | GO9: 17541.669 | GP9: 14393.764 | GQ9: 16535.659 | GR9: 17910.976 | GS9: 20594.048 | GT9: 16754.415 | GU9: 18085.466 | GV9: 16521.769 | GW9: 16682.086 | GX9: 18675.331 | GY9: 19751.378 | GZ9: 16523.959 | HA9: 17507.055 | HB9: 16888.804 | HC9: 16579.203 | HD9: 17333.553 | HE9: 19039.929 | HF9: 16995.284 | HG9: 17670.181 | HH9: 18206.593 | HI9: 18648.745 | HJ9: 19925.703 | HK9: 19800.373 | HL9: 18855.427 | HM9: 16917.789 | HN9: 16495.352 | HO9: 17109.578 | HP9: 17260.228 | HQ9: 19220.999 | HR9: 17954.337 | HS9: 17194.444 | HT9: 16941.185 | HU9: 16678.165 | HV9: 17574.968 | HW9: 18220.623 | HX9: 15040.96 | HY9: 14569.678 | HZ9: 13304.255 | IA9: 13795.37 | IB9: 15569.023 | IC9: 17482.846 | ID9: 16761.399 | IE9: 15545.411 | IF9: 14898.663 | IG9: 13498.447 | IH9: 15042.441 | II9: 16581.89395 | IJ9: 14727.73612 | IK9: 15244.31255 | IL9: 14236.15865 | IM9: 13329.08948 | IN9: 14764.74074 | IO9: 17347.9351 | IP9: 15963.71358 | IQ9: 15824.48831 | IR9: 14344.45022 | IS9: 14687.16964 | IT9: 15440.75439
B10: Hidráulica/Resto hidráulica | C10: 105.992 | D10: 92.30599999 | E10: 64.72999999 | F10: 90.82900001 | G10: 84.02299996 | H10: 91.299 | I10: 55.459 | J10: 57.63200001 | K10: 34.01199999 | L10: 69.63399999 | M10: 110.01 | N10: 126.706 | O10: 179.138 | P10: 122.811 | Q10: 215.011 | R10: 190.109 | S10: 195.073 | T10: 144.594 | U10: 99.561 | V10: 80.389 | W10: 78.209 | X10: 93.88 | Y10: 141.988 | Z10: 164.018 | AA10: 125.135 | AB10: 89.669 | AC10: 114.311 | AD10: 191.757 | AE10: 193.59 | AF10: 203.803 | AG10: 181.002 | AH10: 118.066 | AI10: 117.869 | AJ10: 215.527 | AK10: 233.875 | AL10: 297.169 | AM10: 208.395 | AN10: 120.724 | AO10: 171.353 | AP10: 192.554 | AQ10: 247.309 | AR10: 207.114 | AS10: 151.58 | AT10: 102.715 | AU10: 108.434 | AV10: 243.801 | AW10: 228.351 | AX10: 251.898 | AY10: 342.685 | AZ10: 275.549 | BA10: 261.048 | BB10: 218.693 | BC10: 253.366 | BD10: 170.896 | BE10: 113.035 | BF10: 101.443 | BG10: 106.75 | BH10: 171.698 | BI10: 238.982 | BJ10: 221.123 | BK10: 329.748 | BL10: 321.577 | BM10: 299.329 | BN10: 168.033 | BO10: 176.271 | BP10: 142.427 | BQ10: 114.445 | BR10: 86.067 | BS10: 110.54 | BT10: 88.179 | BU10: 129.774 | BV10: 256.484 | BW10: 431.994 | BX10: 394.019 | BY10: 364.698 | BZ10: 371.68 | CA10: 349.161 | CB10: 242.652 | CC10: 197.031 | CD10: 174.123 | CE10: 161.743 | CF10: 181.576 | CG10: 235.112 | CH10: 440.058 | CI10: 440.792 | CJ10: 368.973 | CK10: 267.722 | CL10: 216.182 | CM10: 261.68 | CN10: 278.391 | CO10: 254.605 | CP10: 204.188 | CQ10: 190.687 | CR10: 154.25 | CS10: 310.862 | CT10: 480.663 | CU10: 492.716819 | CV10: 339.410518 | CW10: 327.064365 | CX10: 403.458525 | CY10: 412.076272 | CZ10: 315.956945 | DA10: 207.934447 | DB10: 197.432695 | DC10: 167.836814 | DD10: 248.31533 | DE10: 203.701928 | DF10: 262.569259 | DG10: 323.522396 | DH10: 292.899812 | DI10: 373.902231 | DJ10: 348.717189 | DK10: 443.138313 | DL10: 296.523594 | DM10: 224.706943 | DN10: 189.845427 | DO10: 210.825293 | DP10: 274.411798 | DQ10: 366.447977 | DR10: 395.381639 | DS10: 330.40558 | DT10: 282.436739 | DU10: 249.446216 | DV10: 435.783218 | DW10: 494.627909 | DX10: 357.927451 | DY10: 254.292919 | DZ10: 199.410305 | EA10: 158.612187 | EB10: 230.155185 | EC10: 367.537209 | ED10: 475.465015 | EE10: 558.920303 | EF10: 485.996064 | EG10: 596.948281 | EH10: 489.463965 | EI10: 476.68399 | EJ10: 352.760995 | EK10: 300.49063 | EL10: 227.071678 | EM10: 181.600837 | EN10: 202.508315 | EO10: 222.42957 | EP10: 192.648005 | EQ10: 255.920349 | ER10: 271.46624 | ES10: 345.515552 | ET10: 361.372052 | EU10: 420.062442 | EV10: 357.790122 | EW10: 235.872343 | EX10: 210.054023 | EY10: 204.411097 | EZ10: 280.620946 | FA10: 390.817645 | FB10: 565.549528 | FC10: 581.193939 | FD10: 453.43334 | FE10: 562.61659 | FF10: 532.278526 | FG10: 529.630674 | FH10: 359.335678 | FI10: 277.913169 | FJ10: 209.447635 | FK10: 208.9305 | FL10: 309.717496 | FM10: 485.77286 | FN10: 578.373638 | FO10: 587.995369 | FP10: 427.628958 | FQ10: 507.792138 | FR10: 547.04273 | FS10: 572.541482 | FT10: 412.623003 | FU10: 336.467575 | FV10: 259.270925 | FW10: 199.838133 | FX10: 245.598881 | FY10: 329.701046 | FZ10: 323.078145 | GA10: 350.78451 | GB10: 292.229427 | GC10: 386.56585 | GD10: 465.508544 | GE10: 438.710303 | GF10: 297.453519 | GG10: 244.468044 | GH10: 191.049618 | GI10: 151.162091 | GJ10: 217.906843 | GK10: 377.399041 | GL10: 404.345149 | GM10: 400.558873 | GN10: 320.878335 | GO10: 567.05897 | GP10: 506.039156 | GQ10: 360.074545 | GR10: 248.514 | GS10: 226.349 | GT10: 177.815 | GU10: 164.14 | GV10: 312.404 | GW10: 381.881 | GX10: 482.851 | GY10: 345.489 | GZ10: 478.796 | HA10: 516.028 | HB10: 529.759 | HC10: 509.19 | HD10: 412.917 | HE10: 302.212 | HF10: 256.501 | HG10: 186.134 | HH10: 186.888 | HI10: 189.873 | HJ10: 211.538 | HK10: 340.206 | HL10: 233.218 | HM10: 301.234 | HN10: 581.111 | HO10: 613.279 | HP10: 581.555 | HQ10: 380.409 | HR10: 264.581 | HS10: 212.28 | HT10: 190.523 | HU10: 400.121 | HV10: 539.626 | HW10: 521.055 | HX10: 629.452 | HY10: 559.845 | HZ10: 501.442 | IA10: 577.142 | IB10: 468.387 | IC10: 365.353 | ID10: 282.65 | IE10: 242.869 | IF10: 230.81 | IG10: 466.05 | IH10: 608.618 | II10: 764.37 | IJ10: 616.578 | IK10: 784.76 | IL10: 690.196 | IM10: 688.343 | IN10: 608.948 | IO10: 459.603 | IP10: 341.748 | IQ10: 281.05 | IR10: 318.889 | IS10: 567.66 | IT10: 702.175
B11: Eólica | C11: 0.115 | D11: 0.19899999 | E11: 0.18 | F11: 0.189 | G11: 0.174 | H11: 0.12 | I11: 0.26 | J11: 0.186 | K11: 0.131 | L11: 0.17 | M11: 0.207 | N11: 0.25599999 | O11: 0.192 | P11: 0.143 | Q11: 0.212 | R11: 0.562 | S11: 0.322 | T11: 0.2 | U11: 0.184 | V11: 0.212 | W11: 0.144 | X11: 0.242 | Y11: 0.271 | Z11: 0.181 | AA11: 0.262 | AB11: 0.225 | AC11: 0.313 | AD11: 0.207 | AE11: 0.195 | AF11: 0.163 | AG11: 0.195 | AH11: 0.666 | AI11: 1.295 | AJ11: 2.137 | AK11: 2.507 | AL11: 9.196 | AM11: 7.115 | AN11: 11.386 | AO11: 7.326 | AP11: 6.164 | AQ11: 5.271 | AR11: 7.974 | AS11: 7.391 | AT11: 6.981 | AU11: 5.631 | AV11: 7.198 | AW11: 6.728 | AX11: 5.603 | AY11: 6.899 | AZ11: 4.814 | BA11: 8.769 | BB11: 6.859 | BC11: 4.97 | BD11: 6.462 | BE11: 3.859 | BF11: 5.393 | BG11: 5.047 | BH11: 6.336 | BI11: 7.78 | BJ11: 5.672 | BK11: 7.87 | BL11: 7.675 | BM11: 8.496 | BN11: 11.902 | BO11: 9.211 | BP11: 8.898 | BQ11: 14.465 | BR11: 17.63 | BS11: 14.853 | BT11: 27.623 | BU11: 13.795 | BV11: 17.439 | BW11: 18.83 | BX11: 22.031 | BY11: 24.646 | BZ11: 26.102 | CA11: 23.157 | CB11: 27.099 | CC11: 25.434 | CD11: 15.643 | CE11: 22.706 | CF11: 30.321 | CG11: 31.616 | CH11: 36.544 | CI11: 39.627 | CJ11: 32.179 | CK11: 46.04 | CL11: 56.365 | CM11: 39.41 | CN11: 43.759 | CO11: 57.268 | CP11: 41.053 | CQ11: 45.835 | CR11: 69.47 | CS11: 72.794 | CT11: 76.085 | CU11: 85.726279 | CV11: 73.041771 | CW11: 100.156674 | CX11: 97.154275 | CY11: 87.936697 | CZ11: 72.687051 | DA11: 112.788958 | DB11: 131.013278 | DC11: 104.747635 | DD11: 104.146754 | DE11: 128.518917 | DF11: 138.738417 | DG11: 159.911065 | DH11: 214.375135 | DI11: 206.772797 | DJ11: 190.999426 | DK11: 173.148566 | DL11: 212.214153 | DM11: 177.000959 | DN11: 139.302129 | DO11: 172.17858 | DP11: 199.350315 | DQ11: 312.980648 | DR11: 315.799525 | DS11: 305.024786 | DT11: 295.1137 | DU11: 338.149516 | DV11: 416.021442 | DW11: 226.957358 | DX11: 365.846115 | DY11: 360.052448 | DZ11: 315.707212 | EA11: 276.366005 | EB11: 409.721173 | EC11: 544.093822 | ED11: 609.442473 | EE11: 594.731676 | EF11: 573.654778 | EG11: 654.248611 | EH11: 650.224566 | EI11: 424.361087 | EJ11: 408.907282 | EK11: 400.205723 | EL11: 374.720812 | EM11: 611.542894 | EN11: 574.769948 | EO11: 768.828981 | EP11: 557.951755 | EQ11: 657.009295 | ER11: 782.540758 | ES11: 795.79278 | ET11: 618.787308 | EU11: 820.586332 | EV11: 646.365366 | EW11: 693.582831 | EX11: 598.43409 | EY11: 505.371396 | EZ11: 869.000019 | FA11: 1056.957505 | FB11: 1214.869007 | FC11: 1395.171019 | FD11: 997.62485 | FE11: 837.860626 | FF11: 1138.000866 | FG11: 901.866016 | FH11: 703.483064 | FI11: 727.405981 | FJ11: 543.970839 | FK11: 781.2453 | FL11: 1086.955352 | FM11: 1172.985179 | FN11: 1433.677041 | FO11: 1685.344923 | FP11: 1074.447704 | FQ11: 1281.279462 | FR11: 1519.372767 | FS11: 1019.357853 | FT11: 1048.332716 | FU11: 970.026109 | FV11: 1114.316325 | FW11: 1147.637898 | FX11: 1635.269143 | FY11: 1511.245273 | FZ11: 1747.487596 | GA11: 1879.193348 | GB11: 1745.313957 | GC11: 1763.513597 | GD11: 1926.458081 | GE11: 1492.0682 | GF11: 1261.460764 | GG11: 1611.02847 | GH11: 1640.440853 | GI11: 1271.494533 | GJ11: 1902.724597 | GK11: 1958.532153 | GL11: 2405.437406 | GM11: 1563.700931 | GN11: 1924.867031 | GO11: 2788.267198 | GP11: 1955.917235 | GQ11: 1670.51768 | GR11: 1364.448 | GS11: 1171.791 | GT11: 2177.821 | GU11: 1465.816 | GV11: 2334.802 | GW11: 2279.523 | GX11: 2183.385 | GY11: 2149.807 | GZ11: 2871.919 | HA11: 3086.247 | HB11: 1356.316 | HC11: 2605.873 | HD11: 1786.288 | HE11: 1888.609 | HF11: 2419.819 | HG11: 2028.855 | HH11: 1907.625 | HI11: 2752.312 | HJ11: 2395.485 | HK11: 2651.468 | HL11: 2018.948 | HM11: 4092.55 | HN11: 3352.686 | HO11: 1737.161 | HP11: 2085.509 | HQ11: 2124.237 | HR11: 1972.523 | HS11: 2129.885 | HT11: 2482.013 | HU11: 3462.688 | HV11: 3648.182 | HW11: 3503.799 | HX11: 3226.32 | HY11: 3100.516 | HZ11: 3059.658 | IA11: 2698.004 | IB11: 2332.395 | IC11: 2426.129 | ID11: 2235.837 | IE11: 2466.731 | IF11: 3125.33 | IG11: 4792.63 | IH11: 4921.228 | II11: 4292.092 | IJ11: 4622.435 | IK11: 4546.547 | IL11: 2634.819 | IM11: 3619.334 | IN11: 2576.197 | IO11: 2798.133 | IP11: 2894.744 | IQ11: 2301.323 | IR11: 3952.831 | IS11: 4348.059 | IT11: 4621.882
B12: Solar fotovoltaica | C12: 0 | D12: 0 | E12: 0 | F12: 0 | G12: 0 | H12: 0 | I12: 0 | J12: 0 | K12: 0 | L12: 0 | M12: 0 | N12: 0 | O12: 0 | P12: 0 | Q12: 0 | R12: 0 | S12: 0 | T12: 0 | U12: 0 | V12: 0 | W12: 0 | X12: 0 | Y12: 0 | Z12: 0 | AA12: 1.01 | AB12: 0.772 | AC12: 0.572 | AD12: 1.289 | AE12: 1.113 | AF12: 1.164 | AG12: 1.307 | AH12: 1.155 | AI12: 1.223 | AJ12: 0.944 | AK12: 0.57 | AL12: 0.937 | AM12: 0.538 | AN12: 0.533 | AO12: 1.252 | AP12: 1.303 | AQ12: 1.05 | AR12: 1.069 | AS12: 1.273 | AT12: 1.193 | AU12: 0.88 | AV12: 0.72 | AW12: 1.263 | AX12: 0.926 | AY12: 0.978 | AZ12: 1.242 | BA12: 1.065 | BB12: 1.208 | BC12: 1.742 | BD12: 1.484 | BE12: 1.635 | BF12: 1.668 | BG12: 1.69 | BH12: 1.521 | BI12: 1.004 | BJ12: 0.0589 | BK12: 0.064 | BL12: 0.068 | BM12: 0.112 | BN12: 0.117 | BO12: 0.132 | BP12: 0.111 | BQ12: 0.105 | BR12: 0.096 | BS12: 0.091 | BT12: 0.048 | BU12: 0.091 | BV12: 0.027 | BW12: 0.024 | BX12: 0.033 | BY12: 0.047 | BZ12: 0.093 | CA12: 0.086 | CB12: 0.117 | CC12: 0.107 | CD12: 0.103 | CE12: 0.096 | CF12: 0.095 | CG12: 0.064 | CH12: 0.026 | CI12: 0.041 | CJ12: 0.088 | CK12: 0.088 | CL12: 0.119 | CM12: 0.093 | CN12: 0.107 | CO12: 0.143 | CP12: 0.087 | CQ12: 0.12 | CR12: 0.096 | CS12: 0.105 | CT12: 0.04 | CU12: 0.049635 | CV12: 0.070578 | CW12: 0.11299 | CX12: 0.11806 | CY12: 0.096177 | CZ12: 0.130517 | DA12: 0.13625 | DB12: 0.110493 | DC12: 0.09651 | DD12: 0.112811 | DE12: 0.069553 | DF12: 0.066723 | DG12: 0.053642 | DH12: 0.107873 | DI12: 0.15288 | DJ12: 0.117727 | DK12: 0.122524 | DL12: 0.14708 | DM12: 0.159277 | DN12: 0.14217 | DO12: 0.121715 | DP12: 0.088742 | DQ12: 0.079734 | DR12: 0.047817 | DS12: -0.026861 | DT12: 0.101559 | DU12: 0.124075 | DV12: 0.012024 | DW12: 0.205484 | DX12: 0.16091 | DY12: 0.019985 | DZ12: 0.298272 | EA12: 0.136951 | EB12: 0.12126 | EC12: 0.072306 | ED12: 0.043852 | EE12: 0.054685 | EF12: 0.098406 | EG12: 0.10854 | EH12: 0.170565 | EI12: 0.156555 | EJ12: 0.197492 | EK12: 0.168866 | EL12: 0.213764 | EM12: 0.128753 | EN12: 0.163998 | EO12: 0.094907 | EP12: 0.083112 | EQ12: 0.126051 | ER12: 0.229529 | ES12: 0.274106 | ET12: 0.396381 | EU12: 0.478436 | EV12: 0.479391 | EW12: 0.538064 | EX12: 0.533652 | EY12: 0.489809 | EZ12: 0.419306 | FA12: 0.317988 | FB12: 0.278739 | FC12: 0.331772 | FD12: 0.405857 | FE12: 0.562187 | FF12: 0.715348 | FG12: 0.856797 | FH12: 0.976934 | FI12: 1.140896 | FJ12: 1.017998 | FK12: 0.915326 | FL12: 0.809065 | FM12: 0.531804 | FN12: 0.666121 | FO12: 0.575979 | FP12: 0.833369 | FQ12: 1.127006 | FR12: 1.376597 | FS12: 1.638065 | FT12: 1.936569 | FU12: 2.015126 | FV12: 2.030072 | FW12: 1.850632 | FX12: 1.706128 | FY12: 1.375854 | FZ12: 1.328614 | GA12: 1.310038 | GB12: 1.59649 | GC12: 2.752105 | GD12: 2.916883 | GE12: 3.637065 | GF12: 4.270227 | GG12: 4.396409 | GH12: 4.542723 | GI12: 4.291025 | GJ12: 3.943208 | GK12: 3.248179 | GL12: 3.183997 | GM12: 2.56564 | GN12: 4.341388 | GO12: 5.163743 | GP12: 7.314716 | GQ12: 8.774512 | GR12: 10.192 | GS12: 11.021 | GT12: 13.52 | GU12: 11.63 | GV12: 9.949 | GW12: 8.077 | GX12: 9.826 | GY12: 9.686 | GZ12: 12.005 | HA12: 20.551 | HB12: 24.491 | HC12: 34.18 | HD12: 38.843 | HE12: 49.655 | HF12: 53.862 | HG12: 58.231 | HH12: 55.535 | HI12: 52.622 | HJ12: 52.916 | HK12: 57.421 | HL12: 70.549 | HM12: 104.433 | HN12: 126.235 | HO12: 131.754 | HP12: 189.707 | HQ12: 232.234 | HR12: 288.112 | HS12: 317.111 | HT12: 320.166 | HU12: 324.321 | HV12: 244.027 | HW12: 248.703 | HX12: 380.174 | HY12: 508.662 | HZ12: 546.455 | IA12: 647.317 | IB12: 618.528 | IC12: 690.862 | ID12: 637.125 | IE12: 492.289 | IF12: 482.285 | IG12: 345.4 | IH12: 231.205 | II12: 248.575 | IJ12: 289.95 | IK12: 458.217 | IL12: 565.84 | IM12: 683.248 | IN12: 656.766 | IO12: 752.89 | IP12: 691.532 | IQ12: 605.388 | IR12: 525.855 | IS12: 364.052 | IT12: 297.469
B13: Solar térmica | C13: - | D13: - | E13: - | F13: - | G13: - | H13: - | I13: - | J13: - | K13: - | L13: - | M13: - | N13: - | O13: - | P13: - | Q13: - | R13: - | S13: - | T13: - | U13: - | V13: - | W13: - | X13: - | Y13: - | Z13: - | AA13: - | AB13: - | AC13: - | AD13: - | AE13: - | AF13: - | AG13: - | AH13: - | AI13: - | AJ13: - | AK13: - | AL13: - | AM13: - | AN13: - | AO13: - | AP13: - | AQ13: - | AR13: - | AS13: - | AT13: - | AU13: - | AV13: - | AW13: - | AX13: - | AY13: - | AZ13: - | BA13: - | BB13: - | BC13: - | BD13: - | BE13: - | BF13: - | BG13: - | BH13: - | BI13: - | BJ13: - | BK13: - | BL13: - | BM13: - | BN13: - | BO13: - | BP13: - | BQ13: - | BR13: - | BS13: - | BT13: - | BU13: - | BV13: - | BW13: - | BX13: - | BY13: - | BZ13: - | CA13: - | CB13: - | CC13: - | CD13: - | CE13: - | CF13: - | CG13: - | CH13: - | CI13: - | CJ13: - | CK13: - | CL13: - | CM13: - | CN13: - | CO13: - | CP13: - | CQ13: - | CR13: - | CS13: - | CT13: - | CU13: - | CV13: - | CW13: - | CX13: - | CY13: - | CZ13: - | DA13: - | DB13: - | DC13: - | DD13: - | DE13: - | DF13: - | DG13: - | DH13: - | DI13: - | DJ13: - | DK13: - | DL13: - | DM13: - | DN13: - | DO13: - | DP13: - | DQ13: - | DR13: - | DS13: - | DT13: - | DU13: - | DV13: - | DW13: - | DX13: - | DY13: - | DZ13: - | EA13: - | EB13: - | EC13: - | ED13: - | EE13: - | EF13: - | EG13: - | EH13: - | EI13: - | EJ13: - | EK13: - | EL13: - | EM13: - | EN13: - | EO13: - | EP13: - | EQ13: - | ER13: - | ES13: - | ET13: - | EU13: - | EV13: - | EW13: - | EX13: - | EY13: - | EZ13: - | FA13: - | FB13: - | FC13: - | FD13: - | FE13: - | FF13: - | FG13: - | FH13: - | FI13: - | FJ13: - | FK13: - | FL13: - | FM13: - | FN13: - | FO13: - | FP13: - | FQ13: - | FR13: - | FS13: - | FT13: - | FU13: - | FV13: - | FW13: - | FX13: - | FY13: - | FZ13: - | GA13: - | GB13: - | GC13: - | GD13: - | GE13: - | GF13: - | GG13: - | GH13: - | GI13: - | GJ13: - | GK13: - | GL13: - | GM13: 0 | GN13: 0 | GO13: 0 | GP13: 0 | GQ13: 0 | GR13: 0 | GS13: 0 | GT13: 0 | GU13: 0 | GV13: 0 | GW13: 0 | GX13: 0 | GY13: 0 | GZ13: 0 | HA13: 0.431 | HB13: 0.342 | HC13: 0.558 | HD13: 0.883 | HE13: 1.256 | HF13: 1.116 | HG13: 0.639 | HH13: 1.214 | HI13: 0.997 | HJ13: 0.191 | HK13: 1.084 | HL13: 0.797 | HM13: 1.461 | HN13: 0.958 | HO13: 0.942 | HP13: 1.963 | HQ13: 2.038 | HR13: 1.98 | HS13: 0.859 | HT13: 0.866 | HU13: 1.27 | HV13: 1.16 | HW13: 0.69 | HX13: 1.236 | HY13: 2.323 | HZ13: 7.204 | IA13: 7.658 | IB13: 6.752 | IC13: 12.414 | ID13: 23.868 | IE13: 17.539 | IF13: 23.446 | IG13: 16.183 | IH13: 10.51 | II13: 13.152 | IJ13: 11.682 | IK13: 23.732 | IL13: 36.92 | IM13: 69.084 | IN13: 72.532 | IO13: 104.59 | IP13: 121.9 | IQ13: 100.917 | IR13: 71.745 | IS13: 31.619 | IT13: 33.747
B14: Térmica renovable/Otras renovables | C14: - | D14: - | E14: - | F14: - | G14: - | H14: - | I14: - | J14: - | K14: - | L14: - | M14: - | N14: - | O14: - | P14: - | Q14: - | R14: - | S14: - | T14: - | U14: - | V14: - | W14: - | X14: 0.479 | Y14: 0.195 | Z14: 0.18 | AA14: 0.226 | AB14: 0.185 | AC14: 0.209 | AD14: 0.186 | AE14: 0.219 | AF14: 2.491 | AG14: 0.855 | AH14: 1.652 | AI14: 2.195 | AJ14: 3.186 | AK14: 2.852 | AL14: 2.293 | AM14: 2.747 | AN14: 4.291 | AO14: 5.55 | AP14: 5.08 | AQ14: 5.191 | AR14: 4.069 | AS14: 4.405 | AT14: 5.055 | AU14: 4.77 | AV14: 5.999 | AW14: 6.529 | AX14: 5.136 | AY14: 6.182 | AZ14: 4.201 | BA14: 7.788 | BB14: 12.483 | BC14: 22.434 | BD14: 14.593 | BE14: 25.895 | BF14: 34.064 | BG14: 35.963 | BH14: 40.081 | BI14: 55.065 | BJ14: 63.701 | BK14: 52.516 | BL14: 54.169 | BM14: 59.649 | BN14: 59.275 | BO14: 60.63 | BP14: 38.39 | BQ14: 56.09 | BR14: 56.16 | BS14: 55.471 | BT14: 65.761 | BU14: 51.017 | BV14: 62.141 | BW14: 61.97 | BX14: 55.767 | BY14: 73.194 | BZ14: 69.39 | CA14: 67.607 | CB14: 74.481 | CC14: 76.311 | CD14: 76.089 | CE14: 74.905 | CF14: 70.728 | CG14: 57.923 | CH14: 56.715 | CI14: 56.474 | CJ14: 46.637 | CK14: 55.156 | CL14: 57.041 | CM14: 57.334 | CN14: 33.856 | CO14: 57.003 | CP14: 53.272 | CQ14: 57.104 | CR14: 61.066 | CS14: 58.17 | CT14: 55.262 | CU14: 29.002801 | CV14: 53.305843 | CW14: 61.549511 | CX14: 62.649003 | CY14: 69.878224 | CZ14: 68.57453 | DA14: 70.406914 | DB14: 67.345651 | DC14: 60.385234 | DD14: 67.235012 | DE14: 69.010129 | DF14: 69.403475 | DG14: 71.806642 | DH14: 67.740664 | DI14: 76.241169 | DJ14: 70.556648 | DK14: 71.228353 | DL14: 64.031022 | DM14: 80.270443 | DN14: 79.088938 | DO14: 85.153421 | DP14: 84.480839 | DQ14: 82.713458 | DR14: 74.942079 | DS14: 77.705164 | DT14: 72.094493 | DU14: 81.5787 | DV14: 75.639545 | DW14: 57.155141 | DX14: 64.878718 | DY14: 80.062335 | DZ14: 78.219893 | EA14: 86.225769 | EB14: 91.935601 | EC14: 96.959691 | ED14: 98.655336 | EE14: 114.03217 | EF14: 103.259727 | EG14: 115.38466 | EH14: 106.780576 | EI14: 116.226635 | EJ14: 163.253433 | EK14: 164.156034 | EL14: 142.644941 | EM14: 174.912517 | EN14: 184.368091 | EO14: 170.800963 | EP14: 182.638681 | EQ14: 102.326662 | ER14: 103.972908 | ES14: 114.937767 | ET14: 113.405046 | EU14: 116.821017 | EV14: 106.527145 | EW14: 125.927582 | EX14: 138.275534 | EY14: 128.415374 | EZ14: 130.569012 | FA14: 128.796967 | FB14: 143.040272 | FC14: 125.499869 | FD14: 125.666718 | FE14: 141.367661 | FF14: 136.225564 | FG14: 148.434649 | FH14: 135.674954 | FI14: 145.85112 | FJ14: 152.329642 | FK14: 154.938327 | FL14: 162.073384 | FM14: 144.46359 | FN14: 164.51626 | FO14: 165.781692 | FP14: 141.425287 | FQ14: 163.310002 | FR14: 158.001119 | FS14: 158.154288 | FT14: 141.570139 | FU14: 142.667679 | FV14: 139.216976 | FW14: 148.774135 | FX14: 152.856929 | FY14: 147.726873 | FZ14: 158.608513 | GA14: 174.85461 | GB14: 150.827771 | GC14: 176.756115 | GD14: 159.635672 | GE14: 172.117306 | GF14: 162.540982 | GG14: 167.519914 | GH14: 173.003408 | GI14: 160.254506 | GJ14: 152.959924 | GK14: 165.982026 | GL14: 171.405836 | GM14: 172.08672 | GN14: 164.504679 | GO14: 179.217148 | GP14: 172.157263 | GQ14: 184.666872 | GR14: 201.174 | GS14: 194.67 | GT14: 180.725 | GU14: 181.291 | GV14: 197.311 | GW14: 176.127 | GX14: 178.676 | GY14: 195.417 | GZ14: 170.868 | HA14: 196.962 | HB14: 184.118 | HC14: 197.114 | HD14: 193.247 | HE14: 203.052 | HF14: 202.649 | HG14: 191.273 | HH14: 224.429 | HI14: 204.157 | HJ14: 212.399 | HK14: 218.304 | HL14: 215.698 | HM14: 223.7 | HN14: 221.483 | HO14: 218.887 | HP14: 220.451 | HQ14: 223.504 | HR14: 218.31 | HS14: 211.555 | HT14: 229.725 | HU14: 225.656 | HV14: 224.216 | HW14: 243.686 | HX14: 231.253 | HY14: 252.346 | HZ14: 275.297 | IA14: 250.078 | IB14: 229.126 | IC14: 236.274 | ID14: 235.859 | IE14: 264.076 | IF14: 325.339 | IG14: 249.01 | IH14: 251.943 | II14: 250.94 | IJ14: 226.424 | IK14: 245.998 | IL14: 252.761 | IM14: 274.925 | IN14: 268.961 | IO14: 268.03 | IP14: 278.804 | IQ14: 262.937 | IR14: 279.287 | IS14: 269.121 | IT14: 293.611
B15: Térmica no renovable/Cogeneración y resto/Cogeneración | C15: 35.68500001 | D15: 38.35100002 | E15: 45.94500001 | F15: 29.54299999 | G15: 39.72400004 | H15: 36.554 | I15: 59.266 | J15: 54.41599999 | K15: 70.54800001 | L15: 79.42600001 | M15: 86.14999999 | N15: 79.24899999 | O15: 95.989 | P15: 93.531 | Q15: 115.056 | R15: 116.111 | S15: 113.29 | T15: 97.624 | U15: 119.55 | V15: 109.126 | W15: 134.507 | X15: 150.722 | Y15: 140.301 | Z15: 150.177 | AA15: 158.544 | AB15: 156.649 | AC15: 153.353 | AD15: 133.677 | AE15: 150.357 | AF15: 147.037 | AG15: 147.135 | AH15: 155.598 | AI15: 159.136 | AJ15: 169.633 | AK15: 179.527 | AL15: 192.236 | AM15: 216.233 | AN15: 207.395 | AO15: 238.976 | AP15: 228.409 | AQ15: 230.781 | AR15: 243.422 | AS15: 273.033 | AT15: 222.175 | AU15: 290.868 | AV15: 356.511 | AW15: 393.027 | AX15: 406.674 | AY15: 424.012 | AZ15: 397.51 | BA15: 428.83 | BB15: 427.683 | BC15: 448.762 | BD15: 440.017 | BE15: 418.092 | BF15: 419.04 | BG15: 459.931 | BH15: 463.43 | BI15: 473.756 | BJ15: 510.9281 | BK15: 488.055 | BL15: 461.944 | BM15: 538.602 | BN15: 514.274 | BO15: 531.615 | BP15: 523.037 | BQ15: 524.917 | BR15: 510.664 | BS15: 559.844 | BT15: 605.287 | BU15: 625.356 | BV15: 657.158 | BW15: 649.314 | BX15: 674.235 | BY15: 693.763 | BZ15: 721.263 | CA15: 706.927 | CB15: 708.297 | CC15: 764.043 | CD15: 721.083 | CE15: 746.326 | CF15: 827.944 | CG15: 871.216 | CH15: 907.409 | CI15: 907.43 | CJ15: 826.938 | CK15: 929.049 | CL15: 911.043 | CM15: 932.339 | CN15: 902.096 | CO15: 984.035 | CP15: 910.409 | CQ15: 947.55 | CR15: 1078.514 | CS15: 1050.981 | CT15: 1082.232 | CU15: 1132.463466 | CV15: 1055.32629 | CW15: 1179.48246 | CX15: 1140.456137 | CY15: 1143.38163 | CZ15: 1071.931957 | DA15: 1169.521431 | DB15: 1090.506883 | DC15: 1176.458807 | DD15: 1306.934093 | DE15: 1295.514473 | DF15: 1406.303126 | DG15: 1379.875255 | DH15: 1318.561516 | DI15: 1436.056923 | DJ15: 1384.72701 | DK15: 1425.332244 | DL15: 1390.930151 | DM15: 1434.844378 | DN15: 1350.318336 | DO15: 1395.920991 | DP15: 1537.403306 | DQ15: 1510.153183 | DR15: 1573.14894 | DS15: 1568.016331 | DT15: 1437.863509 | DU15: 1555.596493 | DV15: 1469.593771 | DW15: 1469.027108 | DX15: 1426.760806 | DY15: 1439.926313 | DZ15: 1348.346318 | EA15: 1376.726088 | EB15: 1451.718781 | EC15: 1351.805972 | ED15: 1484.173324 | EE15: 1509.982166 | EF15: 1420.973025 | EG15: 1480.331908 | EH15: 1391.977328 | EI15: 1478.901733 | EJ15: 1418.097798 | EK15: 1481.533747 | EL15: 1315.029805 | EM15: 1436.074999 | EN15: 1554.644648 | EO15: 1587.637579 | EP15: 1581.503447 | EQ15: 1753.946643 | ER15: 1624.383565 | ES15: 1752.277795 | ET15: 1751.529213 | EU15: 1747.522773 | EV15: 1607.281976 | EW15: 1731.76718 | EX15: 1586.239701 | EY15: 1675.706324 | EZ15: 1903.924717 | FA15: 1846.961895 | FB15: 1850.110454 | FC15: 1949.896401 | FD15: 1795.454235 | FE15: 1917.128936 | FF15: 1863.546696 | FG15: 1892.492864 | FH15: 1805.79937 | FI15: 1913.795834 | FJ15: 1744.961886 | FK15: 1903.913547 | FL15: 2075.884703 | FM15: 1958.696567 | FN15: 2023.77594 | FO15: 2046.926037 | FP15: 1962.114682 | FQ15: 2107.656392 | FR15: 1979.842787 | FS15: 1934.491312 | FT15: 1817.996573 | FU15: 1921.340511 | FV15: 1769.469702 | FW15: 1826.677202 | FX15: 1981.941919 | FY15: 2074.231954 | FZ15: 2106.015132 | GA15: 2043.023494 | GB15: 1951.798355 | GC15: 2095.811333 | GD15: 2039.99882 | GE15: 2040.297126 | GF15: 1919.581508 | GG15: 1935.739163 | GH15: 1786.162398 | GI15: 1917.189845 | GJ15: 1838.219428 | GK15: 1867.242601 | GL15: 1828.639612 | GM15: 1998.073836 | GN15: 1940.378567 | GO15: 2060.451941 | GP15: 1910.70463 | GQ15: 1907.436391 | GR15: 1747.218 | GS15: 1731.357 | GT15: 1635.847 | GU15: 1728.153 | GV15: 1850.389 | GW15: 1883.634 | GX15: 1925.296 | GY15: 1984.567 | GZ15: 1757.03 | HA15: 1865.888 | HB15: 1831.562 | HC15: 1829.89 | HD15: 1893.941 | HE15: 1990.347 | HF15: 1868.579 | HG15: 1956.135 | HH15: 2102.763 | HI15: 2100.066 | HJ15: 2146.989 | HK15: 2251.917 | HL15: 2226.859 | HM15: 2271.986 | HN15: 2229.342 | HO15: 2106.663 | HP15: 2078.812 | HQ15: 2217.977 | HR15: 2016.659 | HS15: 2177.9 | HT15: 2358.957 | HU15: 2314.276 | HV15: 2324.628 | HW15: 2421.963 | HX15: 2242.406 | HY15: 2406.646 | HZ15: 2338.367 | IA15: 2351.126 | IB15: 2309.733 | IC15: 2396.594 | ID15: 2034.392 | IE15: 2337.3 | IF15: 2464.42 | IG15: 2571.26 | IH15: 2591.727 | II15: 2661.214 | IJ15: 2477.021 | IK15: 2616.777 | IL15: 2550.354 | IM15: 2581.357 | IN15: 2541.783 | IO15: 2613.673 | IP15: 2153.408 | IQ15: 2523.764 | IR15: 2647.117 | IS15: 2659.682 | IT15: 2762.902
B16: Residuos no renovables | C16: - | D16: - | E16: - | F16: - | G16: - | H16: - | I16: - | J16: - | K16: - | L16: - | M16: - | N16: - | O16: - | P16: - | Q16: - | R16: - | S16: - | T16: - | U16: - | V16: - | W16: - | X16: - | Y16: - | Z16: - | AA16: - | AB16: - | AC16: - | AD16: - | AE16: - | AF16: - | AG16: - | AH16: - | AI16: - | AJ16: - | AK16: - | AL16: - | AM16: - | AN16: - | AO16: - | AP16: - | AQ16: - | AR16: - | AS16: - | AT16: - | AU16: - | AV16: - | AW16: - | AX16: - | AY16: - | AZ16: - | BA16: - | BB16: - | BC16: - | BD16: - | BE16: - | BF16: - | BG16: - | BH16: - | BI16: - | BJ16: - | BK16: - | BL16: - | BM16: - | BN16: - | BO16: - | BP16: - | BQ16: - | BR16: - | BS16: - | BT16: - | BU16: - | BV16: - | BW16: - | BX16: - | BY16: - | BZ16: - | CA16: - | CB16: - | CC16: - | CD16: - | CE16: - | CF16: - | CG16: - | CH16: - | CI16: - | CJ16: - | CK16: - | CL16: - | CM16: - | CN16: - | CO16: - | CP16: - | CQ16: - | CR16: - | CS16: - | CT16: - | CU16: - | CV16: - | CW16: - | CX16: - | CY16: - | CZ16: - | DA16: - | DB16: - | DC16: - | DD16: - | DE16: - | DF16: - | DG16: - | DH16: - | DI16: - | DJ16: - | DK16: - | DL16: - | DM16: - | DN16: - | DO16: - | DP16: - | DQ16: - | DR16: - | DS16: - | DT16: - | DU16: - | DV16: - | DW16: - | DX16: - | DY16: - | DZ16: - | EA16: - | EB16: - | EC16: - | ED16: - | EE16: - | EF16: - | EG16: - | EH16: - | EI16: - | EJ16: - | EK16: - | EL16: - | EM16: - | EN16: - | EO16: - | EP16: - | EQ16: - | ER16: - | ES16: - | ET16: - | EU16: - | EV16: - | EW16: - | EX16: - | EY16: - | EZ16: - | FA16: - | FB16: - | FC16: - | FD16: - | FE16: - | FF16: - | FG16: - | FH16: - | FI16: - | FJ16: - | FK16: - | FL16: - | FM16: - | FN16: - | FO16: - | FP16: - | FQ16: - | FR16: - | FS16: - | FT16: - | FU16: - | FV16: - | FW16: - | FX16: - | FY16: - | FZ16: - | GA16: - | GB16: - | GC16: - | GD16: - | GE16: - | GF16: - | GG16: - | GH16: - | GI16: - | GJ16: - | GK16: - | GL16: - | GM16: - | GN16: - | GO16: - | GP16: - | GQ16: - | GR16: - | GS16: - | GT16: - | GU16: - | GV16: - | GW16: - | GX16: - | GY16: - | GZ16: - | HA16: - | HB16: - | HC16: - | HD16: - | HE16: - | HF16: - | HG16: - | HH16: - | HI16: - | HJ16: - | HK16: - | HL16: - | HM16: - | HN16: - | HO16: - | HP16: - | HQ16: - | HR16: - | HS16: - | HT16: - | HU16: - | HV16: - | HW16: - | HX16: - | HY16: - | HZ16: - | IA16: - | IB16: - | IC16: - | ID16: - | IE16: - | IF16: - | IG16: - | IH16: - | II16: - | IJ16: - | IK16: - | IL16: - | IM16: - | IN16: - | IO16: - | IP16: - | IQ16: - | IR16: - | IS16: - | IT16: -
B17: Residuos renovables | C17: - | D17: - | E17: - | F17: - | G17: - | H17: - | I17: - | J17: - | K17: - | L17: - | M17: - | N17: - | O17: - | P17: - | Q17: - | R17: - | S17: - | T17: - | U17: - | V17: - | W17: - | X17: - | Y17: - | Z17: - | AA17: - | AB17: - | AC17: - | AD17: - | AE17: - | AF17: - | AG17: - | AH17: - | AI17: - | AJ17: - | AK17: - | AL17: - | AM17: - | AN17: - | AO17: - | AP17: - | AQ17: - | AR17: - | AS17: - | AT17: - | AU17: - | AV17: - | AW17: - | AX17: - | AY17: - | AZ17: - | BA17: - | BB17: - | BC17: - | BD17: - | BE17: - | BF17: - | BG17: - | BH17: - | BI17: - | BJ17: - | BK17: - | BL17: - | BM17: - | BN17: - | BO17: - | BP17: - | BQ17: - | BR17: - | BS17: - | BT17: - | BU17: - | BV17: - | BW17: - | BX17: - | BY17: - | BZ17: - | CA17: - | CB17: - | CC17: - | CD17: - | CE17: - | CF17: - | CG17: - | CH17: - | CI17: - | CJ17: - | CK17: - | CL17: - | CM17: - | CN17: - | CO17: - | CP17: - | CQ17: - | CR17: - | CS17: - | CT17: - | CU17: - | CV17: - | CW17: - | CX17: - | CY17: - | CZ17: - | DA17: - | DB17: - | DC17: - | DD17: - | DE17: - | DF17: - | DG17: - | DH17: - | DI17: - | DJ17: - | DK17: - | DL17: - | DM17: - | DN17: - | DO17: - | DP17: - | DQ17: - | DR17: - | DS17: - | DT17: - | DU17: - | DV17: - | DW17: - | DX17: - | DY17: - | DZ17: - | EA17: - | EB17: - | EC17: - | ED17: - | EE17: - | EF17: - | EG17: - | EH17: - | EI17: - | EJ17: - | EK17: - | EL17: - | EM17: - | EN17: - | EO17: - | EP17: - | EQ17: - | ER17: - | ES17: - | ET17: - | EU17: - | EV17: - | EW17: - | EX17: - | EY17: - | EZ17: - | FA17: - | FB17: - | FC17: - | FD17: - | FE17: - | FF17: - | FG17: - | FH17: - | FI17: - | FJ17: - | FK17: - | FL17: - | FM17: - | FN17: - | FO17: - | FP17: - | FQ17: - | FR17: - | FS17: - | FT17: - | FU17: - | FV17: - | FW17: - | FX17: - | FY17: - | FZ17: - | GA17: - | GB17: - | GC17: - | GD17: - | GE17: - | GF17: - | GG17: - | GH17: - | GI17: - | GJ17: - | GK17: - | GL17: - | GM17: - | GN17: - | GO17: - | GP17: - | GQ17: - | GR17: - | GS17: - | GT17: - | GU17: - | GV17: - | GW17: - | GX17: - | GY17: - | GZ17: - | HA17: - | HB17: - | HC17: - | HD17: - | HE17: - | HF17: - | HG17: - | HH17: - | HI17: - | HJ17: - | HK17: - | HL17: - | HM17: - | HN17: - | HO17: - | HP17: - | HQ17: - | HR17: - | HS17: - | HT17: - | HU17: - | HV17: - | HW17: - | HX17: - | HY17: - | HZ17: - | IA17: - | IB17: - | IC17: - | ID17: - | IE17: - | IF17: - | IG17: - | IH17: - | II17: - | IJ17: - | IK17: - | IL17: - | IM17: - | IN17: - | IO17: - | IP17: - | IQ17: - | IR17: - | IS17: - | IT17: -
B18: Régimen especial | C18: 141.792 | D18: 130.856 | E18: 110.855 | F18: 120.561 | G18: 123.921 | H18: 127.973 | I18: 114.985 | J18: 112.234 | K18: 104.691 | L18: 149.23 | M18: 196.367 | N18: 206.211 | O18: 275.319 | P18: 216.485 | Q18: 330.279 | R18: 306.782 | S18: 308.685 | T18: 242.418 | U18: 219.295 | V18: 189.727 | W18: 212.86 | X18: 245.323 | Y18: 282.755 | Z18: 314.556 | AA18: 285.177 | AB18: 247.5 | AC18: 268.758 | AD18: 327.116 | AE18: 345.474 | AF18: 354.658 | AG18: 330.494 | AH18: 277.137 | AI18: 281.718 | AJ18: 391.427 | AK18: 419.331 | AL18: 501.831 | AM18: 435.028 | AN18: 344.329 | AO18: 424.457 | AP18: 433.51 | AQ18: 489.602 | AR18: 463.648 | AS18: 437.682 | AT18: 338.119 | AU18: 410.583 | AV18: 614.229 | AW18: 635.898 | AX18: 670.237 | AY18: 780.756 | AZ18: 683.316 | BA18: 707.5 | BB18: 666.926 | BC18: 731.274 | BD18: 633.452 | BE18: 562.516 | BF18: 561.608 | BG18: 609.381 | BH18: 683.066 | BI18: 776.587 | BJ18: 801.483 | BK18: 878.253 | BL18: 845.433 | BM18: 906.188 | BN18: 753.601 | BO18: 777.859 | BP18: 712.863 | BQ18: 710.022 | BR18: 670.617 | BS18: 740.799 | BT18: 786.898 | BU18: 820.033 | BV18: 993.249 | BW18: 1162.132 | BX18: 1146.085 | BY18: 1156.348 | BZ18: 1188.528 | CA18: 1146.938 | CB18: 1052.646 | CC18: 1062.926 | CD18: 987.041 | CE18: 1005.776 | CF18: 1110.664 | CG18: 1195.931 | CH18: 1440.752 | CI18: 1444.364 | CJ18: 1274.815 | CK18: 1298.055 | CL18: 1240.75 | CM18: 1290.856 | CN18: 1258.209 | CO18: 1353.054 | CP18: 1209.009 | CQ18: 1241.296 | CR18: 1363.396 | CS18: 1492.912 | CT18: 1694.282 | CU18: 1739.959 | CV18: 1521.155 | CW18: 1668.366 | CX18: 1703.836 | CY18: 1713.369 | CZ18: 1529.281 | DA18: 1560.788 | DB18: 1486.409 | DC18: 1509.525 | DD18: 1726.744 | DE18: 1696.815 | DF18: 1877.081 | DG18: 1935.169 | DH18: 1893.685 | DI18: 2093.126 | DJ18: 1995.118 | DK18: 2112.97 | DL18: 1963.846 | DM18: 1916.982 | DN18: 1758.697 | DO18: 1864.2 | DP18: 2095.735 | DQ18: 2272.375 | DR18: 2359.32 | DS18: 2281.125 | DT18: 2087.61 | DU18: 2224.895 | DV18: 2397.05 | DW18: 2247.973 | DX18: 2215.574 | DY18: 2134.354 | DZ18: 1941.982 | EA18: 1898.067 | EB18: 2183.652 | EC18: 2360.469 | ED18: 2667.78 | EE18: 2777.721 | EF18: 2583.982 | EG18: 2847.022 | EH18: 2638.617 | EI18: 2496.33 | EJ18: 2343.217 | EK18: 2346.555 | EL18: 2059.681 | EM18: 2404.26 | EN18: 2516.455 | EO18: 2749.792 | EP18: 2514.825 | EQ18: 2769.329 | ER18: 2782.593 | ES18: 3008.798 | ET18: 2845.49 | EU18: 3105.471 | EV18: 2718.444 | EW18: 2787.688 | EX18: 2533.537 | EY18: 2514.394 | EZ18: 3184.534 | FA18: 3423.852 | FB18: 3773.848 | FC18: 4052.093 | FD18: 3372.585 | FE18: 3459.536 | FF18: 3670.767 | FG18: 3473.281 | FH18: 3005.27 | FI18: 3066.107 | FJ18: 2651.728 | FK18: 3049.943 | FL18: 3635.44 | FM18: 3762.45 | FN18: 4201.009 | FO18: 4486.624 | FP18: 3606.45 | FQ18: 4061.165 | FR18: 4205.636 | FS18: 3686.183 | FT18: 3422.459 | FU18: 3372.517 | FV18: 3284.304 | FW18: 3324.778 | FX18: 4017.373 | FY18: 4064.281 | FZ18: 4336.518 | GA18: 4449.166 | GB18: 4141.766 | GC18: 4425.399 | GD18: 4594.518 | GE18: 4146.83 | GF18: 3645.307 | GG18: 3963.152 | GH18: 3795.199 | GI18: 3504.392 | GJ18: 4115.754 | GK18: 4372.404 | GL18: 4813.012 | GM18: 4136.986 | GN18: 4354.97 | GO18: 5600.159 | GP18: 4552.133 | GQ18: 4131.47 | GR18: 3571.546 | GS18: 3335.188 | GT18: 4185.728 | GU18: 3551.03 | GV18: 4704.855 | GW18: 4729.242 | GX18: 4780.034 | GY18: 4684.966 | GZ18: 5290.618 | HA18: 5686.107 | HB18: 3926.588 | HC18: 5176.805 | HD18: 4326.119 | HE18: 4435.131 | HF18: 4802.526 | HG18: 4421.267 | HH18: 4478.454 | HI18: 5300.027 | HJ18: 5019.518 | HK18: 5520.4 | HL18: 4766.069 | HM18: 6995.364 | HN18: 6511.815 | HO18: 4808.686 | HP18: 5157.997 | HQ18: 5180.399 | HR18: 4762.165 | HS18: 5049.59 | HT18: 5582.25 | HU18: 6728.332 | HV18: 6981.839 | HW18: 6939.896 | HX18: 6710.841 | HY18: 6830.338 | HZ18: 6728.423 | IA18: 6531.325 | IB18: 5964.921 | IC18: 6127.626 | ID18: 5449.731 | IE18: 5820.804 | IF18: 6651.63 | IG18: 8440.533 | IH18: 8615.231 | II18: 8230.343 | IJ18: 8244.09 | IK18: 8676.031 | IL18: 6730.89 | IM18: 7916.291 | IN18: 6725.187 | IO18: 6996.919 | IP18: 6482.136 | IQ18: 6075.379 | IR18: 7795.724 | IS18: 8240.193 | IT18: 8711.786
B19: Generación | C19: 13068.149 | D19: 10712.421 | E19: 11526.93 | F19: 10577.742 | G19: 10584.957 | H19: 10924.121 | I19: 11576.189 | J19: 10205.642 | K19: 10945.187 | L19: 11117.694 | M19: 11786.233 | N19: 12993.084 | O19: 13514.699 | P19: 12300.104 | Q19: 11755.675 | R19: 11287.505 | S19: 11439.316 | T19: 11005.69 | U19: 11985.769 | V19: 10503.418 | W19: 11479.372 | X19: 11793.967 | Y19: 12189.306 | Z19: 12628.902 | AA19: 14156.68 | AB19: 12984.095 | AC19: 12650.638 | AD19: 11288.931 | AE19: 11148.397 | AF19: 10639.672 | AG19: 12196.982 | AH19: 10732.736 | AI19: 11459.954 | AJ19: 11873.681 | AK19: 11696.458 | AL19: 12362.296 | AM19: 13140.405 | AN19: 11813.756 | AO19: 12465.811 | AP19: 11039.03 | AQ19: 11048.34 | AR19: 11073.045 | AS19: 11743.634 | AT19: 10934.771 | AU19: 11386.861 | AV19: 11939.681 | AW19: 12382.943 | AX19: 12858.574 | AY19: 13466.399 | AZ19: 12265.461 | BA19: 12065.963 | BB19: 11587.73 | BC19: 11675.844 | BD19: 11945.08 | BE19: 12785.071 | BF19: 11534.761 | BG19: 11819.752 | BH19: 11663.625 | BI19: 11974.652 | BJ19: 12946.662 | BK19: 13831.879 | BL19: 11863.992 | BM19: 13066.032 | BN19: 11607.471 | BO19: 12152.262 | BP19: 12204.221 | BQ19: 12851.4 | BR19: 11855.101 | BS19: 12021.493 | BT19: 12106.901 | BU19: 12398.128 | BV19: 13367.204 | BW19: 14632.869 | BX19: 13945.298 | BY19: 13471.495 | BZ19: 11789.805 | CA19: 12359.221 | CB19: 12561.457 | CC19: 13248.593 | CD19: 11954.5 | CE19: 12277.069 | CF19: 13045.433 | CG19: 13347.524 | CH19: 14037.838 | CI19: 15527.942 | CJ19: 12746.785 | CK19: 13176.474 | CL19: 13369.68 | CM19: 13595.045 | CN19: 13407.128 | CO19: 14362.291 | CP19: 13603.636 | CQ19: 13935.167 | CR19: 13886.026 | CS19: 14129.524 | CT19: 15455.874 | CU19: 15109.875 | CV19: 13490.18 | CW19: 14087.417 | CX19: 13538.297 | CY19: 13540.958 | CZ19: 13971.812 | DA19: 15202.645 | DB19: 13813.061 | DC19: 14383.621 | DD19: 14269.794 | DE19: 14631.217 | DF19: 16198.317 | DG19: 16393.576 | DH19: 14943.592 | DI19: 15171.591 | DJ19: 13533.998 | DK19: 14228.531 | DL19: 14665.97 | DM19: 15959.913 | DN19: 14400.724 | DO19: 15119.388 | DP19: 15000.137 | DQ19: 15946.373 | DR19: 16895.771 | DS19: 18017.434 | DT19: 15585.12 | DU19: 16304.346 | DV19: 15194.267 | DW19: 15498.644 | DX19: 16248.064 | DY19: 16637.701 | DZ19: 15672.647 | EA19: 15915.037 | EB19: 15880.278 | EC19: 16856.034 | ED19: 17647.404 | EE19: 18866.727 | EF19: 16777.413 | EG19: 17710.691 | EH19: 15284.262 | EI19: 16326.837 | EJ19: 16839.431 | EK19: 17514.252 | EL19: 16757.473 | EM19: 16576.55 | EN19: 16954.269 | EO19: 17739.712 | EP19: 18941.038 | EQ19: 19462.333 | ER19: 16854.197 | ES19: 17381.064 | ET19: 16757.015 | EU19: 17493.512 | EV19: 17815.729 | EW19: 18588.49 | EX19: 16916.016 | EY19: 17135.423 | EZ19: 17907.848 | FA19: 17931.371 | FB19: 18946.023 | FC19: 20760.522 | FD19: 19099.053 | FE19: 18638.847 | FF19: 17263.099 | FG19: 17888.825 | FH19: 18917.374 | FI19: 20237.305 | FJ19: 19058.73 | FK19: 18462.04 | FL19: 19062.332 | FM19: 19229.073 | FN19: 20636.55 | FO19: 21054.75 | FP19: 20055.497 | FQ19: 21160.099 | FR19: 19211.658 | FS19: 19216.088 | FT19: 20130.01 | FU19: 21300.503 | FV19: 19825.389 | FW19: 19739.351 | FX19: 19876.998 | FY19: 20615.838 | FZ19: 21424.022 | GA19: 22692.537 | GB19: 21115.352 | GC19: 21470.211 | GD19: 19432.025 | GE19: 19670.705 | GF19: 20959.041 | GG19: 22200.638 | GH19: 20168.889 | GI19: 20510.815 | GJ19: 20377.225 | GK19: 21805.76 | GL19: 23481.207 | GM19: 24399.52 | GN19: 22365.762 | GO19: 23141.828 | GP19: 18945.897 | GQ19: 20667.129 | GR19: 21482.522 | GS19: 23929.236 | GT19: 20940.143 | GU19: 21636.496 | GV19: 21226.624 | GW19: 21411.328 | GX19: 23455.365 | GY19: 24436.344 | GZ19: 21814.577 | HA19: 23193.162 | HB19: 20815.392 | HC19: 21756.008 | HD19: 21659.672 | HE19: 23475.06 | HF19: 21797.81 | HG19: 22091.448 | HH19: 22685.047 | HI19: 23948.772 | HJ19: 24945.221 | HK19: 25320.773 | HL19: 23621.496 | HM19: 23913.153 | HN19: 23007.167 | HO19: 21918.264 | HP19: 22418.225 | HQ19: 24401.398 | HR19: 22716.502 | HS19: 22244.034 | HT19: 22523.435 | HU19: 23406.497 | HV19: 24556.807 | HW19: 25160.519 | HX19: 21751.801 | HY19: 21400.016 | HZ19: 20032.678 | IA19: 20326.695 | IB19: 21533.944 | IC19: 23610.472 | ID19: 22211.13 | IE19: 21366.215 | IF19: 21550.293 | IG19: 21938.98 | IH19: 23657.672 | II19: 24812.23695 | IJ19: 22971.82612 | IK19: 23920.34355 | IL19: 20967.04865 | IM19: 21245.38048 | IN19: 21489.92774 | IO19: 24344.8541 | IP19: 22445.84958 | IQ19: 21899.86731 | IR19: 22140.17422 | IS19: 22927.36264 | IT19: 24152.54039
B20: Consumos en bombeo | C20: -230.679 | D20: -122.288 | E20: -14.289 | F20: -28.145 | G20: -43.486 | H20: -13.114 | I20: -22.104 | J20: -49.978 | K20: -160.713 | L20: -155.501 | M20: -44.507 | N20: -154.468 | O20: -268.908 | P20: -218.383 | Q20: -171.686 | R20: -12.201 | S20: -15.629 | T20: -41.384 | U20: -57.712 | V20: -72.09 | W20: -112.773 | X20: -80.879 | Y20: -188.527 | Z20: -192.561 | AA20: -261.992 | AB20: -144.315 | AC20: -170.44 | AD20: -297.593 | AE20: -198.615 | AF20: -246.854 | AG20: -277.393 | AH20: -274.778 | AI20: -274.414 | AJ20: -292.157 | AK20: -181.749 | AL20: -170.405 | AM20: -138.741 | AN20: -112.689 | AO20: -188.994 | AP20: -202.544 | AQ20: -227.069 | AR20: -134.422 | AS20: -139.846 | AT20: -190.283 | AU20: -202.364 | AV20: -190.647 | AW20: -85.039 | AX20: -74.921 | AY20: -304.076 | AZ20: -125.633 | BA20: -16.009 | BB20: -34.589 | BC20: -53.005 | BD20: -40 | BE20: -112.842 | BF20: -29.006 | BG20: -168.634 | BH20: -188.043 | BI20: -112.602 | BJ20: -160.95 | BK20: -229.933 | BL20: -151.828 | BM20: -149.914 | BN20: -139.099 | BO20: -126.803 | BP20: -126.251 | BQ20: -163.945 | BR20: -157.261 | BS20: -174.299 | BT20: -178.249 | BU20: -166.69 | BV20: -317.454 | BW20: -761.345 | BX20: -190.414 | BY20: -30.027 | BZ20: -33.853 | CA20: -44.028 | CB20: -72.871 | CC20: -66.354 | CD20: -12.074 | CE20: -23.203 | CF20: -39.189 | CG20: -69.679 | CH20: -179.581 | CI20: -252.936 | CJ20: -37.278 | CK20: -12.262 | CL20: -21.497 | CM20: -81.886 | CN20: -85.457 | CO20: -118.164 | CP20: -176.339 | CQ20: -190.051 | CR20: -144.696 | CS20: -266.061 | CT20: -374.262 | CU20: -277.155 | CV20: -134.838 | CW20: -111.211 | CX20: -214.861 | CY20: -181.761 | CZ20: -114.558 | DA20: -203.373 | DB20: -319.925 | DC20: -193.376 | DD20: -171.723 | DE20: -213.786 | DF20: -451.187 | DG20: -468.772 | DH20: -342.761 | DI20: -234.381 | DJ20: -215.759 | DK20: -219.826 | DL20: -177.636 | DM20: -214.518 | DN20: -260.838 | DO20: -340.931 | DP20: -489.764 | DQ20: -316.026 | DR20: -385.168 | DS20: -368.592 | DT20: -313.254 | DU20: -345.672 | DV20: -513.572 | DW20: -617.926 | DX20: -330.215 | DY20: -323.442 | DZ20: -246.341 | EA20: -256.832 | EB20: -362.529 | EC20: -451.677 | ED20: -776.834 | EE20: -539.073 | EF20: -307.359 | EG20: -387.497 | EH20: -200.959 | EI20: -214.621 | EJ20: -258.663 | EK20: -303.011 | EL20: -291.532 | EM20: -368.749 | EN20: -364.099 | EO20: -336.146 | EP20: -559.555 | EQ20: -652.852 | ER20: -506.242 | ES20: -466.289 | ET20: -443.393 | EU20: -559.457 | EV20: -628.458 | EW20: -699.813 | EX20: -572.272 | EY20: -597.974 | EZ20: -575.567 | FA20: -570.422 | FB20: -683.943 | FC20: -587.335 | FD20: -379.733 | FE20: -368.65 | FF20: -218.7 | FG20: -265.991 | FH20: -415.715 | FI20: -419.844 | FJ20: -472.319 | FK20: -437.025 | FL20: -390.301 | FM20: -322.124 | FN20: -400.397 | FO20: -404.817 | FP20: -276.12 | FQ20: -339.003 | FR20: -328.995 | FS20: -393.378 | FT20: -425.607 | FU20: -408.312 | FV20: -386.442 | FW20: -387.786 | FX20: -411.484 | FY20: -358.575 | FZ20: -484.188 | GA20: -553.09 | GB20: -432.938 | GC20: -492.587 | GD20: -450.62 | GE20: -643.068 | GF20: -634.527 | GG20: -693.313 | GH20: -446.08 | GI20: -519.718 | GJ20: -482.776 | GK20: -454.591 | GL20: -553.639 | GM20: -586.441 | GN20: -529.919 | GO20: -374.921 | GP20: -305.801 | GQ20: -313.703 | GR20: -370.081 | GS20: -513.356 | GT20: -400.354 | GU20: -486.573 | GV20: -541.523 | GW20: -541.572 | GX20: -384.129 | GY20: -371.776 | GZ20: -395.879 | HA20: -384.168 | HB20: -293.397 | HC20: -397.622 | HD20: -356.254 | HE20: -333.521 | HF20: -371.382 | HG20: -345.925 | HH20: -317.001 | HI20: -384.155 | HJ20: -481.207 | HK20: -430.836 | HL20: -419.305 | HM20: -401.794 | HN20: -219.058 | HO20: -206.073 | HP20: -285.255 | HQ20: -253.782 | HR20: -190.802 | HS20: -226.556 | HT20: -297.145 | HU20: -411.256 | HV20: -460.64 | HW20: -492.227 | HX20: -392.035 | HY20: -281.472 | HZ20: -255.759 | IA20: -247.498 | IB20: -224.594 | IC20: -241.018 | ID20: -245.006 | IE20: -254.493 | IF20: -284.123 | IG20: -397.501 | IH20: -478.463 | II20: -756.585481 | IJ20: -554.722222 | IK20: -544.664418 | IL20: -303.160599 | IM20: -279.949192 | IN20: -230.155124 | IO20: -199.16813 | IP20: -231.143955 | IQ20: -233.695669 | IR20: -346.115985 | IS20: -322.223669 | IT20: -456.198133
B21: Enlace Península-Baleares | C21: - | D21: - | E21: - | F21: - | G21: - | H21: - | I21: - | J21: - | K21: - | L21: - | M21: - | N21: - | O21: - | P21: - | Q21: - | R21: - | S21: - | T21: - | U21: - | V21: - | W21: - | X21: - | Y21: - | Z21: - | AA21: - | AB21: - | AC21: - | AD21: - | AE21: - | AF21: - | AG21: - | AH21: - | AI21: - | AJ21: - | AK21: - | AL21: - | AM21: - | AN21: - | AO21: - | AP21: - | AQ21: - | AR21: - | AS21: - | AT21: - | AU21: - | AV21: - | AW21: - | AX21: - | AY21: - | AZ21: - | BA21: - | BB21: - | BC21: - | BD21: - | BE21: - | BF21: - | BG21: - | BH21: - | BI21: - | BJ21: - | BK21: - | BL21: - | BM21: - | BN21: - | BO21: - | BP21: - | BQ21: - | BR21: - | BS21: - | BT21: - | BU21: - | BV21: - | BW21: - | BX21: - | BY21: - | BZ21: - | CA21: - | CB21: - | CC21: - | CD21: - | CE21: - | CF21: - | CG21: - | CH21: - | CI21: - | CJ21: - | CK21: - | CL21: - | CM21: - | CN21: - | CO21: - | CP21: - | CQ21: - | CR21: - | CS21: - | CT21: - | CU21: - | CV21: - | CW21: - | CX21: - | CY21: - | CZ21: - | DA21: - | DB21: - | DC21: - | DD21: - | DE21: - | DF21: - | DG21: - | DH21: - | DI21: - | DJ21: - | DK21: - | DL21: - | DM21: - | DN21: - | DO21: - | DP21: - | DQ21: - | DR21: - | DS21: - | DT21: - | DU21: - | DV21: - | DW21: - | DX21: - | DY21: - | DZ21: - | EA21: - | EB21: - | EC21: - | ED21: - | EE21: - | EF21: - | EG21: - | EH21: - | EI21: - | EJ21: - | EK21: - | EL21: - | EM21: - | EN21: - | EO21: - | EP21: - | EQ21: - | ER21: - | ES21: - | ET21: - | EU21: - | EV21: - | EW21: - | EX21: - | EY21: - | EZ21: - | FA21: - | FB21: - | FC21: - | FD21: - | FE21: - | FF21: - | FG21: - | FH21: - | FI21: - | FJ21: - | FK21: - | FL21: - | FM21: - | FN21: - | FO21: - | FP21: - | FQ21: - | FR21: - | FS21: - | FT21: - | FU21: - | FV21: - | FW21: - | FX21: - | FY21: - | FZ21: - | GA21: - | GB21: - | GC21: - | GD21: - | GE21: - | GF21: - | GG21: - | GH21: - | GI21: - | GJ21: - | GK21: - | GL21: - | GM21: - | GN21: - | GO21: - | GP21: - | GQ21: - | GR21: - | GS21: - | GT21: - | GU21: - | GV21: - | GW21: - | GX21: - | GY21: - | GZ21: - | HA21: - | HB21: - | HC21: - | HD21: - | HE21: - | HF21: - | HG21: - | HH21: - | HI21: - | HJ21: - | HK21: - | HL21: - | HM21: - | HN21: - | HO21: - | HP21: - | HQ21: - | HR21: - | HS21: - | HT21: - | HU21: - | HV21: - | HW21: - | HX21: - | HY21: - | HZ21: - | IA21: - | IB21: - | IC21: - | ID21: - | IE21: - | IF21: - | IG21: - | IH21: - | II21: 0 | IJ21: 0 | IK21: 0 | IL21: 0 | IM21: 0 | IN21: 0 | IO21: 0 | IP21: 0 | IQ21: 0 | IR21: 0 | IS21: 0 | IT21: 0
B22: Saldo intercambios internacionales | C22: -269.297 | D22: 16.551 | E22: -11.987 | F22: -20.997 | G22: 159.398 | H22: 0.442 | I22: -28.161 | J22: -32.036 | K22: 14.863 | L22: -21.733 | M22: -139.47 | N22: -87.152 | O22: -24.533 | P22: 22.889 | Q22: -122.07 | R22: -226.919 | S22: -191.566 | T22: -45.839 | U22: -92.112 | V22: 27.849 | W22: -99.836 | X22: -14.272 | Y22: 56.174 | Z22: 33.649 | AA22: -96.052 | AB22: -312.209 | AC22: -213.216 | AD22: 188.663 | AE22: 271.98 | AF22: 371.259 | AG22: 87.992 | AH22: 216.896 | AI22: 131.307 | AJ22: -16.239 | AK22: 8.023 | AL22: 2.72 | AM22: 95.905 | AN22: 222.438 | AO22: 184.267 | AP22: 48.24 | AQ22: 224.115 | AR22: 217.795 | AS22: 282.58 | AT22: 18.098 | AU22: -4.785 | AV22: -0.854 | AW22: -0.365 | AX22: -20.362 | AY22: -20.455 | AZ22: 19.067 | BA22: 44.103 | BB22: 42.116 | BC22: 71.338 | BD22: 56.383 | BE22: 128.051 | BF22: 134.206 | BG22: 271.501 | BH22: 383.184 | BI22: 371.482 | BJ22: 354.129 | BK22: 382.278 | BL22: 376.395 | BM22: 379.125 | BN22: 353.886 | BO22: 378.616 | BP22: 369.635 | BQ22: 406.479 | BR22: 389.687 | BS22: 389.569 | BT22: 434.896 | BU22: 380.024 | BV22: 248.455 | BW22: -23.15 | BX22: -228.839 | BY22: 95.809 | BZ22: 234.45 | CA22: 175.223 | CB22: 297.359 | CC22: 337.605 | CD22: 288.542 | CE22: 53.531 | CF22: -123.297 | CG22: -16.169 | CH22: -31.698 | CI22: -483.959 | CJ22: -204.565 | CK22: -220.011 | CL22: -410.142 | CM22: -439.194 | CN22: -268.21 | CO22: -397.761 | CP22: -455.005 | CQ22: -103.389 | CR22: 13.219 | CS22: 65.416 | CT22: -169.271 | CU22: 339.841 | CV22: 345.961 | CW22: 404.92 | CX22: 388.819 | CY22: 355.114 | CZ22: 244.862 | DA22: 284.57 | DB22: 320.095 | DC22: -25.49 | DD22: 206.148 | DE22: 283.522 | DF22: 253.502 | DG22: 244.117 | DH22: 366.794 | DI22: 462.856 | DJ22: 712.678 | DK22: 628.458 | DL22: 570.858 | DM22: 515.622 | DN22: 504.84 | DO22: 210.995 | DP22: 438.75 | DQ22: 625.315 | DR22: 437.962 | DS22: 196.386 | DT22: 415.9 | DU22: 422.249 | DV22: 519.17 | DW22: 683.538 | DX22: 173.875 | DY22: 258.827 | DZ22: 208.528 | EA22: 340.728 | EB22: 443.806 | EC22: 516.198 | ED22: 261.39 | EE22: -38.209 | EF22: 21.673 | EG22: -83.964 | EH22: 447.062 | EI22: 578.603 | EJ22: 504.504 | EK22: 431.037 | EL22: 282.045 | EM22: 283.086 | EN22: 139.702 | EO22: 402.852 | EP22: 489.569 | EQ22: 532.016 | ER22: 648.786 | ES22: 721.604 | ET22: 705.349 | EU22: 259.038 | EV22: 187.01 | EW22: 575.936 | EX22: 236.118 | EY22: 428.063 | EZ22: 298.139 | FA22: 490.714 | FB22: 245.995 | FC22: 26.416 | FD22: 50.988 | FE22: 247.018 | FF22: -36.927 | FG22: 134.057 | FH22: 409.345 | FI22: 237.348 | FJ22: 123.487 | FK22: 160.179 | FL22: 55.116 | FM22: -24.058 | FN22: -119.067 | FO22: -318.326 | FP22: -299.787 | FQ22: -234.032 | FR22: -621.22 | FS22: -303.664 | FT22: -321.336 | FU22: -241.462 | FV22: -454.689 | FW22: -53.952 | FX22: -330.99 | FY22: -45.66 | FZ22: 198.1 | GA22: 295.549 | GB22: 299.658 | GC22: 51.223 | GD22: 68.78 | GE22: 176.042 | GF22: 176.29 | GG22: 31.582 | GH22: -174.634 | GI22: -495.369 | GJ22: -662.588 | GK22: -689.605 | GL22: -420.322 | GM22: -365.174 | GN22: -583.775 | GO22: -799.06 | GP22: 41.878 | GQ22: 18.828 | GR22: -262.107 | GS22: -377.879 | GT22: 63.245 | GU22: -310.535 | GV22: -236.933 | GW22: -285.297 | GX22: -175.709 | GY22: 94.565 | GZ22: -235.492 | HA22: -243.362 | HB22: -261.054 | HC22: -494.788 | HD22: -223.463 | HE22: -289.778 | HF22: -314.014 | HG22: -846.576 | HH22: -1153.772 | HI22: -1052.93 | HJ22: -729.801 | HK22: -456.804 | HL22: -655.587 | HM22: -1199.348 | HN22: -1291.615 | HO22: -761.275 | HP22: -1052.342 | HQ22: -907.813 | HR22: -796.073 | HS22: -935.81 | HT22: -1102.016 | HU22: -948.447 | HV22: -932.456 | HW22: -897.628 | HX22: -474.277 | HY22: -192.952 | HZ22: -548.934 | IA22: -437.376 | IB22: -769.161 | IC22: -944.909 | ID22: -817.417 | IE22: -711.168 | IF22: -941.365 | IG22: -897.212 | IH22: -454.015 | II22: -304.713446 | IJ22: -506.196753 | IK22: -560.114046 | IL22: -729.095102 | IM22: -542.815029 | IN22: -821.225751 | IO22: -1000.653567 | IP22: -758.601057 | IQ22: -964.255452 | IR22: -1295.509887 | IS22: -593.210574 | IT22: -256.288394
B23: Demanda transporte (b.c.) | C23: 12568.173 | D23: 10606.684 | E23: 11500.654 | F23: 10528.6 | G23: 10700.869 | H23: 10911.449 | I23: 11525.924 | J23: 10123.628 | K23: 10799.337 | L23: 10940.46 | M23: 11602.256 | N23: 12751.464 | O23: 13221.258 | P23: 12104.61 | Q23: 11461.919 | R23: 11048.385 | S23: 11232.121 | T23: 10918.467 | U23: 11835.945 | V23: 10459.177 | W23: 11266.763 | X23: 11698.816 | Y23: 12056.953 | Z23: 12469.99 | AA23: 13798.636 | AB23: 12527.571 | AC23: 12266.982 | AD23: 11180.001 | AE23: 11221.762 | AF23: 10764.077 | AG23: 12007.581 | AH23: 10674.854 | AI23: 11316.847 | AJ23: 11565.285 | AK23: 11522.732 | AL23: 12194.611 | AM23: 13097.569 | AN23: 11923.505 | AO23: 12461.084 | AP23: 10884.726 | AQ23: 11045.386 | AR23: 11156.418 | AS23: 11886.368 | AT23: 10762.586 | AU23: 11179.712 | AV23: 11748.18 | AW23: 12297.539 | AX23: 12763.291 | AY23: 13141.868 | AZ23: 12158.895 | BA23: 12094.057 | BB23: 11595.257 | BC23: 11694.177 | BD23: 11961.463 | BE23: 12800.28 | BF23: 11639.961 | BG23: 11922.619 | BH23: 11858.766 | BI23: 12233.532 | BJ23: 13139.841 | BK23: 13984.224 | BL23: 12088.559 | BM23: 13295.243 | BN23: 11822.258 | BO23: 12404.075 | BP23: 12447.605 | BQ23: 13093.934 | BR23: 12087.527 | BS23: 12236.763 | BT23: 12363.548 | BU23: 12611.462 | BV23: 13298.205 | BW23: 13848.374 | BX23: 13526.045 | BY23: 13537.277 | BZ23: 11990.402 | CA23: 12490.416 | CB23: 12785.945 | CC23: 13519.844 | CD23: 12230.968 | CE23: 12307.397 | CF23: 12882.947 | CG23: 13261.676 | CH23: 13826.559 | CI23: 14791.047 | CJ23: 12504.942 | CK23: 12944.201 | CL23: 12938.041 | CM23: 13073.965 | CN23: 13053.461 | CO23: 13846.366 | CP23: 12972.292 | CQ23: 13641.727 | CR23: 13754.549 | CS23: 13928.879 | CT23: 14912.341 | CU23: 15172.561 | CV23: 13701.303 | CW23: 14381.126 | CX23: 13712.255 | CY23: 13714.311 | CZ23: 14102.116 | DA23: 15283.842 | DB23: 13813.231 | DC23: 14164.755 | DD23: 14304.219 | DE23: 14700.953 | DF23: 16000.632 | DG23: 16168.921 | DH23: 14967.625 | DI23: 15400.066 | DJ23: 14030.917 | DK23: 14637.163 | DL23: 15059.192 | DM23: 16261.017 | DN23: 14644.726 | DO23: 14989.452 | DP23: 14949.123 | DQ23: 16255.662 | DR23: 16948.565 | DS23: 17845.228 | DT23: 15687.766 | DU23: 16380.923 | DV23: 15199.865 | DW23: 15564.256 | DX23: 16091.724 | DY23: 16573.086 | DZ23: 15634.834 | EA23: 15998.933 | EB23: 15961.555 | EC23: 16920.555 | ED23: 17131.96 | EE23: 18289.445 | EF23: 16491.727 | EG23: 17239.23 | EH23: 15530.365 | EI23: 16690.819 | EJ23: 17085.272 | EK23: 17642.278 | EL23: 16747.986 | EM23: 16490.887 | EN23: 16729.872 | EO23: 17806.418 | EP23: 18871.052 | EQ23: 19341.497 | ER23: 16996.741 | ES23: 17636.379 | ET23: 17018.971 | EU23: 17193.093 | EV23: 17374.281 | EW23: 18464.613 | EX23: 16579.862 | EY23: 16965.512 | EZ23: 17630.42 | FA23: 17851.663 | FB23: 18508.075 | FC23: 20199.603 | FD23: 18770.308 | FE23: 18517.215 | FF23: 17007.472 | FG23: 17756.891 | FH23: 18911.004 | FI23: 20054.809 | FJ23: 18709.898 | FK23: 18185.194 | FL23: 18727.147 | FM23: 18882.891 | FN23: 20117.086 | FO23: 20331.607 | FP23: 19479.59 | FQ23: 20587.064 | FR23: 18261.443 | FS23: 18519.046 | FT23: 19383.067 | FU23: 20650.729 | FV23: 18984.258 | FW23: 19297.613 | FX23: 19134.524 | FY23: 20211.603 | FZ23: 21137.934 | GA23: 22434.996 | GB23: 20982.072 | GC23: 21028.847 | GD23: 19050.185 | GE23: 19203.679 | GF23: 20500.804 | GG23: 21538.907 | GH23: 19548.175 | GI23: 19495.728 | GJ23: 19231.861 | GK23: 20661.564 | GL23: 22507.246 | GM23: 23447.905 | GN23: 21252.068 | GO23: 21967.847 | GP23: 18681.974 | GQ23: 20372.254 | GR23: 20850.334 | GS23: 23038.001 | GT23: 20603.034 | GU23: 20839.388 | GV23: 20448.168 | GW23: 20584.459 | GX23: 22895.527 | GY23: 24159.133 | GZ23: 21183.206 | HA23: 22565.632 | HB23: 20260.941 | HC23: 20863.598 | HD23: 21079.955 | HE23: 22851.761 | HF23: 21112.414 | HG23: 20898.947 | HH23: 21214.274 | HI23: 22511.687 | HJ23: 23734.213 | HK23: 24433.133 | HL23: 22546.604 | HM23: 22312.011 | HN23: 21496.494 | HO23: 20950.916 | HP23: 21080.628 | HQ23: 23239.803 | HR23: 21729.627 | HS23: 21081.668 | HT23: 21124.274 | HU23: 22046.794 | HV23: 23163.711 | HW23: 23770.664 | HX23: 20885.489 | HY23: 20925.592 | HZ23: 19227.985 | IA23: 19641.821 | IB23: 20540.189 | IC23: 22424.545 | ID23: 21148.707 | IE23: 20400.554 | IF23: 20324.805 | IG23: 20644.267 | IH23: 22725.194 | II23: 23750.93802 | IJ23: 21910.90714 | IK23: 22815.56508 | IL23: 19934.79295 | IM23: 20422.61626 | IN23: 20438.54686 | IO23: 23145.0324 | IP23: 21456.10457 | IQ23: 20701.91619 | IR23: 20498.54835 | IS23: 22011.92839 | IT23: 23440.05386
B25: Balance eléctrico mensual Islas Baleares (MWh) | C25: 2006-01-01 | D25: 2006-02-01 | E25: 2006-03-01 | F25: 2006-04-01 | G25: 2006-05-01 | H25: 2006-06-01 | I25: 2006-07-01 | J25: 2006-08-01 | K25: 2006-09-01 | L25: 2006-10-01 | M25: 2006-11-01 | N25: 2006-12-01 | O25: 2007-01-01 | P25: 2007-02-01 | Q25: 2007-03-01 | R25: 2007-04-01 | S25: 2007-05-01 | T25: 2007-06-01 | U25: 2007-07-01 | V25: 2007-08-01 | W25: 2007-09-01 | X25: 2007-10-01 | Y25: 2007-11-01 | Z25: 2007-12-01 | AA25: 2008-01-01 | AB25: 2008-02-01 | AC25: 2008-03-01 | AD25: 2008-04-01 | AE25: 2008-05-01 | AF25: 2008-06-01 | AG25: 2008-07-01 | AH25: 2008-08-01 | AI25: 2008-09-01 | AJ25: 2008-10-01 | AK25: 2008-11-01 | AL25: 2008-12-01 | AM25: 2009-01-01 | AN25: 2009-02-01 | AO25: 2009-03-01 | AP25: 2009-04-01 | AQ25: 2009-05-01 | AR25: 2009-06-01 | AS25: 2009-07-01 | AT25: 2009-08-01 | AU25: 2009-09-01 | AV25: 2009-10-01 | AW25: 2009-11-01 | AX25: 2009-12-01 | AY25: 2010-01-01 | AZ25: 2010-02-01 | BA25: 2010-03-01 | BB25: 2010-04-01 | BC25: 2010-05-01 | BD25: 2010-06-01 | BE25: 2010-07-01 | BF25: 2010-08-01 | BG25: 2010-09-01 | BH25: 2010-10-01 | BI25: 2010-11-01 | BJ25: 2010-12-01
B26: Carbón | C26: 281585 | D26: 245804 | E26: 280062 | F26: 239665 | G26: 271836 | H26: 287051 | I26: 292771 | J26: 281322 | K26: 254499 | L26: 177022 | M26: 201042 | N26: 264651 | O26: 253259 | P26: 227525 | Q26: 220374 | R26: 263500 | S26: 228127 | T26: 222675 | U26: 278923 | V26: 292687 | W26: 263412 | X26: 229147 | Y26: 201758 | Z26: 262468 | AA26: 287616 | AB26: 269886 | AC26: 265619 | AD26: 216223 | AE26: 246771 | AF26: 279366 | AG26: 294598 | AH26: 301838 | AI26: 286166 | AJ26: 244583 | AK26: 217953 | AL26: 188207 | AM26: 186398 | AN26: 267602 | AO26: 230164 | AP26: 242090 | AQ26: 270324 | AR26: 291327 | AS26: 298599 | AT26: 307579 | AU26: 259941 | AV26: 281704 | AW26: 254121 | AX26: 280614 | AY26: 288628.964 | AZ26: 253130.437 | BA26: 284143.58 | BB26: 270785.11 | BC26: 229324.108 | BD26: 279046.162 | BE26: 292090 | BF26: 286753.928 | BG26: 285293.825 | BH26: 217296.101 | BI26: 192203.667 | BJ26: 222661.684
B27: Motores diesel | C27: 79209 | D27: 68329 | E27: 70721 | F27: 64718 | G27: 79303 | H27: 85154 | I27: 104210 | J27: 101456 | K27: 93527 | L27: 79792 | M27: 63493 | N27: 74990 | O27: 78135 | P27: 66061 | Q27: 74782 | R27: 71646 | S27: 84385 | T27: 92577 | U27: 102578 | V27: 105250 | W27: 96624 | X27: 79159 | Y27: 73984 | Z27: 80425 | AA27: 80489 | AB27: 70911 | AC27: 75416 | AD27: 72520 | AE27: 86002 | AF27: 96520 | AG27: 116196 | AH27: 118501 | AI27: 98449 | AJ27: 78246 | AK27: 72700 | AL27: 81131 | AM27: 85013 | AN27: 68206 | AO27: 71555 | AP27: 74273 | AQ27: 75820 | AR27: 91793 | AS27: 105509 | AT27: 106425 | AU27: 86067 | AV27: 70751 | AW27: 62004 | AX27: 74409 | AY27: 80487.338 | AZ27: 71127.049 | BA27: 78081.049 | BB27: 70171.272 | BC27: 83167.909 | BD27: 94393.464 | BE27: 113035.62 | BF27: 113945.387 | BG27: 97806.403 | BH27: 76729.221 | BI27: 67045.222 | BJ27: 81630.112
B28: Turbina de gas | C28: 6947 | D28: 10938 | E28: 22831 | F28: 13569 | G28: 15378 | H28: 29015 | I28: 55976 | J28: 40768 | K28: 31591 | L28: 29413.952 | M28: 18468 | N28: 17160 | O28: 23585 | P28: 20894 | Q28: 20510 | R28: 16976 | S28: 36834 | T28: 31757 | U28: 41358 | V28: 38367 | W28: 21309 | X28: 20978 | Y28: 20783 | Z28: 18090 | AA28: 17521 | AB28: 19944 | AC28: 19984 | AD28: 12615 | AE28: 13376 | AF28: 22615 | AG28: 34364 | AH28: 38299 | AI28: 31566 | AJ28: 20899 | AK28: 19341 | AL28: 21978 | AM28: 18986 | AN28: 20558 | AO28: 19663 | AP28: 12270 | AQ28: 24409 | AR28: 33876 | AS28: 53107 | AT28: 52569 | AU28: 37227 | AV28: 24608 | AW28: 21181 | AX28: 20915 | AY28: 23036.824 | AZ28: 25540.649 | BA28: 22064.977 | BB28: 16837.77 | BC28: 15550.542 | BD28: 20236.732 | BE28: 41379.637 | BF28: 42027.091 | BG28: 26953.492 | BH28: 22516.812 | BI28: 21406.807 | BJ28: 21863.033
B29: Fuel + Gas | C29: 86156 | D29: 79267 | E29: 93552 | F29: 78287 | G29: 94681 | H29: 114169 | I29: 160186 | J29: 142224 | K29: 125118 | L29: 109205.952 | M29: 81961 | N29: 92150 | O29: 101720 | P29: 86955 | Q29: 95292 | R29: 88622 | S29: 121219 | T29: 124334 | U29: 143936 | V29: 143617 | W29: 117933 | X29: 100137 | Y29: 94767 | Z29: 98515 | AA29: 98010 | AB29: 90855 | AC29: 95400 | AD29: 85135 | AE29: 99378 | AF29: 119135 | AG29: 150560 | AH29: 156800 | AI29: 130015 | AJ29: 99145 | AK29: 92041 | AL29: 103109 | AM29: 103999 | AN29: 88764 | AO29: 91218 | AP29: 86543 | AQ29: 100229 | AR29: 125669 | AS29: 158616 | AT29: 158994 | AU29: 123294 | AV29: 95359 | AW29: 83185 | AX29: 95324 | AY29: 103524.162 | AZ29: 96667.698 | BA29: 100146.026 | BB29: 87009.042 | BC29: 98718.451 | BD29: 114630.196 | BE29: 154415.257 | BF29: 155972.478 | BG29: 124759.895 | BH29: 99246.033 | BI29: 88452.029 | BJ29: 103493.145
B30: Ciclo combinado | C30: 115133 | D30: 112851 | E30: 71802 | F30: 58291 | G30: 79596 | H30: 107515 | I30: 173341 | J30: 167753 | K30: 132665 | L30: 163572 | M30: 80257 | N30: 79139 | O30: 109535 | P30: 97337 | Q30: 133306 | R30: 66630 | S30: 113287 | T30: 174631 | U30: 186393 | V30: 169251 | W30: 141173 | X30: 143962 | Y30: 135271 | Z30: 113219 | AA30: 92464 | AB30: 91614 | AC30: 97252 | AD30: 120602 | AE30: 114746 | AF30: 106773 | AG30: 178739 | AH30: 177899 | AI30: 121342 | AJ30: 111682 | AK30: 111297 | AL30: 199080 | AM30: 206459 | AN30: 81850 | AO30: 132809 | AP30: 89788 | AQ30: 70003 | AR30: 97131 | AS30: 175334 | AT30: 166521 | AU30: 120693 | AV30: 57370 | AW30: 29377 | AX30: 64848 | AY30: 83745.201 | AZ30: 90692.047 | BA30: 69947.986 | BB30: 35630.943 | BC30: 87840.324 | BD30: 61960.638 | BE30: 159205.11 | BF30: 145959.232 | BG30: 74275.329 | BH30: 107178.246 | BI30: 98555.294 | BJ30: 120643.372
B31: Generación auxiliar | C31: 0 | D31: 0 | E31: 0 | F31: 0 | G31: 0 | H31: 0 | I31: 213 | J31: 3531 | K31: 2469 | L31: 1 | M31: 0 | N31: 136.22 | O31: 0 | P31: 0 | Q31: 0 | R31: 0 | S31: 0 | T31: 0 | U31: 2447 | V31: 8618 | W31: 1547 | X31: 0 | Y31: 0 | Z31: 0 | AA31: 0 | AB31: 0 | AC31: 0 | AD31: 0 | AE31: 0 | AF31: 0 | AG31: 2048 | AH31: 2600 | AI31: 1282 | AJ31: 1 | AK31: 0 | AL31: 0 | AM31: 0 | AN31: 0 | AO31: 0 | AP31: 0 | AQ31: 0 | AR31: 0 | AS31: 1489 | AT31: 3042 | AU31: 1037 | AV31: -2 | AW31: 0 | AX31: 0 | AY31: 0 | AZ31: 0 | BA31: 0 | BB31: 0 | BC31: 0 | BD31: 45.686 | BE31: 2619.537 | BF31: 2927.97 | BG31: 1100.336 | BH31: 0.803 | BI31: 0 | BJ31: 0
B32: Régimen ordinario | C32: 482874 | D32: 437922 | E32: 445416 | F32: 376243 | G32: 446113 | H32: 508735 | I32: 626511 | J32: 594830 | K32: 514751 | L32: 449800.952 | M32: 363260 | N32: 436076.22 | O32: 464514 | P32: 411817 | Q32: 448972 | R32: 418752 | S32: 462633 | T32: 521640 | U32: 611699 | V32: 614173 | W32: 524065 | X32: 473246 | Y32: 431796 | Z32: 474202 | AA32: 478090 | AB32: 452355 | AC32: 458271 | AD32: 421960 | AE32: 460895 | AF32: 505274 | AG32: 625945 | AH32: 639137 | AI32: 538805 | AJ32: 455411 | AK32: 421291 | AL32: 490396 | AM32: 496856 | AN32: 438216 | AO32: 454191 | AP32: 418421 | AQ32: 440556 | AR32: 514127 | AS32: 634038 | AT32: 636136 | AU32: 504965 | AV32: 434431 | AW32: 366683 | AX32: 440786 | AY32: 475898.327 | AZ32: 440490.182 | BA32: 454237.592 | BB32: 393425.095 | BC32: 415882.883 | BD32: 455682.682 | BE32: 608329.904 | BF32: 591613.608 | BG32: 485429.385 | BH32: 423721.183 | BI32: 379210.99 | BJ32: 446798.201
B33: Eólica | C33: 514.35 | D33: 371.374 | E33: 548.188 | F33: 366.096 | G33: 438.988 | H33: 366.65 | I33: 202.55 | J33: 548.332 | K33: 264.468 | L33: 347.647 | M33: 407.408 | N33: 501.305 | O33: 402 | P33: 480 | Q33: 585 | R33: 246 | S33: 392 | T33: 334 | U33: 358 | V33: 444 | W33: 320 | X33: 541 | Y33: 784 | Z33: 770 | AA33: 415 | AB33: 420 | AC33: 575 | AD33: 741 | AE33: 212 | AF33: 290 | AG33: 272 | AH33: 328 | AI33: 462 | AJ33: 470 | AK33: 620 | AL33: 692 | AM33: 472 | AN33: 688 | AO33: 529 | AP33: 482 | AQ33: 477 | AR33: 383 | AS33: 126 | AT33: 147 | AU33: 346 | AV33: 531 | AW33: 538 | AX33: 824 | AY33: 599 | AZ33: 689 | BA33: 590 | BB33: 377 | BC33: 312 | BD33: 275 | BE33: 322 | BF33: 395 | BG33: 303 | BH33: 477 | BI33: 529 | BJ33: 703
B34: Solar fotovoltaica | C34: 43.973 | D34: 50.86 | E34: 83.446 | F34: 87.707 | G34: 102.911 | H34: 110.639 | I34: 126.145 | J34: 120.868 | K34: 111.756 | L34: 105.835 | M34: 84.201 | N34: 72.454 | O34: 95 | P34: 122 | Q34: 165 | R34: 156 | S34: 211 | T34: 207 | U34: 226 | V34: 209 | W34: 180 | X34: 139 | Y34: 119 | Z34: 123 | AA34: 134 | AB34: 194 | AC34: 416 | AD34: 664 | AE34: 955 | AF34: 1807 | AG34: 2659 | AH34: 4719 | AI34: 4821 | AJ34: 4337 | AK34: 3391 | AL34: 4283 | AM34: 3838 | AN34: 5190 | AO34: 7556 | AP34: 7099 | AQ34: 8802 | AR34: 9040 | AS34: 8898 | AT34: 8709 | AU34: 6680 | AV34: 6538 | AW34: 5096 | AX34: 3487 | AY34: 3845 | AZ34: 4810 | BA34: 6958 | BB34: 8061 | BC34: 9047 | BD34: 8957 | BE34: 10437 | BF34: 10003 | BG34: 8360 | BH34: 6793 | BI34: 5600 | BJ34: 4886
B35: Térmica renovable/Otras renovables | C35: - | D35: - | E35: - | F35: - | G35: - | H35: - | I35: - | J35: - | K35: - | L35: - | M35: - | N35: - | O35: - | P35: - | Q35: - | R35: - | S35: - | T35: - | U35: - | V35: - | W35: - | X35: - | Y35: - | Z35: - | AA35: - | AB35: - | AC35: - | AD35: - | AE35: - | AF35: - | AG35: - | AH35: - | AI35: - | AJ35: - | AK35: - | AL35: - | AM35: - | AN35: - | AO35: - | AP35: - | AQ35: - | AR35: - | AS35: - | AT35: - | AU35: - | AV35: - | AW35: - | AX35: - | AY35: - | AZ35: - | BA35: - | BB35: - | BC35: - | BD35: - | BE35: - | BF35: - | BG35: - | BH35: - | BI35: - | BJ35: -
B36: Térmica no renovable/Cogeneración y resto/Cogeneración | C36: 13134.677 | D36: 11651.766 | E36: 12757.366 | F36: 12126.197 | G36: 9241.101 | H36: 11667.711 | I36: 11282.305 | J36: 11336.8 | K36: 10957.776 | L36: 11996.518 | M36: 10537.391 | N36: 12423.241 | O36: 10231 | P36: 11272 | Q36: 12861 | R36: 12018 | S36: 8170 | T36: 9987 | U36: 8947 | V36: 9642 | W36: 9504 | X36: 1019 | Y36: 8067 | Z36: 12215 | AA36: 11005 | AB36: 12227 | AC36: 12415 | AD36: 11349 | AE36: 11758 | AF36: 11450 | AG36: 11883 | AH36: 11405 | AI36: 10678 | AJ36: 11820 | AK36: 11914 | AL36: 12428 | AM36: 12679 | AN36: 9600 | AO36: 972 | AP36: 11178 | AQ36: 12259 | AR36: 11199 | AS36: 11190 | AT36: 10723 | AU36: 11294 | AV36: 11475 | AW36: 11970 | AX36: 12503 | AY36: 10815 | AZ36: 9246 | BA36: 11253 | BB36: 11204 | BC36: 10903 | BD36: 10391 | BE36: 11522 | BF36: 22957 | BG36: 25904 | BH36: 13766 | BI36: 17545 | BJ36: 20738
B37: Residuos no renovables | C37: - | D37: - | E37: - | F37: - | G37: - | H37: - | I37: - | J37: - | K37: - | L37: - | M37: - | N37: - | O37: - | P37: - | Q37: - | R37: - | S37: - | T37: - | U37: - | V37: - | W37: - | X37: - | Y37: - | Z37: - | AA37: - | AB37: - | AC37: - | AD37: - | AE37: - | AF37: - | AG37: - | AH37: - | AI37: - | AJ37: - | AK37: - | AL37: - | AM37: - | AN37: - | AO37: - | AP37: - | AQ37: - | AR37: - | AS37: - | AT37: - | AU37: - | AV37: - | AW37: - | AX37: - | AY37: - | AZ37: - | BA37: - | BB37: - | BC37: - | BD37: - | BE37: - | BF37: - | BG37: - | BH37: - | BI37: - | BJ37: -
B38: Residuos renovables | C38: - | D38: - | E38: - | F38: - | G38: - | H38: - | I38: - | J38: - | K38: - | L38: - | M38: - | N38: - | O38: - | P38: - | Q38: - | R38: - | S38: - | T38: - | U38: - | V38: - | W38: - | X38: - | Y38: - | Z38: - | AA38: - | AB38: - | AC38: - | AD38: - | AE38: - | AF38: - | AG38: - | AH38: - | AI38: - | AJ38: - | AK38: - | AL38: - | AM38: - | AN38: - | AO38: - | AP38: - | AQ38: - | AR38: - | AS38: - | AT38: - | AU38: - | AV38: - | AW38: - | AX38: - | AY38: - | AZ38: - | BA38: - | BB38: - | BC38: - | BD38: - | BE38: - | BF38: - | BG38: - | BH38: - | BI38: - | BJ38: -
B39: Régimen especial | C39: 13693 | D39: 12074 | E39: 13389 | F39: 12580 | G39: 9783 | H39: 12145 | I39: 11611 | J39: 12006 | K39: 11334 | L39: 12450 | M39: 11029 | N39: 12997 | O39: 10728 | P39: 11874 | Q39: 13611 | R39: 12420 | S39: 8773 | T39: 10528 | U39: 9531 | V39: 10295 | W39: 10004 | X39: 1699 | Y39: 8970 | Z39: 13108 | AA39: 11554 | AB39: 12841 | AC39: 13406 | AD39: 12754 | AE39: 12925 | AF39: 13547 | AG39: 14814 | AH39: 16452 | AI39: 15961 | AJ39: 16627 | AK39: 15925 | AL39: 17403 | AM39: 16989 | AN39: 15478 | AO39: 9057 | AP39: 18759 | AQ39: 21538 | AR39: 20622 | AS39: 20214 | AT39: 19579 | AU39: 18320 | AV39: 18544 | AW39: 17604 | AX39: 16814 | AY39: 15259 | AZ39: 14745 | BA39: 18801 | BB39: 19642 | BC39: 20262 | BD39: 19623 | BE39: 22281 | BF39: 33355 | BG39: 34567 | BH39: 21036 | BI39: 23674 | BJ39: 26327
B40: Generación | C40: 496567 | D40: 449996 | E40: 458805 | F40: 388823 | G40: 455896 | H40: 520880 | I40: 638122 | J40: 606836 | K40: 526085 | L40: 462250.952 | M40: 374289 | N40: 449073.22 | O40: 475242 | P40: 423691 | Q40: 462583 | R40: 431172 | S40: 471406 | T40: 532168 | U40: 621230 | V40: 624468 | W40: 534069 | X40: 474945 | Y40: 440766 | Z40: 487310 | AA40: 489644 | AB40: 465196 | AC40: 471677 | AD40: 434714 | AE40: 473820 | AF40: 518821 | AG40: 640759 | AH40: 655589 | AI40: 554766 | AJ40: 472038 | AK40: 437216 | AL40: 507799 | AM40: 513845 | AN40: 453694 | AO40: 463248 | AP40: 437180 | AQ40: 462094 | AR40: 534749 | AS40: 654252 | AT40: 655715 | AU40: 523285 | AV40: 452975 | AW40: 384287 | AX40: 457600 | AY40: 491157.327 | AZ40: 455235.182 | BA40: 473038.592 | BB40: 413067.095 | BC40: 436144.883 | BD40: 475305.682 | BE40: 630610.904 | BF40: 624968.608 | BG40: 519996.385 | BH40: 444757.183 | BI40: 402884.99 | BJ40: 473125.201
B41: Enlace Península-Baleares | C41: - | D41: - | E41: - | F41: - | G41: - | H41: - | I41: - | J41: - | K41: - | L41: - | M41: - | N41: - | O41: - | P41: - | Q41: - | R41: - | S41: - | T41: - | U41: - | V41: - | W41: - | X41: - | Y41: - | Z41: - | AA41: - | AB41: - | AC41: - | AD41: - | AE41: - | AF41: - | AG41: - | AH41: - | AI41: - | AJ41: - | AK41: - | AL41: - | AM41: - | AN41: - | AO41: - | AP41: - | AQ41: - | AR41: - | AS41: - | AT41: - | AU41: - | AV41: - | AW41: - | AX41: - | AY41: 0 | AZ41: 0 | BA41: 0 | BB41: 0 | BC41: 0 | BD41: 0 | BE41: 0 | BF41: 0 | BG41: 0 | BH41: 0 | BI41: 0 | BJ41: 0
B42: Demanda transporte (b.c.) | C42: 496567 | D42: 449996 | E42: 458805 | F42: 388823 | G42: 455896 | H42: 520880 | I42: 638122 | J42: 606836 | K42: 526085 | L42: 462250.952 | M42: 374289 | N42: 449073.22 | O42: 475242 | P42: 423691 | Q42: 462583 | R42: 431172 | S42: 471406 | T42: 532168 | U42: 621230 | V42: 624468 | W42: 534069 | X42: 474945 | Y42: 440766 | Z42: 487310 | AA42: 489644 | AB42: 465196 | AC42: 471677 | AD42: 434714 | AE42: 473820 | AF42: 518821 | AG42: 640759 | AH42: 655589 | AI42: 554766 | AJ42: 472038 | AK42: 437216 | AL42: 507799 | AM42: 513845 | AN42: 453694 | AO42: 463248 | AP42: 437180 | AQ42: 462094 | AR42: 534749 | AS42: 654252 | AT42: 655715 | AU42: 523285 | AV42: 452975 | AW42: 384287 | AX42: 457600 | AY42: 491157.327 | AZ42: 455235.182 | BA42: 473038.592 | BB42: 413067.095 | BC42: 436144.883 | BD42: 475305.682 | BE42: 630610.904 | BF42: 624968.608 | BG42: 519996.385 | BH42: 444757.183 | BI42: 402884.99 | BJ42: 473125.201
B44: Balance eléctrico mensual Islas Canarias (MWh) | C44: 2006-01-01 | D44: 2006-02-01 | E44: 2006-03-01 | F44: 2006-04-01 | G44: 2006-05-01 | H44: 2006-06-01 | I44: 2006-07-01 | J44: 2006-08-01 | K44: 2006-09-01 | L44: 2006-10-01 | M44: 2006-11-01 | N44: 2006-12-01 | O44: 2007-01-01 | P44: 2007-02-01 | Q44: 2007-03-01 | R44: 2007-04-01 | S44: 2007-05-01 | T44: 2007-06-01 | U44: 2007-07-01 | V44: 2007-08-01 | W44: 2007-09-01 | X44: 2007-10-01 | Y44: 2007-11-01 | Z44: 2007-12-01 | AA44: 2008-01-01 | AB44: 2008-02-01 | AC44: 2008-03-01 | AD44: 2008-04-01 | AE44: 2008-05-01 | AF44: 2008-06-01 | AG44: 2008-07-01 | AH44: 2008-08-01 | AI44: 2008-09-01 | AJ44: 2008-10-01 | AK44: 2008-11-01 | AL44: 2008-12-01 | AM44: 2009-01-01 | AN44: 2009-02-01 | AO44: 2009-03-01 | AP44: 2009-04-01 | AQ44: 2009-05-01 | AR44: 2009-06-01 | AS44: 2009-07-01 | AT44: 2009-08-01 | AU44: 2009-09-01 | AV44: 2009-10-01 | AW44: 2009-11-01 | AX44: 2009-12-01 | AY44: 2010-01-01 | AZ44: 2010-02-01 | BA44: 2010-03-01 | BB44: 2010-04-01 | BC44: 2010-05-01 | BD44: 2010-06-01 | BE44: 2010-07-01 | BF44: 2010-08-01 | BG44: 2010-09-01 | BH44: 2010-10-01 | BI44: 2010-11-01 | BJ44: 2010-12-01
B45: Hidráulica | C45: 0 | D45: 0 | E45: 0 | F45: 0 | G45: 0 | H45: 0 | I45: 0 | J45: 0 | K45: 0 | L45: 0 | M45: 0 | N45: 0 | O45: 0 | P45: 0 | Q45: 0 | R45: 0 | S45: 0 | T45: 0 | U45: 0 | V45: 0 | W45: 0 | X45: 0 | Y45: 0 | Z45: 0 | AA45: 0 | AB45: 0 | AC45: 0 | AD45: 0 | AE45: 0 | AF45: 0 | AG45: 0 | AH45: 0 | AI45: 0 | AJ45: 0 | AK45: 0 | AL45: 0 | AM45: 0 | AN45: 0 | AO45: 0 | AP45: 0 | AQ45: 0 | AR45: 0 | AS45: 0 | AT45: 0 | AU45: 0 | AV45: 0 | AW45: 0 | AX45: 0 | AY45: 0 | AZ45: 0 | BA45: 0 | BB45: 0 | BC45: 0 | BD45: 0 | BE45: 0 | BF45: 0 | BG45: 0 | BH45: 0 | BI45: 0 | BJ45: 0
B46: Motores diesel | C46: 165513 | D46: 148359 | E46: 156468 | F46: 143502 | G46: 170858 | H46: 177722 | I46: 176016 | J46: 179233 | K46: 182517 | L46: 179648 | M46: 157979 | N46: 169849 | O46: 187608 | P46: 153155 | Q46: 170227 | R46: 158998 | S46: 161066 | T46: 167755 | U46: 183062 | V46: 178646 | W46: 169801 | X46: 172067 | Y46: 170171 | Z46: 169446 | AA46: 169904 | AB46: 169953 | AC46: 164609 | AD46: 171005 | AE46: 184619 | AF46: 170736 | AG46: 180381 | AH46: 181406 | AI46: 184435 | AJ46: 177595 | AK46: 169810 | AL46: 179313 | AM46: 175499 | AN46: 161432 | AO46: 167927 | AP46: 161723 | AQ46: 174920 | AR46: 177098 | AS46: 181952 | AT46: 183950 | AU46: 185161 | AV46: 193478 | AW46: 183078 | AX46: 194481 | AY46: 187860.426 | AZ46: 166955.349 | BA46: 187977.302 | BB46: 173369.214 | BC46: 162133.906 | BD46: 164800.029 | BE46: 181346.471 | BF46: 198336.867 | BG46: 189919.536 | BH46: 200384.633 | BI46: 184885.126 | BJ46: 185418.913
B47: Turbina de gas | C47: 52857 | D47: 58444 | E47: 91260 | F47: 61071 | G47: 57809 | H47: 75033 | I47: 67196 | J47: 68751 | K47: 76471.12 | L47: 83282 | M47: 74117 | N47: 58140 | O47: 64149 | P47: 63769 | Q47: 68930 | R47: 63759 | S47: 61840 | T47: 50272 | U47: 47789 | V47: 55948 | W47: 62897 | X47: 57361 | Y47: 55111 | Z47: 47645 | AA47: 49303 | AB47: 38729 | AC47: 28799 | AD47: 32804 | AE47: 40343 | AF47: 47105 | AG47: 47074 | AH47: 42237 | AI47: 50914 | AJ47: 36660 | AK47: 29392 | AL47: 30166 | AM47: 34805 | AN47: 21886 | AO47: 30042 | AP47: 11292 | AQ47: 38398 | AR47: 37443 | AS47: 25400 | AT47: 29481 | AU47: 39778.542 | AV47: 31205 | AW47: 25237.512 | AX47: 17204 | AY47: 13491.04 | AZ47: 18753.394 | BA47: 20108.357 | BB47: 13928.882 | BC47: 30855.156 | BD47: 31941.35 | BE47: 29817.828 | BF47: 24986.524 | BG47: 28373.724 | BH47: 46582.515 | BI47: 44841.278 | BJ47: 39601.609
B48: Turbina de vapor | C48: 348359 | D48: 305913 | E48: 351244 | F48: 298246 | G48: 274223 | H48: 249935 | I48: 254565 | J48: 265884 | K48: 284703 | L48: 261074 | M48: 270998 | N48: 264847 | O48: 267716 | P48: 244594 | Q48: 270944 | R48: 295087 | S48: 222900 | T48: 280003 | U48: 253974 | V48: 300035 | W48: 289769 | X48: 297640 | Y48: 280624 | Z48: 303519 | AA48: 325375 | AB48: 311290 | AC48: 288853 | AD48: 271239 | AE48: 285962 | AF48: 228474 | AG48: 273542 | AH48: 273013 | AI48: 285098 | AJ48: 298907 | AK48: 282718 | AL48: 289770 | AM48: 283886 | AN48: 246215 | AO48: 277471 | AP48: 250511 | AQ48: 289749 | AR48: 254556 | AS48: 266775 | AT48: 281781 | AU48: 281193 | AV48: 297557 | AW48: 249395 | AX48: 264539 | AY48: 275233.605 | AZ48: 239085.291 | BA48: 258003.025 | BB48: 233931.054 | BC48: 254626.209 | BD48: 255627.035 | BE48: 246393.45 | BF48: 264783.539 | BG48: 255925.195 | BH48: 219068.06 | BI48: 221691.146 | BJ48: 248219.496
B49: Fuel + Gas | C49: 566729 | D49: 512716 | E49: 598972 | F49: 502819 | G49: 502890 | H49: 502690 | I49: 497777 | J49: 513868 | K49: 543691.12 | L49: 524004 | M49: 503094 | N49: 492836 | O49: 519473 | P49: 461518 | Q49: 510101 | R49: 517844 | S49: 445806 | T49: 498030 | U49: 484825 | V49: 534629 | W49: 522467 | X49: 527068 | Y49: 505906 | Z49: 520610 | AA49: 544582 | AB49: 519972 | AC49: 482261 | AD49: 475048 | AE49: 510924 | AF49: 446315 | AG49: 500997 | AH49: 496656 | AI49: 520447 | AJ49: 513162 | AK49: 481920 | AL49: 499249 | AM49: 494190 | AN49: 429533 | AO49: 475440 | AP49: 423526 | AQ49: 503067 | AR49: 469097 | AS49: 474127 | AT49: 495212 | AU49: 506132.542 | AV49: 522240 | AW49: 457710.512 | AX49: 476224 | AY49: 476585.071 | AZ49: 424794.034 | BA49: 466088.684 | BB49: 421229.15 | BC49: 447615.271 | BD49: 452368.414 | BE49: 457557.749 | BF49: 488106.93 | BG49: 474218.455 | BH49: 466035.208 | BI49: 451417.55 | BJ49: 473240.018
B50: Ciclo combinado | C50: 125939 | D50: 107765 | E50: 79372 | F50: 139320 | G50: 154766 | H50: 168017 | I50: 187960 | J50: 206155 | K50: 200181 | L50: 216209 | M50: 204172 | N50: 217541 | O50: 203577 | P50: 170340 | Q50: 199354 | R50: 152118 | S50: 243924 | T50: 185380 | U50: 229495 | V50: 189228 | W50: 195544 | X50: 230632 | Y50: 226835 | Z50: 216848 | AA50: 199787 | AB50: 167592 | AC50: 219679 | AD50: 215393 | AE50: 194309 | AF50: 240047 | AG50: 218649 | AH50: 221342 | AI50: 228900 | AJ50: 217782 | AK50: 219404 | AL50: 230433 | AM50: 218103 | AN50: 205178 | AO50: 222643 | AP50: 198070 | AQ50: 148582 | AR50: 202502 | AS50: 234690 | AT50: 211977 | AU50: 201745 | AV50: 231922 | AW50: 241597 | AX50: 235319 | AY50: 230101.864 | AZ50: 203031.708 | BA50: 228450.678 | BB50: 216494.734 | BC50: 193292.748 | BD50: 190320.309 | BE50: 218682.102 | BF50: 224299.341 | BG50: 235057.37 | BH50: 266936.906 | BI50: 253781.819 | BJ50: 247960.606
B51: Generación auxiliar | C51: 0 | D51: 0 | E51: 0 | F51: 0 | G51: 0 | H51: 0 | I51: 0 | J51: 0 | K51: 0 | L51: 0 | M51: 0 | N51: 0 | O51: 12171 | P51: 11523 | Q51: 11651 | R51: 11641 | S51: 10919 | T51: 9438 | U51: 10685 | V51: 12461 | W51: 11325 | X51: 11933 | Y51: 10055 | Z51: 9038 | AA51: 10202 | AB51: 9659 | AC51: 10861 | AD51: 10032 | AE51: 6829 | AF51: 6410 | AG51: 7670 | AH51: 7858 | AI51: 5141 | AJ51: 4729 | AK51: 5487 | AL51: 4869 | AM51: 4385 | AN51: 3909 | AO51: 4661 | AP51: 2586 | AQ51: 2823 | AR51: 3208 | AS51: 5305 | AT51: 3351 | AU51: 1680 | AV51: 811 | AW51: 899 | AX51: 170 | AY51: 0 | AZ51: 0 | BA51: 0 | BB51: 0 | BC51: 0 | BD51: 0 | BE51: 0 | BF51: 0 | BG51: 0 | BH51: 0 | BI51: 0 | BJ51: 0
B52: Régimen ordinario | C52: 692668 | D52: 620481 | E52: 678344 | F52: 642139 | G52: 657656 | H52: 670707 | I52: 685737 | J52: 720023 | K52: 743872.12 | L52: 740213 | M52: 707266 | N52: 710377 | O52: 735221 | P52: 643381 | Q52: 721106 | R52: 681603 | S52: 700649 | T52: 692848 | U52: 725005 | V52: 736318 | W52: 729336 | X52: 769633 | Y52: 742796 | Z52: 746496 | AA52: 754571 | AB52: 697223 | AC52: 712801 | AD52: 700473 | AE52: 712062 | AF52: 692772 | AG52: 727316 | AH52: 725856 | AI52: 754488 | AJ52: 735673 | AK52: 706811 | AL52: 734551 | AM52: 716678 | AN52: 638620 | AO52: 702744 | AP52: 624182 | AQ52: 654472 | AR52: 674807 | AS52: 714122 | AT52: 710540 | AU52: 709557.542 | AV52: 754973 | AW52: 700206.512 | AX52: 711713 | AY52: 706686.935 | AZ52: 627825.742 | BA52: 694539.362 | BB52: 637723.884 | BC52: 640908.019 | BD52: 642688.723 | BE52: 676239.851 | BF52: 712406.271 | BG52: 709275.825 | BH52: 732972.114 | BI52: 705199.369 | BJ52: 721200.624
B53: Hidroeólica | C53: - | D53: - | E53: - | F53: - | G53: - | H53: - | I53: - | J53: - | K53: - | L53: - | M53: - | N53: - | O53: - | P53: - | Q53: - | R53: - | S53: - | T53: - | U53: - | V53: - | W53: - | X53: - | Y53: - | Z53: - | AA53: - | AB53: - | AC53: - | AD53: - | AE53: - | AF53: - | AG53: - | AH53: - | AI53: - | AJ53: - | AK53: - | AL53: - | AM53: - | AN53: - | AO53: - | AP53: - | AQ53: - | AR53: - | AS53: - | AT53: - | AU53: - | AV53: - | AW53: - | AX53: - | AY53: - | AZ53: - | BA53: - | BB53: - | BC53: - | BD53: - | BE53: - | BF53: - | BG53: - | BH53: - | BI53: - | BJ53: -
B54: Hidráulica/Resto hidráulica | C54: 0 | D54: 0 | E54: 0 | F54: 0 | G54: 0 | H54: 0 | I54: 0 | J54: 0 | K54: 0 | L54: 0 | M54: 0 | N54: 0 | O54: 0 | P54: 0 | Q54: 0 | R54: 0 | S54: 0 | T54: 0 | U54: 82 | V54: 190 | W54: 247 | X54: 92 | Y54: 278 | Z54: 287 | AA54: 287 | AB54: 244 | AC54: 240 | AD54: 0 | AE54: 185 | AF54: 315 | AG54: 305 | AH54: 97 | AI54: 0 | AJ54: 0 | AK54: 0 | AL54: 0 | AM54: 9 | AN54: 164 | AO54: 175 | AP54: 50 | AQ54: 0 | AR54: 0 | AS54: 0 | AT54: 0 | AU54: 0 | AV54: 0 | AW54: 0 | AX54: 0 | AY54: 0 | AZ54: 0 | BA54: 0 | BB54: 0 | BC54: 0 | BD54: 0 | BE54: 0 | BF54: 0 | BG54: 0 | BH54: 0 | BI54: 0 | BJ54: 0
B55: Eólica | C55: 17431.845 | D55: 18906.552 | E55: 22433.485 | F55: 28613.578 | G55: 35233.5 | H55: 25590.253 | I55: 56231.544 | J55: 38386.534 | K55: 22680.768 | L55: 19552.139 | M55: 15309.171 | N55: 25694.21 | O55: 17536 | P55: 22919 | Q55: 37045 | R55: 26057 | S55: 34949 | T55: 31706 | U55: 57951 | V55: 48557 | W55: 26273 | X55: 19181 | Y55: 16085 | Z55: 18581 | AA55: 12697 | AB55: 16352 | AC55: 39237 | AD55: 36025 | AE55: 31842 | AF55: 39889 | AG55: 59648 | AH55: 61491 | AI55: 17713 | AJ55: 33991 | AK55: 22016 | AL55: 25574 | AM55: 23706 | AN55: 17290 | AO55: 24349 | AP55: 46455 | AQ55: 32116 | AR55: 20734 | AS55: 55995 | AT55: 57105 | AU55: 22914 | AV55: 12762 | AW55: 24732 | AX55: 20549 | AY55: 11740 | AZ55: 14778 | BA55: 23015 | BB55: 32147 | BC55: 36251 | BD55: 38838 | BE55: 47304 | BF55: 42622 | BG55: 35769 | BH55: 14015 | BI55: 17956 | BJ55: 16928
B56: Solar fotovoltaica | C56: 36.402 | D56: 46.196 | E56: 66.179 | F56: 67.328 | G56: 76.62 | H56: 77.053 | I56: 98.995 | J56: 430.708 | K56: 484.04 | L56: 533.362 | M56: 462.502 | N56: 536.165 | O56: 610 | P56: 833 | Q56: 1268 | R56: 1459 | S56: 1737 | T56: 1692 | U56: 2046 | V56: 2433 | W56: 2017 | X56: 2022 | Y56: 1635 | Z56: 1621 | AA56: 2022 | AB56: 2658 | AC56: 3713 | AD56: 4145 | AE56: 4312 | AF56: 4894 | AG56: 5548 | AH56: 5693 | AI56: 6152 | AJ56: 9825 | AK56: 7689 | AL56: 6849 | AM56: 8709 | AN56: 10847 | AO56: 12492 | AP56: 16156 | AQ56: 16219 | AR56: 16256 | AS56: 17530 | AT56: 17568 | AU56: 12555 | AV56: 13377 | AW56: 11497 | AX56: 9124 | AY56: 10698 | AZ56: 10306 | BA56: 16328 | BB56: 16499 | BC56: 19138 | BD56: 19607 | BE56: 22480 | BF56: 21526 | BG56: 17621 | BH56: 15830 | BI56: 12519 | BJ56: 12614
B57: Térmica renovable/Otras renovables | C57: 8687.566 | D57: 11201.252 | E57: 21105.336 | F57: 20726.094 | G57: 19570.88 | H57: 20816.694 | I57: 21169.461 | J57: 19156.758 | K57: 13239.192 | L57: 22026.499 | M57: 17532.327 | N57: 22967.625 | O57: 21162 | P57: 19576 | Q57: 5693 | R57: 17196 | S57: 15807 | T57: 15288 | U57: 19273 | V57: 20695 | W57: 19120 | X57: 18295 | Y57: 18031 | Z57: 23147 | AA57: 22239 | AB57: 19665 | AC57: 20200 | AD57: 19685 | AE57: 21462 | AF57: 14780 | AG57: 144 | AH57: 21585 | AI57: 13957 | AJ57: 17447 | AK57: 22889 | AL57: 23166 | AM57: 23472 | AN57: 22220 | AO57: 12230 | AP57: 24755 | AQ57: 22920 | AR57: 23920 | AS57: 24575 | AT57: 24604 | AU57: 23900 | AV57: 22497 | AW57: 23578 | AX57: 24384 | AY57: 23902 | AZ57: 18935 | BA57: 16313 | BB57: 24282 | BC57: 25112 | BD57: 19550 | BE57: 10072 | BF57: 5987 | BG57: 5025 | BH57: 5016 | BI57: 3979 | BJ57: 2388
B58: Térmica no renovable/Cogeneración y resto/Cogeneración | C58: 2832.187 | D58: 0 | E58: 0 | F58: 0 | G58: 0 | H58: 0 | I58: 0 | J58: 0 | K58: 0 | L58: 0 | M58: 0 | N58: 0 | O58: 0 | P58: 0 | Q58: 0 | R58: 0 | S58: 0 | T58: 0 | U58: 0 | V58: 0 | W58: 0 | X58: 0 | Y58: 0 | Z58: 0 | AA58: 0 | AB58: 0 | AC58: 0 | AD58: 0 | AE58: 0 | AF58: 0 | AG58: 0 | AH58: 0 | AI58: 0 | AJ58: 0 | AK58: 0 | AL58: 0 | AM58: 0 | AN58: 0 | AO58: 0 | AP58: 0 | AQ58: 10 | AR58: 10 | AS58: 0 | AT58: 0 | AU58: 0 | AV58: 0 | AW58: 0 | AX58: 0 | AY58: 0 | AZ58: 0 | BA58: 0 | BB58: 0 | BC58: 0 | BD58: 0 | BE58: 0 | BF58: 0 | BG58: 0 | BH58: 0 | BI58: 0 | BJ58: 0
B59: Régimen especial | C59: 28988 | D59: 30154 | E59: 43605 | F59: 49407 | G59: 54881 | H59: 46484 | I59: 77500 | J59: 57974 | K59: 36404 | L59: 42112 | M59: 33304 | N59: 49198 | O59: 39308 | P59: 43328 | Q59: 44006 | R59: 44712 | S59: 52493 | T59: 48686 | U59: 79352 | V59: 71875 | W59: 47657 | X59: 39590 | Y59: 36029 | Z59: 43636 | AA59: 37245 | AB59: 38919 | AC59: 63390 | AD59: 59855 | AE59: 57801 | AF59: 59878 | AG59: 65645 | AH59: 88866 | AI59: 37822 | AJ59: 61263 | AK59: 52594 | AL59: 55589 | AM59: 55896 | AN59: 50521 | AO59: 49246 | AP59: 87416 | AQ59: 71265 | AR59: 60920 | AS59: 98100 | AT59: 99277 | AU59: 59369 | AV59: 48636 | AW59: 59807 | AX59: 54057 | AY59: 46340 | AZ59: 44019 | BA59: 55656 | BB59: 72928 | BC59: 80501 | BD59: 77995 | BE59: 79856 | BF59: 70135 | BG59: 58415 | BH59: 34861 | BI59: 34454 | BJ59: 31930
B60: Generación | C60: 721656 | D60: 650635 | E60: 721949 | F60: 691546 | G60: 712537 | H60: 717191 | I60: 763237 | J60: 777997 | K60: 780276.12 | L60: 782325 | M60: 740570 | N60: 759575 | O60: 774529 | P60: 686709 | Q60: 765112 | R60: 726315 | S60: 753142 | T60: 741534 | U60: 804357 | V60: 808193 | W60: 776993 | X60: 809223 | Y60: 778825 | Z60: 790132 | AA60: 791816 | AB60: 736142 | AC60: 776191 | AD60: 760328 | AE60: 769863 | AF60: 752650 | AG60: 792961 | AH60: 814722 | AI60: 792310 | AJ60: 796936 | AK60: 759405 | AL60: 790140 | AM60: 772574 | AN60: 689141 | AO60: 751990 | AP60: 711598 | AQ60: 725737 | AR60: 735727 | AS60: 812222 | AT60: 809817 | AU60: 768926.542 | AV60: 803609 | AW60: 760013.512 | AX60: 765770 | AY60: 753026.935 | AZ60: 671844.742 | BA60: 750195.362 | BB60: 710651.884 | BC60: 721409.019 | BD60: 720683.723 | BE60: 756095.851 | BF60: 782541.271 | BG60: 767690.825 | BH60: 767833.114 | BI60: 739653.369 | BJ60: 753130.624
B61: Demanda transporte (b.c.) | C61: 721656 | D61: 650635 | E61: 721949 | F61: 691546 | G61: 712537 | H61: 717191 | I61: 763237 | J61: 777997 | K61: 780276.12 | L61: 782325 | M61: 740570 | N61: 759575 | O61: 774529 | P61: 686709 | Q61: 765112 | R61: 726315 | S61: 753142 | T61: 741534 | U61: 804357 | V61: 808193 | W61: 776993 | X61: 809223 | Y61: 778825 | Z61: 790132 | AA61: 791816 | AB61: 736142 | AC61: 776191 | AD61: 760328 | AE61: 769863 | AF61: 752650 | AG61: 792961 | AH61: 814722 | AI61: 792310 | AJ61: 796936 | AK61: 759405 | AL61: 790140 | AM61: 772574 | AN61: 689141 | AO61: 751990 | AP61: 711598 | AQ61: 725737 | AR61: 735727 | AS61: 812222 | AT61: 809817 | AU61: 768926.542 | AV61: 803609 | AW61: 760013.512 | AX61: 765770 | AY61: 753026.935 | AZ61: 671844.742 | BA61: 750195.362 | BB61: 710651.884 | BC61: 721409.019 | BD61: 720683.723 | BE61: 756095.851 | BF61: 782541.271 | BG61: 767690.825 | BH61: 767833.114 | BI61: 739653.369 | BJ61: 753130.624
B63: Balance eléctrico mensual Ceuta (MWh) | C63: 2007-01-01 | D63: 2007-02-01 | E63: 2007-03-01 | F63: 2007-04-01 | G63: 2007-05-01 | H63: 2007-06-01 | I63: 2007-07-01 | J63: 2007-08-01 | K63: 2007-09-01 | L63: 2007-10-01 | M63: 2007-11-01 | N63: 2007-12-01 | O63: 2008-01-01 | P63: 2008-02-01 | Q63: 2008-03-01 | R63: 2008-04-01 | S63: 2008-05-01 | T63: 2008-06-01 | U63: 2008-07-01 | V63: 2008-08-01 | W63: 2008-09-01 | X63: 2008-10-01 | Y63: 2008-11-01 | Z63: 2008-12-01 | AA63: 2009-01-01 | AB63: 2009-02-01 | AC63: 2009-03-01 | AD63: 2009-04-01 | AE63: 2009-05-01 | AF63: 2009-06-01 | AG63: 2009-07-01 | AH63: 2009-08-01 | AI63: 2009-09-01 | AJ63: 2009-10-01 | AK63: 2009-11-01 | AL63: 2009-12-01 | AM63: 2010-01-01 | AN63: 2010-02-01 | AO63: 2010-03-01 | AP63: 2010-04-01 | AQ63: 2010-05-01 | AR63: 2010-06-01 | AS63: 2010-07-01 | AT63: 2010-08-01 | AU63: 2010-09-01 | AV63: 2010-10-01 | AW63: 2010-11-01 | AX63: 2010-12-01
B64: Motores diesel | C64: 17987 | D64: 16069 | E64: 16710 | F64: 15678 | G64: 16366 | H64: 16225 | I64: 17421 | J64: 17411 | K64: 16812 | L64: 17279 | M64: 16847 | N64: 17839 | O64: 18351 | P64: 17181 | Q64: 16737 | R64: 16313 | S64: 16713 | T64: 16662 | U64: 18076 | V64: 18122 | W64: 17406 | X64: 17168 | Y64: 17471 | Z64: 19471 | AA64: 19477 | AB64: 16819 | AC64: 17213 | AD64: 15436 | AE64: 16246 | AF64: 17311 | AG64: 18716 | AH64: 16715 | AI64: 17948 | AJ64: 18184 | AK64: 16095 | AL64: 18156 | AM64: 16835.431 | AN64: 16928.369 | AO64: 17444.607 | AP64: 16234.077 | AQ64: 17320.935 | AR64: 17763.089 | AS64: 19394.423 | AT64: 20221.285 | AU64: 18911.029 | AV64: 18433.375 | AW64: 17839.231 | AX64: 17340.393
B65: Turbina de gas | C65: 0 | D65: 0 | E65: 0 | F65: 0 | G65: 0 | H65: 0 | I65: 0 | J65: 0 | K65: 0 | L65: 0 | M65: 0 | N65: 0 | O65: 0 | P65: 0 | Q65: 0 | R65: 0 | S65: 0 | T65: 0 | U65: 0 | V65: 0 | W65: 0 | X65: 0 | Y65: 0 | Z65: 0 | AA65: 0 | AB65: 0 | AC65: 0 | AD65: 0 | AE65: 0 | AF65: 0 | AG65: 159 | AH65: 1859 | AI65: 0 | AJ65: 0 | AK65: 1026 | AL65: 209 | AM65: 2043.285 | AN65: 554.101 | AO65: 0 | AP65: 147.305 | AQ65: 121.071 | AR65: 0 | AS65: 0 | AT65: 0 | AU65: 0 | AV65: 0 | AW65: 0 | AX65: 3.105
B66: Fuel + Gas | C66: 17987 | D66: 16069 | E66: 16710 | F66: 15678 | G66: 16366 | H66: 16225 | I66: 17421 | J66: 17411 | K66: 16812 | L66: 17279 | M66: 16847 | N66: 17839 | O66: 18351 | P66: 17181 | Q66: 16737 | R66: 16313 | S66: 16713 | T66: 16662 | U66: 18076 | V66: 18122 | W66: 17406 | X66: 17168 | Y66: 17471 | Z66: 19471 | AA66: 19477 | AB66: 16819 | AC66: 17213 | AD66: 15436 | AE66: 16246 | AF66: 17311 | AG66: 18875 | AH66: 18574 | AI66: 17948 | AJ66: 18184 | AK66: 17121 | AL66: 18365 | AM66: 18878.716 | AN66: 17482.47 | AO66: 17444.607 | AP66: 16381.382 | AQ66: 17442.006 | AR66: 17763.089 | AS66: 19394.423 | AT66: 20221.285 | AU66: 18911.029 | AV66: 18433.375 | AW66: 17839.231 | AX66: 17343.498
B67: Régimen ordinario | C67: 17987 | D67: 16069 | E67: 16710 | F67: 15678 | G67: 16366 | H67: 16225 | I67: 17421 | J67: 17411 | K67: 16812 | L67: 17279 | M67: 16847 | N67: 17839 | O67: 18351 | P67: 17181 | Q67: 16737 | R67: 16313 | S67: 16713 | T67: 16662 | U67: 18076 | V67: 18122 | W67: 17406 | X67: 17168 | Y67: 17471 | Z67: 19471 | AA67: 19477 | AB67: 16819 | AC67: 17213 | AD67: 15436 | AE67: 16246 | AF67: 17311 | AG67: 18875 | AH67: 18574 | AI67: 17948 | AJ67: 18184 | AK67: 17121 | AL67: 18365 | AM67: 18878.716 | AN67: 17482.47 | AO67: 17444.607 | AP67: 16381.382 | AQ67: 17442.006 | AR67: 17763.089 | AS67: 19394.423 | AT67: 20221.285 | AU67: 18911.029 | AV67: 18433.375 | AW67: 17839.231 | AX67: 17343.498
B68: Generación | C68: 17987 | D68: 16069 | E68: 16710 | F68: 15678 | G68: 16366 | H68: 16225 | I68: 17421 | J68: 17411 | K68: 16812 | L68: 17279 | M68: 16847 | N68: 17839 | O68: 18351 | P68: 17181 | Q68: 16737 | R68: 16313 | S68: 16713 | T68: 16662 | U68: 18076 | V68: 18122 | W68: 17406 | X68: 17168 | Y68: 17471 | Z68: 19471 | AA68: 19477 | AB68: 16819 | AC68: 17213 | AD68: 15436 | AE68: 16246 | AF68: 17311 | AG68: 18875 | AH68: 18574 | AI68: 17948 | AJ68: 18184 | AK68: 17121 | AL68: 18365 | AM68: 18878.716 | AN68: 17482.47 | AO68: 17444.607 | AP68: 16381.382 | AQ68: 17442.006 | AR68: 17763.089 | AS68: 19394.423 | AT68: 20221.285 | AU68: 18911.029 | AV68: 18433.375 | AW68: 17839.231 | AX68: 17343.498
B69: Demanda transporte (b.c.) | C69: 17987 | D69: 16069 | E69: 16710 | F69: 15678 | G69: 16366 | H69: 16225 | I69: 17421 | J69: 17411 | K69: 16812 | L69: 17279 | M69: 16847 | N69: 17839 | O69: 18351 | P69: 17181 | Q69: 16737 | R69: 16313 | S69: 16713 | T69: 16662 | U69: 18076 | V69: 18122 | W69: 17406 | X69: 17168 | Y69: 17471 | Z69: 19471 | AA69: 19477 | AB69: 16819 | AC69: 17213 | AD69: 15436 | AE69: 16246 | AF69: 17311 | AG69: 18875 | AH69: 18574 | AI69: 17948 | AJ69: 18184 | AK69: 17121 | AL69: 18365 | AM69: 18878.716 | AN69: 17482.47 | AO69: 17444.607 | AP69: 16381.382 | AQ69: 17442.006 | AR69: 17763.089 | AS69: 19394.423 | AT69: 20221.285 | AU69: 18911.029 | AV69: 18433.375 | AW69: 17839.231 | AX69: 17343.498
B71: Balance eléctrico mensual Melilla (MWh) | C71: 2007-01-01 | D71: 2007-02-01 | E71: 2007-03-01 | F71: 2007-04-01 | G71: 2007-05-01 | H71: 2007-06-01 | I71: 2007-07-01 | J71: 2007-08-01 | K71: 2007-09-01 | L71: 2007-10-01 | M71: 2007-11-01 | N71: 2007-12-01 | O71: 2008-01-01 | P71: 2008-02-01 | Q71: 2008-03-01 | R71: 2008-04-01 | S71: 2008-05-01 | T71: 2008-06-01 | U71: 2008-07-01 | V71: 2008-08-01 | W71: 2008-09-01 | X71: 2008-10-01 | Y71: 2008-11-01 | Z71: 2008-12-01 | AA71: 2009-01-01 | AB71: 2009-02-01 | AC71: 2009-03-01 | AD71: 2009-04-01 | AE71: 2009-05-01 | AF71: 2009-06-01 | AG71: 2009-07-01 | AH71: 2009-08-01 | AI71: 2009-09-01 | AJ71: 2009-10-01 | AK71: 2009-11-01 | AL71: 2009-12-01 | AM71: 2010-01-01 | AN71: 2010-02-01 | AO71: 2010-03-01 | AP71: 2010-04-01 | AQ71: 2010-05-01 | AR71: 2010-06-01 | AS71: 2010-07-01 | AT71: 2010-08-01 | AU71: 2010-09-01 | AV71: 2010-10-01 | AW71: 2010-11-01 | AX71: 2010-12-01
B72: Motores diesel | C72: 14250 | D72: 12593 | E72: 13459 | F72: 13734.55 | G72: 15030 | H72: 15717.05 | I72: 17790.86 | J72: 17035.76 | K72: 16233.4 | L72: 16172.12 | M72: 14199 | N72: 15653 | O72: 15536 | P72: 14623 | Q72: 14355 | R72: 14494 | S72: 14972 | T72: 16029 | U72: 18094 | V72: 19226 | W72: 16880 | X72: 15757 | Y72: 15458 | Z72: 17701 | AA72: 17753 | AB72: 15189 | AC72: 15459 | AD72: 14176 | AE72: 15222 | AF72: 16183 | AG72: 18807 | AH72: 19379 | AI72: 16442 | AJ72: 17363 | AK72: 15428 | AL72: 16152 | AM72: 16952.252 | AN72: 15255.491 | AO72: 16387.782 | AP72: 15007.841 | AQ72: 15685.419 | AR72: 16778.192 | AS72: 18965.345 | AT72: 20588.25 | AU72: 17840.764 | AV72: 16821.623 | AW72: 16795.424 | AX72: 17639.588
B73: Turbina de gas | C73: 389 | D73: 201 | E73: 257 | F73: 105.45 | G73: 69 | H73: 0.95 | I73: 123.14 | J73: 231.24 | K73: 37.6 | L73: 48.88 | M73: 484 | N73: 465 | O73: 838 | P73: 433 | Q73: 488 | R73: 171 | S73: 45 | T73: 136 | U73: 205 | V73: 76 | W73: 213 | X73: 250 | Y73: 217 | Z73: 9 | AA73: 10 | AB73: 11 | AC73: 77 | AD73: 53 | AE73: 2 | AF73: 63 | AG73: 0 | AH73: 61 | AI73: 78 | AJ73: 7 | AK73: 126 | AL73: 57 | AM73: 16.721 | AN73: 21.807 | AO73: 3.251 | AP73: 24.138 | AQ73: 34.966 | AR73: 92.513 | AS73: 106.417 | AT73: 34.25 | AU73: 37.729 | AV73: 33.689 | AW73: 53.723 | AX73: 39.252
B74: Fuel + gas | C74: 14639 | D74: 12794 | E74: 13716 | F74: 13840 | G74: 15099 | H74: 15718 | I74: 17914 | J74: 17267 | K74: 16271 | L74: 16221 | M74: 14683 | N74: 16118 | O74: 16374 | P74: 15056 | Q74: 14843 | R74: 14665 | S74: 15017 | T74: 16165 | U74: 18299 | V74: 19302 | W74: 17093 | X74: 16007 | Y74: 15675 | Z74: 17710 | AA74: 17763 | AB74: 15200 | AC74: 15536 | AD74: 14229 | AE74: 15224 | AF74: 16246 | AG74: 18807 | AH74: 19440 | AI74: 16520 | AJ74: 17370 | AK74: 15554 | AL74: 16209 | AM74: 16968.973 | AN74: 15277.298 | AO74: 16391.033 | AP74: 15031.979 | AQ74: 15720.385 | AR74: 16870.705 | AS74: 19071.762 | AT74: 20622.5 | AU74: 17878.493 | AV74: 16855.312 | AW74: 16849.147 | AX74: 17678.84
B75: Régimen ordinario | C75: 14639 | D75: 12794 | E75: 13716 | F75: 13840 | G75: 15099 | H75: 15718 | I75: 17914 | J75: 17267 | K75: 16271 | L75: 16221 | M75: 14683 | N75: 16118 | O75: 16374 | P75: 15056 | Q75: 14843 | R75: 14665 | S75: 15017 | T75: 16165 | U75: 18299 | V75: 19302 | W75: 17093 | X75: 16007 | Y75: 15675 | Z75: 17710 | AA75: 17763 | AB75: 15200 | AC75: 15536 | AD75: 14229 | AE75: 15224 | AF75: 16246 | AG75: 18807 | AH75: 19440 | AI75: 16520 | AJ75: 17370 | AK75: 15554 | AL75: 16209 | AM75: 16968.973 | AN75: 15277.298 | AO75: 16391.033 | AP75: 15031.979 | AQ75: 15720.385 | AR75: 16870.705 | AS75: 19071.762 | AT75: 20622.5 | AU75: 17878.493 | AV75: 16855.312 | AW75: 16849.147 | AX75: 17678.84
B76: Solar fotovoltaica | C76: 0 | D76: 0 | E76: 0 | F76: 0 | G76: 0 | H76: 0 | I76: 0 | J76: 0 | K76: 0 | L76: 0 | M76: 0 | N76: 0 | O76: 1 | P76: 0 | Q76: 0 | R76: 0 | S76: 0 | T76: 1 | U76: 1 | V76: 1 | W76: 1 | X76: 0 | Y76: 1 | Z76: 0 | AA76: 8 | AB76: 17 | AC76: 22 | AD76: 28 | AE76: 9 | AF76: 8 | AG76: 8 | AH76: 8 | AI76: 7 | AJ76: 6 | AK76: 0 | AL76: 1 | AM76: 1 | AN76: 5 | AO76: 6 | AP76: 7 | AQ76: 9 | AR76: 1 | AS76: 8 | AT76: 9 | AU76: 7 | AV76: 6 | AW76: 5 | AX76: 3
B77: Térmica no renovable/Cogeneración y resto/Cogeneración | C77: 747 | D77: 694 | E77: 836 | F77: 656 | G77: 886 | H77: 845 | I77: 733 | J77: 805 | K77: 275 | L77: 611 | M77: 799 | N77: 853 | O77: 937 | P77: 797 | Q77: 849 | R77: 810 | S77: 755 | T77: 694 | U77: 0 | V77: 0 | W77: 0 | X77: 0 | Y77: 0 | Z77: 0 | AA77: 819 | AB77: 726 | AC77: 782 | AD77: 888 | AE77: 819 | AF77: 747 | AG77: 783 | AH77: 727 | AI77: 707 | AJ77: 1 | AK77: 0 | AL77: 736 | AM77: 699 | AN77: 606 | AO77: 781 | AP77: 808 | AQ77: 921 | AR77: 710 | AS77: 772 | AT77: 797 | AU77: 897 | AV77: 486 | AW77: 0 | AX77: 551
B78: Residuos no renovables | C78: - | D78: - | E78: - | F78: - | G78: - | H78: - | I78: - | J78: - | K78: - | L78: - | M78: - | N78: - | O78: - | P78: - | Q78: - | R78: - | S78: - | T78: - | U78: - | V78: - | W78: - | X78: - | Y78: - | Z78: - | AA78: - | AB78: - | AC78: - | AD78: - | AE78: - | AF78: - | AG78: - | AH78: - | AI78: - | AJ78: - | AK78: - | AL78: - | AM78: - | AN78: - | AO78: - | AP78: - | AQ78: - | AR78: - | AS78: - | AT78: - | AU78: - | AV78: - | AW78: - | AX78: -
B79: Residuos renovables | C79: - | D79: - | E79: - | F79: - | G79: - | H79: - | I79: - | J79: - | K79: - | L79: - | M79: - | N79: - | O79: - | P79: - | Q79: - | R79: - | S79: - | T79: - | U79: - | V79: - | W79: - | X79: - | Y79: - | Z79: - | AA79: - | AB79: - | AC79: - | AD79: - | AE79: - | AF79: - | AG79: - | AH79: - | AI79: - | AJ79: - | AK79: - | AL79: - | AM79: - | AN79: - | AO79: - | AP79: - | AQ79: - | AR79: - | AS79: - | AT79: - | AU79: - | AV79: - | AW79: - | AX79: -
B80: Régimen especial | C80: 747 | D80: 694 | E80: 836 | F80: 656 | G80: 886 | H80: 845 | I80: 733 | J80: 805 | K80: 275 | L80: 611 | M80: 799 | N80: 853 | O80: 938 | P80: 797 | Q80: 849 | R80: 810 | S80: 755 | T80: 695 | U80: 1 | V80: 1 | W80: 1 | X80: 0 | Y80: 1 | Z80: 0 | AA80: 827 | AB80: 743 | AC80: 804 | AD80: 916 | AE80: 828 | AF80: 755 | AG80: 791 | AH80: 735 | AI80: 714 | AJ80: 7 | AK80: 0 | AL80: 737 | AM80: 700 | AN80: 611 | AO80: 787 | AP80: 815 | AQ80: 930 | AR80: 711 | AS80: 780 | AT80: 806 | AU80: 904 | AV80: 492 | AW80: 5 | AX80: 554
B81: Generación | C81: 15386 | D81: 13488 | E81: 14552 | F81: 14496 | G81: 15985 | H81: 16563 | I81: 18647 | J81: 18072 | K81: 16546 | L81: 16832 | M81: 15482 | N81: 16971 | O81: 17312 | P81: 15853 | Q81: 15692 | R81: 15475 | S81: 15772 | T81: 16860 | U81: 18300 | V81: 19303 | W81: 17094 | X81: 16007 | Y81: 15676 | Z81: 17710 | AA81: 18590 | AB81: 15943 | AC81: 16340 | AD81: 15145 | AE81: 16052 | AF81: 17001 | AG81: 19598 | AH81: 20175 | AI81: 17234 | AJ81: 17377 | AK81: 15554 | AL81: 16946 | AM81: 17668.973 | AN81: 15888.298 | AO81: 17178.033 | AP81: 15846.979 | AQ81: 16650.385 | AR81: 17581.705 | AS81: 19851.762 | AT81: 21428.5 | AU81: 18782.493 | AV81: 17347.312 | AW81: 16854.147 | AX81: 18232.84
B82: Demanda transporte (b.c.) | C82: 15386 | D82: 13488 | E82: 14552 | F82: 14496 | G82: 15985 | H82: 16563 | I82: 18647 | J82: 18072 | K82: 16546 | L82: 16832 | M82: 15482 | N82: 16971 | O82: 17312 | P82: 15853 | Q82: 15692 | R82: 15475 | S82: 15772 | T82: 16860 | U82: 18300 | V82: 19303 | W82: 17094 | X82: 16007 | Y82: 15676 | Z82: 17710 | AA82: 18590 | AB82: 15943 | AC82: 16340 | AD82: 15145 | AE82: 16052 | AF82: 17001 | AG82: 19598 | AH82: 20175 | AI82: 17234 | AJ82: 17377 | AK82: 15554 | AL82: 16946 | AM82: 17668.973 | AN82: 15888.298 | AO82: 17178.033 | AP82: 15846.979 | AQ82: 16650.385 | AR82: 17581.705 | AS82: 19851.762 | AT82: 21428.5 | AU82: 18782.493 | AV82: 17347.312 | AW82: 16854.147 | AX82: 18232.84
B84: Balance eléctrico mensual nacional (GWh) | C84: 2007-01-01 | D84: 2007-02-01 | E84: 2007-03-01 | F84: 2007-04-01 | G84: 2007-05-01 | H84: 2007-06-01 | I84: 2007-07-01 | J84: 2007-08-01 | K84: 2007-09-01 | L84: 2007-10-01 | M84: 2007-11-01 | N84: 2007-12-01 | O84: 2008-01-01 | P84: 2008-02-01 | Q84: 2008-03-01 | R84: 2008-04-01 | S84: 2008-05-01 | T84: 2008-06-01 | U84: 2008-07-01 | V84: 2008-08-01 | W84: 2008-09-01 | X84: 2008-10-01 | Y84: 2008-11-01 | Z84: 2008-12-01 | AA84: 2009-01-01 | AB84: 2009-02-01 | AC84: 2009-03-01 | AD84: 2009-04-01 | AE84: 2009-05-01 | AF84: 2009-06-01 | AG84: 2009-07-01 | AH84: 2009-08-01 | AI84: 2009-09-01 | AJ84: 2009-10-01 | AK84: 2009-11-01 | AL84: 2009-12-01 | AM84: 2010-01-01 | AN84: 2010-02-01 | AO84: 2010-03-01 | AP84: 2010-04-01 | AQ84: 2010-05-01 | AR84: 2010-06-01 | AS84: 2010-07-01 | AT84: 2010-08-01 | AU84: 2010-09-01 | AV84: 2010-10-01 | AW84: 2010-11-01 | AX84: 2010-12-01
B85: Hidráulica | C85: 1920.0478 | D85: 2539.7347 | E85: 3412.3604 | F85: 2337.7021 | G85: 2328.2846 | H85: 1896.4942 | I85: 2152.4523 | J85: 1514.2806 | K85: 1189.9215 | L85: 1525.5493 | M85: 1152.0925 | N85: 1010.0581 | O85: 1052.9718 | P85: 724.4335 | Q85: 774.5612 | R85: 2158.8984 | S85: 2756.8809 | T85: 2593.9365 | U85: 1801.4576 | V85: 1275.0206 | W85: 1101.1438 | X85: 904.6395 | Y85: 1192.6748 | Z85: 1959.02 | AA85: 1753.4291 | AB85: 2852.5815 | AC85: 2234.3776 | AD85: 1704.1587 | AE85: 2008.6724 | AF85: 1659.6542 | AG85: 1393.0594 | AH85: 1167.1748 | AI85: 750.3409 | AJ85: 1028.1299 | AK85: 1560.9613 | AL85: 2619.7629 | AM85: 4414.276113 | AN85: 3450.725562 | AO85: 5031.778044 | AP85: 4029.856131 | AQ85: 3174.539048 | AR85: 2946.088153 | AS85: 2437.169407 | AT85: 1695.081813 | AU85: 1249.407344 | AV85: 1282.613029 | AW85: 2043.858068 | AX85: 3254.061477
B86: Turbinación bombeo | C86: 260.2432 | D86: 277.1153 | E86: 268.9176 | F86: 205.3779 | G86: 278.3354 | H86: 249.3778 | I86: 233.4647 | J86: 259.9674 | K86: 242.1475 | L86: 221.9007 | M86: 268.9085 | N86: 336.8449 | O86: 301.5852 | P86: 293.5135 | Q86: 281.2558 | R86: 153.3406 | S86: 144.2511 | T86: 199.6785 | U86: 177.6474 | V86: 133.5614 | W86: 158.5892 | X86: 208.0015 | Y86: 287.8792 | Z86: 322.448 | AA86: 344.5589 | AB86: 274.4245 | AC86: 197.0304 | AD86: 179.0313 | AE86: 173.2486 | AF86: 157.2158 | AG86: 168.7126 | AH86: 171.5042 | AI86: 178.1451 | AJ86: 198.8861 | AK86: 278.2507 | AL86: 334.9241 | AM86: 529.6098367 | AN86: 388.3055554 | AO86: 381.2650926 | AP86: 212.2124193 | AQ86: 195.9644344 | AR86: 161.1085868 | AS86: 139.417691 | AT86: 161.8007685 | AU86: 163.5869683 | AV86: 242.2811895 | AW86: 225.5565683 | AX86: 319.3386931
B87: Nuclear | C87: 5319.158 | D87: 4778.305 | E87: 4947.463 | F87: 4342.93 | G87: 3485.058 | H87: 3161.45 | I87: 3855.746 | J87: 3976.62 | K87: 4877.284 | L87: 4891.066 | M87: 3934.346 | N87: 5069.501 | O87: 5322.941 | P87: 5119.932 | Q87: 5354.706 | R87: 4039.755 | S87: 4689.704 | T87: 4579.733 | U87: 4541.035 | V87: 5013.949 | W87: 4482.389 | X87: 4314.462 | Y87: 4045.827 | Z87: 4955.858 | AA87: 5438.39 | AB87: 4335.14 | AC87: 3949.223 | AD87: 4063.489 | AE87: 3687.607 | AF87: 3530.33 | AG87: 3998.25 | AH87: 5278.162 | AI87: 4387.847 | AJ87: 3957.824 | AK87: 3973.495 | AL87: 3949.688 | AM87: 4480.61 | AN87: 4635.983 | AO87: 4877.964647 | AP87: 4894.268 | AQ87: 4417.869 | AR87: 4693.97 | AS87: 5399.984 | AT87: 5421.255 | AU87: 5066.819 | AV87: 5429.769 | AW87: 5094.619 | AX87: 4829.211
B88: Carbón | C88: 6355.929 | D88: 5122.869 | E88: 5084.009 | F88: 6098.414 | G88: 6219.931 | H88: 5996.388 | I88: 6220.399 | J88: 6178.925 | K88: 5753.596 | L88: 5577.975 | M88: 5687.978 | N88: 6333.69 | O88: 5268.578 | P88: 4867.598 | Q88: 3927.526 | R88: 3323.271 | S88: 2421.465 | T88: 2321.117 | U88: 3976.963 | V88: 3367.824 | W88: 3731.902 | X88: 4344.144 | Y88: 4316.304 | Z88: 4641.671 | AA88: 4771.561 | AB88: 3283.016 | AC88: 3194.999 | AD88: 2027.452 | AE88: 2501.199 | AF88: 2745.413 | AG88: 3511.526 | AH88: 2102.673 | AI88: 2949.413 | AJ88: 3336.002 | AK88: 2251.833 | AL88: 2117.938 | AM88: 1984.722964 | AN88: 1620.406437 | AO88: 1128.340414 | AP88: 904.48311 | AQ88: 1053.230108 | AR88: 1601.609162 | AS88: 2742.506 | AT88: 3122.487928 | AU88: 3256.419825 | AV88: 2204.432101 | AW88: 1819.434667 | AX88: 2262.540684
B89: Fuel + Gas | C89: 768.6 | D89: 809.296 | E89: 838.596 | F89: 760.797 | G89: 775.883 | H89: 747.341 | I89: 950.179 | J89: 946.664 | K89: 919.39 | L89: 799.77 | M89: 841.274 | N89: 830.675 | O89: 829.661 | P89: 776.978 | Q89: 690.657 | R89: 738.393 | S89: 796.628 | T89: 853.542 | U89: 852.613 | V89: 943.857 | W89: 880.453 | X89: 850.278 | Y89: 839.86 | Z89: 834.646 | AA89: 768.621 | AB89: 673.434 | AC89: 795.63 | AD89: 680.089 | AE89: 729.073 | AF89: 778.622 | AG89: 889.541 | AH89: 870.263 | AI89: 821.129542 | AJ89: 758.478 | AK89: 740.347512 | AL89: 771.076 | AM89: 769.165922 | AN89: 680.8875 | AO89: 622.58835 | AP89: 645.159553 | AQ89: 743.365113 | AR89: 767.24709 | AS89: 791.550728 | AT89: 801.003163 | AU89: 775.187208 | AV89: 725.473731 | AW89: 741.368957 | AX89: 758.762501
B90: Ciclo combinado | C90: 6359.761 | D90: 4080.7 | E90: 4156.213 | F90: 4273.456 | G90: 4686.458 | H90: 6528.933 | I90: 6999.727 | J90: 5503.996 | K90: 5974.326 | L90: 6466.711 | M90: 7970.268 | N90: 7599.589 | O90: 8292.022 | P90: 8254.787 | Q90: 7091.735 | R90: 7235.105 | S90: 7505.336 | T90: 7943.094 | U90: 9260.919 | V90: 8622.542 | W90: 8167.759 | X90: 7543.919 | Y90: 7156.868 | Z90: 6123.453 | AA90: 6394.837 | AB90: 4731.219 | AC90: 5388.102 | AD90: 5722.303 | AE90: 5822.068 | AF90: 7920.279 | AG90: 8907.599 | AH90: 8556.312 | AI90: 7707.526 | AJ90: 6844.301 | AK90: 5793.124 | AL90: 6436.125 | AM90: 5621.942065 | AN90: 5052.503755 | AO90: 4384.988592 | AP90: 4612.741777 | AQ90: 4834.075072 | AR90: 5727.722947 | AS90: 7160.343212 | AT90: 6106.948573 | AU90: 6544.562699 | AV90: 5651.863152 | AW90: 5881.431113 | AX90: 5219.861195
B91: Régimen ordinario | C91: 20983.739 | D91: 17608.02 | E91: 18707.559 | F91: 18018.677 | G91: 17773.95 | H91: 18579.984 | I91: 20411.968 | J91: 18380.453 | K91: 18956.665 | L91: 19482.972 | M91: 19854.867 | N91: 21180.358 | O91: 21067.759 | P91: 20037.242 | Q91: 18120.441 | R91: 17648.763 | S91: 18314.265 | T91: 18491.101 | U91: 20610.635 | V91: 19356.754 | W91: 18522.236 | X91: 18165.444 | Y91: 17839.413 | Z91: 18837.096 | AA91: 19471.397 | AB91: 16149.815 | AC91: 15759.362 | AD91: 14376.523 | AE91: 14921.868 | AF91: 16791.514 | AG91: 18868.688 | AH91: 18146.089 | AI91: 16794.40154 | AJ91: 16123.621 | AK91: 14598.01151 | AL91: 16229.514 | AM91: 17800.3269 | AN91: 15828.81181 | AO91: 16426.92514 | AP91: 15298.72099 | AQ91: 14419.04277 | AR91: 15897.74594 | AS91: 18670.97104 | AT91: 17308.57725 | AU91: 17055.98304 | AV91: 15536.4322 | AW91: 15806.26837 | AX91: 16643.77555
B92: Hidroeólica | C92: - | D92: - | E92: - | F92: - | G92: - | H92: - | I92: - | J92: - | K92: - | L92: - | M92: - | N92: - | O92: - | P92: - | Q92: - | R92: - | S92: - | T92: - | U92: - | V92: - | W92: - | X92: - | Y92: - | Z92: - | AA92: - | AB92: - | AC92: - | AD92: - | AE92: - | AF92: - | AG92: - | AH92: - | AI92: - | AJ92: - | AK92: - | AL92: - | AM92: - | AN92: - | AO92: - | AP92: - | AQ92: - | AR92: - | AS92: - | AT92: - | AU92: - | AV92: - | AW92: - | AX92: -
B93: Hidráulica/Resto hidráulica | C93: 345.489 | D93: 478.796 | E93: 516.028 | F93: 529.759 | G93: 509.19 | H93: 412.917 | I93: 302.294 | J93: 256.691 | K93: 186.381 | L93: 186.98 | M93: 190.151 | N93: 211.825 | O93: 340.493 | P93: 233.462 | Q93: 301.474 | R93: 581.111 | S93: 613.464 | T93: 581.87 | U93: 380.714 | V93: 264.678 | W93: 212.28 | X93: 190.523 | Y93: 400.121 | Z93: 539.626 | AA93: 521.064 | AB93: 629.616 | AC93: 560.02 | AD93: 501.492 | AE93: 577.142 | AF93: 468.387 | AG93: 365.353 | AH93: 282.65 | AI93: 242.869 | AJ93: 230.81 | AK93: 466.05 | AL93: 608.618 | AM93: 764.37 | AN93: 616.578 | AO93: 784.76 | AP93: 690.196 | AQ93: 688.343 | AR93: 608.948 | AS93: 459.603 | AT93: 341.748 | AU93: 281.05 | AV93: 318.889 | AW93: 567.66 | AX93: 702.175
B94: Eólica | C94: 2167.745 | D94: 2895.318 | E94: 3123.877 | F94: 1382.619 | G94: 2641.214 | H94: 1818.328 | I94: 1946.918 | J94: 2468.82 | K94: 2055.448 | L94: 1927.347 | M94: 2769.181 | N94: 2414.836 | O94: 2664.58 | P94: 2035.72 | Q94: 4132.362 | R94: 3389.452 | S94: 1769.215 | T94: 2125.688 | U94: 2184.157 | V94: 2034.342 | W94: 2148.06 | X94: 2516.474 | Y94: 3485.324 | Z94: 3674.448 | AA94: 3527.977 | AB94: 3244.298 | AC94: 3125.394 | AD94: 3106.595 | AE94: 2730.597 | AF94: 2353.512 | AG94: 2482.25 | AH94: 2293.089 | AI94: 2489.991 | AJ94: 3138.623 | AK94: 4817.9 | AL94: 4942.601 | AM94: 4304.431 | AN94: 4637.902 | AO94: 4570.152 | AP94: 2667.343 | AQ94: 3655.897 | AR94: 2615.31 | AS94: 2845.759 | AT94: 2937.761 | AU94: 2337.395 | AV94: 3967.323 | AW94: 4366.544 | AX94: 4639.513
B95: Solar fotovoltaica | C95: 10.391 | D95: 12.96 | E95: 21.984 | F95: 26.106 | G95: 36.128 | H95: 40.742 | I95: 51.927 | J95: 56.504 | K95: 60.428 | L95: 57.696 | M95: 54.376 | N95: 54.66 | O95: 59.578 | P95: 73.401 | Q95: 108.562 | R95: 131.044 | S95: 137.021 | T95: 196.409 | U95: 240.442 | V95: 298.525 | W95: 328.085 | X95: 334.328 | Y95: 335.402 | Z95: 255.159 | AA95: 261.258 | AB95: 396.228 | AC95: 528.732 | AD95: 569.738 | AE95: 672.347 | AF95: 643.832 | AG95: 717.298 | AH95: 663.41 | AI95: 511.531 | AJ95: 502.206 | AK95: 361.993 | AL95: 243.817 | AM95: 263.119 | AN95: 305.071 | AO95: 481.509 | AP95: 590.407 | AQ95: 711.442 | AR95: 685.331 | AS95: 785.815 | AT95: 723.07 | AU95: 631.376 | AV95: 548.484 | AW95: 382.176 | AX95: 314.972
B96: Solar térmica | C96: 0 | D96: 0 | E96: 0.431 | F96: 0.342 | G96: 0.558 | H96: 0.883 | I96: 1.256 | J96: 1.116 | K96: 0.639 | L96: 1.214 | M96: 0.997 | N96: 0.191 | O96: 1.084 | P96: 0.797 | Q96: 1.461 | R96: 0.958 | S96: 0.942 | T96: 1.963 | U96: 2.038 | V96: 1.98 | W96: 0.859 | X96: 0.866 | Y96: 1.27 | Z96: 1.16 | AA96: 0.69 | AB96: 1.236 | AC96: 2.323 | AD96: 7.204 | AE96: 7.658 | AF96: 6.752 | AG96: 12.414 | AH96: 23.868 | AI96: 17.539 | AJ96: 23.446 | AK96: 16.183 | AL96: 10.51 | AM96: 13.152 | AN96: 11.682 | AO96: 23.732 | AP96: 36.92 | AQ96: 69.084 | AR96: 72.532 | AS96: 104.59 | AT96: 121.9 | AU96: 100.917 | AV96: 71.745 | AW96: 31.619 | AX96: 33.747
B97: Térmica renovable/Otras renovables | C97: 216.579 | D97: 190.444 | E97: 202.655 | F97: 201.314 | G97: 212.921 | H97: 208.535 | I97: 222.325 | J97: 223.344 | K97: 210.393 | L97: 242.724 | M97: 222.188 | N97: 235.546 | O97: 240.543 | P97: 235.363 | Q97: 243.9 | R97: 241.168 | S97: 240.349 | T97: 235.231 | U97: 223.648 | V97: 239.895 | W97: 225.512 | X97: 247.172 | Y97: 248.545 | Z97: 247.382 | AA97: 267.158 | AB97: 253.473 | AC97: 264.576 | AD97: 300.052 | AE97: 272.998 | AF97: 253.046 | AG97: 260.849 | AH97: 260.463 | AI97: 287.976 | AJ97: 347.836 | AK97: 272.588 | AL97: 276.327 | AM97: 274.842 | AN97: 245.359 | AO97: 262.311 | AP97: 277.043 | AQ97: 300.037 | AR97: 288.511 | AS97: 278.102 | AT97: 284.791 | AU97: 267.962 | AV97: 284.303 | AW97: 273.1 | AX97: 295.999
B98: Térmica no renovable/Cogeneración y resto/Cogeneración | C98: 1995.545 | D98: 1768.996 | E98: 1879.585 | F98: 1844.236 | G98: 1838.946 | H98: 1904.773 | I98: 2000.027 | J98: 1879.026 | K98: 1965.914 | L98: 2104.393 | M98: 2108.932 | N98: 2160.057 | O98: 2263.859 | P98: 2239.883 | Q98: 2285.25 | R98: 2241.501 | S98: 2119.176 | T98: 2090.956 | U98: 2229.86 | V98: 2028.064 | W98: 2188.578 | X98: 2370.777 | Y98: 2326.19 | Z98: 2337.056 | AA98: 2435.461 | AB98: 2252.732 | AC98: 2408.4 | AD98: 2350.433 | AE98: 2364.214 | AF98: 2321.689 | AG98: 2408.567 | AH98: 2045.842 | AI98: 2349.301 | AJ98: 2475.896 | AK98: 2583.23 | AL98: 2604.966 | AM98: 2672.728 | AN98: 2486.873 | AO98: 2628.811 | AP98: 2562.366 | AQ98: 2593.181 | AR98: 2552.884 | AS98: 2625.967 | AT98: 2177.162 | AU98: 2550.565 | AV98: 2661.369 | AW98: 2677.227 | AX98: 2784.191
B99: Residuos no renovables | C99: - | D99: - | E99: - | F99: - | G99: - | H99: - | I99: - | J99: - | K99: - | L99: - | M99: - | N99: - | O99: - | P99: - | Q99: - | R99: - | S99: - | T99: - | U99: - | V99: - | W99: - | X99: - | Y99: - | Z99: - | AA99: - | AB99: - | AC99: - | AD99: - | AE99: - | AF99: - | AG99: - | AH99: - | AI99: - | AJ99: - | AK99: - | AL99: - | AM99: - | AN99: - | AO99: - | AP99: - | AQ99: - | AR99: - | AS99: - | AT99: - | AU99: - | AV99: - | AW99: - | AX99: -
B100: Residuos renovables | C100: - | D100: - | E100: - | F100: - | G100: - | H100: - | I100: - | J100: - | K100: - | L100: - | M100: - | N100: - | O100: - | P100: - | Q100: - | R100: - | S100: - | T100: - | U100: - | V100: - | W100: - | X100: - | Y100: - | Z100: - | AA100: - | AB100: - | AC100: - | AD100: - | AE100: - | AF100: - | AG100: - | AH100: - | AI100: - | AJ100: - | AK100: - | AL100: - | AM100: - | AN100: - | AO100: - | AP100: - | AQ100: - | AR100: - | AS100: - | AT100: - | AU100: - | AV100: - | AW100: - | AX100: -
B101: Régimen especial | C101: 4735.749 | D101: 5346.514 | E101: 5744.56 | F101: 3984.376 | G101: 5238.957 | H101: 4386.178 | I101: 4524.747 | J101: 4885.501 | K101: 4479.203 | L101: 4520.354 | M101: 5345.825 | N101: 5077.115 | O101: 5570.137 | P101: 4818.626 | Q101: 7073.009 | R101: 6585.234 | S101: 4880.167 | T101: 5232.117 | U101: 5260.859 | V101: 4867.484 | W101: 5103.374 | X101: 5660.14 | Y101: 6796.852 | Z101: 7054.831 | AA101: 7013.608 | AB101: 6777.583 | AC101: 6889.445 | AD101: 6835.514 | AE101: 6624.956 | AF101: 6047.218 | AG101: 6246.731 | AH101: 5569.322 | AI101: 5899.207 | AJ101: 6718.817 | AK101: 8517.944 | AL101: 8686.839 | AM101: 8292.642 | AN101: 8303.465 | AO101: 8751.275 | AP101: 6824.275 | AQ101: 8017.984 | AR101: 6823.516 | AS101: 7099.836 | AT101: 6586.432 | AU101: 6169.265 | AV101: 7852.113 | AW101: 8298.326 | AX101: 8770.597
B102: Generación | C102: 25719.488 | D102: 22954.534 | E102: 24452.119 | F102: 22003.053 | G102: 23012.907 | H102: 22966.162 | I102: 24936.715 | J102: 23265.954 | K102: 23435.868 | L102: 24003.326 | M102: 25200.692 | N102: 26257.473 | O102: 26637.896 | P102: 24855.868 | Q102: 25193.45 | R102: 24233.997 | S102: 23194.432 | T102: 23723.218 | U102: 25871.494 | V102: 24224.238 | W102: 23625.61 | X102: 23825.584 | Y102: 24636.265 | Z102: 25891.927 | AA102: 26485.005 | AB102: 22927.398 | AC102: 22648.807 | AD102: 21212.037 | AE102: 21546.824 | AF102: 22838.732 | AG102: 25115.419 | AH102: 23715.411 | AI102: 22693.60854 | AJ102: 22842.438 | AK102: 23115.95551 | AL102: 24916.353 | AM102: 26092.9689 | AN102: 24132.27681 | AO102: 25178.20014 | AP102: 22122.99599 | AQ102: 22437.02677 | AR102: 22721.26194 | AS102: 25770.80704 | AT102: 23895.00925 | AU102: 23225.24804 | AV102: 23388.5452 | AW102: 24104.59437 | AX102: 25414.37255
B103: Consumos en bombeo | C103: -371.776 | D103: -395.879 | E103: -384.168 | F103: -293.397 | G103: -397.622 | H103: -356.254 | I103: -333.521 | J103: -371.382 | K103: -345.925 | L103: -317.001 | M103: -384.155 | N103: -481.207 | O103: -430.836 | P103: -419.305 | Q103: -401.794 | R103: -219.058 | S103: -206.073 | T103: -285.255 | U103: -253.782 | V103: -190.802 | W103: -226.556 | X103: -297.145 | Y103: -411.256 | Z103: -460.64 | AA103: -492.227 | AB103: -392.035 | AC103: -281.472 | AD103: -255.759 | AE103: -247.498 | AF103: -224.594 | AG103: -241.018 | AH103: -245.006 | AI103: -254.493 | AJ103: -284.123 | AK103: -397.501 | AL103: -478.463 | AM103: -756.585481 | AN103: -554.722222 | AO103: -544.664418 | AP103: -303.160599 | AQ103: -279.949192 | AR103: -230.155124 | AS103: -199.16813 | AT103: -231.143955 | AU103: -233.695669 | AV103: -346.115985 | AW103: -322.223669 | AX103: -456.198133
B104: Saldo intercambios internacionales | C104: 94.565 | D104: -235.492 | E104: -243.362 | F104: -261.054 | G104: -494.788 | H104: -223.463 | I104: -289.778 | J104: -314.014 | K104: -846.576 | L104: -1153.772 | M104: -1052.93 | N104: -729.801 | O104: -456.804 | P104: -655.587 | Q104: -1199.348 | R104: -1291.615 | S104: -761.275 | T104: -1052.342 | U104: -907.813 | V104: -796.073 | W104: -935.81 | X104: -1102.016 | Y104: -948.447 | Z104: -932.456 | AA104: -897.628 | AB104: -474.277 | AC104: -192.952 | AD104: -548.934 | AE104: -437.376 | AF104: -769.161 | AG104: -944.909 | AH104: -817.417 | AI104: -711.168 | AJ104: -941.365 | AK104: -897.212 | AL104: -454.015 | AM104: -304.713446 | AN104: -506.196753 | AO104: -560.114046 | AP104: -729.095102 | AQ104: -542.815029 | AR104: -821.225751 | AS104: -1000.653567 | AT104: -758.601057 | AU104: -964.255452 | AV104: -1295.509887 | AW104: -593.210574 | AX104: -256.288394
B105: Demanda transporte (b.c.) | C105: 25442.277 | D105: 22323.163 | E105: 23824.589 | F105: 21448.602 | G105: 22120.497 | H105: 22386.445 | I105: 24313.416 | J105: 22580.558 | K105: 22243.367 | L105: 22532.553 | M105: 23763.607 | N105: 25046.465 | O105: 25750.256 | P105: 23780.976 | Q105: 23592.308 | R105: 22723.324 | S105: 22227.084 | T105: 22385.621 | U105: 24709.899 | V105: 23237.363 | W105: 22463.244 | X105: 22426.423 | Y105: 23276.562 | Z105: 24498.831 | AA105: 25095.15 | AB105: 22061.086 | AC105: 22174.383 | AD105: 20407.344 | AE105: 20861.95 | AF105: 21844.977 | AG105: 23929.492 | AH105: 22652.988 | AI105: 21727.94754 | AJ105: 21616.95 | AK105: 21821.24251 | AL105: 23983.875 | AM105: 25031.66997 | AN105: 23071.35783 | AO105: 24073.42168 | AP105: 21090.74029 | AQ105: 21614.26255 | AR105: 21669.88106 | AS105: 24570.98534 | AT105: 22905.26423 | AU105: 22027.29692 | AV105: 21746.91933 | AW105: 23189.16013 | AX105: 24701.88602
B107: Balance eléctrico anual peninsular (GWh) | C107: 1990 | D107: 1991 | E107: 1992 | F107: 1993 | G107: 1994 | H107: 1995 | I107: 1996 | J107: 1997 | K107: 1998 | L107: 1999 | M107: 2000 | N107: 2001 | O107: 2002 | P107: 2003 | Q107: 2004 | R107: 2005 | S107: 2006 | T107: 2007 | U107: 2008 | V107: 2009 | W107: 2010 | X107: 2011 | Y107: 2012 | Z107: 2013
B108: Hidráulica | C108: 23540.7606 | D108: 24727.9339 | E108: 16556.8675 | F108: 21514.4897 | G108: 25008.6657 | H108: 20239.0878 | I108: 36324.7574 | J108: 31681.2627 | K108: 31855.5352 | L108: 21297.382 | M108: 24057.8348 | N108: 36104.5772 | O108: 17325.8726 | P108: 35008.3632 | Q108: 26120.4591 | R108: 14430.6141 | S108: 21226.3849 | T108: 22978.9781 | U108: 18295.6386 | V108: 20732.3027 | W108: 35009.45419 | X108: - | Y108: - | Z108: -
B109: Turbinación bombeo | C109: 727.4904 | D109: 1002.9131 | E109: 1953.4935 | F109: 1321.2913 | G109: 941.7723 | H109: 1457.2082 | I109: 1065.8326 | J109: 1232.6223 | K109: 1811.4278 | L109: 2566.466 | M109: 3434.8202 | N109: 2891.8848 | O109: 4869.6774 | P109: 3274.6938 | Q109: 3223.2949 | R109: 4449.8629 | S109: 3743.8611 | T109: 3102.6009 | U109: 2661.7514 | V109: 2655.9323 | W109: 3120.447804 | X109: - | Y109: - | Z109: -
B110: Nuclear | C110: 51905.668 | D110: 53162.4 | E110: 53360.06 | F110: 53665.29 | G110: 52995.803 | H110: 53138.098 | I110: 54112.746 | J110: 53048.342 | K110: 56572.047 | L110: 56378.197 | M110: 59530.32 | N110: 60985.213 | O110: 60288.447 | P110: 59219.59 | Q110: 60875.742 | R110: 54901.833 | S110: 57353.706 | T110: 52638.927 | U110: 56460.291 | V110: 50549.445 | W110: 59242.32165 | X110: - | Y110: - | Z110: -
B111: Carbón | C111: 55338.808 | D111: 55804.307 | E111: 59825.895 | F111: 57851.098 | G111: 57174.709 | H111: 61234.712 | I111: 49468.669 | J111: 58519.806 | K111: 56925.975 | L111: 68405.633 | M111: 72228.171 | N111: 64448.904 | O111: 74555.691 | P111: 68293.166 | Q111: 72120.106 | R111: 72994.089 | S111: 62126.065 | T111: 67686.248 | U111: 43409.537 | V111: 31622.562 | W111: 20599.25583 | X111: - | Y111: - | Z111: -
B112: Fuel + Gas | C112: 2865.946 | D112: 4041.685 | E112: 7463.583 | F112: 1777.147 | G112: 1412.185 | H112: 3661.163 | I112: 2043.33 | J112: 6552.541 | K112: 5338.881 | L112: 9350.663 | M112: 9565.299 | N112: 11579.619 | O112: 15545.682 | P112: 7431.642 | Q112: 7089.468 | R112: 9294.318 | S112: 5396.058 | T112: 2090.765 | U112: 2074.895 | V112: 1789.59 | W112: 1566.023 | X112: - | Y112: - | Z112: -
B113: Ciclo combinado | C113: 0 | D113: 0 | E113: 0 | F113: 0.213 | G113: 0 | H113: 0 | I113: 0 | J113: 0 | K113: 0 | L113: 0 | M113: 0 | N113: 0 | O113: 5155.673 | P113: 14626.086 | Q113: 28312.845 | R113: 47846.789 | S113: 62122.434 | T113: 66572.868 | U113: 89100.732 | V113: 76379.284 | W113: 62954.94024 | X113: - | Y113: - | Z113: -
B114: Régimen ordinario | C114: 134378.673 | D114: 138739.239 | E114: 139159.899 | F114: 136129.529 | G114: 137533.135 | H114: 139730.269 | I114: 143015.335 | J114: 151034.574 | K114: 152503.866 | L114: 157998.341 | M114: 168816.445 | N114: 176010.198 | O114: 177741.043 | P114: 187853.541 | Q114: 197741.915 | R114: 203917.506 | S114: 211968.509 | T114: 215070.387 | U114: 212002.845 | V114: 183729.116 | W114: 182492.4427 | X114: - | Y114: - | Z114: -
B115: Hidráulica/Resto hidráulica | C115: 982.632 | D115: 1704.781 | E115: 2081.773 | F115: 2234.228 | G115: 2475.268 | H115: 2222.874 | I115: 3543.847 | J115: 3428.995 | K115: 3578.473917 | L115: 3740.322612 | M115: 3836.099933 | N115: 4287.522633 | O115: 3899.452339 | P115: 5088.644045 | Q115: 4749.578385 | R115: 3817.582939 | S115: 4148.563879 | T115: 4125.325 | U115: 4638.143 | V115: 5453.673 | W115: 6824.32 | X115: - | Y115: - | Z115: -
B116: Eólica | C116: 2.18699998 | D116: 2.865 | E116: 17.361 | F116: 84.768 | G116: 72.86 | H116: 159.857 | I116: 304.129 | J116: 619.885 | K116: 1236.656706 | L116: 2474.033298 | M116: 4462.49605 | N116: 6594.148113 | O116: 9259.296687 | P116: 11720.24613 | Q116: 15754.11777 | R116: 20857.66596 | S116: 22880.85608 | T116: 27249.155 | U116: 31757.85 | V116: 37888.577 | W116: 43208.396 | X116: - | Y116: - | Z116: -
B117: Solar fotovoltaica | C117: 0 | D117: 0 | E117: 12.056 | F117: 12 | G117: 15.2959 | H117: 1.062 | I117: 0.891 | J117: 1.127 | K117: 1.170297 | L117: 1.341181 | M117: 1.269817 | N117: 1.639643 | O117: 4.561452 | P117: 8.930105 | Q117: 17.794011 | R117: 40.088349 | S117: 102.374999 | T117: 462.577 | U117: 2406.07 | V117: 5829.005 | W117: 6139.782 | X117: - | Y117: - | Z117: -
B118: Solar térmica | C118: 0 | D118: 0 | E118: 0 | F118: 0 | G118: 0 | H118: 0 | I118: 0 | J118: 0 | K118: 0 | L118: 0 | M118: 0 | N118: 0 | O118: 0 | P118: 0 | Q118: 0 | R118: 0 | S118: 0 | T118: 7.627 | U118: 15.378 | V118: 129.823 | W118: 691.62 | X118: - | Y118: - | Z118: -
B119: Térmica renovable/Otras renovables | C119: 0 | D119: 0.854 | E119: 16.549 | F119: 58.822 | G119: 322.45 | H119: 671.269 | I119: 815.08 | J119: 648.375 | K119: 748.746327 | L119: 908.253676 | M119: 961.110386 | N119: 1738.458428 | O119: 1453.015286 | P119: 1737.041738 | Q119: 1818.093632 | R119: 1987.85807 | S119: 2182.606682 | T119: 2375.685 | U119: 2651.489 | V119: 3044.287 | W119: 3171.799 | X119: - | Y119: - | Z119: -
B120: Térmica no renovable/Cogeneración y resto/Cogeneración | C120: 654.8570001 | D120: 1435.984 | E120: 1902.882 | F120: 3307.504 | G120: 5311.9911 | H120: 6540.753 | I120: 8991.82 | J120: 11462.616 | K120: 14168.28075 | L120: 17137.27223 | M120: 17379.55481 | N120: 17656.68818 | O120: 20831.65224 | P120: 22845.34698 | Q120: 23528.7042 | R120: 23263.70368 | S120: 22318.93936 | T120: 23327.757 | U120: 26575.976 | V120: 28465.934 | W120: 30789.052 | X120: - | Y120: - | Z120: -
B121: Residuos no renovables | X121: - | Y121: - | Z121: -
B122: Residuos renovables | X122: - | Y122: - | Z122: -
B123: Régimen especial | C123: 1639.676 | D123: 3144.484 | E123: 4030.621 | F123: 5697.322 | G123: 8197.865 | H123: 9595.815 | I123: 13655.767 | J123: 16160.998 | K123: 19733.328 | L123: 24261.223 | M123: 26640.531 | N123: 30278.457 | O123: 35447.978 | P123: 41400.209 | Q123: 45868.288 | R123: 49966.899 | S123: 51633.341 | T123: 57548.126 | U123: 68044.906 | V123: 80811.299 | W123: 90824.969 | X123: - | Y123: - | Z123: -
B124: Generación | C124: 136018.349 | D124: 141883.723 | E124: 143190.52 | F124: 141826.851 | G124: 145731 | H124: 149326.084 | I124: 156671.102 | J124: 167195.572 | K124: 172237.194 | L124: 182259.564 | M124: 195456.976 | N124: 206288.655 | O124: 213189.021 | P124: 229253.75 | Q124: 243610.203 | R124: 253884.405 | S124: 263601.85 | T124: 272618.513 | U124: 280047.751 | V124: 264540.415 | W124: 273317.4117 | X124: - | Y124: - | Z124: -
B125: Consumos en bombeo | C125: -1039.272 | D125: -1432.733 | E125: -2790.705 | F125: -1887.559 | G125: -1345.389 | H125: -2081.726 | I125: -1522.618 | J125: -1760.889 | K125: -2587.754 | L125: -3666.38 | M125: -4906.886 | N125: -4131.264 | O125: -6956.682 | P125: -4678.134 | Q125: -4604.707 | R125: -6356.947 | S125: -5348.373 | T125: -4432.287 | U125: -3802.502 | V125: -3794.189 | W125: -4457.782577 | X125: - | Y125: - | Z125: -
B126: Enlace Península-Baleares | C126: - | D126: - | E126: - | F126: - | G126: - | H126: - | I126: - | J126: - | K126: - | L126: - | M126: - | N126: - | O126: - | P126: - | Q126: - | R126: - | S126: - | T126: - | U126: - | V126: - | W126: - | X126: - | Y126: - | Z126: -
B127: Saldo intercambios internacionales | C127: -419.579 | D127: -676.586 | E127: 641.124 | F127: 1267.072 | G127: 1855.105 | H127: 4489.045 | I127: 1059.366 | J127: -3072.872 | K127: 3401.864 | L127: 5719.245 | M127: 4440.595 | N127: 3457.96 | O127: 5328.768 | P127: 1263.902 | Q127: -3027.018 | R127: -1343.394 | S127: -3272.518 | T127: -5750.465 | U127: -11039.586 | V127: -8086.414 | W127: -8332.679058 | X127: - | Y127: - | Z127: -
B128: Demanda transporte (b.c.) | C128: 134559.498 | D128: 139774.404 | E128: 141040.939 | F128: 141206.364 | G128: 146240.716 | H128: 151733.403 | I128: 156207.85 | J128: 162361.811 | K128: 173051.304 | L128: 184312.429 | M128: 194990.685 | N128: 205615.351 | O128: 211561.107 | P128: 225839.518 | Q128: 235978.478 | R128: 246184.064 | S128: 254980.959 | T128: 262435.761 | U128: 265205.663 | V128: 252659.812 | W128: 260526.9501 | X128: - | Y128: - | Z128: -
B130: Balance eléctrico anual Islas Baleares (MWh) | C130: 2006 | D130: 2007 | E130: 2008 | F130: 2009 | G130: 2010 | H130: 2011 | I130: 2012 | J130: 2013
B131: Carbón | C131: 3077310 | D131: 2943855 | E131: 3098826 | F131: 3170463 | G131: 3101357.566 | H131: - | I131: - | J131: -
B132: Motores diesel | C132: 964902 | D132: 1005606 | E132: 1047081 | F132: 971825 | G132: 1027620.046 | H132: - | I132: - | J132: -
B133: Turbina de gas | C133: 292054.952 | D133: 311441 | E133: 272502 | F133: 339369 | G133: 299414.366 | H133: - | I133: - | J133: -
B134: Fuel + Gas | C134: 1256956.952 | D134: 1317047 | E134: 1319583 | F134: 1311194 | G134: 1327034.412 | H134: - | I134: - | J134: -
B135: Ciclo combinado | C135: 1341915 | D135: 1583995 | E135: 1523490 | F135: 1292183 | G135: 1135633.722 | H135: - | I135: - | J135: -
B136: Generación auxiliar | C136: 6350.22 | D136: 12612 | E136: 5931 | F136: 5566 | G136: 6694.332 | H136: - | I136: - | J136: -
B137: Régimen ordinario | C137: 5682532.172 | D137: 5857509 | E137: 5947830 | F137: 5779406 | G137: 5570720.032 | H137: - | I137: - | J137: -
B138: Eólica | C138: 4877.356 | D138: 5656 | E138: 5497 | F138: 5543 | G138: 5571 | H138: - | I138: - | J138: -
B139: Solar fotovoltaica | C139: 1100.795 | D139: 1952 | E139: 28380 | F139: 80933 | G139: 87757 | H139: - | I139: - | J139: -
B140: Térmica renovable/Otras renovables | C140: 0 | D140: 0 | E140: 0 | F140: 0 | G140: 0 | H140: - | I140: - | J140: -
B141: Térmica no renovable/Cogeneración y resto/Cogeneración | C141: 139112.849 | D141: 113933 | E141: 140332 | F141: 127042 | G141: 176244 | H141: - | I141: - | J141: -
B142: Residuos no renovables | H142: - | I142: - | J142: -
B143: Residuos renovables | H143: - | I143: - | J143: -
B144: Régimen especial | C144: 145091 | D144: 121541 | E144: 174209 | F144: 213518 | G144: 269572 | H144: - | I144: - | J144: -
B145: Generación | C145: 5827623.172 | D145: 5979050 | E145: 6122039 | F145: 5992924 | G145: 5840292.032 | H145: - | I145: - | J145: -
B146: Enlace Península-Baleares | C146: - | D146: - | E146: - | F146: - | G146: - | H146: - | I146: - | J146: -
B147: Demanda transporte (b.c.) | C147: 5827623.172 | D147: 5979050 | E147: 6122039 | F147: 5992924 | G147: 5840292.032 | H147: - | I147: - | J147: -
B149: Balance eléctrico anual Islas Canarias (MWh) | C149: 2006 | D149: 2007 | E149: 2008 | F149: 2009 | G149: 2010 | H149: 2011 | I149: 2012 | J149: 2013
B150: Hidráulica | C150: 0 | D150: 0 | E150: 0 | F150: 0 | G150: 0 | H150: - | I150: - | J150: -
B151: Motores diesel | C151: 2007664 | D151: 2042002 | E151: 2103766 | F151: 2140699 | G151: 2183387.772 | H151: - | I151: - | J151: -
B152: Turbina de gas | C152: 824431.12 | D152: 699470 | E152: 473526 | F152: 342172.054 | G152: 343281.657 | H152: - | I152: - | J152: -
B153: Turbina de vapor | C153: 3429991 | D153: 3306805 | E153: 3414241 | F153: 3243628 | G153: 2972587.105 | H153: - | I153: - | J153: -
B154: Fuel + Gas | C154: 6262086.12 | D154: 6048277 | E154: 5991533 | F154: 5726499.054 | G154: 5499256.534 | H154: - | I154: - | J154: -
B155: Ciclo combinado | C155: 2007397 | D155: 2443275 | E155: 2573317 | F155: 2552328 | G155: 2708410.185 | H155: - | I155: - | J155: -
B156: Generación auxiliar | C156: 0 | D156: 132840 | E156: 89747 | F156: 33788 | G156: 0 | H156: - | I156: - | J156: -
B157: Régimen ordinario | C157: 8269483.12 | D157: 8624392 | E157: 8654597 | F157: 8312615.054 | G157: 8207666.719 | H157: - | I157: - | J157: -
B158: Hidroeólica | C158: - | D158: - | E158: - | F158: - | G158: - | H158: - | I158: - | J158: -
B159: Hidráulica/Resto hidráulica | C159: 0 | D159: 1176 | E159: 1673 | F159: 398 | G159: 0 | H159: - | I159: - | J159: -
B160: Eólica | C160: 326063.579 | D160: 356840 | E160: 396475 | F160: 358707 | G160: 331363 | H160: - | I160: - | J160: -
B161: Solar fotovoltaica | C161: 2915.55 | D161: 19373 | E161: 63500 | F161: 162330 | G161: 195166 | H161: - | I161: - | J161: -
B162: Térmica renovable/Otras renovables | C162: 218199.684 | D162: 213283 | E162: 217219 | F162: 273055 | G162: 160561 | H162: - | I162: - | J162: -
B163: Térmica no renovable/Cogeneración y resto/Cogeneración | C163: 2832.187 | D163: 0 | E163: 0 | F163: 20 | G163: 0 | H163: - | I163: - | J163: -
B164: Régimen especial | C164: 550011 | D164: 590672 | E164: 678867 | F164: 794510 | G164: 687090 | H164: - | I164: - | J164: -
B165: Generación | C165: 8819494.12 | D165: 9215064 | E165: 9333464 | F165: 9107125.054 | G165: 8894756.719 | H165: - | I165: - | J165: -
B166: Demanda transporte (b.c.) | C166: 8819494.12 | D166: 9215064 | E166: 9333464 | F166: 9107125.054 | G166: 8894756.719 | H166: - | I166: - | J166: -
B168: Balance eléctrico anual Ceuta (MWh) | C168: 2007 | D168: 2008 | E168: 2009 | F168: 2010 | G168: 2011 | H168: 2012 | I168: 2013
B169: Motores diesel | C169: 202644 | D169: 209671 | E169: 208316 | F169: 214666.244 | G169: - | H169: - | I169: -
B170: Turbina de gas | C170: 0 | D170: 0 | E170: 3253 | F170: 2868.867 | G170: - | H170: - | I170: -
B171: Fuel + Gas | C171: 202644 | D171: 209671 | E171: 211569 | F171: 217535.111 | G171: - | H171: - | I171: -
B172: Régimen ordinario | C172: 202644 | D172: 209671 | E172: 211569 | F172: 217535.111 | G172: - | H172: - | I172: -
B173: Generación | C173: 202644 | D173: 209671 | E173: 211569 | F173: 217535.111 | G173: - | H173: - | I173: -
B174: Demanda transporte (b.c.) | C174: 202644 | D174: 209671 | E174: 211569 | F174: 217535.111 | G174: - | H174: - | I174: -
G175: -
B176: Balance eléctrico anual Melilla (MWh) | C176: 2007 | D176: 2008 | E176: 2009 | F176: 2010 | G176: 2011 | H176: 2012 | I176: 2013
B177: Motores diesel | C177: 181867.74 | D177: 193125 | E177: 197553 | F177: 204717.971 | G177: - | H177: - | I177: -
B178: Turbina de gas | C178: 2412.26 | D178: 3081 | E178: 545 | F178: 498.456 | G178: - | H178: - | I178: -
B179: Fuel + gas | C179: 184280 | D179: 196206 | E179: 198098 | F179: 205216.427 | G179: - | H179: - | I179: -
B180: Régimen ordinario | C180: 184280 | D180: 196206 | E180: 198098 | F180: 205216.427 | G180: - | H180: - | I180: -
B181: Solar fotovoltaica | C181: 0 | D181: 6 | E181: 122 | F181: 67 | G181: - | H181: - | I181: -
B182: Térmica no renovable/Cogeneración y resto/Cogeneración | C182: 8740 | D182: 4842 | E182: 7735 | F182: 8028 | G182: - | H182: - | I182: -
B183: Residuos no renovables | C183: - | D183: - | E183: - | F183: - | G183: - | H183: - | I183: -
B184: Residuos renovables | C184: - | D184: - | E184: - | F184: - | G184: - | H184: - | I184: -
B185: Régimen especial | C185: 8740 | D185: 4848 | E185: 7857 | F185: 8095 | G185: - | H185: - | I185: -
B186: Generación | C186: 193020 | D186: 201054 | E186: 205955 | F186: 213311.427 | G186: - | H186: - | I186: -
B187: Demanda transporte (b.c.) | C187: 193020 | D187: 201054 | E187: 205955 | F187: 213311.427 | G187: - | H187: - | I187: -
B189: Balance eléctrico anual nacional (GWh) | C189: 2007 | D189: 2008 | E189: 2009 | F189: 2010 | G189: 2011 | H189: 2012 | I189: 2013
B190: Hidráulica | C190: 22978.9781 | D190: 18295.6386 | E190: 20732.3027 | F190: 35009.45419 | G190: - | H190: - | I190: -
B191: Turbinación bombeo | C191: 3102.6009 | D191: 2661.7514 | E191: 2655.9323 | F191: 3120.447804 | G191: - | H191: - | I191: -
B192: Nuclear | C192: 52638.927 | D192: 56460.291 | E192: 50549.445 | F192: 59242.32165 | G192: - | H192: - | I192: -
B193: Carbón | C193: 70630.103 | D193: 46508.363 | E193: 34793.025 | F193: 23700.6134 | G193: - | H193: - | I193: -
B194: Fuel + Gas | C194: 9988.465 | D194: 9887.566 | E194: 9276.304054 | F194: 8821.759816 | G194: - | H194: - | I194: -
B195: Ciclo combinado | C195: 70600.138 | D195: 93197.539 | E195: 80223.795 | F195: 66798.98415 | G195: - | H195: - | I195: -
B196: Régimen ordinario | C196: 229939.212 | D196: 227011.149 | E196: 198230.8041 | F196: 196693.581 | G196: - | H196: - | I196: -
B197: Hidroeólica | G197: - | H197: - | I197: -
B198: Hidráulica/Resto hidráulica | C198: 4126.501 | D198: 4639.816 | E198: 5454.071 | F198: 6824.32 | G198: - | H198: - | I198: -
B199: Eólica | C199: 27611.651 | D199: 32159.822 | E199: 38252.827 | F199: 43545.33 | G199: - | H199: - | I199: -
B200: Solar fotovoltaica | C200: 483.902 | D200: 2497.956 | E200: 6072.39 | F200: 6422.772 | G200: - | H200: - | I200: -
B201: Solar térmica | C201: 7.627 | D201: 15.378 | E201: 129.823 | F201: 691.62 | G201: - | H201: - | I201: -
B202: Térmica renovable/Otras renovables | C202: 2588.968 | D202: 2868.708 | E202: 3317.342 | F202: 3332.36 | G202: - | H202: - | I202: -
B203: Térmica no renovable/Cogeneración y resto/Cogeneración | C203: 23450.43 | D203: 26721.15 | E203: 28600.731 | F203: 30973.324 | G203: - | H203: - | I203: -
B204: Residuos no renovables | G204: - | H204: - | I204: -
B205: Residuos renovables | G205: - | H205: - | I205: -
B206: Régimen especial | C206: 58269.079 | D206: 68902.83 | E206: 81827.184 | F206: 91789.726 | G206: - | H206: - | I206: -
B207: Generación | C207: 288208.291 | D207: 295913.979 | E207: 280057.9881 | F207: 288483.307 | G207: - | H207: - | I207: -
B208: Consumos en bombeo | C208: -4432.287 | D208: -3802.502 | E208: -3794.189 | F208: -4457.782577 | G208: - | H208: - | I208: -
B209: Saldo intercambios internacionales | C209: -5750.465 | D209: -11039.586 | E209: -8086.414 | F209: -8332.679058 | G209: - | H209: - | I209: -
B210: Demanda transporte (b.c.) | C210: 278025.539 | D210: 281071.891 | E210: 268177.3851 | F210: 275692.8454 | G210: - | H210: - | I210: -

Sheet Mozart Reports (hidden)
A1: 5 | B1: aeb79108330e49c98009308e1e48a942
A2: <mi app="e" ver="22"><rptloc guid="13af3534735e4c4ca05137df4b7861a7" rank="0" ds="1"><ri hasPG="0" name="Serie mensual Balance Ceuta" id="6F2CD6824FBB0B41F382AAA8194FBE87" path="Objetos públicos\Informes\Informes macros\Series Estadisticas\Serie mensual Balance Ceuta" cf="0" prompt="1" ve="0" vm="0" flashpth="d:\Usuarios\RODORTJO\AppData\Local\Temp\1\" fimagepth="d:\Usuarios\RODORTJO\AppData\Local\Temp\1\" swfn="DashboardViewer.swf" fvars="" dvis=""><ans /><ci ps="BI" srv="apcpr64b" prj="BDEbi" prjid="D066E1C611E6257C10D00080EF253B44" li="RODORTJO" am="s" /><lu ut="05/13/2019 10:42:46" si="2.00000001f1070db6b726862da9c3d07819f07df4190e16ffdcb72bc8ffc05fcfa91dc57881eae42e1287be88cbeccf0644e6f70217e3b2d597a2de7c16a2c5bde5dbb27744a0abc6add7fcec7491f05d8ae3aaa75e3c4201373baddd7cadad122955ec809a4644b95f09870f778d4b42644bffbf6394c3e46ec13b6ca397e430dcab.3082.0.1.Europe/Madrid.upriv*_1*_pidn2*_146*_session*-lat*_1.0000000190ca75d6e25632675285665f942e78f893bcab4f8da4e3ef8220ee838ebeea95b53ba2451165fe09a8b2d588718673be18c5167c.00000001c064dd43b759380388ed375a265e2e15bf8b3a33c4af30bf12d92735558c5bd7cdb7774a834257ea146dd4f797a9a762230ce75f.0.1.1.BDEbi.D066E1C611E6257C10D00080EF253B44.0-3082.1.1_-0.1.0_-3082.1.1_5.5.0.*0.000000018af78f3496b9ef5c7306175cbcd3f752c911585a00a1feb81544a7a890510fa5a4c88e9b.0.10*.25*.15*.214.23.10*.4*.0400*.0074J.e.0000000134995268ac1123d5d3f3626985b62dd8c911585af17ce3f35a9b27d546be4254ab245a0c.0" msgID="5657375F11E9756B69BB0080EF85CC9C" /></ri><do pa="6" cfmt="0" fmt="1" saf="0" hd="0" afg="1" rafg="1" arh="1" gosdo="0" cwd="1" ab="0" af="1" om="0" ag="0" lck="0" ppt="3" wpt="3" dai="0" rscd="1" rsrgb="1" rsrl="1" cit="2" c2d="1" cdf="0" cdt="0" dtlk="1" gaf="17" fqg="0" xqg="0" don="0" dcom="0" oaw="0" tws="0" ssm="1" ssn="MSTRStyle.Todos" glo="11101" pgsel="4" phdr="1" rdc="0" adt="0" rsoox="0" eco="1" ecfw="400" ecfh="300" ecfsu="1" ecwr="100" echr="100" eclar="1" ecrups="1"><details dbit="11169976358211" dsel="239" /></do><excel><epo ews="BDE" ece="A77" enr="MSTR.Serie_mensual_Balance_Ceuta" ptn="" qtn="" rows="7" cols="101" /><esdo ews="" ece="" ptn="" /></excel><pgs><pg rows="4" cols="100" nrr="56" nrc="1245"><pg /><bls><bl sr="1" sc="1" rfetch="4" cfetch="100" posid="1" darows="0" dacols="1"><excel><epo ews="BDE" ece="A77" enr="MSTR.Serie_mensual_Balance_Ceuta" ptn="" qtn="" rows="7" cols="101" /><esdo ews="" ece="" ptn="" /></excel><gridRng><sect id="TITLE_AREA" rngprop="1:1:3:1" /><sect id="ROWHEADERS_AREA" rngprop="4:1:4:1" /><sect id="COLUMNHEADERS_AREA" rngprop="1:2:3:100" /><sect id="DATA_AREA" rngprop="4:2:4:100" /></gridRng><shapes /></bl></bls></pg></pgs></rptloc></mi>
A3: <mi app="e" ver="22"><rptloc guid="e59ff9b2b5394000907d97b26d4ae788" rank="0" ds="1"><ri hasPG="0" name="Serie mensual Balance Melilla" id="F47A0BA049B29C2D1C7978B503DCBE43" path="Objetos públicos\Informes\Informes macros\Series Estadisticas\Serie mensual Balance Melilla" cf="0" prompt="1" ve="0" vm="0" flashpth="d:\Usuarios\RODORTJO\AppData\Local\Temp\1\" fimagepth="d:\Usuarios\RODORTJO\AppData\Local\Temp\1\" swfn="DashboardViewer.swf" fvars="" dvis=""><ans /><ci ps="BI" srv="apcpr64b" prj="BDEbi" prjid="D066E1C611E6257C10D00080EF253B44" li="RODORTJO" am="s" /><lu ut="05/13/2019 10:42:48" si="2.00000001f1070db6b726862da9c3d07819f07df4190e16ffdcb72bc8ffc05fcfa91dc57881eae42e1287be88cbeccf0644e6f70217e3b2d597a2de7c16a2c5bde5dbb27744a0abc6add7fcec7491f05d8ae3aaa75e3c4201373baddd7cadad122955ec809a4644b95f09870f778d4b42644bffbf6394c3e46ec13b6ca397e430dcab.3082.0.1.Europe/Madrid.upriv*_1*_pidn2*_146*_session*-lat*_1.0000000190ca75d6e25632675285665f942e78f893bcab4f8da4e3ef8220ee838ebeea95b53ba2451165fe09a8b2d588718673be18c5167c.00000001c064dd43b759380388ed375a265e2e15bf8b3a33c4af30bf12d92735558c5bd7cdb7774a834257ea146dd4f797a9a762230ce75f.0.1.1.BDEbi.D066E1C611E6257C10D00080EF253B44.0-3082.1.1_-0.1.0_-3082.1.1_5.5.0.*0.000000018af78f3496b9ef5c7306175cbcd3f752c911585a00a1feb81544a7a890510fa5a4c88e9b.0.10*.25*.15*.214.23.10*.4*.0400*.0074J.e.0000000134995268ac1123d5d3f3626985b62dd8c911585af17ce3f35a9b27d546be4254ab245a0c.0" msgID="56A9A3B911E9756B69BB0080EF556C9B" /></ri><do pa="6" cfmt="0" fmt="1" saf="0" hd="0" afg="1" rafg="1" arh="1" gosdo="0" cwd="1" ab="0" af="1" om="0" ag="0" lck="0" ppt="3" wpt="3" dai="0" rscd="1" rsrgb="1" rsrl="1" cit="2" c2d="1" cdf="0" cdt="0" dtlk="1" gaf="17" fqg="0" xqg="0" don="0" dcom="0" oaw="0" tws="0" ssm="1" ssn="MSTRStyle.Todos" glo="11101" pgsel="4" phdr="1" rdc="0" adt="0" rsoox="0" eco="1" ecfw="400" ecfh="300" ecfsu="1" ecwr="100" echr="100" eclar="1" ecrups="1"><details dbit="11169976358211" dsel="239" /></do><excel><epo ews="BDE" ece="A87" enr="MSTR.Serie_mensual_Balance_Melilla" ptn="" qtn="" rows="10" cols="101" /><esdo ews="" ece="" ptn="" /></excel><pgs><pg rows="7" cols="100" nrr="98" nrc="1245"><pg /><bls><bl sr="1" sc="1" rfetch="7" cfetch="100" posid="1" darows="0" dacols="1"><excel><epo ews="BDE" ece="A87" enr="MSTR.Serie_mensual_Balance_Melilla" ptn="" qtn="" rows="10" cols="101" /><esdo ews="" ece="" ptn="" /></excel><gridRng><sect id="TITLE_AREA" rngprop="1:1:3:1" /><sect id="ROWHEADERS_AREA" rngprop="4:1:7:1" /><sect id="COLUMNHEADERS_AREA" rngprop="1:2:3:100" /><sect id="DATA_AREA" rngprop="4:2:7:100" /></gridRng><shapes /></bl></bls></pg></pgs></rptloc></mi>
A4: <mi app="e" ver="22"><rptloc guid="90f221476e2f44209624066d52a5f0d1" rank="0" ds="1"><ri hasPG="0" name="Serie mensual Balance Peninsular" id="96A0EAFC4AE8A78EF67C2F993551FF61" path="Objetos públicos\Informes\Informes macros\Series Estadisticas\Serie mensual Balance Peninsular" cf="0" prompt="1" ve="0" vm="0" flashpth="d:\Usuarios\RODORTJO\AppData\Local\Temp\1\" fimagepth="d:\Usuarios\RODORTJO\AppData\Local\Temp\1\" swfn="DashboardViewer.swf" fvars="" dvis=""><ans /><ci ps="BI" srv="apcpr64b" prj="BDEbi" prjid="D066E1C611E6257C10D00080EF253B44" li="RODORTJO" am="s" /><lu ut="05/13/2019 10:43:49" si="2.00000001f1070db6b726862da9c3d07819f07df4190e16ffdcb72bc8ffc05fcfa91dc57881eae42e1287be88cbeccf0644e6f70217e3b2d597a2de7c16a2c5bde5dbb27744a0abc6add7fcec7491f05d8ae3aaa75e3c4201373baddd7cadad122955ec809a4644b95f09870f778d4b42644bffbf6394c3e46ec13b6ca397e430dcab.3082.0.1.Europe/Madrid.upriv*_1*_pidn2*_146*_session*-lat*_1.0000000190ca75d6e25632675285665f942e78f893bcab4f8da4e3ef8220ee838ebeea95b53ba2451165fe09a8b2d588718673be18c5167c.00000001c064dd43b759380388ed375a265e2e15bf8b3a33c4af30bf12d92735558c5bd7cdb7774a834257ea146dd4f797a9a762230ce75f.0.1.1.BDEbi.D066E1C611E6257C10D00080EF253B44.0-3082.1.1_-0.1.0_-3082.1.1_5.5.0.*0.000000018af78f3496b9ef5c7306175cbcd3f752c911585a00a1feb81544a7a890510fa5a4c88e9b.0.10*.25*.15*.214.23.10*.4*.0400*.0074J.e.0000000134995268ac1123d5d3f3626985b62dd8c911585af17ce3f35a9b27d546be4254ab245a0c.0" msgID="568A4CA211E9756B69BB0080EFA50B9A" /></ri><do pa="6" cfmt="0" fmt="1" saf="0" hd="0" afg="1" rafg="1" arh="1" gosdo="0" cwd="1" ab="0" af="1" om="0" ag="0" lck="0" ppt="3" wpt="3" dai="0" rscd="1" rsrgb="1" rsrl="1" cit="2" c2d="1" cdf="0" cdt="0" dtlk="1" gaf="17" fqg="0" xqg="0" don="0" dcom="0" oaw="0" tws="0" ssm="1" ssn="MSTRStyle.Todos" glo="11101" pgsel="4" phdr="1" rdc="0" adt="0" rsoox="0" eco="1" ecfw="400" ecfh="300" ecfsu="1" ecwr="100" echr="100" eclar="1" ecrups="1"><details dbit="11169976358211" dsel="239" /></do><excel><epo ews="BDE" ece="A7" enr="MSTR.Serie_mensual_Balance_Peninsular" ptn="" qtn="" rows="21" cols="101" /><esdo ews="" ece="" ptn="" /></excel><pgs><pg rows="18" cols="100" nrr="342" nrc="1532"><pg><attEl aeid="BB:5EAE1F1D48ED4011B00BAC90762C13F0:1:2:0:2:1:3:1:Península" aedn="Península" aen="Sistema Eléctrico" /><attEl aeid="BB:AB973FBD4D0CA7EE4892009A2825B4C6:1:2:0:2:1:3:3:PUBLICADO" aedn="PUBLICADO" aen="Versión" /></pg><bls><bl sr="1" sc="1" rfetch="18" cfetch="100" posid="1" darows="0" dacols="1"><excel><epo ews="BDE" ece="A7" enr="MSTR.Serie_mensual_Balance_Peninsular" ptn="" qtn="" rows="21" cols="101" /><esdo ews="" ece="" ptn="" /></excel><gridRng><sect id="TITLE_AREA" rngprop="1:1:3:1" /><sect id="ROWHEADERS_AREA" rngprop="4:1:18:1" /><sect id="COLUMNHEADERS_AREA" rngprop="1:2:3:100" /><sect id="DATA_AREA" rngprop="4:2:18:100" /></gridRng><shapes /></bl></bls></pg></pgs></rptloc></mi>
A5: <mi app="e" ver="22"><rptloc guid="95b8c730cb95430298fde918f076b6cf" rank="0" ds="1"><ri hasPG="0" name="Serie mensual Balance Baleares" id="DEC196524A40A58AC65C1DA090B9AE0E" path="Objetos públicos\Informes\Informes macros\Series Estadisticas\Serie mensual Balance Baleares" cf="0" prompt="1" ve="0" vm="0" flashpth="d:\Usuarios\RODORTJO\AppData\Local\Temp\1\" fimagepth="d:\Usuarios\RODORTJO\AppData\Local\Temp\1\" swfn="DashboardViewer.swf" fvars="" dvis=""><ans><pan pk="6383F02949E1244BCE94A09C4486F039@0@10" aid="" /></ans><ci ps="BI" srv="apcpr64b" prj="BDEbi" prjid="D066E1C611E6257C10D00080EF253B44" li="RODORTJO" am="s" /><lu ut="05/13/2019 10:42:50" si="2.00000001f1070db6b726862da9c3d07819f07df4190e16ffdcb72bc8ffc05fcfa91dc57881eae42e1287be88cbeccf0644e6f70217e3b2d597a2de7c16a2c5bde5dbb27744a0abc6add7fcec7491f05d8ae3aaa75e3c4201373baddd7cadad122955ec809a4644b95f09870f778d4b42644bffbf6394c3e46ec13b6ca397e430dcab.3082.0.1.Europe/Madrid.upriv*_1*_pidn2*_146*_session*-lat*_1.0000000190ca75d6e25632675285665f942e78f893bcab4f8da4e3ef8220ee838ebeea95b53ba2451165fe09a8b2d588718673be18c5167c.00000001c064dd43b759380388ed375a265e2e15bf8b3a33c4af30bf12d92735558c5bd7cdb7774a834257ea146dd4f797a9a762230ce75f.0.1.1.BDEbi.D066E1C611E6257C10D00080EF253B44.0-3082.1.1_-0.1.0_-3082.1.1_5.5.0.*0.000000018af78f3496b9ef5c7306175cbcd3f752c911585a00a1feb81544a7a890510fa5a4c88e9b.0.10*.25*.15*.214.23.10*.4*.0400*.0074J.e.0000000134995268ac1123d5d3f3626985b62dd8c911585af17ce3f35a9b27d546be4254ab245a0c.0" msgID="565C081B11E9756B69BB0080EFF5AC9B" /></ri><do pa="6" cfmt="0" fmt="1" saf="0" hd="0" afg="1" rafg="1" arh="1" gosdo="0" cwd="1" ab="0" af="1" om="0" ag="0" lck="0" ppt="3" wpt="3" dai="0" rscd="1" rsrgb="1" rsrl="1" cit="2" c2d="1" cdf="0" cdt="0" dtlk="1" gaf="17" fqg="0" xqg="0" don="0" dcom="0" oaw="0" tws="0" ssm="1" ssn="MSTRStyle.Todos" glo="11101" pgsel="4" phdr="1" rdc="0" adt="0" rsoox="0" eco="1" ecfw="400" ecfh="300" ecfsu="1" ecwr="100" echr="100" eclar="1" ecrups="1"><details dbit="11169976358211" dsel="239" /></do><excel><epo ews="BDE" ece="A37" enr="MSTR.Serie_mensual_Balance_Baleares" ptn="" qtn="" rows="17" cols="101" /><esdo ews="" ece="" ptn="" /></excel><pgs><pg rows="14" cols="100" nrr="252" nrc="1373"><pg><attEl aeid="BB:5EAE1F1D48ED4011B00BAC90762C13F0:1:2:0:2:1:3:4:Baleares" aedn="Baleares" aen="Sistema Eléctrico" /><attEl aeid="BB:AB973FBD4D0CA7EE4892009A2825B4C6:1:2:0:2:1:3:3:PUBLICADO" aedn="PUBLICADO" aen="Versión" /></pg><bls><bl sr="1" sc="1" rfetch="14" cfetch="100" posid="1" darows="0" dacols="1"><excel><epo ews="BDE" ece="A37" enr="MSTR.Serie_mensual_Balance_Baleares" ptn="" qtn="" rows="17" cols="101" /><esdo ews="" ece="" ptn="" /></excel><gridRng><sect id="TITLE_AREA" rngprop="1:1:3:1" /><sect id="ROWHEADERS_AREA" rngprop="4:1:14:1" /><sect id="COLUMNHEADERS_AREA" rngprop="1:2:3:100" /><sect id="DATA_AREA" rngprop="4:2:14:100" /></gridRng><shapes /></bl></bls></pg></pgs></rptloc></mi>
A6: <mi app="e" ver="22"><rptloc guid="308c3eaec61b4e15bc09b15f200740d1" rank="0" ds="1"><ri hasPG="0" name="Serie mensual Balance Canarias" id="0D4A433A4CF4D0C4C4E4E1BEA007E1BE" path="Objetos públicos\Informes\Informes macros\Series Estadisticas\Serie mensual Balance Canarias" cf="0" prompt="1" ve="0" vm="0" flashpth="d:\Usuarios\RODORTJO\AppData\Local\Temp\1\" fimagepth="d:\Usuarios\RODORTJO\AppData\Local\Temp\1\" swfn="DashboardViewer.swf" fvars="" dvis=""><ans /><ci ps="BI" srv="apcpr64b" prj="BDEbi" prjid="D066E1C611E6257C10D00080EF253B44" li="RODORTJO" am="s" /><lu ut="05/13/2019 10:42:47" si="2.00000001f1070db6b726862da9c3d07819f07df4190e16ffdcb72bc8ffc05fcfa91dc57881eae42e1287be88cbeccf0644e6f70217e3b2d597a2de7c16a2c5bde5dbb27744a0abc6add7fcec7491f05d8ae3aaa75e3c4201373baddd7cadad122955ec809a4644b95f09870f778d4b42644bffbf6394c3e46ec13b6ca397e430dcab.3082.0.1.Europe/Madrid.upriv*_1*_pidn2*_146*_session*-lat*_1.0000000190ca75d6e25632675285665f942e78f893bcab4f8da4e3ef8220ee838ebeea95b53ba2451165fe09a8b2d588718673be18c5167c.00000001c064dd43b759380388ed375a265e2e15bf8b3a33c4af30bf12d92735558c5bd7cdb7774a834257ea146dd4f797a9a762230ce75f.0.1.1.BDEbi.D066E1C611E6257C10D00080EF253B44.0-3082.1.1_-0.1.0_-3082.1.1_5.5.0.*0.000000018af78f3496b9ef5c7306175cbcd3f752c911585a00a1feb81544a7a890510fa5a4c88e9b.0.10*.25*.15*.214.23.10*.4*.0400*.0074J.e.0000000134995268ac1123d5d3f3626985b62dd8c911585af17ce3f35a9b27d546be4254ab245a0c.0" msgID="56830C3A11E9756B69BB0080EF85CB9A" /></ri><do pa="6" cfmt="0" fmt="1" saf="0" hd="0" afg="1" rafg="1" arh="1" gosdo="0" cwd="1" ab="0" af="1" om="0" ag="0" lck="0" ppt="3" wpt="3" dai="0" rscd="1" rsrgb="1" rsrl="1" cit="2" c2d="1" cdf="0" cdt="0" dtlk="1" gaf="17" fqg="0" xqg="0" don="0" dcom="0" oaw="0" tws="0" ssm="1" ssn="MSTRStyle.Todos" glo="11101" pgsel="4" phdr="1" rdc="0" adt="0" rsoox="0" eco="1" ecfw="400" ecfh="300" ecfsu="1" ecwr="100" echr="100" eclar="1" ecrups="1"><details dbit="11169976358211" dsel="239" /></do><excel><epo ews="BDE" ece="A57" enr="MSTR.Serie_mensual_Balance_Canarias" ptn="" qtn="" rows="15" cols="101" /><esdo ews="" ece="" ptn="" /></excel><pgs><pg rows="12" cols="100" nrr="179" nrc="1337"><pg /><bls><bl sr="1" sc="1" rfetch="12" cfetch="100" posid="1" darows="0" dacols="1"><excel><epo ews="BDE" ece="A57" enr="MSTR.Serie_mensual_Balance_Canarias" ptn="" qtn="" rows="15" cols="101" /><esdo ews="" ece="" ptn="" /></excel><gridRng><sect id="TITLE_AREA" rngprop="1:1:3:1" /><sect id="ROWHEADERS_AREA" rngprop="4:1:12:1" /><sect id="COLUMNHEADERS_AREA" rngprop="1:2:3:100" /><sect id="DATA_AREA" rngprop="4:2:12:100" /></gridRng><shapes /></bl></bls></pg></pgs></rptloc></mi>

Sheet Año (hidden)
Y1: 1 | Z1: 1
A2: Mensual | B2: 1990-1991 | C2: 1990 | D2: 1990-1997 | E2: 2006-2013 | F2: 2007-2013 | O2: Nacional | P2: Mensual
A3: Trimestral | B3: 1992-1993 | C3: 1991 | D3: 1998-2005 | E3: 2014-2021 | F3: 2014-2020 | O3: Peninsular | P3: Anual
A4: Anual | B4: 1994-1995 | C4: 1992 | D4: 2006-2013 | O4: Canarias
B5: 1996-1997 | C5: 1993 | D5: 2014-2021 | O5: Baleares
B6: 1998-1999 | C6: 1994 | O6: Ceuta
B7: 2000-2001 | C7: 1995 | O7: Melilla
B8: 2002-2003 | C8: 1996
B9: 2004-2005 | C9: 1997
B10: 2006-2007 | C10: 1998
B11: 2008-2009 | C11: 1999
B12: 2010-2011 | C12: 2000
C13: 2001
C14: 2002
C15: 2003
C16: 2004
C17: 2005
C18: 2006
C19: 2007
C20: 2008
C21: 2009
C22: 2010
